Workbook

Sheet Notes
A1: OscillatorProbabilityProfiler.xlsm; Traders Tip spreadsheet created for the October 2018 Issue
A2: Coded beginning 2018-August-11 by Ronald McAllister (rpmac_xltt@sprynet.com)
A4: This Workbook demonstrates an EXCEL version of the ideas presented
A5: by John Ehlers in an article titled "Probability - Probably A Good Thing To Know"
A6: which originally appeared in the October 2018 issue of
A7: "Technical Analysis of Stocks and Commodities" magazine.
A9: Erratta:
A11: 2018 Sept 05 - Note from R. Hochbrueckner asking if the formulas for the "b" coefficients (cells C18, C21, and C24)
A12: should have started with multiplier of "2" instead of "1". I.E. as shown in Mr Ehlers side bar code.
A13: Good eye, good catch Mr. Hochbrueckner!
A14: This version has the formulas in these three cells corrected.
A16: General Construction Notes
A18: This spreadsheet incorporates a major change to my Yahoo Finance historical data retrieval approach.
A19: Microsoft has indicated that the EDGE Browser will be replacing Internet Explorer going forward.
A20: Some newer machines are being delivered with Win 10 and EDGE and no Internet Explorer.
A21: This presents a looming problem as Win 7 and Win 8 begin to age out.
A22: EXCEL Querytables, as vehicles for web data retrieval, rely on parts of the Internet Explorer for automated Cookie processing.
A23: The current gate keeper protocols for access to the Yahoo Finance historical pricing data requires that both
A24: a valid Yahoo Finance cookie and a matching "Crumb" value be sent to Yahoo Finance with each historical data request.
A25: With EXCEL Query Tables the cookie part is automatic. At least as long as the necessary bits of IE remain available and functioning.
A26: However, the Crumb part is imbedded in the raw HTML returned for the Yahoo stock summary page, the Yahoo History page, and for certain other Yahoo Finance Entry level Pages.
A27: The problem has been that EXCEL provides no native capability to get at that raw HTML text.
A28: Enter MSXML.
A29: MSXML also shares the automatic Internet Explorer Cookie handlers. But if you want to ask programmatically, MSXML will show you inbound cookies destined for the IE cache.
A30: MSXML provides access to the raw HTML text and my VBA code extracts the necessary Crumb value from that text.
A31: Up until now I simply appended the Crumb value retrieved via MSXML to my Querytable history data request URLs and since cookies for Querytables are automatic, things worked just fine.
A33: Recently several folks have had the Querytable data retrievals stop working on their machines.
A34: The actual error text was Yahoo declaring an Invalid cookie but I have recently determined by trial and error that the crumb was the problem. (see below)
A35: Researching these failures led me to discover the coming IE End of life and the issues this may raise for Querytables.
A36: * * * *
A37: With this spreadsheet I am using WinHttpRequest as my VBA internet access vehicle.
A38: WinHttpRequest is analogous to MSXML with the exception that WinHttpRequest by default maintains its own in-memory cookie cache and does not share
A39: the in memory cache with any other windows processes. The downside is that Querytables can not see that cache. So I have replaced each of the Querytable calls with
A40: analogous WinHttpRequest calls and then must parse the returned pricing CSV structures in VBA where the Querytable mechanism did some of that parsing for me.
A41: Data retrieval elapsed times from Request to "charts ready" seem to be comparable to the Querytable process.
A43: Because the WinHttpRequest cookie cache exists only in memory, it does not stick around after I have completed data retrieval for a symbol.
A44: The next time you request data for a symbol, a new WinHttpRequest environment is created with an empty cache and a new cookie and new crumb get retrieved from Yahoo Finance.
A46: While I was testing my new code I ran into the "Invalid Cookie" error others have reported as an error highlighting a ".refresh" command in a Querytable call.
A47: Looking closer at the then current crumb value I realized that there was an Escape Sequence embedded in the Crumb text.
A48: As it turned out, this escape sequence, \u002F, is the encoding for a forward slash "/".
A49: I replaced the escape sequence in the crumb text with the forward slash and voila, using this corrected crumb text, the error went away!
A50: My crumb text went from "asdf898r\u002Fjv.s" to "asdf898r/jv.s" and my "Invalid Cookie" error went away.
A52: Escape sequences and the reasons they exist is too large a topic for here. Google it if you are curious.
A54: Sufficient to say that I think that this (randomly embedded escape sequences) may be what is killing things for the readers
A55: who have reported that the recent spreadsheets have all suddenly stopped working after behaving fine for months.
A56: The Yahoo finance cookie existing in the IE cache on their machine expired. Yahoo sent a new cookie.
A57: The newly generated matching crumb text unfortunately contains the forward slash or some other escaped character.
A59: Yahoo Finance cookies are good for a year. So once the problem hits, all of the Trader tips spreadsheets on that machine will report the same
A60: failure for a year until the cookie in cache expires and is replaced. Or the user removes the cookie from the IE cache.
A61: Then they must be lucky enough that the new Crumb does not also have embedded escape sequences
A63: HTML and or XML protocols use the forward slash as a delimiter so unless it appears in a proper delimiter position, any forward slash must be escape encoded
A64: to avoid problems when the recipient HTML decoder is working with the raw text.
A66: In my testing to date I have generated many successful crumbs and many failures. So far, I have only encountered the \u002F escape sequence in the failures.
A68: Escaped Characters Bottom Line: VBA code in this spreadsheet automatically looks for \u002F in a crumb text and will replace it with "/".
A69: Other escaped characters may someday turn up in the crumb text. I am taking a wait and see approach for now.
A71: How to fix this specific (\u002F) escape sequence exposure in recent spreadsheets:
A72: Open one of the problem spreadsheets
A73: Open the VBA editor ALT-F11 will do it
A74: Open the VBA editor "FIND" dialog. Ctrl-F will do it
A75: In the "Find What" box type "Function ExtractCrumbString"
A76: Click on the "Search In Current Project" radio button
A77: Click "Find Next"
A78: Scroll down to the "End Function" line. Less than a page.
A79: The immediately preceding line will begin with
A80: ExtractCrumbString = Mid(SourceText,
A81: Insert the following text between the line that begins ExtractCrumbString = Mid(SourceText,
A82: and the "End Function" line
A83: ExtractCrumbString = Replace(ExtractCrumbString, "\u002F", "/", 1, -1, vbTextCompare)
B84: Save your workbook and test as you see fit.
A86: CalculationsAndCharts construction Notes:
A87: Charts from this article may be replicated as follows:
A88: Figure 2: Symbol ^RUT, Plot dates from 03/09/2015 thru 09/23/2015
A89: Figure 3: Symbol ^NYA, Plot dates from 08/10/2016 thru 06/19/2017
A90: Figure 4: Symbol GSPC, Plot dates from 04/28/2011 thru 01/26/2012
A91: Figure 5: Symbol ^DJI, Plot dates from 10/18/2007 thru 08/14/2009
A93: Development Notes:
C94: This workbook contains and uses VBA macros and may use VBA Class structures.
C95: Input Data
C96: The data in this workbook is sorted date descending (most recent date at the top). All formulas and
C97: VBA routines are built accordingly.
B101: My sincere apologies to our Macintosh based readers: Neither MSXML nor WinHttpRequest are supported in your environment. So as it stands this version of the spreadsheet will not work for you.
B102: See "Why this approach does not work for Macintosh" below.
B103: I am investigating cURL as a non-Querytable based approach for the Macintosh environment.
A105: The new Yahoo Finance history download interface has changed rather radically. The biggest hurdle being a pseudo-security requirement of adding a
B106: crumb character string to any URL requesting any type of history download. That crumb must match up (by way of some sort of hash algorithm) with
B107: the Yahoo Finance cookie that must also be sent with any request to the new Yahoo History down load interface.
B109: A crumb value is returned, buried in the HTML for any of what I call the "entry level" Yahoo Finance web pages (no crumb security requirement for entry level pages).
B110: A crumb may come with other Yahoo Finance pages. A crumb may even accompany some of the secured pages as well. I have not checked.
B112: Entry level pages are the top level pages of the various Yahoo Finance dialogs and include: Quote Lookup, Stock Summary Quote, and any of the pages
B113: with links in the horizontal row with the "Summary" link on the quote summary page such as Options, Historical Data, and the rest.
B115: To date I have found no way to get at this crumb value using any native EXCEL capabilities.
B117: So this crumb requirement effectively shuts out any solution that attempts to exclusively use built-in facilities of EXCEL, which is to say a purely Querytables solution.
B119: The approach built for this Traders Tip spreadsheet uses a combination of MSXML and EXCEL Querytable calls to Load the InputPriceData worksheet.
B121: First I call MSXML to get the HTML text for the Yahoo Summary Quote page using the requested symbol. From this HTML text I extract the full company name,
B122: the market it trades, the market status and time stamp, and finally the associated crumb string. There is a bunch of other useful bits buried in this HTML
B123: text that do not necessarily appear on the web page your browser presents. Perhaps some day I will go after and build a worksheet with these other bits.
B125: Next I add the freshly extracted crumb string to the URLs I use in three separate Querytable calls to retrieve Price history, Split history, and Dividend history respectively.
B127: From there VBA code proceeds as in the past to fill in the cell formulas and formatting that make the "prettied up" InputPriceData sheet.
A129: Why this approach works for Windows:
B130: First, MSXML shares the permanent Internet Explorer web cache where cookies are maintained. Both IE and MSXML automatically
B131: update this cache when a "set cookie" header accompanies a web response. And they both automatically search this shared cache for
B132: cookies and add any "appropriate" cookies to the headers of any web requests they send out.
B133: This cookie handling automation means that even if the response to our MSXML call for the Summary web page includes a new version of
B134: the Yahoo Finance cookie, the imbedded Crumb value will always match the cookie newly installed in the cache!
B136: Second, in the Windows environment the EXCEL Querytable mechanism leans heavily on bits from Internet Explorer. This means that cookie
B137: handling is also automated from the shared cache for Querytable calls. We can count on any appropriate cookies being added to any Querytable call.
B138: We only need to do our part by adding the corresponding Crumb value to complete the security for the Querytable to access Yahoo History downloads.
A140: Why this approach does not work for Macintosh:
B141: For what it is worth, the Macintosh version of the MS Office suite of products do in fact maintain a special, shared amongst themselves only, cookie cache.
B142: They automate cookie handling into and from this cache JUST for the Office products and any Querytable activity they might originate.
B144: This cache is not tied to, nor shared with, any browser that might be installed on the MAC. And I have not found anything with HTTP capabilities similar to
B145: MSXML that can work with that Office product cookie cache.
B147: When working in the MAC EXCEL environment, without that MSXML like capability against the office shared cache, l have no mechanism
B148: to obtain a crumb value that would be a valid match to the Yahoo Finance cookie that will be automatically attached to a Querytable call.
B149: This missing facility pretty much eliminates the use of Mac environment Querytables to access the new Yahoo Finance history download interface.
A151: One very low probability potential "Gottcha" for any Querytables approach.
B152: Yahoo Finance cookies typically have an assigned expiration that is a year out (to the second) from the time they are issued.
B153: Further, these cookies are unique. Yours will not match mine.
B155: If for testing purposes, instead of MSXML, you use a fresh instance of Winhttp (Fresh instance = empty cache = no cookie to automatically send)
B156: every time you call an entry level page, the Yahoo server says "What? Entry level page? With no inbound cookie? Get them a cookie!!"
B157: and will send you a new, unique cookie and will imbed the matching crumb value in the response HTML text for each of these "no cookie attached" calls.
B159: The Gottcha: Lets say that the Yahoo Finance cookie presently in the IE cache has an expiration date and time that just happens
B160: to fall between our MSXML call to the summary page to fetch our crumb and our first (or second, or third) Querytable call.
B161: The Querytable call after the cookie expiration may fail with a cookie and crumb validation error.
B163: Querytable error reporting is atrocious. So we will not get any sort of helpful message here. Just a very generalized message like "failed to connect".
B165: The workaround is to simply go to the InputPriceData tab and click the download button.
B166: This second time through the retrieval process should not fail on a mismatch.
B167: After all, you now have a year before the new cookie that just got put into the cache expires!
A169: Calculation and Chart Worksheet Usage Comments:
C170: In General, Items in Bolded BLUE are items you may freely change to play what-if games.
C171: Be sure to have a backup copy of the spreadsheet before you alter anything else.
A173: Features carried forward from the June 2016 version of my T-Tips Template
A174: Added a pair of buttons near cell F12 that will allow the user to step the charting window forward or backward one bar for each click.
A175: I find this to be a good way to test my understanding of the author's ideas as I step through the evolution of the price behavior and the indicators.
B177: First: In the "Help! I would like to plot data" area.
B178: Added button to resolve #NA problems by locating the bar in the input data with a slightly more recent date than what the user actually requested.
B179: I find this particularly useful when I have a general idea of where I want to be date wise. Now I can pick a set of dates "out of the air".
B180: If either (or both) of my date specifications fall between dates that are available in the price history,
B181: this button will resolve them to the dates of the nearest, slightly more recent input bars.
B182: I can then refine my data interval search as necessary from there.
B183: Really great when working with Weekly or Monthly studies!
C184: 2016Jun11 - added logic to the "I would like to chart.." button to detect #N/A values and terminate
C185: gracefully with a message instead of blowing up in the charting logic.
B187: Second: In the "Price Chart Windowing Controls" area. (A11 and A12)
B188: When retrieving data for a new symbol or when changing from daily to weekly or monthly data, there was the possibility that the
B189: residual settings in A11 and A12 would fall outside of the number bars available on the input data tab after the new data retrieval.
B190: In certain combinations, this could create a serious error in the chart sizing logic and crash the spreadsheet.
B191: I have taken this opportunity to update the validity checking logic used in the chart sizing macros
B192: to adjust these values as necessary so that they fall within the boundaries of the newly retrieved input data.
A193: Features carried forward from the October 2015 Traders Tips Template
B194: Improved automation: changes to any of the following will automatically initiate calculations appropriate to reflect a change.
C195: Changing either of cells A11 (pan) or A12 (zoom) will automatically initiate the same chart sizing macros that the manual
C196: "Set Chart" button uses.

Sheet InputPriceData
A1: SPDR S&P 500 ETF (SPY) -NYSEArca (Daily)
IJ2: 241.79
A3: Request Online Yahoo History for: | F3: Market State == > | G3: At close: | H3: 16:00:00 | I3: EDT
A4: Symbol | B4: SPY | D4: Valid | I4: =OFFSET(I4,-2,0,1,1) -> 0
A5: From | B5: 1950-01-01 | D5: Data | AF5: Trailing 12 Div return (Cur Close)
A6: To | B6: =NOW() -> 2018-09-09T09:27:00.860 | D6: Types | E6: =VLOOKUP(B7,D7:E10,2,FALSE) -> d
A7: Data Type | B7: Daily | D7: Daily | E7: d
B8: TiOiWxrCeWN | D8: Weekly | E8: w
A9: Available Data | D9: Monthly | E9: m
A10: Bar Count: | B10: 6435 | AF10: =OFFSET(AC15,1,0,1,1)/OFFSET(N15,1,0,1,1) -> 0.01735196789
A11: From: | B11: =IF(B10<=0,"",OFFSET(B15,B10,IF(HistReqDataType="v",1,0),1,1)) -> 1993-01-29 | W11: Trailing 12 Month Dividend Returns
A12: To: | B12: =IF(B10<=0,"",IF(HistReqDataType="v",OFFSET(B15,2,1,1,1),OFFSET(B15,1,0,1,1))) -> 2018-08-16 | W12: Raw Close price on Dividend date | X12: Div Year and Month | Y12: Looking for year ago Div Year and Month | Z12: Year ago Div Date we found | AA12: row offset to year ago div Date | AB12: Same month flag | AC12: Trailing 12 Div Total | AD12: Trailing 12 Div return
Q13: Split History | S13: 0 | T13: Running | U13: Dividend History
B14: Raw Data Values | H14: Adjusted | I14: Price Adjust | J14: Vol Adjust | K14: Adjusted Values | P14: Last | Q14: Effective | R14: Shares | T14: Vol Adjust | V14: 106
A15: RelRow | B15: Date | C15: Open | D15: High | E15: Low | F15: Close | G15: Volume | H15: Close | I15: Factor | J15: Factor | K15: Open | L15: High | M15: Low | N15: Close | O15: Volume | P15: Trade | Q15: 43329 | R15: New | S15: Old | T15: 1 | U15: Date | V15: $ / Share
A16: 1 | B16: 2018-08-16 | C16: 283.399994 | D16: 285.040009 | E16: 283.359985 | F16: 284.059998 | G16: 69859900 | H16: 284.059998 | I16: =IF(F16=0,1,H16/F16) -> 1 | J16: =INDEX(OFFSET($T$15,0,0,$S$13+1,1),MATCH(B16,OFFSET($Q$15,0,0,$S$13+1,1),-1)) -> 1 | K16: =ROUND($I16*C16,2) -> 283.4 | L16: =ROUND($I16*D16,2) -> 285.04 | M16: 283.36 | N16: 284.06 | O16: =G16*J16 -> 69859900 | U16: 2018-06-15 | V16: 1.246 | W16: =(INDEX(OFFSET($F$15,1,0,$B$10,1),MATCH(U16,OFFSET($B$15,1,0,$B$10,1),-1))) -> 277.130005 | X16: =YEAR(U16)&RIGHT("0"&MONTH(U16),2) -> 201806 | Y16: =YEAR(U16)-1&RIGHT("0"&MONTH(U16),2) -> 201706 | Z16: =OFFSET(U15,AA16,0,1,1) -> 2017-06-16 | AA16: =MATCH(Y16,OFFSET($X$15,A16,0,$V$14+1-A16,1),-1) -> 5 | AB16: =IF(OR(AND(YEAR(U16)=YEAR(Z16),MONTH(U16)=MONTH(Z16)),MONTH(U16)=MONTH(Z16)),1,0) -> 1 | AC16: =(V16+IF(AA16-AB16=0,0,IFERROR(SUM(OFFSET(V16,1,0,AA16-AB16-1,1)),0))) -> 4.929 | AD16: =AC16/(INDEX(OFFSET($F$15,1,0,$B$10,1),MATCH(U16,OFFSET($B$15,1,0,$B$10,1),-1))) -> 0.01778587634
A17: 2 | B17: 2018-08-15 | C17: 282.380005 | D17: 282.540009 | E17: 280.160004 | F17: 281.779999 | G17: 102925400 | H17: 281.779999 | I17: =IF(F17=0,1,H17/F17) -> 1 | J17: =INDEX(OFFSET($T$15,0,0,$S$13+1,1),MATCH(B17,OFFSET($Q$15,0,0,$S$13+1,1),-1)) -> 1 | K17: =ROUND($I17*C17,2) -> 282.38 | L17: =ROUND($I17*D17,2) -> 282.54 | M17: =ROUND($I17*E17,2) -> 280.16 | N17: =ROUND($I17*F17,2) -> 281.78 | O17: =G17*J17 -> 102925400 | U17: 2018-03-16 | V17: 1.097 | W17: =(INDEX(OFFSET($F$15,1,0,$B$10,1),MATCH(U17,OFFSET($B$15,1,0,$B$10,1),-1))) -> 274.200012 | X17: =YEAR(U17)&RIGHT("0"&MONTH(U17),2) -> 201803 | Y17: =YEAR(U17)-1&RIGHT("0"&MONTH(U17),2) -> 201703 | Z17: =OFFSET(U16,AA17,0,1,1) -> 2017-03-17 | AA17: =MATCH(Y17,OFFSET($X$15,A17,0,$V$14+1-A17,1),-1) -> 5 | AB17: =IF(OR(AND(YEAR(U17)=YEAR(Z17),MONTH(U17)=MONTH(Z17)),MONTH(U17)=MONTH(Z17)),1,0) -> 1 | AC17: =(V17+IF(AA17-AB17=0,0,IFERROR(SUM(OFFSET(V17,1,0,AA17-AB17-1,1)),0))) -> 4.866 | AD17: =AC17/(INDEX(OFFSET($F$15,1,0,$B$10,1),MATCH(U17,OFFSET($B$15,1,0,$B$10,1),-1))) -> 0.0177461699
A18: 3 | B18: 2018-08-14 | C18: 282.920013 | D18: 284.170013 | E18: 282.480011 | F18: 283.899994 | G18: 43842000 | H18: 283.899994 | I18: 1 | J18: 1 | K18: 282.92 | L18: 284.17 | M18: 282.48 | N18: 283.9 | O18: 43842000 | U18: 2017-12-15 | V18: 1.351 | W18: 266.51001 | X18: 201712 | Y18: 201612 | Z18: 2016-12-16 | AA18: 5 | AB18: 1 | AC18: 4.802 | AD18: 0.01801808495
A19: 4 | B19: 2018-08-13 | C19: 283.470001 | D19: 284.160004 | E19: 281.769989 | F19: 282.100006 | G19: 65686900 | H19: 282.100006 | I19: 1 | J19: 1 | K19: 283.47 | L19: 284.16 | M19: 281.77 | N19: 282.1 | O19: 65686900 | U19: 2017-09-15 | V19: 1.235 | W19: 249.190002 | X19: 201709 | Y19: 201609 | Z19: 2016-09-16 | AA19: 5 | AB19: 1 | AC19: 4.77993 | AD19: 0.0191818691
A20: 5 | B20: 2018-08-10 | C20: 283.450012 | D20: 284.059998 | E20: 282.359985 | F20: 283.160004 | G20: 77076000 | H20: 283.160004 | I20: 1 | J20: 1 | K20: 283.45 | L20: 284.06 | M20: 282.36 | N20: 283.16 | O20: 77076000 | U20: 2017-06-16 | V20: 1.183 | W20: 242.639999 | X20: 201706 | Y20: 201606 | Z20: 2016-06-17 | AA20: 5 | AB20: 1 | AC20: 4.627 | AD20: 0.01906940331
A21: 6 | B21: 2018-08-09 | C21: 285.529999 | D21: 285.970001 | E21: 284.920013 | F21: 285.070007 | G21: 35652400 | H21: 285.070007 | I21: 1 | J21: 1 | K21: 285.53 | L21: 285.97 | M21: 284.92 | N21: 285.07 | O21: 35652400 | U21: 2017-03-17 | V21: 1.033 | W21: 237.029999 | X21: 201703 | Y21: 201603 | Z21: 2016-03-18 | AA21: 5 | AB21: 1 | AC21: 4.52244 | AD21: 0.01907961026
A22: 7 | B22: 2018-08-08 | C22: 285.390015 | D22: 285.910004 | E22: 284.940002 | F22: 285.459991 | G22: 42114600 | H22: 285.459991 | I22: 1 | J22: 1 | K22: 285.39 | L22: 285.91 | M22: 284.94 | N22: 285.46 | O22: 42114600 | U22: 2016-12-16 | V22: 1.32893 | W22: 225.039993 | X22: 201612 | Y22: 201512 | Z22: 2015-12-18 | AA22: 5 | AB22: 1 | AC22: 4.53904 | AD22: 0.02016992597
A23: 8 | B23: 2018-08-07 | C23: 285.390015 | D23: 286.01001 | E23: 285.23999 | F23: 285.579987 | G23: 43196600 | H23: 285.579987 | I23: 1 | J23: 1 | K23: 285.39 | L23: 286.01 | M23: 285.24 | N23: 285.58 | O23: 43196600 | U23: 2016-09-16 | V23: 1.08207 | W23: 213.369995 | X23: 201609 | Y23: 201509 | Z23: 2015-09-18 | AA23: 5 | AB23: 1 | AC23: 4.42166 | AD23: 0.02072296998
A24: 9 | B24: 2018-08-06 | C24: 283.640015 | D24: 284.98999 | E24: 283.200012 | F24: 284.640015 | G24: 39400900 | H24: 284.640015 | I24: 1 | J24: 1 | K24: 283.64 | L24: 284.99 | M24: 283.2 | N24: 284.64 | O24: 39400900 | U24: 2016-06-17 | V24: 1.07844 | W24: 206.520004 | X24: 201606 | Y24: 201506 | Z24: 2015-06-19 | AA24: 5 | AB24: 1 | AC24: 4.37302 | AD24: 0.02117480106
A25: 10 | B25: 2018-08-03 | C25: 282.529999 | D25: 283.660004 | E25: 282.329987 | F25: 283.600006 | G25: 53935400 | H25: 283.600006 | I25: 1 | J25: 1 | K25: 282.53 | L25: 283.66 | M25: 282.33 | N25: 283.6 | O25: 53935400 | U25: 2016-03-18 | V25: 1.0496 | W25: 204.380005 | X25: 201603 | Y25: 201503 | Z25: 2015-03-20 | AA25: 5 | AB25: 1 | AC25: 4.32465 | AD25: 0.02115984878
A26: 11 | B26: 2018-08-02 | C26: 279.390015 | D26: 282.579987 | E26: 279.160004 | F26: 282.390015 | G26: 63426400 | H26: 282.390015 | I26: 1 | J26: 1 | K26: 279.39 | L26: 282.58 | M26: 279.16 | N26: 282.39 | O26: 63426400 | U26: 2015-12-18 | V26: 1.21155 | W26: 200.020004 | X26: 201512 | Y26: 201412 | Z26: 2014-12-19 | AA26: 5 | AB26: 1 | AC26: 4.20586 | AD26: 0.02102719686
A27: 12 | B27: 2018-08-01 | C27: 281.559998 | D27: 282.130005 | E27: 280.130005 | F27: 280.859985 | G27: 53853300 | H27: 280.859985 | I27: 1 | J27: 1 | K27: 281.56 | L27: 282.13 | M27: 280.13 | N27: 280.86 | O27: 53853300 | U27: 2015-09-18 | V27: 1.03343 | W27: 195.360001 | X27: 201509 | Y27: 201409 | Z27: 2014-09-19 | AA27: 5 | AB27: 1 | AC27: 4.12923 | AD27: 0.02113651709
A28: 13 | B28: 2018-07-31 | C28: 280.809998 | D28: 282.019989 | E28: 280.380005 | F28: 281.329987 | G28: 68570500 | H28: 281.329987 | I28: 1 | J28: 1 | K28: 280.81 | L28: 282.02 | M28: 280.38 | N28: 281.33 | O28: 68570500 | U28: 2015-06-19 | V28: 1.03007 | W28: 210.809998 | X28: 201506 | Y28: 201406 | Z28: 2014-06-20 | AA28: 5 | AB28: 1 | AC28: 4.03499 | AD28: 0.01914041098
A29: 14 | B29: 2018-07-30 | C29: 281.51001 | D29: 281.690002 | E29: 279.359985 | F29: 279.950012 | G29: 63742500 | H29: 279.950012 | I29: 1 | J29: 1 | K29: 281.51 | L29: 281.69 | M29: 279.36 | N29: 279.95 | O29: 63742500 | U29: 2015-03-20 | V29: 0.93081 | W29: 210.410004 | X29: 201503 | Y29: 201403 | Z29: 2014-03-21 | AA29: 5 | AB29: 1 | AC29: 3.94161 | AD29: 0.01873299712
A30: 15 | B30: 2018-07-27 | C30: 283.709991 | D30: 283.820007 | E30: 280.380005 | F30: 281.420013 | G30: 76768700 | H30: 281.420013 | I30: 1 | J30: 1 | K30: 283.71 | L30: 283.82 | M30: 280.38 | N30: 281.42 | O30: 76768700 | U30: 2014-12-19 | V30: 1.13492 | W30: 206.520004 | X30: 201412 | Y30: 201312 | Z30: 2013-12-20 | AA30: 5 | AB30: 1 | AC30: 3.83541 | AD30: 0.01857161498
A31: 16 | B31: 2018-07-26 | C31: 283.200012 | D31: 284.109985 | E31: 283.089996 | F31: 283.339996 | G31: 57919500 | H31: 283.339996 | I31: 1 | J31: 1 | K31: 283.2 | L31: 284.11 | M31: 283.09 | N31: 283.34 | O31: 57919500 | U31: 2014-09-19 | V31: 0.93919 | W31: 200.699997 | X31: 201409 | Y31: 201309 | Z31: 2013-09-20 | AA31: 5 | AB31: 1 | AC31: 3.68074 | AD31: 0.01833951198
A32: 17 | B32: 2018-07-25 | C32: 281.329987 | D32: 284.369995 | E32: 281.279999 | F32: 284.01001 | G32: 78882900 | H32: 284.01001 | I32: 1 | J32: 1 | K32: 281.33 | L32: 284.37 | M32: 281.28 | N32: 284.01 | O32: 78882900 | U32: 2014-06-20 | V32: 0.93669 | W32: 195.940002 | X32: 201406 | Y32: 201306 | Z32: 2013-06-21 | AA32: 5 | AB32: 1 | AC32: 3.5795 | AD32: 0.01826834727
A33: 18 | B33: 2018-07-24 | C33: 281.790009 | D33: 282.559998 | E33: 280.630005 | F33: 281.609985 | G33: 68026900 | H33: 281.609985 | I33: 1 | J33: 1 | K33: 281.79 | L33: 282.56 | M33: 280.63 | N33: 281.61 | O33: 68026900 | U33: 2014-03-21 | V33: 0.82461 | W33: 186.199997 | X33: 201403 | Y33: 201303 | Z33: 2013-03-15 | AA33: 5 | AB33: 1 | AC33: 3.48181 | AD33: 0.01869930213
A34: 19 | B34: 2018-07-23 | C34: 279.450012 | D34: 280.429993 | E34: 279.059998 | F34: 280.200012 | G34: 47047600 | H34: 280.200012 | I34: 1 | J34: 1 | K34: 279.45 | L34: 280.43 | M34: 279.06 | N34: 280.2 | O34: 47047600 | U34: 2013-12-20 | V34: 0.98025 | W34: 181.559998 | X34: 201312 | Y34: 201212 | Z34: 2012-12-21 | AA34: 5 | AB34: 1 | AC34: 3.3512 | AD34: 0.01845781029
A35: 20 | B35: 2018-07-20 | C35: 279.769989 | D35: 280.480011 | E35: 279.5 | F35: 279.679993 | G35: 82337700 | H35: 279.679993 | I35: 1 | J35: 1 | K35: 279.77 | L35: 280.48 | M35: 279.5 | N35: 279.68 | O35: 82337700 | U35: 2013-09-20 | V35: 0.83795 | W35: 170.720001 | X35: 201309 | Y35: 201209 | Z35: 2012-09-21 | AA35: 5 | AB35: 1 | AC35: 3.39295 | AD35: 0.01987435555
A36: 21 | B36: 2018-07-19 | C36: 280.309998 | D36: 280.73999 | E36: 279.459991 | F36: 280 | G36: 61412100 | H36: 280 | I36: 1 | J36: 1 | K36: 280.31 | L36: 280.74 | M36: 279.46 | N36: 280 | O36: 61412100 | U36: 2013-06-21 | V36: 0.839 | W36: 159.070007 | X36: 201306 | Y36: 201206 | Z36: 2012-06-15 | AA36: 5 | AB36: 1 | AC36: 3.334 | AD36: 0.02095932516
A37: 22 | B37: 2018-07-18 | C37: 280.559998 | D37: 281.179993 | E37: 280.059998 | F37: 281.059998 | G37: 44593500 | H37: 281.059998 | I37: 1 | J37: 1 | K37: 280.56 | L37: 281.18 | M37: 280.06 | N37: 281.06 | O37: 44593500 | U37: 2013-03-15 | V37: 0.694 | W37: 155.830002 | X37: 201303 | Y37: 201203 | Z37: 2012-03-16 | AA37: 5 | AB37: 1 | AC37: 3.183 | AD37: 0.02042610511
A38: 23 | B38: 2018-07-17 | C38: 278.470001 | D38: 280.910004 | E38: 278.410004 | F38: 280.470001 | G38: 52315500 | H38: 280.470001 | I38: 1 | J38: 1 | K38: 278.47 | L38: 280.91 | M38: 278.41 | N38: 280.47 | O38: 52315500 | U38: 2012-12-21 | V38: 1.022 | W38: 142.789993 | X38: 201212 | Y38: 201112 | Z38: 2011-12-16 | AA38: 5 | AB38: 1 | AC38: 3.103 | AD38: 0.02173121474
A39: 24 | B39: 2018-07-16 | C39: 279.640015 | D39: 279.799988 | E39: 278.839996 | F39: 279.339996 | G39: 48201000 | H39: 279.339996 | I39: 1 | J39: 1 | K39: 279.64 | L39: 279.8 | M39: 278.84 | N39: 279.34 | O39: 48201000 | U39: 2012-09-21 | V39: 0.779 | W39: 145.869995 | X39: 201209 | Y39: 201109 | Z39: 2011-09-16 | AA39: 5 | AB39: 1 | AC39: 2.851 | AD39: 0.01954480083
A40: 25 | B40: 2018-07-13 | C40: 279.170013 | D40: 279.929993 | E40: 278.660004 | F40: 279.589996 | G40: 48216000 | H40: 279.589996 | I40: 1 | J40: 1 | K40: 279.17 | L40: 279.93 | M40: 278.66 | N40: 279.59 | O40: 48216000 | U40: 2012-06-15 | V40: 0.688 | W40: 134.139999 | X40: 201206 | Y40: 201106 | Z40: 2011-06-17 | AA40: 5 | AB40: 1 | AC40: 2.697 | AD40: 0.0201058597
A41: 26 | B41: 2018-07-12 | C41: 278.279999 | D41: 279.429993 | E41: 277.600006 | F41: 279.369995 | G41: 60124700 | H41: 279.369995 | I41: 1 | J41: 1 | K41: 278.28 | L41: 279.43 | M41: 277.6 | N41: 279.37 | O41: 60124700 | U41: 2012-03-16 | V41: 0.614 | W41: 140.300003 | X41: 201203 | Y41: 201103 | Z41: 2011-03-18 | AA41: 5 | AB41: 1 | AC41: 2.637 | AD41: 0.01879543794
A42: 27 | B42: 2018-07-11 | C42: 277.149994 | D42: 278.040009 | E42: 276.519989 | F42: 276.859985 | G42: 77054700 | H42: 276.859985 | I42: 1 | J42: 1 | K42: 277.15 | L42: 278.04 | M42: 276.52 | N42: 276.86 | O42: 77054700 | U42: 2011-12-16 | V42: 0.77 | W42: 121.589996 | X42: 201112 | Y42: 201012 | Z42: 2010-12-17 | AA42: 5 | AB42: 1 | AC42: 2.576 | AD42: 0.02118595349
A43: 28 | B43: 2018-07-10 | C43: 278.410004 | D43: 279.01001 | E43: 278.079987 | F43: 278.899994 | G43: 51966800 | H43: 278.899994 | I43: 1 | J43: 1 | K43: 278.41 | L43: 279.01 | M43: 278.08 | N43: 278.9 | O43: 51966800 | U43: 2011-09-16 | V43: 0.625 | W43: 121.519997 | X43: 201109 | Y43: 201009 | Z43: 2010-09-17 | AA43: 5 | AB43: 1 | AC43: 2.459 | AD43: 0.0202353527
A44: 29 | B44: 2018-07-09 | C44: 276.549988 | D44: 277.959991 | E44: 276.5 | F44: 277.899994 | G44: 50550400 | H44: 277.899994 | I44: 1 | J44: 1 | K44: 276.55 | L44: 277.96 | M44: 276.5 | N44: 277.9 | O44: 50550400 | U44: 2011-06-17 | V44: 0.628 | W44: 127.050003 | X44: 201106 | Y44: 201006 | Z44: 2010-06-18 | AA44: 5 | AB44: 1 | AC44: 2.436 | AD44: 0.01917355327
A45: 30 | B45: 2018-07-06 | C45: 273.140015 | D45: 275.839996 | E45: 272.709991 | F45: 275.420013 | G45: 66493700 | H45: 275.420013 | I45: 1 | J45: 1 | K45: 273.14 | L45: 275.84 | M45: 272.71 | N45: 275.42 | O45: 66493700 | U45: 2011-03-18 | V45: 0.553 | W45: 127.760002 | X45: 201103 | Y45: 201003 | Z45: 2010-03-19 | AA45: 5 | AB45: 1 | AC45: 2.339 | AD45: 0.01830776427
A46: 31 | B46: 2018-07-05 | C46: 272.170013 | D46: 273.179993 | E46: 270.959991 | F46: 273.109985 | G46: 56925900 | H46: 273.109985 | I46: 1 | J46: 1 | K46: 272.17 | L46: 273.18 | M46: 270.96 | N46: 273.11 | O46: 56925900 | U46: 2010-12-17 | V46: 0.653 | W46: 124.300003 | X46: 201012 | Y46: 200912 | Z46: 2009-12-18 | AA46: 5 | AB46: 1 | AC46: 2.266 | AD46: 0.01823008806
A47: 32 | B47: 2018-07-03 | C47: 272.869995 | D47: 272.980011 | E47: 270.420013 | F47: 270.899994 | G47: 42187100 | H47: 270.899994 | I47: 1 | J47: 1 | K47: 272.87 | L47: 272.98 | M47: 270.42 | N47: 270.9 | O47: 42187100 | U47: 2010-09-17 | V47: 0.602 | W47: 112.489998 | X47: 201009 | Y47: 200909 | Z47: 2009-09-18 | AA47: 5 | AB47: 1 | AC47: 2.203 | AD47: 0.01958396337
A48: 33 | B48: 2018-07-02 | C48: 269.51001 | D48: 272.040009 | E48: 269.23999 | F48: 271.859985 | G48: 63554800 | H48: 271.859985 | I48: 1 | J48: 1 | K48: 269.51 | L48: 272.04 | M48: 269.24 | N48: 271.86 | O48: 63554800 | U48: 2010-06-18 | V48: 0.531 | W48: 111.730003 | X48: 201006 | Y48: 200906 | Z48: 2009-06-19 | AA48: 5 | AB48: 1 | AC48: 2.109 | AD48: 0.01887586094
A49: 34 | B49: 2018-06-29 | C49: 272.119995 | D49: 273.660004 | E49: 271.149994 | F49: 271.279999 | G49: 97592500 | H49: 271.279999 | I49: 1 | J49: 1 | K49: 272.12 | L49: 273.66 | M49: 271.15 | N49: 271.28 | O49: 97592500 | U49: 2010-03-19 | V49: 0.48 | W49: 115.970001 | X49: 201003 | Y49: 200903 | Z49: 2009-03-20 | AA49: 5 | AB49: 1 | AC49: 2.096 | AD49: 0.01807363958
A50: 35 | B50: 2018-06-28 | C50: 269.290009 | D50: 271.75 | E50: 268.48999 | F50: 270.890015 | G50: 76650500 | H50: 270.890015 | I50: 1 | J50: 1 | K50: 269.29 | L50: 271.75 | M50: 268.49 | N50: 270.89 | O50: 76650500 | U50: 2009-12-18 | V50: 0.59 | W50: 110.209999 | X50: 200912 | Y50: 200812 | Z50: 2008-12-19 | AA50: 5 | AB50: 1 | AC50: 2.177 | AD50: 0.01975319862
A51: 36 | B51: 2018-06-27 | C51: 272.26001 | D51: 273.869995 | E51: 269.179993 | F51: 269.350006 | G51: 105110700 | H51: 269.350006 | I51: 1 | J51: 1 | K51: 272.26 | L51: 273.87 | M51: 269.18 | N51: 269.35 | O51: 105110700 | U51: 2009-09-18 | V51: 0.508 | W51: 106.720001 | X51: 200909 | Y51: 200809 | Z51: 2008-09-19 | AA51: 5 | AB51: 1 | AC51: 2.306 | AD51: 0.02160794582
A52: 37 | B52: 2018-06-26 | C52: 271.640015 | D52: 272.559998 | E52: 270.790009 | F52: 271.600006 | G52: 68547400 | H52: 271.600006 | I52: 1 | J52: 1 | K52: 271.64 | L52: 272.56 | M52: 270.79 | N52: 271.6 | O52: 68547400 | U52: 2009-06-19 | V52: 0.518 | W52: 92.040001 | X52: 200906 | Y52: 200806 | Z52: 2008-06-20 | AA52: 5 | AB52: 1 | AC52: 2.489 | AD52: 0.02704258988
A53: 38 | B53: 2018-06-25 | C53: 273.440002 | D53: 273.619995 | E53: 269.100006 | F53: 271 | G53: 137854200 | H53: 271 | I53: 1 | J53: 1 | K53: 273.44 | L53: 273.62 | M53: 269.1 | N53: 271 | O53: 137854200 | U53: 2009-03-20 | V53: 0.561 | W53: 76.709999 | X53: 200903 | Y53: 200803 | Z53: 2008-03-20 | AA53: 5 | AB53: 1 | AC53: 2.64 | AD53: 0.03441533091
A54: 39 | B54: 2018-06-22 | C54: 275.660004 | D54: 275.790009 | E54: 274.48999 | F54: 274.73999 | G54: 54898500 | H54: 274.73999 | I54: 1 | J54: 1 | K54: 275.66 | L54: 275.79 | M54: 274.49 | N54: 274.74 | O54: 54898500 | U54: 2008-12-19 | V54: 0.719 | W54: 88.190002 | X54: 200812 | Y54: 200712 | Z54: 2007-12-21 | AA54: 5 | AB54: 1 | AC54: 2.721 | AD54: 0.0308538376
A55: 40 | B55: 2018-06-21 | C55: 275.959991 | D55: 275.980011 | E55: 273.679993 | F55: 274.23999 | G55: 71061400 | H55: 274.23999 | I55: 1 | J55: 1 | K55: 275.96 | L55: 275.98 | M55: 273.68 | N55: 274.24 | O55: 71061400 | U55: 2008-09-19 | V55: 0.691 | W55: 124.120003 | X55: 200809 | Y55: 200709 | Z55: 2007-09-21 | AA55: 5 | AB55: 1 | AC55: 2.777 | AD55: 0.02237350897
A56: 41 | B56: 2018-06-20 | C56: 276.269989 | D56: 276.720001 | E56: 275.589996 | F56: 275.970001 | G56: 53785500 | H56: 275.970001 | I56: 1 | J56: 1 | K56: 276.27 | L56: 276.72 | M56: 275.59 | N56: 275.97 | O56: 53785500 | U56: 2008-06-20 | V56: 0.669 | W56: 131.580002 | X56: 200806 | Y56: 200706 | Z56: 2007-06-15 | AA56: 5 | AB56: 1 | AC56: 2.805 | AD56: 0.02131782913
A57: 42 | B57: 2018-06-19 | C57: 274 | D57: 275.75 | E57: 273.529999 | F57: 275.5 | G57: 97531500 | H57: 275.5 | I57: 1 | J57: 1 | K57: 274 | L57: 275.75 | M57: 273.53 | N57: 275.5 | O57: 97531500 | U57: 2008-03-20 | V57: 0.642 | W57: 132.080002 | X57: 200803 | Y57: 200703 | Z57: 2007-03-16 | AA57: 5 | AB57: 1 | AC57: 2.792 | AD57: 0.0211387035
A58: 43 | B58: 2018-06-18 | C58: 275.48999 | D58: 276.700012 | E58: 274.950012 | F58: 276.559998 | G58: 52917600 | H58: 276.559998 | I58: 1 | J58: 1 | K58: 275.49 | L58: 276.7 | M58: 274.95 | N58: 276.56 | O58: 52917600 | U58: 2007-12-21 | V58: 0.775 | W58: 148.130005 | X58: 200712 | Y58: 200612 | Z58: 2006-12-15 | AA58: 5 | AB58: 1 | AC58: 2.701 | AD58: 0.01823398305
A59: 44 | B59: 2018-06-15 | C59: 276.600006 | D59: 277.51001 | E59: 275.350006 | F59: 277.130005 | G59: 120041600 | H59: 277.130005 | I59: 1 | J59: 1 | K59: 276.6 | L59: 277.51 | M59: 275.35 | N59: 277.13 | O59: 120041600 | U59: 2007-09-21 | V59: 0.719 | W59: 151.970001 | X59: 200709 | Y59: 200609 | Z59: 2006-09-15 | AA59: 5 | AB59: 1 | AC59: 2.719 | AD59: 0.01789168903
A60: 45 | B60: 2018-06-14 | C60: 279.01001 | D60: 279.329987 | E60: 278.059998 | F60: 278.730011 | G60: 77097600 | H60: 277.484009 | I60: 0.9955297171 | J60: 1 | K60: 277.76 | L60: 278.08 | M60: 276.82 | N60: 277.48 | O60: 77097600 | U60: 2007-06-15 | V60: 0.656 | W60: 153.070007 | X60: 200706 | Y60: 200606 | Z60: 2006-06-16 | AA60: 5 | AB60: 1 | AC60: 2.579 | AD60: 0.01684849992
A61: 46 | B61: 2018-06-13 | C61: 279.190002 | D61: 279.480011 | E61: 277.799988 | F61: 278.029999 | G61: 79070600 | H61: 276.787109 | I61: 0.9955296551 | J61: 1 | K61: 277.94 | L61: 278.23 | M61: 276.56 | N61: 276.79 | O61: 79070600 | U61: 2007-03-16 | V61: 0.551 | W61: 138.529999 | X61: 200703 | Y61: 200603 | Z61: 2006-03-17 | AA61: 5 | AB61: 1 | AC61: 2.478 | AD61: 0.01788782226
A62: 47 | B62: 2018-06-12 | C62: 279.029999 | D62: 279.329987 | E62: 278.190002 | F62: 278.920013 | G62: 72329000 | H62: 277.673157 | I62: 0.9955297005 | J62: 1 | K62: 277.78 | L62: 278.08 | M62: 276.95 | N62: 277.67 | O62: 72329000 | U62: 2006-12-15 | V62: 0.793 | W62: 142.339996 | X62: 200612 | Y62: 200512 | Z62: 2005-12-16 | AA62: 5 | AB62: 1 | AC62: 2.446 | AD62: 0.01718420731
A63: 48 | B63: 2018-06-11 | C63: 278.440002 | D63: 279.369995 | E63: 278.309998 | F63: 278.559998 | G63: 58892500 | H63: 277.314758 | I63: 0.9955297243 | J63: 1 | K63: 277.2 | L63: 278.12 | M63: 277.07 | N63: 277.31 | O63: 58892500 | U63: 2006-09-15 | V63: 0.579 | W63: 131.960007 | X63: 200609 | Y63: 200509 | Z63: 2005-09-16 | AA63: 5 | AB63: 1 | AC63: 2.325 | AD63: 0.01761897451
A64: 49 | B64: 2018-06-08 | C64: 276.850006 | D64: 278.25 | E64: 276.660004 | F64: 278.190002 | G64: 72139700 | H64: 276.946411 | I64: 0.9955297063 | J64: 1 | K64: 275.61 | L64: 277.01 | M64: 275.42 | N64: 276.95 | O64: 72139700 | U64: 2006-06-16 | V64: 0.555 | W64: 124.650002 | X64: 200606 | Y64: 200506 | Z64: 2005-06-17 | AA64: 5 | AB64: 1 | AC64: 2.268 | AD64: 0.01819494556
A65: 50 | B65: 2018-06-07 | C65: 277.950012 | D65: 278.279999 | E65: 276.339996 | F65: 277.369995 | G65: 72969400 | H65: 276.130066 | I65: 0.9955296931 | J65: 1 | K65: 276.71 | L65: 277.04 | M65: 275.1 | N65: 276.13 | O65: 72969400 | U65: 2006-03-17 | V65: 0.519 | W65: 130.619995 | X65: 200603 | Y65: 200503 | Z65: 2005-03-18 | AA65: 5 | AB65: 1 | AC65: 2.201 | AD65: 0.0168504064
A66: 51 | B66: 2018-06-06 | C66: 275.790009 | D66: 277.519989 | E66: 275.089996 | F66: 277.399994 | G66: 62732200 | H66: 276.159943 | I66: 0.9955297367 | J66: 1 | K66: 274.56 | L66: 276.28 | M66: 273.86 | N66: 276.16 | O66: 62732200 | U66: 2005-12-16 | V66: 0.672 | W66: 126.360001 | X66: 200512 | Y66: 200412 | Z66: 2004-12-17 | AA66: 5 | AB66: 1 | AC66: 2.149 | AD66: 0.01700696409
A67: 52 | B67: 2018-06-05 | C67: 275.049988 | D67: 275.529999 | E67: 274.179993 | F67: 275.100006 | G67: 51135000 | H67: 273.870239 | I67: 0.9955297456 | J67: 1 | K67: 273.82 | L67: 274.3 | M67: 272.95 | N67: 273.87 | O67: 51135000 | U67: 2005-09-16 | V67: 0.522 | W67: 123.5 | X67: 200509 | Y67: 200409 | Z67: 2004-09-17 | AA67: 6 | AB67: 1 | AC67: 2.396 | AD67: 0.01940080972
A68: 53 | B68: 2018-06-04 | C68: 274.529999 | D68: 275.190002 | E68: 274.26001 | F68: 274.899994 | G68: 44165500 | H68: 273.671112 | I68: 0.9955297125 | J68: 1 | K68: 273.3 | L68: 273.96 | M68: 273.03 | N68: 273.67 | O68: 44165500 | U68: 2005-06-17 | V68: 0.488 | W68: 121.360001 | X68: 200506 | Y68: 200406 | Z68: 2004-06-18 | AA68: 6 | AB68: 1 | AC68: 2.343 | AD68: 0.01930619628
A69: 54 | B69: 2018-06-01 | C69: 272.410004 | D69: 273.940002 | E69: 272.329987 | F69: 273.600006 | G69: 68905300 | H69: 272.376923 | I69: 0.9955296675 | J69: 1 | K69: 271.19 | L69: 272.72 | M69: 271.11 | N69: 272.38 | O69: 68905300 | U69: 2005-03-18 | V69: 0.467 | W69: 118.540001 | X69: 200503 | Y69: 200403 | Z69: 2004-03-19 | AA69: 6 | AB69: 1 | AC69: 2.269 | AD69: 0.01914121799
A70: 55 | B70: 2018-05-31 | C70: 272.149994 | D70: 272.48999 | E70: 270.26001 | F70: 270.940002 | G70: 93519900 | H70: 269.728821 | I70: 0.9955297077 | J70: 1 | K70: 270.93 | L70: 271.27 | M70: 269.05 | N70: 269.73 | O70: 93519900 | U70: 2004-12-17 | V70: 0.568 | W70: 119.440002 | X70: 200412 | Y70: 200312 | Z70: 2003-12-19 | AA70: 6 | AB70: 1 | AC70: 2.197 | AD70: 0.0183941725
A71: 56 | B71: 2018-05-30 | C71: 270.5 | D71: 273.109985 | E71: 270.420013 | F71: 272.609985 | G71: 69678400 | H71: 271.391327 | I71: 0.9955296648 | J71: 1 | K71: 269.29 | L71: 271.89 | M71: 269.21 | N71: 271.39 | O71: 69678400 | U71: 2004-11-15 | V71: 0.351 | W71: 118.730003 | X71: 200411 | Y71: 200311 | Z71: 2003-12-19 | AA71: 5 | AB71: 0 | AC71: 2.145 | AD71: 0.01806620017
A72: 57 | B72: 2018-05-29 | C72: 270.309998 | D72: 271.170013 | E72: 267.76001 | F72: 269.019989 | G72: 114128800 | H72: 267.817383 | I72: 0.9955296779 | J72: 1 | K72: 269.1 | L72: 269.96 | M72: 266.56 | N72: 267.82 | O72: 114128800 | U72: 2004-09-17 | V72: 0.469 | W72: 113.150002 | X72: 200409 | Y72: 200309 | Z72: 2003-09-19 | AA72: 5 | AB72: 1 | AC72: 1.794 | AD72: 0.01585505938
A73: 58 | B73: 2018-05-25 | C73: 272.149994 | D73: 272.859985 | E73: 271.579987 | F73: 272.149994 | G73: 56374800 | H73: 270.933411 | I73: 0.9955297335 | J73: 1 | K73: 270.93 | L73: 271.64 | M73: 270.37 | N73: 270.93 | O73: 56374800 | U73: 2004-06-18 | V73: 0.414 | W73: 113.629997 | X73: 200406 | Y73: 200306 | Z73: 2003-06-20 | AA73: 5 | AB73: 1 | AC73: 1.725 | AD73: 0.01518085053
A74: 59 | B74: 2018-05-24 | C74: 272.910004 | D74: 273.220001 | E74: 270.779999 | F74: 272.799988 | G74: 74295200 | H74: 271.580505 | I74: 0.9955297542 | J74: 1 | K74: 271.69 | L74: 272 | M74: 269.57 | N74: 271.58 | O74: 74295200 | U74: 2004-03-19 | V74: 0.395 | W74: 111.059998 | X74: 200403 | Y74: 200303 | Z74: 2003-03-21 | AA74: 5 | AB74: 1 | AC74: 1.671 | AD74: 0.01504592139
A75: 60 | B75: 2018-05-23 | C75: 271.170013 | D75: 273.390015 | E75: 270.98999 | F75: 273.359985 | G75: 61021700 | H75: 272.138 | I75: 0.995529759 | J75: 1 | K75: 269.96 | L75: 272.17 | M75: 269.78 | N75: 272.14 | O75: 61021700 | U75: 2003-12-19 | V75: 0.516 | W75: 108.900002 | X75: 200312 | Y75: 200212 | Z75: 2002-12-20 | AA75: 5 | AB75: 1 | AC75: 1.63 | AD75: 0.01496786015
A76: 61 | B76: 2018-05-22 | C76: 273.959991 | D76: 274.25 | E76: 272.23999 | F76: 272.609985 | G76: 52966400 | H76: 271.391327 | I76: 0.9955296648 | J76: 1 | K76: 272.74 | L76: 273.02 | M76: 271.02 | N76: 271.39 | O76: 52966400 | U76: 2003-09-19 | V76: 0.4 | W76: 103.669998 | X76: 200309 | Y76: 200209 | Z76: 2002-09-20 | AA76: 5 | AB76: 1 | AC76: 1.55 | AD76: 0.01495128803
A77: 62 | B77: 2018-05-21 | C77: 273.01001 | D77: 273.980011 | E77: 272.570007 | F77: 273.369995 | G77: 58025900 | H77: 272.147949 | I77: 0.9955296996 | J77: 1 | K77: 271.79 | L77: 272.76 | M77: 271.35 | N77: 272.15 | O77: 58025900 | U77: 2003-06-20 | V77: 0.36 | W77: 99.440002 | X77: 200306 | Y77: 200206 | Z77: 2002-06-21 | AA77: 5 | AB77: 1 | AC77: 1.528 | AD77: 0.01536604957
A78: 63 | B78: 2018-05-18 | C78: 271.619995 | D78: 272.029999 | E78: 270.929993 | F78: 271.329987 | G78: 64368000 | H78: 270.117065 | I78: 0.9955297164 | J78: 1 | K78: 270.41 | L78: 270.81 | M78: 269.72 | N78: 270.12 | O78: 64368000 | U78: 2003-03-21 | V78: 0.354 | W78: 89.669998 | X78: 200303 | Y78: 200203 | Z78: 2002-03-15 | AA78: 5 | AB78: 1 | AC78: 1.521 | AD78: 0.01696219509
A79: 64 | B79: 2018-05-17 | C79: 271.940002 | D79: 273.230011 | E79: 271.130005 | F79: 272.01001 | G79: 56536400 | H79: 270.794037 | I79: 0.9955296755 | J79: 1 | K79: 270.72 | L79: 272.01 | M79: 269.92 | N79: 270.79 | O79: 56536400 | U79: 2002-12-20 | V79: 0.436 | W79: 89.989998 | X79: 200212 | Y79: 200112 | Z79: 2001-12-21 | AA79: 5 | AB79: 1 | AC79: 1.498 | AD79: 0.0166462944
A80: 65 | B80: 2018-05-16 | C80: 271.140015 | D80: 272.76001 | E80: 271.109985 | F80: 272.23999 | G80: 53942600 | H80: 271.02301 | I80: 0.995529753 | J80: 1 | K80: 269.93 | L80: 271.54 | M80: 269.9 | N80: 271.02 | O80: 53942600 | U80: 2002-09-20 | V80: 0.378 | W80: 84.349998 | X80: 200209 | Y80: 200109 | Z80: 2001-09-21 | AA80: 5 | AB80: 1 | AC80: 1.455 | AD80: 0.01724955583
A81: 66 | B81: 2018-05-15 | C81: 271.589996 | D81: 271.609985 | E81: 270.029999 | F81: 271.100006 | G81: 87036100 | H81: 269.888123 | I81: =IF(F81=0,1,H81/F81) -> 0.9955297566 | J81: =INDEX(OFFSET($T$15,0,0,$S$13+1,1),MATCH(B81,OFFSET($Q$15,0,0,$S$13+1,1),-1)) -> 1 | K81: =ROUND($I81*C81,2) -> 270.38 | L81: =ROUND($I81*D81,2) -> 270.4 | M81: =ROUND($I81*E81,2) -> 268.82 | N81: =ROUND($I81*F81,2) -> 269.89 | O81: =G81*J81 -> 87036100 | U81: 2002-06-21 | V81: 0.353 | W81: =(INDEX(OFFSET($F$15,1,0,$B$10,1),MATCH(U81,OFFSET($B$15,1,0,$B$10,1),-1))) -> 99.279999 | X81: =YEAR(U81)&RIGHT("0"&MONTH(U81),2) -> 200206 | Y81: =YEAR(U81)-1&RIGHT("0"&MONTH(U81),2) -> 200106 | Z81: =OFFSET(U80,AA81,0,1,1) -> 2001-06-15 | AA81: =MATCH(Y81,OFFSET($X$15,A81,0,$V$14+1-A81,1),-1) -> 5 | AB81: =IF(OR(AND(YEAR(U81)=YEAR(Z81),MONTH(U81)=MONTH(Z81)),MONTH(U81)=MONTH(Z81)),1,0) -> 1 | AC81: =(V81+IF(AA81-AB81=0,0,IFERROR(SUM(OFFSET(V81,1,0,AA81-AB81-1,1)),0))) -> 1.446 | AD81: =AC81/(INDEX(OFFSET($F$15,1,0,$B$10,1),MATCH(U81,OFFSET($B$15,1,0,$B$10,1),-1))) -> 0.01456486719
A82: 67 | B82: 2018-05-14 | C82: 273.339996 | D82: 274.079987 | E82: 272.359985 | F82: 272.980011 | G82: 54790600 | H82: 271.759705 | I82: 0.9955296873 | J82: 1 | K82: 272.12 | L82: 272.85 | M82: 271.14 | N82: 271.76 | O82: 54790600 | U82: 2002-03-15 | V82: 0.331 | W82: 116.650002 | X82: 200203 | Y82: 200103 | Z82: 2001-03-16 | AA82: 5 | AB82: 1 | AC82: 1.439 | AD82: 0.0123360478
A83: 68 | B83: 2018-05-11 | C83: 272.160004 | D83: 273.149994 | E83: 271.579987 | F83: 272.850006 | G83: 59871500 | H83: 271.63028 | I83: 0.9955296831 | J83: 1 | K83: 270.94 | L83: 271.93 | M83: 270.37 | N83: 271.63 | O83: 59871500 | U83: 2001-12-21 | V83: 0.393 | W83: 114.949997 | X83: 200112 | Y83: 200012 | Z83: 2000-12-27 | AA83: 5 | AB83: 1 | AC83: 1.424 | AD83: 0.0123879951
A84: 69 | B84: 2018-05-10 | C84: 270.339996 | D84: 272.390015 | E84: 270.220001 | F84: 272.019989 | G84: 72063900 | H84: 270.803986 | I84: 0.9955297293 | J84: 1 | K84: 269.13 | L84: 271.17 | M84: 269.01 | N84: 270.8 | O84: 72063900 | U84: 2001-09-21 | V84: 0.369 | W84: 97.279999 | X84: 200109 | Y84: 200009 | Z84: 2000-09-15 | AA84: 6 | AB84: 1 | AC84: 1.442 | AD84: 0.01482319094
A85: 70 | B85: 2018-05-09 | C85: 267.679993 | D85: 269.869995 | E85: 267.089996 | F85: 269.5 | G85: 59666100 | H85: 268.295258 | I85: 0.9955297143 | J85: 1 | K85: 266.48 | L85: 268.66 | M85: 265.9 | N85: 268.3 | O85: 59666100 | U85: 2001-06-15 | V85: 0.346 | W85: 121.849998 | X85: 200106 | Y85: 200006 | Z85: 2000-06-16 | AA85: 7 | AB85: 1 | AC85: 1.448 | AD85: 0.01188346347
A86: 71 | B86: 2018-05-08 | C86: 266.5 | D86: 267.329987 | E86: 265.149994 | F86: 266.920013 | G86: 67499200 | H86: 265.726807 | I86: 0.9955297245 | J86: 1 | K86: 265.31 | L86: 266.13 | M86: 263.96 | N86: 265.73 | O86: 67499200 | U86: 2001-03-16 | V86: 0.316 | W86: 115.010002 | X86: 200103 | Y86: 200003 | Z86: 2000-03-17 | AA86: 7 | AB86: 1 | AC86: 1.45 | AD86: 0.01260759912
A87: 72 | B87: 2018-05-07 | C87: 266.890015 | D87: 268.019989 | E87: 266.109985 | F87: 266.920013 | G87: 55304900 | H87: 265.726807 | I87: 0.9955297245 | J87: 1 | K87: 265.7 | L87: 266.82 | M87: 264.92 | N87: 265.73 | O87: 55304900 | U87: 2000-12-27 | V87: 0 | W87: 133.3125 | X87: 200012 | Y87: 199912 | Z87: 1999-12-17 | AA87: 7 | AB87: 1 | AC87: 1.505 | AD87: 0.01128926395
A88: 73 | B88: 2018-05-04 | C88: 261.519989 | D88: 266.790009 | E88: 261.149994 | F88: 266.019989 | G88: 91222100 | H88: 264.830811 | I88: 0.9955297419 | J88: 1 | K88: 260.35 | L88: 265.6 | M88: 259.98 | N88: 264.83 | O88: 91222100 | U88: 2000-12-15 | V88: 0.411 | W88: 130.968704 | X88: 200012 | Y88: 199912 | Z88: 1999-12-17 | AA88: 6 | AB88: 1 | AC88: 1.505 | AD88: 0.0114912949
A89: 74 | B89: 2018-05-03 | C89: 262.26001 | D89: 263.359985 | E89: 259.049988 | F89: 262.619995 | G89: 136311500 | H89: 261.446014 | I89: 0.9955297349 | J89: 1 | K89: 261.09 | L89: 262.18 | M89: 257.89 | N89: 261.45 | O89: 136311500 | U89: 2000-09-15 | V89: 0.375 | W89: 146 | X89: 200009 | Y89: 199909 | Z89: 1999-09-17 | AA89: 6 | AB89: 1 | AC89: 1.442 | AD89: 0.009876712329
A90: 75 | B90: 2018-05-02 | C90: 264.76001 | D90: 265.679993 | E90: 262.76001 | F90: 263.200012 | G90: 86368900 | H90: 262.023438 | I90: 0.9955297342 | J90: 1 | K90: 263.58 | L90: 264.49 | M90: 261.59 | N90: 262.02 | O90: 86368900 | U90: 2000-09-14 | V90: 0 | W90: 149.640594 | X90: 200009 | Y90: 199909 | Z90: 1999-09-17 | AA90: 5 | AB90: 1 | AC90: 1.067 | AD90: 0.0071304181
A91: 76 | B91: 2018-05-01 | C91: 263.869995 | D91: 265.100006 | E91: 262.109985 | F91: 264.980011 | G91: 74203400 | H91: 263.795471 | I91: 0.9955297005 | J91: 1 | K91: 262.69 | L91: 263.91 | M91: 260.94 | N91: 263.8 | O91: 74203400 | U91: 2000-06-16 | V91: 0.348 | W91: 146.593704 | X91: 200006 | Y91: 199906 | Z91: 1999-06-18 | AA91: 5 | AB91: 1 | AC91: 1.439 | AD91: 0.009816246952
A92: 77 | B92: 2018-04-30 | C92: 267.26001 | D92: 267.890015 | E92: 264.429993 | F92: 264.51001 | G92: 82182300 | H92: 263.327576 | I92: 0.9955297193 | J92: 1 | K92: 266.07 | L92: 266.69 | M92: 263.25 | N92: 263.33 | O92: 82182300 | U92: 2000-03-17 | V92: 0.371 | W92: 146.9375 | X92: 200003 | Y92: 199903 | Z92: 1999-03-19 | AA92: 5 | AB92: 1 | AC92: 1.496 | AD92: 0.01018119949
A93: 78 | B93: 2018-04-27 | C93: 267 | D93: 267.339996 | E93: 265.5 | F93: 266.559998 | G93: 57053600 | H93: 265.368408 | I93: 0.9955297494 | J93: 1 | K93: 265.81 | L93: 266.14 | M93: 264.31 | N93: 265.37 | O93: 57053600 | U93: 1999-12-17 | V93: 0.348 | W93: 142.6875 | X93: 199912 | Y93: 199812 | Z93: 1998-12-18 | AA93: 5 | AB93: 1 | AC93: 1.445 | AD93: 0.01012702584
A94: 79 | B94: 2018-04-26 | C94: 264.790009 | D94: 267.25 | E94: 264.290009 | F94: 266.309998 | G94: 67731900 | H94: 265.119507 | I94: 0.9955296797 | J94: 1 | K94: 263.61 | L94: 266.06 | M94: 263.11 | N94: 265.12 | O94: 67731900 | U94: 1999-09-17 | V94: 0.372 | W94: 133.75 | X94: 199909 | Y94: 199809 | Z94: 1998-09-18 | AA94: 5 | AB94: 1 | AC94: 1.489 | AD94: 0.01113271028
A95: 80 | B95: 2018-04-25 | C95: 262.910004 | D95: 264.130005 | E95: 260.850006 | F95: 263.630005 | G95: 103840900 | H95: 262.451508 | I95: 0.9955297311 | J95: 1 | K95: 261.73 | L95: 262.95 | M95: 259.68 | N95: 262.45 | O95: 103840900 | U95: 1999-06-18 | V95: 0.405 | W95: 134.3125 | X95: 199906 | Y95: 199806 | Z95: 1998-06-19 | AA95: 5 | AB95: 1 | AC95: 1.476 | AD95: 0.01098929735
A96: 81 | B96: 2018-04-24 | C96: 267.730011 | D96: 267.980011 | E96: 261.279999 | F96: 262.980011 | G96: 112885500 | H96: 261.804413 | I96: 0.9955297059 | J96: 1 | K96: 266.53 | L96: 266.78 | M96: 260.11 | N96: 261.8 | O96: 112885500 | U96: 1999-03-19 | V96: 0.32 | W96: 129.6875 | X96: 199903 | Y96: 199803 | Z96: 1998-03-20 | AA96: 5 | AB96: 1 | AC96: 1.423 | AD96: 0.01097253012
A97: 82 | B97: 2018-04-23 | C97: 267.26001 | D97: 267.890015 | E97: 265.350006 | F97: 266.570007 | G97: 65558000 | H97: 265.378357 | I97: 0.9955296921 | J97: 1 | K97: 266.07 | L97: 266.69 | M97: 264.16 | N97: 265.38 | O97: 65558000 | U97: 1998-12-18 | V97: 0.392 | W97: 118.5 | X97: 199812 | Y97: 199712 | Z97: 1997-12-19 | AA97: 5 | AB97: 1 | AC97: 1.416 | AD97: 0.01194936709
A98: 83 | B98: 2018-04-20 | C98: 268.809998 | D98: 269.059998 | E98: 265.609985 | F98: 266.609985 | G98: 99953100 | H98: 265.418152 | I98: 0.9955296761 | J98: 1 | K98: 267.61 | L98: 267.86 | M98: 264.42 | N98: 265.42 | O98: 99953100 | U98: 1998-09-18 | V98: 0.359 | W98: 102.093697 | X98: 199809 | Y98: 199709 | Z98: 1997-09-19 | AA98: 5 | AB98: 1 | AC98: 1.404 | AD98: 0.01375207325
A99: 84 | B99: 2018-04-19 | C99: 269.649994 | D99: 269.880005 | E99: 267.720001 | F99: 268.890015 | G99: 77655900 | H99: 267.687988 | I99: 0.9955296704 | J99: 1 | K99: 268.44 | L99: 268.67 | M99: 266.52 | N99: 267.69 | O99: 77655900 | U99: 1998-06-19 | V99: 0.352 | W99: 110.0625 | X99: 199806 | Y99: 199706 | Z99: 1997-06-20 | AA99: 5 | AB99: 1 | AC99: 1.393 | AD99: 0.0126564452
A100: 85 | B100: 2018-04-18 | C100: 270.690002 | D100: 271.299988 | E100: 269.869995 | F100: 270.390015 | G100: 57303900 | H100: 269.181305 | I100: 0.9955297536 | J100: 1 | K100: 269.48 | L100: 270.09 | M100: 268.66 | N100: 269.18 | O100: 57303900 | U100: 1998-03-20 | V100: 0.313 | W100: 109.875 | X100: 199803 | Y100: 199703 | Z100: 1997-03-21 | AA100: 5 | AB100: 1 | AC100: 1.391 | AD100: 0.01265984073
A101: 86 | B101: 2018-04-17 | C101: 269.329987 | D101: 270.869995 | E101: 268.75 | F101: 270.190002 | G101: 64682000 | H101: 268.982178 | I101: 0.9955297236 | J101: 1 | K101: 268.13 | L101: 269.66 | M101: 267.55 | N101: 268.98 | O101: 64682000 | U101: 1997-12-19 | V101: 0.38 | W101: 94.781197 | X101: 199712 | Y101: 199612 | Z101: 1996-12-20 | AA101: 5 | AB101: 1 | AC101: 1.377 | AD101: 0.01452819803
A102: 87 | B102: 2018-04-16 | C102: 267 | D102: 268.200012 | E102: 266.070007 | F102: 267.329987 | G102: 63405300 | H102: 266.134949 | I102: 0.9955297271 | J102: 1 | K102: 265.81 | L102: 267 | M102: 264.88 | N102: 266.13 | O102: 63405300 | U102: 1997-09-19 | V102: 0.348 | W102: 95.031197 | X102: 199709 | Y102: 199609 | Z102: 1996-09-20 | AA102: 5 | AB102: 1 | AC102: 1.364 | AD102: 0.0143531813
A103: 88 | B103: 2018-04-13 | C103: 267.410004 | D103: 267.540009 | E103: 264.01001 | F103: 265.149994 | G103: 85079200 | H103: 263.964691 | I103: 0.9955296888 | J103: 1 | K103: 266.21 | L103: 266.34 | M103: 262.83 | N103: 263.96 | O103: 85079200 | U103: 1997-06-20 | V103: 0.35 | W103: 89.578102 | X103: 199706 | Y103: 199606 | Z103: 1996-06-21 | AA103: 5 | AB103: 1 | AC103: 1.368 | AD103: 0.01527158948
A104: 89 | B104: 2018-04-12 | C104: 265.26001 | D104: 267 | E104: 265.059998 | F104: 265.929993 | G104: 68890500 | H104: 264.741211 | I104: 0.9955297182 | J104: 1 | K104: 264.07 | L104: 265.81 | M104: 263.88 | N104: 264.74 | O104: 68890500 | U104: 1997-03-21 | V104: 0.299 | W104: 78.4375 | X104: 199703 | Y104: 199603 | Z104: 1996-03-15 | AA104: 5 | AB104: 1 | AC104: 1.369 | AD104: 0.01745338645
A105: 90 | B105: 2018-04-11 | C105: 263.470001 | D105: 265.640015 | E105: 263.390015 | F105: 263.76001 | G105: 91140200 | H105: 262.580933 | I105: 0.9955297355 | J105: 1 | K105: 262.29 | L105: 264.45 | M105: 262.21 | N105: 262.58 | O105: 91140200 | U105: 1996-12-20 | V105: 0.367 | W105: 74.843697 | X105: 199612 | Y105: 199512 | Z105: 1995-12-15 | AA105: 5 | AB105: 1 | AC105: 1.355 | AD105: 0.01810439695
A106: 91 | B106: 2018-04-10 | C106: 264.269989 | D106: 266.040009 | E106: 262.980011 | F106: 265.149994 | G106: 103529000 | H106: 263.964691 | I106: 0.9955296888 | J106: 1 | K106: 263.09 | L106: 264.85 | M106: 261.8 | N106: 263.96 | O106: 103529000 | U106: 1996-09-20 | V106: 0.352 | W106: 68.640602 | X106: 199609 | Y106: 199509 | Z106: 1995-09-15 | AA106: 5 | AB106: 1 | AC106: 1.37 | AD106: 0.01995903241
A107: 92 | B107: 2018-04-09 | C107: 261.369995 | D107: 264.839996 | E107: 259.940002 | F107: 261 | G107: 105442900 | H107: 259.833252 | I107: 0.9955297011 | J107: 1 | K107: 260.2 | L107: 263.66 | M107: 258.78 | N107: 259.83 | O107: 105442900 | U107: 1996-06-21 | V107: 0.351 | W107: 66.8125 | X107: 199606 | Y107: 199506 | Z107: 1995-06-16 | AA107: 5 | AB107: 1 | AC107: 1.33 | AD107: 0.01990645463
A108: 93 | B108: 2018-04-06 | C108: 263.420013 | D108: 265.109985 | E108: 258 | F108: 259.720001 | G108: 179521200 | H108: 258.55899 | I108: 0.995529759 | J108: 1 | K108: 262.24 | L108: 263.92 | M108: 256.85 | N108: 258.56 | O108: 179521200 | U108: 1996-03-15 | V108: 0.285 | W108: 64.125 | X108: 199603 | Y108: 199503 | Z108: 1995-03-17 | AA108: 5 | AB108: 1 | AC108: 1.295 | AD108: 0.02019493177
A109: 94 | B109: 2018-04-05 | C109: 265.549988 | D109: 266.640015 | E109: 264.320007 | F109: 265.640015 | G109: 82652600 | H109: 264.452515 | I109: 0.9955296645 | J109: 1 | K109: 264.36 | L109: 265.45 | M109: 263.14 | N109: 264.45 | O109: 82652600 | U109: 1995-12-15 | V109: 0.382 | W109: 61.8125 | X109: 199512 | Y109: 199412 | Z109: 1994-12-16 | AA109: 5 | AB109: 1 | AC109: 1.278 | AD109: 0.02067542973
A110: 95 | B110: 2018-04-04 | C110: 256.75 | D110: 264.359985 | E110: 256.600006 | F110: 263.559998 | G110: 123715300 | H110: 262.381805 | I110: 0.9955296972 | J110: 1 | K110: 255.6 | L110: 263.18 | M110: 255.45 | N110: 262.38 | O110: 123715300 | U110: 1995-09-15 | V110: 0.312 | W110: 58.4375 | X110: 199509 | Y110: 199409 | Z110: 1994-09-19 | AA110: 5 | AB110: 1 | AC110: 1.259 | AD110: 0.02154438503
A111: 96 | B111: 2018-04-03 | C111: 258.869995 | D111: 261.309998 | E111: 256.839996 | F111: 260.769989 | G111: 119956900 | H111: 259.604279 | I111: 0.9955297387 | J111: 1 | K111: 257.71 | L111: 260.14 | M111: 255.69 | N111: 259.6 | O111: 119956900 | U111: 1995-06-16 | V111: 0.316 | W111: 53.9687 | X111: 199506 | Y111: 199406 | Z111: 1994-06-17 | AA111: 6 | AB111: 1 | AC111: 1.235 | AD111: 0.0228836344
A112: 97 | B112: 2018-04-02 | C112: 262.549988 | D112: 263.130005 | E112: 254.669998 | F112: 257.470001 | G112: 186286300 | H112: 256.319031 | I112: 0.9955296928 | J112: 1 | K112: 261.38 | L112: 261.95 | M112: 253.53 | N112: 256.32 | O112: 186286300 | U112: 1995-03-17 | V112: 0.268 | W112: 49.5625 | X112: 199503 | Y112: 199403 | Z112: 1994-03-18 | AA112: 6 | AB112: 1 | AC112: 1.224 | AD112: 0.02469609079
A113: 98 | B113: 2018-03-29 | C113: 261.119995 | D113: 265.26001 | E113: 259.839996 | F113: 263.149994 | G113: 111601600 | H113: 261.973633 | I113: 0.995529694 | J113: 1 | K113: 259.95 | L113: 264.07 | M113: 258.68 | N113: 261.97 | O113: 111601600 | U113: 1994-12-16 | V113: 0.363 | W113: 45.75 | X113: 199412 | Y113: 199312 | Z113: 1993-12-17 | AA113: 6 | AB113: 1 | AC113: 1.227 | AD113: 0.02681967213
A114: 99 | B114: 2018-03-28 | C114: 260.75 | D114: 262.640015 | E114: 258.579987 | F114: 259.829987 | G114: 146452300 | H114: 258.668457 | I114: 0.9955296538 | J114: 1 | K114: 259.58 | L114: 261.47 | M114: 257.42 | N114: 258.67 | O114: 146452300 | U114: 1994-09-19 | V114: 0 | W114: 47.0625 | X114: 199409 | Y114: 199309 | Z114: 1993-09-17 | AA114: 6 | AB114: 1 | AC114: 1.181 | AD114: 0.02509428951
A115: 100 | B115: 2018-03-27 | C115: 266.170013 | D115: 266.769989 | E115: 258.839996 | F115: 260.600006 | G115: 129941400 | H115: 259.435059 | I115: 0.9955297507 | J115: 1 | K115: 264.98 | L115: 265.58 | M115: 257.68 | N115: 259.44 | O115: 129941400 | U115: 1994-09-16 | V115: 0.288 | W115: 47.015598 | X115: 199409 | Y115: 199309 | Z115: 1993-09-17 | AA115: 5 | AB115: 1 | AC115: 1.181 | AD115: 0.02511932317
A116: 101 | B116: 2018-03-26 | C116: 262.130005 | D116: 265.429993 | E116: 259.410004 | F116: 265.109985 | G116: 141956100 | H116: 263.924866 | I116: 0.9955297082 | J116: 1 | K116: 260.96 | L116: 264.24 | M116: 258.25 | N116: 263.92 | O116: 141956100 | U116: 1994-06-17 | V116: 0.305 | W116: 45.875 | X116: 199406 | Y116: 199306 | Z116: 1993-06-18 | AA116: 5 | AB116: 1 | AC116: 1.179 | AD116: 0.02570027248
A117: 102 | B117: 2018-03-23 | C117: 264.170013 | D117: 264.540009 | E117: 257.829987 | F117: 258.049988 | G117: 183534800 | H117: 256.896423 | I117: 0.995529684 | J117: 1 | K117: 262.99 | L117: 263.36 | M117: 256.68 | N117: 256.9 | O117: 183534800 | U117: 1994-03-18 | V117: 0.271 | W117: 46.9687 | X117: 199403 | Y117: 199303 | Z117: 1993-03-19 | AA117: 5 | AB117: 1 | AC117: 1.192 | AD117: 0.0253786032
A118: 103 | B118: 2018-03-22 | C118: 267.910004 | D118: 268.869995 | E118: 263.359985 | F118: 263.670013 | G118: 148785900 | H118: 262.491333 | I118: 0.9955297154 | J118: 1 | K118: 266.71 | L118: 267.67 | M118: 262.18 | N118: 262.49 | O118: 148785900 | U118: 1993-12-17 | V118: 0.317 | W118: 46.5625 | X118: 199312 | Y118: 199212 | Z118: 1993-03-19 | AA118: 4 | AB118: 0 | AC118: 1.134 | AD118: 0.02435436242
A119: 104 | B119: 2018-03-21 | C119: 270.899994 | D119: 273.269989 | E119: 270.190002 | F119: 270.429993 | G119: 78709600 | H119: 269.2211 | I119: 0.9955297377 | J119: 1 | K119: 269.69 | L119: 272.05 | M119: 268.98 | N119: 269.22 | O119: 78709600 | U119: 1993-09-17 | V119: 0.286 | W119: 45.8125 | X119: 199309 | Y119: 199209 | Z119: 1993-03-19 | AA119: 3 | AB119: 0 | AC119: 0.817 | AD119: 0.01783356071
A120: 105 | B120: 2018-03-20 | C120: 270.940002 | D120: 271.670013 | E120: 270.179993 | F120: 270.950012 | G120: 59757300 | H120: 269.7388 | I120: 0.9955297585 | J120: 1 | K120: 269.73 | L120: 270.46 | M120: 268.97 | N120: 269.74 | O120: 59757300 | U120: 1993-06-18 | V120: 0.318 | W120: 44.5 | X120: 199306 | Y120: 199206 | Z120: 1993-03-19 | AA120: 2 | AB120: 0 | AC120: 0.531 | AD120: 0.01193258427
A121: 106 | B121: 2018-03-19 | C121: 273.350006 | D121: 274.399994 | E121: 268.619995 | F121: 270.48999 | G121: 109208400 | H121: 269.280823 | I121: 0.9955297163 | J121: 1 | K121: 272.13 | L121: 273.17 | M121: 267.42 | N121: 269.28 | O121: 109208400 | U121: 1993-03-19 | V121: 0.213 | W121: 45.0312 | X121: 199303 | Y121: 199203 | Z121: 1993-03-19 | AA121: 1 | AB121: 1 | AC121: 0.213 | AD121: 0.004730053829
A122: 107 | B122: 2018-03-16 | C122: 274.5 | D122: 275.390015 | E122: 274.140015 | F122: 274.200012 | G122: 100343700 | H122: 272.974274 | I122: 0.9955297668 | J122: 1 | K122: 273.27 | L122: 274.16 | M122: 272.91 | N122: 272.97 | O122: 100343700
A123: 108 | B123: 2018-03-15 | C123: 275.880005 | D123: 276.609985 | E123: 274.429993 | F123: 275 | G123: 83433000 | H123: 272.678558 | I123: 0.9915583927 | J123: 1 | K123: 273.55 | L123: 274.27 | M123: 272.11 | N123: 272.68 | O123: 83433000
A124: 109 | B124: 2018-03-14 | C124: 277.809998 | D124: 278.019989 | E124: 274.670013 | F124: 275.299988 | G124: 105895100 | H124: 272.976013 | I124: 0.9915583905 | J124: 1 | K124: 275.46 | L124: 275.67 | M124: 272.35 | N124: 272.98 | O124: 105895100
A125: 110 | B125: 2018-03-13 | C125: 279.839996 | D125: 280.410004 | E125: 276.029999 | F125: 276.720001 | G125: 91968900 | H125: 274.384033 | I125: 0.9915583695 | J125: 1 | K125: 277.48 | L125: 278.04 | M125: 273.7 | N125: 274.38 | O125: 91968900
A126: 111 | B126: 2018-03-12 | C126: 279.200012 | D126: 279.910004 | E126: 278.079987 | F126: 278.519989 | G126: 71924800 | H126: 276.168854 | I126: 0.9915584694 | J126: 1 | K126: 276.84 | L126: 277.55 | M126: 275.73 | N126: 276.17 | O126: 71924800
A127: 112 | B127: 2018-03-09 | C127: 275.700012 | D127: 278.869995 | E127: 275.339996 | F127: 278.869995 | G127: 113625300 | H127: 276.5159 | I127: 0.99155845 | J127: 1 | K127: 273.37 | L127: 276.52 | M127: 273.02 | N127: 276.52 | O127: 113625300
A128: 113 | B128: 2018-03-08 | C128: 273.549988 | D128: 274.23999 | E128: 272.420013 | F128: 274.100006 | G128: 66901200 | H128: 271.786163 | I128: 0.9915583986 | J128: 1 | K128: 271.24 | L128: 271.92 | M128: 270.12 | N128: 271.79 | O128: 66901200
A129: 114 | B129: 2018-03-07 | C129: 270.420013 | D129: 273.179993 | E129: 270.200012 | F129: 272.779999 | G129: 87063500 | H129: 270.477325 | I129: 0.991558494 | J129: 1 | K129: 268.14 | L129: 270.87 | M129: 267.92 | N129: 270.48 | O129: 87063500
A130: 115 | B130: 2018-03-06 | C130: 273.299988 | D130: 273.390015 | E130: 271.179993 | F130: 272.880005 | G130: 79213200 | H130: 270.576477 | I130: 0.9915584581 | J130: 1 | K130: 270.99 | L130: 271.08 | M130: 268.89 | N130: 270.58 | O130: 79213200
A131: 116 | B131: 2018-03-05 | C131: 267.730011 | D131: 272.890015 | E131: 267.609985 | F131: 272.190002 | G131: 97307400 | H131: 269.892303 | I131: 0.9915584739 | J131: 1 | K131: 265.47 | L131: 270.59 | M131: 265.35 | N131: 269.89 | O131: 97307400
A132: 117 | B132: 2018-03-02 | C132: 265.799988 | D132: 269.720001 | E132: 264.820007 | F132: 269.079987 | G132: 139083200 | H132: 266.808533 | I132: 0.9915584432 | J132: 1 | K132: 263.56 | L132: 267.44 | M132: 262.58 | N132: 266.81 | O132: 139083200
A133: 118 | B133: 2018-03-01 | C133: 271.410004 | D133: 273.170013 | E133: 266 | F133: 267.700012 | G133: 176855100 | H133: 265.440216 | I133: 0.9915584763 | J133: 1 | K133: 269.12 | L133: 270.86 | M133: 263.75 | N133: 265.44 | O133: 176855100
A134: 119 | B134: 2018-02-28 | C134: 275.679993 | D134: 276.190002 | E134: 271.290009 | F134: 271.649994 | G134: 121907800 | H134: 269.356842 | I134: 0.9915584316 | J134: 1 | K134: 273.35 | L134: 273.86 | M134: 269 | N134: 269.36 | O134: 121907800
A135: 120 | B135: 2018-02-27 | C135: 278.109985 | D135: 278.920013 | E135: 274.359985 | F135: 274.429993 | G135: 99099200 | H135: 272.113373 | I135: 0.99155843 | J135: 1 | K135: 275.76 | L135: 276.57 | M135: 272.04 | N135: 272.11 | O135: 99099200
A136: 121 | B136: 2018-02-26 | C136: 275.929993 | D136: 278.01001 | E136: 275.26001 | F136: 277.899994 | G136: 86491400 | H136: 275.554108 | I136: 0.9915585245 | J136: 1 | K136: 273.6 | L136: 275.66 | M136: 272.94 | N136: 275.55 | O136: 86491400
A137: 122 | B137: 2018-02-23 | C137: 271.790009 | D137: 274.709991 | E137: 271.25 | F137: 274.709991 | G137: 92766400 | H137: 272.391022 | I137: 0.9915584832 | J137: 1 | K137: 269.5 | L137: 272.39 | M137: 268.96 | N137: 272.39 | O137: 92766400
A138: 123 | B138: 2018-02-22 | C138: 271.100006 | D138: 273.049988 | E138: 269.640015 | F138: 270.399994 | G138: 110511300 | H138: 268.117401 | I138: 0.9915584577 | J138: 1 | K138: 268.81 | L138: 270.75 | M138: 267.36 | N138: 268.12 | O138: 110511300
A139: 124 | B139: 2018-02-21 | C139: 271.899994 | D139: 274.720001 | E139: 269.940002 | F139: 270.049988 | G139: 98883700 | H139: 267.770325 | I139: 0.9915583666 | J139: 1 | K139: 269.6 | L139: 272.4 | M139: 267.66 | N139: 267.77 | O139: 98883700
A140: 125 | B140: 2018-02-20 | C140: 272.029999 | D140: 273.670013 | E140: 270.5 | F140: 271.399994 | G140: 86369700 | H140: 269.108978 | I140: 0.991558526 | J140: 1 | K140: 269.73 | L140: 271.36 | M140: 268.22 | N140: 269.11 | O140: 86369700
A141: 126 | B141: 2018-02-16 | C141: 272.320007 | D141: 275.320007 | E141: 272.269989 | F141: 273.109985 | G141: 160420100 | H141: 270.804504 | I141: 0.9915584156 | J141: 1 | K141: 270.02 | L141: 273 | M141: 269.97 | N141: 270.8 | O141: 160420100
A142: 127 | B142: 2018-02-15 | C142: 271.570007 | D142: 273.040009 | E142: 268.769989 | F142: 273.029999 | G142: 111200300 | H142: 270.725189 | I142: 0.9915584001 | J142: 1 | K142: 269.28 | L142: 270.74 | M142: 266.5 | N142: 270.73 | O142: 111200300
A143: 128 | B143: 2018-02-14 | C143: 264.309998 | D143: 270 | E143: 264.299988 | F143: 269.589996 | G143: 120735700 | H143: 267.31424 | I143: 0.9915584553 | J143: 1 | K143: 262.08 | L143: 267.72 | M143: 262.07 | N143: 267.31 | O143: 120735700
A144: 129 | B144: 2018-02-13 | C144: 263.970001 | D144: 266.619995 | E144: 263.309998 | F144: 266 | G144: 81223600 | H144: 263.754547 | I144: 0.9915584474 | J144: 1 | K144: 261.74 | L144: 264.37 | M144: 261.09 | N144: 263.75 | O144: 81223600
A145: 130 | B145: 2018-02-12 | C145: 263.829987 | D145: 267.01001 | E145: 261.660004 | F145: 265.339996 | G145: 143736000 | H145: 263.100098 | I145: =IF(F145=0,1,H145/F145) -> 0.9915583853 | J145: =INDEX(OFFSET($T$15,0,0,$S$13+1,1),MATCH(B145,OFFSET($Q$15,0,0,$S$13+1,1),-1)) -> 1 | K145: =ROUND($I145*C145,2) -> 261.6 | L145: =ROUND($I145*D145,2) -> 264.76 | M145: =ROUND($I145*E145,2) -> 259.45 | N145: =ROUND($I145*F145,2) -> 263.1 | O145: =G145*J145 -> 143736000
A146: 131 | B146: 2018-02-09 | C146: 260.799988 | D146: 263.609985 | E146: 252.919998 | F146: 261.5 | G146: 283565300 | H146: 259.292542 | I146: 0.991558478 | J146: 1 | K146: 258.6 | L146: 261.38 | M146: 250.78 | N146: 259.29 | O146: 283565300
A147: 132 | B147: 2018-02-08 | C147: 268.01001 | D147: 268.170013 | E147: 257.589996 | F147: 257.630005 | G147: 246449500 | H147: 255.455215 | I147: 0.9915584755 | J147: 1 | K147: 265.75 | L147: 265.91 | M147: 255.42 | N147: 255.46 | O147: 246449500
A148: 133 | B148: 2018-02-07 | C148: 268.5 | D148: 272.359985 | E148: 267.579987 | F148: 267.670013 | G148: 167376100 | H148: 265.410461 | I148: 0.9915584418 | J148: 1 | K148: 266.23 | L148: 270.06 | M148: 265.32 | N148: 265.41 | O148: 167376100
A149: 134 | B149: 2018-02-06 | C149: 259.940002 | D149: 269.700012 | E149: 258.700012 | F149: 269.130005 | G149: 355026800 | H149: 266.858124 | I149: 0.9915584255 | J149: 1 | K149: 257.75 | L149: 267.42 | M149: 256.52 | N149: 266.86 | O149: 355026800
A150: 135 | B150: 2018-02-05 | C150: 273.450012 | D150: 275.850006 | E150: 263.309998 | F150: 263.929993 | G150: 294681800 | H150: 261.702026 | I150: 0.9915584926 | J150: 1 | K150: 271.14 | L150: 273.52 | M150: 261.09 | N150: 261.7 | O150: 294681800
A151: 136 | B151: 2018-02-02 | C151: 280.079987 | D151: 280.230011 | E151: 275.410004 | F151: 275.450012 | G151: 173174800 | H151: 273.124786 | I151: 0.9915584465 | J151: 1 | K151: 277.72 | L151: 277.86 | M151: 273.09 | N151: 273.12 | O151: 173174800
A152: 137 | B152: 2018-02-01 | C152: 281.070007 | D152: 283.059998 | E152: 280.679993 | F152: 281.579987 | G152: 90102500 | H152: 279.203003 | I152: 0.9915584057 | J152: 1 | K152: 278.7 | L152: 280.67 | M152: 278.31 | N152: 279.2 | O152: 90102500
A153: 138 | B153: 2018-01-31 | C153: 282.730011 | D153: 283.299988 | E153: 280.679993 | F153: 281.899994 | G153: 108364800 | H153: 279.520325 | I153: 0.9915584638 | J153: 1 | K153: 280.34 | L153: 280.91 | M153: 278.31 | N153: 279.52 | O153: 108364800
A154: 139 | B154: 2018-01-30 | C154: 282.600006 | D154: 284.73999 | E154: 281.220001 | F154: 281.76001 | G154: 131796400 | H154: 279.3815 | I154: 0.9915583833 | J154: 1 | K154: 280.21 | L154: 282.34 | M154: 278.85 | N154: 279.38 | O154: 131796400
A155: 140 | B155: 2018-01-29 | C155: 285.929993 | D155: 286.429993 | E155: 284.5 | F155: 284.679993 | G155: 90118300 | H155: 282.276825 | I155: 0.991558353 | J155: 1 | K155: 283.52 | L155: 284.01 | M155: 282.1 | N155: 282.28 | O155: 90118300
A156: 141 | B156: 2018-01-26 | C156: 284.25 | D156: 286.630005 | E156: 283.959991 | F156: 286.579987 | G156: 107743100 | H156: 284.160797 | I156: 0.9915584126 | J156: 1 | K156: 281.85 | L156: 284.21 | M156: 281.56 | N156: 284.16 | O156: 107743100
A157: 142 | B157: 2018-01-25 | C157: 284.160004 | D157: 284.269989 | E157: 282.399994 | F157: 283.299988 | G157: 84587300 | H157: 280.908508 | I157: 0.9915584889 | J157: 1 | K157: 281.76 | L157: 281.87 | M157: 280.02 | N157: 280.91 | O157: 84587300
A158: 143 | B158: 2018-01-24 | C158: 284.019989 | D158: 284.700012 | E158: 281.839996 | F158: 283.179993 | G158: 134816100 | H158: 280.78952 | I158: 0.9915584679 | J158: 1 | K158: 281.62 | L158: 282.3 | M158: 279.46 | N158: 280.79 | O158: 134816100
A159: 144 | B159: 2018-01-23 | C159: 282.73999 | D159: 283.619995 | E159: 282.369995 | F159: 283.290009 | G159: 97084700 | H159: 280.89859 | I159: 0.9915584068 | J159: 1 | K159: 280.35 | L159: 281.23 | M159: 279.99 | N159: 280.9 | O159: 97084700
A160: 145 | B160: 2018-01-22 | C160: 280.170013 | D160: 282.690002 | E160: 280.109985 | F160: 282.690002 | G160: 91322400 | H160: 280.30365 | I160: 0.9915584139 | J160: 1 | K160: 277.8 | L160: 280.3 | M160: 277.75 | N160: 280.3 | O160: 91322400
A161: 146 | B161: 2018-01-19 | C161: 279.799988 | D161: 280.410004 | E161: 279.140015 | F161: 280.410004 | G161: 140920100 | H161: 278.042908 | I161: 0.9915584467 | J161: 1 | K161: 277.44 | L161: 278.04 | M161: 276.78 | N161: 278.04 | O161: 140920100
A162: 147 | B162: 2018-01-18 | C162: 279.480011 | D162: 279.959991 | E162: 278.579987 | F162: 279.140015 | G162: 100728000 | H162: 276.78363 | I162: 0.991558412 | J162: 1 | K162: 277.12 | L162: 277.6 | M162: 276.23 | N162: 276.78 | O162: 100728000
A163: 148 | B163: 2018-01-17 | C163: 278.029999 | D163: 280.049988 | E163: 276.970001 | F163: 279.609985 | G163: 109354500 | H163: 277.249634 | I163: 0.9915584166 | J163: 1 | K163: 275.68 | L163: 277.69 | M163: 274.63 | N163: 277.25 | O163: 109354500
A164: 149 | B164: 2018-01-16 | C164: 279.350006 | D164: 280.089996 | E164: 276.179993 | F164: 276.970001 | G164: 106555100 | H164: 274.631958 | I164: 0.9915584973 | J164: 1 | K164: 276.99 | L164: 277.73 | M164: 273.85 | N164: 274.63 | O164: 106555100
A165: 150 | B165: 2018-01-12 | C165: 276.420013 | D165: 278.109985 | E165: 276.079987 | F165: 277.920013 | G165: 90816100 | H165: 275.573944 | I165: 0.9915584741 | J165: 1 | K165: 274.09 | L165: 275.76 | M165: 273.75 | N165: 275.57 | O165: 90816100
A166: 151 | B166: 2018-01-11 | C166: 274.75 | D166: 276.119995 | E166: 274.559998 | F166: 276.119995 | G166: 62361500 | H166: 273.789093 | I166: 0.991558373 | J166: 1 | K166: 272.43 | L166: 273.79 | M166: 272.24 | N166: 273.79 | O166: 62361500
A167: 152 | B167: 2018-01-10 | C167: 273.679993 | D167: 274.420013 | E167: 272.920013 | F167: 274.119995 | G167: 69574300 | H167: 271.806 | I167: 0.9915584596 | J167: 1 | K167: 271.37 | L167: 272.1 | M167: 270.62 | N167: 271.81 | O167: 69574300
A168: 153 | B168: 2018-01-09 | C168: 274.399994 | D168: 275.25 | E168: 274.079987 | F168: 274.540009 | G168: 57254000 | H168: 272.222473 | I168: 0.9915584763 | J168: 1 | K168: 272.08 | L168: 272.93 | M168: 271.77 | N168: 272.22 | O168: 57254000
A169: 154 | B169: 2018-01-08 | C169: 273.309998 | D169: 274.100006 | E169: 272.980011 | F169: 273.920013 | G169: 57319200 | H169: 271.607727 | I169: 0.9915585357 | J169: 1 | K169: 271 | L169: 271.79 | M169: 270.68 | N169: 271.61 | O169: 57319200
A170: 155 | B170: 2018-01-05 | C170: 272.51001 | D170: 273.559998 | E170: 271.950012 | F170: 273.420013 | G170: 83524000 | H170: 271.111938 | I170: 0.9915585001 | J170: 1 | K170: 270.21 | L170: 271.25 | M170: 269.65 | N170: 271.11 | O170: 83524000
A171: 156 | B171: 2018-01-04 | C171: 271.200012 | D171: 272.160004 | E171: 270.540009 | F171: 271.609985 | G171: 80636400 | H171: 269.317169 | I171: 0.9915584252 | J171: 1 | K171: 268.91 | L171: 269.86 | M171: 268.26 | N171: 269.32 | O171: 80636400
A172: 157 | B172: 2018-01-03 | C172: 268.959991 | D172: 270.640015 | E172: 268.959991 | F172: 270.470001 | G172: 90070400 | H172: 268.186829 | I172: 0.9915585019 | J172: 1 | K172: 266.69 | L172: 268.36 | M172: 266.69 | N172: 268.19 | O172: 90070400
A173: 158 | B173: 2018-01-02 | C173: 267.839996 | D173: 268.809998 | E173: 267.399994 | F173: 268.769989 | G173: 86655700 | H173: 266.50116 | I173: 0.9915584734 | J173: 1 | K173: 265.58 | L173: 266.54 | M173: 265.14 | N173: 266.5 | O173: 86655700
A174: 159 | B174: 2017-12-29 | C174: 268.529999 | D174: 268.549988 | E174: 266.640015 | F174: 266.859985 | G174: 96007400 | H174: 264.607269 | I174: 0.9915584347 | J174: 1 | K174: 266.26 | L174: 266.28 | M174: 264.39 | N174: 264.61 | O174: 96007400
A175: 160 | B175: 2017-12-28 | C175: 267.890015 | D175: 267.920013 | E175: 267.450012 | F175: 267.869995 | G175: 45116100 | H175: 265.608765 | I175: 0.9915584797 | J175: 1 | K175: 265.63 | L175: 265.66 | M175: 265.19 | N175: 265.61 | O175: 45116100
A176: 161 | B176: 2017-12-27 | C176: 267.380005 | D176: 267.730011 | E176: 267.01001 | F176: 267.320007 | G176: 57751000 | H176: 265.063416 | I176: 0.9915584657 | J176: 1 | K176: 265.12 | L176: 265.47 | M176: 264.76 | N176: 265.06 | O176: 57751000
A177: 162 | B177: 2017-12-26 | C177: 267.049988 | D177: 267.440002 | E177: 266.890015 | F177: 267.190002 | G177: 45244400 | H177: 264.934479 | I177: 0.9915583555 | J177: 1 | K177: 264.8 | L177: 265.18 | M177: 264.64 | N177: 264.93 | O177: 45244400
A178: 163 | B178: 2017-12-22 | C178: 267.600006 | D178: 267.640015 | E178: 266.899994 | F178: 267.51001 | G178: 78720900 | H178: 265.251801 | I178: 0.9915584131 | J178: 1 | K178: 265.34 | L178: 265.38 | M178: 264.65 | N178: 265.25 | O178: 78720900
A179: 164 | B179: 2017-12-21 | C179: 267.73999 | D179: 268.390015 | E179: 267.299988 | F179: 267.579987 | G179: 67032300 | H179: 265.321198 | I179: 0.9915584531 | J179: 1 | K179: 265.48 | L179: 266.12 | M179: 265.04 | N179: 265.32 | O179: 67032300
A180: 165 | B180: 2017-12-20 | C180: 268.269989 | D180: 268.329987 | E180: 266.690002 | F180: 267.029999 | G180: 76751500 | H180: 264.775848 | I180: 0.9915584354 | J180: 1 | K180: 266.01 | L180: 266.06 | M180: 264.44 | N180: 264.78 | O180: 76751500
A181: 166 | B181: 2017-12-19 | C181: 268.480011 | D181: 268.529999 | E181: 267.089996 | F181: 267.170013 | G181: 82382900 | H181: 264.914673 | I181: 0.9915584089 | J181: 1 | K181: 266.21 | L181: 266.26 | M181: 264.84 | N181: 264.91 | O181: 82382900
A182: 167 | B182: 2017-12-18 | C182: 268.100006 | D182: 268.600006 | E182: 267.980011 | F182: 268.200012 | G182: 83653600 | H182: 265.935974 | I182: 0.9915583971 | J182: 1 | K182: 265.84 | L182: 266.33 | M182: 265.72 | N182: 265.94 | O182: 83653600
A183: 168 | B183: 2017-12-15 | C183: 265.450012 | D183: 267.040009 | E183: 265.390015 | F183: 266.51001 | G183: 144610300 | H183: 264.260254 | I183: 0.9915584559 | J183: 1 | K183: 263.21 | L183: 264.79 | M183: 263.15 | N183: 264.26 | O183: 144610300
A184: 169 | B184: 2017-12-14 | C184: 267.089996 | D184: 267.220001 | E184: 265.600006 | F184: 265.660004 | G184: 100666700 | H184: 262.07782 | I184: 0.9865159078 | J184: 1 | K184: 263.49 | L184: 263.62 | M184: 262.02 | N184: 262.08 | O184: 100666700
A185: 170 | B185: 2017-12-13 | C185: 267.059998 | D185: 267.559998 | E185: 266.649994 | F185: 266.75 | G185: 102905400 | H185: 263.153137 | I185: 0.9865159775 | J185: 1 | K185: 263.46 | L185: 263.95 | M185: 263.05 | N185: 263.15 | O185: 102905400
A186: 171 | B186: 2017-12-12 | C186: 267.209991 | D186: 267.320007 | E186: 266.350006 | F186: 266.779999 | G186: 85195800 | H186: 263.182709 | I186: 0.9865158932 | J186: 1 | K186: 263.61 | L186: 263.72 | M186: 262.76 | N186: 263.18 | O186: 85195800
A187: 172 | B187: 2017-12-11 | C187: 266.309998 | D187: 266.380005 | E187: 265.480011 | F187: 266.309998 | G187: 83077500 | H187: 262.719055 | I187: 0.9865159287 | J187: 1 | K187: 262.72 | L187: 262.79 | M187: 261.9 | N187: 262.72 | O187: 83077500
A188: 173 | B188: 2017-12-08 | C188: 265.160004 | D188: 265.519989 | E188: 264.029999 | F188: 265.51001 | G188: 76563900 | H188: 261.92984 | I188: 0.9865158756 | J188: 1 | K188: 261.58 | L188: 261.94 | M188: 260.47 | N188: 261.93 | O188: 76563900
A189: 174 | B189: 2017-12-07 | C189: 264.070007 | D189: 264.429993 | E189: 262.940002 | F189: 264.070007 | G189: 77218600 | H189: 260.509247 | I189: 0.9865158484 | J189: 1 | K189: 260.51 | L189: 260.86 | M189: 259.39 | N189: 260.51 | O189: 77218600
A190: 175 | B190: 2017-12-06 | C190: 263.299988 | D190: 263.730011 | E190: 262.709991 | F190: 263.23999 | G190: 75898600 | H190: 259.69043 | I190: 0.9865158785 | J190: 1 | K190: 259.75 | L190: 260.17 | M190: 259.17 | N190: 259.69 | O190: 75898600
A191: 176 | B191: 2017-12-05 | C191: 263.190002 | D191: 265.149994 | E191: 263.040009 | F191: 263.190002 | G191: 77994500 | H191: 259.641113 | I191: 0.986515867 | J191: 1 | K191: 259.64 | L191: 261.57 | M191: 259.49 | N191: 259.64 | O191: 77994500
A192: 177 | B192: 2017-12-04 | C192: 266.309998 | D192: 266.799988 | E192: 264.079987 | F192: 264.140015 | G192: 94040600 | H192: 260.578308 | I192: 0.9865158371 | J192: 1 | K192: 262.72 | L192: 263.2 | M192: 260.52 | N192: 260.58 | O192: 94040600
A193: 178 | B193: 2017-12-01 | C193: 264.76001 | D193: 265.309998 | E193: 260.76001 | F193: 264.459991 | G193: 164390900 | H193: 260.893982 | I193: 0.9865158847 | J193: 1 | K193: 261.19 | L193: 261.73 | M193: 257.24 | N193: 260.89 | O193: 164390900
A194: 179 | B194: 2017-11-30 | C194: 263.76001 | D194: 266.049988 | E194: 263.670013 | F194: 265.01001 | G194: 127894400 | H194: 261.436584 | I194: 0.9865158829 | J194: 1 | K194: 260.2 | L194: 262.46 | M194: 260.11 | N194: 261.44 | O194: 127894400
A195: 180 | B195: 2017-11-29 | C195: 263.019989 | D195: 263.630005 | E195: 262.200012 | F195: 262.709991 | G195: 77512100 | H195: 259.167572 | I195: 0.9865158573 | J195: 1 | K195: 259.47 | L195: 260.08 | M195: 258.66 | N195: 259.17 | O195: 77512100
A196: 181 | B196: 2017-11-28 | C196: 260.76001 | D196: 262.899994 | E196: 260.649994 | F196: 262.869995 | G196: 98971700 | H196: 259.325439 | I196: 0.9865159354 | J196: 1 | K196: 257.24 | L196: 259.36 | M196: 257.14 | N196: 259.33 | O196: 98971700
A197: 182 | B197: 2017-11-27 | C197: 260.410004 | D197: 260.75 | E197: 260 | F197: 260.230011 | G197: 52274900 | H197: 256.721039 | I197: 0.9865158827 | J197: 1 | K197: 256.9 | L197: 257.23 | M197: 256.49 | N197: 256.72 | O197: 52274900
A198: 183 | B198: 2017-11-24 | C198: 260.320007 | D198: 260.480011 | E198: 260.160004 | F198: 260.359985 | G198: 27856500 | H198: 256.849274 | I198: 0.9865159349 | J198: 1 | K198: 256.81 | L198: 256.97 | M198: 256.65 | N198: 256.85 | O198: 27856500
A199: 184 | B199: 2017-11-22 | C199: 260 | D199: 260.149994 | E199: 259.570007 | F199: 259.76001 | G199: 45033400 | H199: 256.257385 | I199: 0.9865159191 | J199: 1 | K199: 256.49 | L199: 256.64 | M199: 256.07 | N199: 256.26 | O199: 45033400
A200: 185 | B200: 2017-11-21 | C200: 259.179993 | D200: 260.200012 | E200: 258.26001 | F200: 259.98999 | G200: 69176800 | H200: 256.484253 | I200: 0.986515877 | J200: 1 | K200: 255.69 | L200: 256.69 | M200: 254.78 | N200: 256.48 | O200: 69176800
... 6250 more rows

Sheet CalculationsAndCharts
A1: Oscillator Probability Profiler
A2: =InputPriceData!A1 -> SPDR S&P 500 ETF (SPY) -NYSEArca (Daily)
R3: 2
A4: User Charting Controls | E4: Click to Shift Chart One Bar:
A5: Data Control
A6: =InputPriceData!$B$10 -> 6435 | B6: Available Input Data Rows | E6: Earliest: | F6: =OFFSET(InputPriceData!B15,CalculationsAndCharts!A6,0,1,1) -> 1993-01-29
B7: Use Close Adjusted: | C7: TRUE | E7: Latest: | F7: =OFFSET(InputPriceData!B15,1,0,1,1) -> 2018-08-16
A8: =MIN(A6-A11,LOOKUP(2,1/(B:B<>0),ROW(A:A))-32) -> 1000 | B8: Logically Available for Calc / Plot | E8: $ Change: | F8: =G33-G34 -> 2.28
R9: 3
F10: Y-axis Range
A11: 0 | B11: Input Data Offset (Pan) | E11: Max High+ | F11: =CEILING(MAX(MAX(OFFSET($E$33,0,0,$A$12,1)))+2*F14,0.1) -> 294.7
A12: 450 | B12: Data Points to Plot (Zoom) | E12: Min Low- | F12: =FLOOR(MIN(MIN(OFFSET($F$33,0,0,$A$12,1)))-2*F14,0.1) -> 192.8
B13: First: | C13: =OFFSET(B32,A12,0,1,1) -> 2016-11-02 | E13: White space %: | F13: 0.05
B14: ="Last: " & IF(OFFSET(InputPriceData!P15,1+A11,0,1,1)="","",TEXT(OFFSET(InputPriceData!P15,1+A11,0,1,1),"H:MM AM/PM")) -> Last: | C14: =B33 -> 2018-08-16 | E14: Allowance: | F14: =FLOOR((CEILING(MAX(MAX(OFFSET($E$33,0,0,$A$12,1))),1)-FLOOR(MIN(MIN(OFFSET($F$33,0,0,$A$12,1))),1))*F13,0.01) -> 4.3
A15: User Controls
A16: MyRSI | B16: Length | C16: 14
A17: Smooth | B17: a | C17: b | D17: c1 | E17: c2 | F17: c3
A18: 8 | B18: =EXP(-1.414*3.14159/A18) -> 0.5739138205 | C18: =2*B18*COS(RADIANS(1.414*180/A18)) -> 0.9753719409 | D18: =1-E18-F18 -> 0.3540051324 | E18: =C18 -> 0.9753719409 | F18: =-(B18^2) -> -0.3293770733
A19: RocketRSI Length | C19: 10
A20: Smooth | B20: a | C20: b | D20: c1 | E20: c2 | F20: c3
A21: 8 | B21: =EXP(-1.414*3.14159/A21) -> 0.5739138205 | C21: =2*B21*COS(RADIANS(1.414*180/A21)) -> 0.9753719409 | D21: =1-E21-F21 -> 0.3540051324 | E21: =C21 -> 0.9753719409 | F21: =-(B21^2) -> -0.3293770733
A22: Deviation Scaled Oscillator
A23: Period | B23: a | C23: b | D23: c1 | E23: c2 | F23: c3
A24: 40 | B24: =EXP(-1.414*3.14159/A24) -> 0.8948893439 | C24: =2*B24*COS(RADIANS(1.414*180/A24)) -> 1.778753106 | D24: =1-E24-F24 -> 0.02207383185 | E24: =C24 -> 1.778753106 | F24: =-(B24^2) -> -0.8008269377
A25: Help! I would like to plot data
A26: From | B26: 2015-03-09 | C26: =OFFSET(InputPriceData!$A$15,MATCH(B26,OFFSET(InputPriceData!B15,1,0,InputPriceData!$B$10,1),0),0,1,1)-C27 -> 139 | E26: 321 | AC26: Chart Clutter Work Area
A27: To | B27: 2015-09-23 | C27: =OFFSET(InputPriceData!$A$15,MATCH(B27,OFFSET(InputPriceData!$B$15,1,0,InputPriceData!$B$10,1),0),0,1,1)-1 -> 730 | E27: =$A$12-$E$26+1 -> 130 | AC27: Base Oscillator | AD27: Fischer Transform
H28: @ Cursor => | I28: =OFFSET(A32,$E$27,0,1,1)&"(RR)" -> 130(RR) | J28: =OFFSET($B$32,E27,0,1,1) -> 2018-02-12 | K28: =TEXT(OFFSET(D32,$E$27,0,1,1),"#,##0.00")&"(o)" -> 261.60(o) | L28: =TEXT(OFFSET(E32,$E$27,0,1,1),"#,##0.00")&"(h)" -> 264.76(h) | M28: =TEXT(OFFSET(F32,$E$27,0,1,1),"#,##0.00")&"(l)" -> 259.45(l) | N28: =TEXT(OFFSET(G32,$E$27,0,1,1),"#,##0.00")&"(c)" -> 263.10(c)
E29: Cursor ==> | U29: Deviation Scaled Oscillator Calculation Area | AU29: Chart Cursor work area
X30: Deviation Scaled Oscillator | Y30: 1.999 Limited Oscillator | AC30: =IF($R$3=1,$L$32,$X$30) -> Deviation Scaled Oscillator | AD30: =IF($R$3=1,$T$32,$Z$31) -> Fisher Transform
A31: Rel Row | H31: MyRSI Calculation Area | M31: RocketRSI Calculation Area | S31: Limited | Z31: Fisher Transform | AP31: Used To Color Vol Bars
B32: Date | C32: Volume | D32: Open | E32: High | F32: Low | G32: Close | H32: Filt | I32: Delta | J32: CU | K32: CD | L32: MyRSI | M32: Mom | N32: Filt | O32: Delta | P32: CU | Q32: CD | R32: MyRSI | S32: MyRSI | T32: RocketRSI | U32: Zeros | V32: Filt | W32: Std Dev | AP32: Up Vol | AQ32: Dn Vol | AU32: Volume Cursor | AV32: =MAX(OFFSET(C33,0,0,A12,1)) -> 355026800 | AW32: Oscillator Cursor | AY32: Price Chart Cursor
A33: 1 | B33: =OFFSET(InputPriceData!B$15,CalculationsAndCharts!$A33+$A$11,0,1,1) -> 2018-08-16 | C33: =OFFSET(InputPriceData!G$15,CalculationsAndCharts!$A33+$A$11,IF($C$7,8,0),1,1) -> 69859900 | D33: =OFFSET(InputPriceData!C$15,CalculationsAndCharts!$A33+$A$11,IF($C$7,8,0),1,1) -> 283.4 | E33: =OFFSET(InputPriceData!D$15,CalculationsAndCharts!$A33+$A$11,IF($C$7,8,0),1,1) -> 285.04 | F33: =OFFSET(InputPriceData!E$15,CalculationsAndCharts!$A33+$A$11,IF($C$7,8,0),1,1) -> 283.36 | G33: =OFFSET(InputPriceData!F$15,CalculationsAndCharts!$A33+$A$11,IF($C$7,8,0),1,1) -> 284.06 | H33: =$D$18*(G33+G34)/2+$E$18*H34+$F$18*H35 -> 282.8095928 | I33: =H33-H34 -> -0.1570079129 | J33: =SUMIF(OFFSET($I33,0,0,$C$16,1),">0") -> 4.280318792 | K33: =-SUMIF(OFFSET($I33,0,0,$C$16,1),"<0") -> 4.271940341 | L33: =(J33-K33)/(J33+K33) -> 0.0009796768999 | M33: =G33-OFFSET(G33,$C$19,0,1,1) -> 1.67 | N33: =$D$21*(M33+M34)/2+$E$21*N34+$F$21*N35 -> 1.670176288 | O33: =N33-N34 -> -0.2386583195 | P33: =SUMIF(OFFSET($O33,0,0,$C$19,1),">0") -> 3.007578186 | Q33: =-SUMIF(OFFSET($O33,0,0,$C$19,1),"<0") -> 2.01436559 | R33: =(P33-Q33)/(P33+Q33) -> 0.1977745353 | S33: =IF(R33<-0.999,-0.999,IF(R33> 0.999,0.999,R33)) -> 0.1977745353 | T33: =0.5*LN((1+S33)/(1-S33)) -> 0.2004154318 | U33: =G33-G35 -> 0.16 | V33: =$D$24*(U33+U34)/2+$E$24*V34+$F$24*V35 -> 0.3450557698 | W33: =_xlfn.STDEV.P(OFFSET(V33,0,0,$A$24,1)) -> 0.5123412046 | X33: =V33/W33 -> 0.6734882275 | Y33: =IF(X33<-1.999,-1.999,IF(X33>1.999, 1.999,X33)) -> 0.6734882275 | Z33: =0.5*LN((1+Y33/2)/(1-Y33/2)) -> 0.3504156513 | AC33: =IF(OR($R$9=1,$R$9=3),IF($R$3=1,L33,X33),NA()) -> 0.6734882275 | AD33: =IF(OR($R$9=2,$R$9=3),IF($R$3=1,T33,Z33),NA()) -> 0.3504156513 | AP33: =IF(G33>=D33,C33,NA()) -> 69859900 | AQ33: =IF(G33<D33,C33,NA()) ->  | AU33: =$E$27 -> 130 | AV33: 0 | AW33: =$E$27 -> 130 | AX33: -6 | AY33: =E27 -> 130 | AZ33: 196.45275
A34: 2 | B34: =OFFSET(InputPriceData!B$15,CalculationsAndCharts!$A34+$A$11,0,1,1) -> 2018-08-15 | C34: =OFFSET(InputPriceData!G$15,CalculationsAndCharts!$A34+$A$11,IF($C$7,8,0),1,1) -> 102925400 | D34: =OFFSET(InputPriceData!C$15,CalculationsAndCharts!$A34+$A$11,IF($C$7,8,0),1,1) -> 282.38 | E34: =OFFSET(InputPriceData!D$15,CalculationsAndCharts!$A34+$A$11,IF($C$7,8,0),1,1) -> 282.54 | F34: =OFFSET(InputPriceData!E$15,CalculationsAndCharts!$A34+$A$11,IF($C$7,8,0),1,1) -> 280.16 | G34: =OFFSET(InputPriceData!F$15,CalculationsAndCharts!$A34+$A$11,IF($C$7,8,0),1,1) -> 281.78 | H34: =$D$18*(G34+G35)/2+$E$18*H35+$F$18*H36 -> 282.9666007 | I34: =H34-H35 -> -0.426596269 | J34: =SUMIF(OFFSET($I34,0,0,$C$16,1),">0") -> 4.635436148 | K34: =-SUMIF(OFFSET($I34,0,0,$C$16,1),"<0") -> 4.114932428 | L34: =(J34-K34)/(J34+K34) -> 0.05948363383 | M34: =G34-OFFSET(G34,$C$19,0,1,1) -> 0.92 | N34: =$D$21*(M34+M35)/2+$E$21*N35+$F$21*N36 -> 1.908834607 | O34: =N34-N35 -> -0.06484275867 | P34: =SUMIF(OFFSET($O34,0,0,$C$19,1),">0") -> 3.007578186 | Q34: =-SUMIF(OFFSET($O34,0,0,$C$19,1),"<0") -> 1.997542703 | R34: =(P34-Q34)/(P34+Q34) -> 0.2018004171 | S34: =IF(R34<-0.999,-0.999,IF(R34> 0.999,0.999,R34)) -> 0.2018004171 | T34: =0.5*LN((1+S34)/(1-S34)) -> 0.2046086945 | U34: =G34-G36 -> -0.32 | V34: =$D$24*(U34+U35)/2+$E$24*V35+$F$24*V36 -> 0.436285368 | W34: =_xlfn.STDEV.P(OFFSET(V34,0,0,$A$24,1)) -> 0.5141754815 | X34: =V34/W34 -> 0.848514532 | Y34: =IF(X34<-1.999,-1.999,IF(X34>1.999, 1.999,X34)) -> 0.848514532 | Z34: =0.5*LN((1+Y34/2)/(1-Y34/2)) -> 0.4528724107 | AC34: =IF(OR($R$9=1,$R$9=3),IF($R$3=1,L34,X34),NA()) -> 0.848514532 | AD34: =IF(OR($R$9=2,$R$9=3),IF($R$3=1,T34,Z34),NA()) -> 0.4528724107 | AP34: =IF(G34>=D34,C34,NA()) ->  | AQ34: =IF(G34<D34,C34,NA()) -> 102925400 | AU34: =$E$27 -> 130 | AV34: =CEILING(AV32,10^INT(LOG10(AV32))) -> 400000000 | AW34: =$E$27 -> 130 | AX34: 6 | AY34: =E27 -> 130 | AZ34: 293.16025
A35: 3 | B35: =OFFSET(InputPriceData!B$15,CalculationsAndCharts!$A35+$A$11,0,1,1) -> 2018-08-14 | C35: =OFFSET(InputPriceData!G$15,CalculationsAndCharts!$A35+$A$11,IF($C$7,8,0),1,1) -> 43842000 | D35: =OFFSET(InputPriceData!C$15,CalculationsAndCharts!$A35+$A$11,IF($C$7,8,0),1,1) -> 282.92 | E35: =OFFSET(InputPriceData!D$15,CalculationsAndCharts!$A35+$A$11,IF($C$7,8,0),1,1) -> 284.17 | F35: =OFFSET(InputPriceData!E$15,CalculationsAndCharts!$A35+$A$11,IF($C$7,8,0),1,1) -> 282.48 | G35: =OFFSET(InputPriceData!F$15,CalculationsAndCharts!$A35+$A$11,IF($C$7,8,0),1,1) -> 283.9 | H35: 283.393197 | I35: -0.7006003941 | J35: 5.784623668 | K35: 3.688336159 | L35: 0.2212917132 | M35: 2.57 | N35: 1.973677366 | O35: 0.04891112299 | P35: 3.007578186 | Q35: 2.817071 | R35: 0.03270706618 | S35: 0.03270706618 | T35: 0.03271873649 | U35: 0.74 | V35: =$D$24*(U35+U36)/2+$E$24*V36+$F$24*V37 -> 0.5359738251 | W35: 0.5176584267 | X35: 1.035381243 | Y35: 1.035381243 | Z35: 0.5731796789 | AC35: 1.035381243 | AD35: 0.5731796789 | AP35: =IF(G35>=D35,C35,NA()) -> 43842000 | AQ35: =IF(G35<D35,C35,NA()) -> 
A36: 4 | B36: =OFFSET(InputPriceData!B$15,CalculationsAndCharts!$A36+$A$11,0,1,1) -> 2018-08-13 | C36: =OFFSET(InputPriceData!G$15,CalculationsAndCharts!$A36+$A$11,IF($C$7,8,0),1,1) -> 65686900 | D36: =OFFSET(InputPriceData!C$15,CalculationsAndCharts!$A36+$A$11,IF($C$7,8,0),1,1) -> 283.47 | E36: =OFFSET(InputPriceData!D$15,CalculationsAndCharts!$A36+$A$11,IF($C$7,8,0),1,1) -> 284.16 | F36: =OFFSET(InputPriceData!E$15,CalculationsAndCharts!$A36+$A$11,IF($C$7,8,0),1,1) -> 281.77 | G36: =OFFSET(InputPriceData!F$15,CalculationsAndCharts!$A36+$A$11,IF($C$7,8,0),1,1) -> 282.1 | H36: 284.0937974 | I36: -0.9514642753 | J36: 6.717691825 | K36: 2.987735765 | L36: 0.3843165101 | M36: 2.15 | N36: 1.924766243 | O36: -0.3192810591 | P36: 2.958667063 | Q36: 3.940225535 | R36: -0.1422776855 | S36: -0.1422776855 | T36: -0.1432495568 | U36: -2.97 | V36: =$D$24*(U36+U37)/2+$E$24*V37+$F$24*V38 -> 0.6514706464 | W36: 0.5222656656 | X36: 1.247393212 | Y36: 1.247393212 | Z36: 0.731032484 | AC36: 1.247393212 | AD36: 0.731032484 | AP36: =IF(G36>=D36,C36,NA()) ->  | AQ36: =IF(G36<D36,C36,NA()) -> 65686900
A37: 5 | B37: =OFFSET(InputPriceData!B$15,CalculationsAndCharts!$A37+$A$11,0,1,1) -> 2018-08-10 | C37: =OFFSET(InputPriceData!G$15,CalculationsAndCharts!$A37+$A$11,IF($C$7,8,0),1,1) -> 77076000 | D37: =OFFSET(InputPriceData!C$15,CalculationsAndCharts!$A37+$A$11,IF($C$7,8,0),1,1) -> 283.45 | E37: =OFFSET(InputPriceData!D$15,CalculationsAndCharts!$A37+$A$11,IF($C$7,8,0),1,1) -> 284.06 | F37: =OFFSET(InputPriceData!E$15,CalculationsAndCharts!$A37+$A$11,IF($C$7,8,0),1,1) -> 282.36 | G37: =OFFSET(InputPriceData!F$15,CalculationsAndCharts!$A37+$A$11,IF($C$7,8,0),1,1) -> 283.16 | H37: 285.0452616 | I37: -0.2928232458 | J37: 6.92145652 | K37: 2.036271489 | L37: 0.5453598307 | M37: 1.74 | N37: 2.244047302 | O37: -0.6479406025 | P37: 2.958667063 | Q37: 4.697201661 | R37: -0.2270852153 | S37: -0.2270852153 | T37: -0.2311140449 | U37: -2.3 | V37: =$D$24*(U37+U38)/2+$E$24*V38+$F$24*V39 -> 0.7470019549 | W37: 0.5267386219 | X37: 1.418164387 | Y37: 1.418164387 | Z37: 0.8853355008 | AC37: 1.418164387 | AD37: 0.8853355008 | AQ37: 77076000
A38: 6 | B38: =OFFSET(InputPriceData!B$15,CalculationsAndCharts!$A38+$A$11,0,1,1) -> 2018-08-09 | C38: =OFFSET(InputPriceData!G$15,CalculationsAndCharts!$A38+$A$11,IF($C$7,8,0),1,1) -> 35652400 | D38: =OFFSET(InputPriceData!C$15,CalculationsAndCharts!$A38+$A$11,IF($C$7,8,0),1,1) -> 285.53 | E38: =OFFSET(InputPriceData!D$15,CalculationsAndCharts!$A38+$A$11,IF($C$7,8,0),1,1) -> 285.97 | F38: =OFFSET(InputPriceData!E$15,CalculationsAndCharts!$A38+$A$11,IF($C$7,8,0),1,1) -> 284.92 | G38: =OFFSET(InputPriceData!F$15,CalculationsAndCharts!$A38+$A$11,IF($C$7,8,0),1,1) -> 285.07 | H38: 285.3380849 | I38: 0.4255155787 | J38: 6.92145652 | K38: 1.925434237 | L38: 0.5647206934 | M38: 1.73 | N38: 2.891987905 | O38: -0.7236719414 | P38: 2.958667063 | Q38: 4.347669849 | R38: -0.190109326 | S38: -0.190109326 | T38: -0.1924505922 | U38: -0.51 | V38: =$D$24*(U38+U39)/2+$E$24*V39+$F$24*V40 -> 0.7730719647 | W38: 0.5303443653 | X38: 1.457679227 | Y38: 1.457679227 | Z38: 0.9262476207 | AC38: 1.457679227 | AD38: 0.9262476207 | AQ38: 35652400
A39: 7 | B39: =OFFSET(InputPriceData!B$15,CalculationsAndCharts!$A39+$A$11,0,1,1) -> 2018-08-08 | C39: =OFFSET(InputPriceData!G$15,CalculationsAndCharts!$A39+$A$11,IF($C$7,8,0),1,1) -> 42114600 | D39: =OFFSET(InputPriceData!C$15,CalculationsAndCharts!$A39+$A$11,IF($C$7,8,0),1,1) -> 285.39 | E39: =OFFSET(InputPriceData!D$15,CalculationsAndCharts!$A39+$A$11,IF($C$7,8,0),1,1) -> 285.91 | F39: =OFFSET(InputPriceData!E$15,CalculationsAndCharts!$A39+$A$11,IF($C$7,8,0),1,1) -> 284.94 | G39: =OFFSET(InputPriceData!F$15,CalculationsAndCharts!$A39+$A$11,IF($C$7,8,0),1,1) -> 285.46 | H39: 284.9125693 | I39: 0.9130972486 | J39: 6.495940941 | K39: 2.045824444 | L39: 0.5209832273 | M39: 1.45 | N39: 3.615659846 | O39: -0.01997090851 | P39: 3.536937432 | Q39: 3.623997908 | R39: -0.0121576961 | S39: -0.0121576961 | T39: -0.01215829516 | U39: 0.82 | V39: 0.7455898914 | W39: 0.5334617041 | X39: 1.39764464 | Y39: 1.39764464 | Z39: 0.8649950738 | AC39: 1.39764464 | AD39: 0.8649950738 | AP39: 42114600
A40: 8 | B40: =OFFSET(InputPriceData!B$15,CalculationsAndCharts!$A40+$A$11,0,1,1) -> 2018-08-07 | C40: =OFFSET(InputPriceData!G$15,CalculationsAndCharts!$A40+$A$11,IF($C$7,8,0),1,1) -> 43196600 | D40: =OFFSET(InputPriceData!C$15,CalculationsAndCharts!$A40+$A$11,IF($C$7,8,0),1,1) -> 285.39 | E40: =OFFSET(InputPriceData!D$15,CalculationsAndCharts!$A40+$A$11,IF($C$7,8,0),1,1) -> 286.01 | F40: =OFFSET(InputPriceData!E$15,CalculationsAndCharts!$A40+$A$11,IF($C$7,8,0),1,1) -> 285.24 | G40: =OFFSET(InputPriceData!F$15,CalculationsAndCharts!$A40+$A$11,IF($C$7,8,0),1,1) -> 285.58 | H40: 283.999472 | I40: 1.137974007 | J40: 5.886329532 | K40: 2.045824444 | L40: 0.4841692559 | M40: 3.97 | N40: 3.635630754 | O40: 0.9342093128 | P40: 3.536937432 | Q40: 3.844529985 | R40: -0.04167092194 | S40: -0.04167092194 | T40: -0.04169506714 | U40: 1.98 | V40: 0.6949938721 | W40: 0.5361057046 | X40: 1.2963747 | Y40: 1.2963747 | Z40: 0.7721662992 | AC40: 1.2963747 | AD40: 0.7721662992 | AP40: 43196600
A41: 9 | B41: =OFFSET(InputPriceData!B$15,CalculationsAndCharts!$A41+$A$11,0,1,1) -> 2018-08-06 | C41: =OFFSET(InputPriceData!G$15,CalculationsAndCharts!$A41+$A$11,IF($C$7,8,0),1,1) -> 39400900 | D41: =OFFSET(InputPriceData!C$15,CalculationsAndCharts!$A41+$A$11,IF($C$7,8,0),1,1) -> 283.64 | E41: =OFFSET(InputPriceData!D$15,CalculationsAndCharts!$A41+$A$11,IF($C$7,8,0),1,1) -> 284.99 | F41: =OFFSET(InputPriceData!E$15,CalculationsAndCharts!$A41+$A$11,IF($C$7,8,0),1,1) -> 283.2 | G41: =OFFSET(InputPriceData!F$15,CalculationsAndCharts!$A41+$A$11,IF($C$7,8,0),1,1) -> 284.64 | H41: 282.861498 | I41: 1.038301691 | J41: 5.27097307 | K41: 2.045824444 | L41: 0.440786918 | M41: 4.44 | N41: 2.701421442 | O41: 1.220287685 | P41: 2.60272812 | Q41: 5.635264821 | R41: -0.3681159626 | S41: -0.3681159626 | T41: -0.3862419852 | U41: 2.25 | V41: 0.6512468016 | W41: 0.5380228046 | X41: 1.210444606 | Y41: 1.210444606 | Z41: 0.701347359 | AC41: 1.210444606 | AD41: 0.701347359 | AP41: 39400900
A42: 10 | B42: =OFFSET(InputPriceData!B$15,CalculationsAndCharts!$A42+$A$11,0,1,1) -> 2018-08-03 | C42: =OFFSET(InputPriceData!G$15,CalculationsAndCharts!$A42+$A$11,IF($C$7,8,0),1,1) -> 53935400 | D42: =OFFSET(InputPriceData!C$15,CalculationsAndCharts!$A42+$A$11,IF($C$7,8,0),1,1) -> 282.53 | E42: =OFFSET(InputPriceData!D$15,CalculationsAndCharts!$A42+$A$11,IF($C$7,8,0),1,1) -> 283.66 | F42: =OFFSET(InputPriceData!E$15,CalculationsAndCharts!$A42+$A$11,IF($C$7,8,0),1,1) -> 282.33 | G42: =OFFSET(InputPriceData!F$15,CalculationsAndCharts!$A42+$A$11,IF($C$7,8,0),1,1) -> 283.6 | H42: 281.8231963 | I42: 0.6837798595 | J42: 4.606314397 | K42: 2.045824444 | L42: 0.3849122838 | M42: 3.92 | N42: 1.481133757 | O42: 0.804170066 | P42: 1.382440435 | Q42: 7.601604112 | R42: -0.6922454184 | S42: -0.6922454184 | T42: -0.8522544619 | U42: 2.74 | V42: 0.6369660274 | W42: 0.5390825158 | X42: 1.181574265 | Y42: 1.181574265 | Z42: 0.6788743728 | AC42: 1.181574265 | AD42: 0.6788743728 | AP42: 53935400
A43: 11 | B43: =OFFSET(InputPriceData!B$15,CalculationsAndCharts!$A43+$A$11,0,1,1) -> 2018-08-02 | C43: =OFFSET(InputPriceData!G$15,CalculationsAndCharts!$A43+$A$11,IF($C$7,8,0),1,1) -> 63426400 | D43: =OFFSET(InputPriceData!C$15,CalculationsAndCharts!$A43+$A$11,IF($C$7,8,0),1,1) -> 279.39 | E43: =OFFSET(InputPriceData!D$15,CalculationsAndCharts!$A43+$A$11,IF($C$7,8,0),1,1) -> 282.58 | F43: =OFFSET(InputPriceData!E$15,CalculationsAndCharts!$A43+$A$11,IF($C$7,8,0),1,1) -> 279.16 | G43: =OFFSET(InputPriceData!F$15,CalculationsAndCharts!$A43+$A$11,IF($C$7,8,0),1,1) -> 282.39 | H43: 281.1394165 | I43: 0.08165040659 | J43: 4.366608507 | K43: 2.045824444 | L43: 0.3619194276 | M43: 2.39 | N43: 0.6769636911 | O43: -0.2218354329 | P43: 0.5782703691 | Q43: 8.820666836 | R43: -0.8769498388 | S43: -0.8769498388 | T43: -1.362405613 | U43: 1.06 | V43: 0.6703479656 | W43: 0.5391804408 | X43: 1.243272038 | Y43: 1.243272038 | Z43: 0.7276670813 | AC43: 1.243272038 | AD43: 0.7276670813 | AP43: 63426400
A44: 12 | B44: =OFFSET(InputPriceData!B$15,CalculationsAndCharts!$A44+$A$11,0,1,1) -> 2018-08-01 | C44: =OFFSET(InputPriceData!G$15,CalculationsAndCharts!$A44+$A$11,IF($C$7,8,0),1,1) -> 53853300 | D44: =OFFSET(InputPriceData!C$15,CalculationsAndCharts!$A44+$A$11,IF($C$7,8,0),1,1) -> 281.56 | E44: =OFFSET(InputPriceData!D$15,CalculationsAndCharts!$A44+$A$11,IF($C$7,8,0),1,1) -> 282.13 | F44: =OFFSET(InputPriceData!E$15,CalculationsAndCharts!$A44+$A$11,IF($C$7,8,0),1,1) -> 280.13 | G44: =OFFSET(InputPriceData!F$15,CalculationsAndCharts!$A44+$A$11,IF($C$7,8,0),1,1) -> 280.86 | H44: 281.0577661 | I44: -0.3617535104 | J44: 4.938484248 | K44: 2.045824444 | L44: 0.4141655146 | M44: -0.2 | N44: 0.898799124 | O44: -0.8843710555 | P44: 0.5782703691 | Q44: 8.705523905 | R44: -0.8754237003 | S44: -0.8754237003 | T44: -1.355835754 | U44: 0.91 | V44: 0.7459261806 | W44: 0.5383245004 | X44: 1.385644124 | Y44: 1.385644124 | Z44: 0.8533625457 | AC44: 1.385644124 | AD44: 0.8533625457 | AQ44: 53853300
A45: 13 | B45: =OFFSET(InputPriceData!B$15,CalculationsAndCharts!$A45+$A$11,0,1,1) -> 2018-07-31 | C45: =OFFSET(InputPriceData!G$15,CalculationsAndCharts!$A45+$A$11,IF($C$7,8,0),1,1) -> 68570500 | D45: =OFFSET(InputPriceData!C$15,CalculationsAndCharts!$A45+$A$11,IF($C$7,8,0),1,1) -> 280.81 | E45: =OFFSET(InputPriceData!D$15,CalculationsAndCharts!$A45+$A$11,IF($C$7,8,0),1,1) -> 282.02 | F45: =OFFSET(InputPriceData!E$15,CalculationsAndCharts!$A45+$A$11,IF($C$7,8,0),1,1) -> 280.38 | G45: =OFFSET(InputPriceData!F$15,CalculationsAndCharts!$A45+$A$11,IF($C$7,8,0),1,1) -> 281.33 | H45: 281.4195196 | I45: -0.7495115171 | J45: 5.509401399 | K45: 1.684070934 | L45: 0.5317780188 | M45: 0.86 | N45: 1.78317018 | O45: -1.123154535 | P45: 0.7928654857 | Q45: 7.82115285 | R45: -0.8159127471 | S45: -0.8159127471 | T45: -1.144466833 | U45: -0.09 | V45: 0.8468911787 | W45: 0.5363218512 | X45: 1.579072672 | Y45: 1.579072672 | Z45: 1.070199407 | AC45: 1.579072672 | AD45: 1.070199407 | AP45: 68570500
A46: 14 | B46: =OFFSET(InputPriceData!B$15,CalculationsAndCharts!$A46+$A$11,0,1,1) -> 2018-07-30 | C46: =OFFSET(InputPriceData!G$15,CalculationsAndCharts!$A46+$A$11,IF($C$7,8,0),1,1) -> 63742500 | D46: =OFFSET(InputPriceData!C$15,CalculationsAndCharts!$A46+$A$11,IF($C$7,8,0),1,1) -> 281.51 | E46: =OFFSET(InputPriceData!D$15,CalculationsAndCharts!$A46+$A$11,IF($C$7,8,0),1,1) -> 281.69 | F46: =OFFSET(InputPriceData!E$15,CalculationsAndCharts!$A46+$A$11,IF($C$7,8,0),1,1) -> 279.36 | G46: =OFFSET(InputPriceData!F$15,CalculationsAndCharts!$A46+$A$11,IF($C$7,8,0),1,1) -> 279.95 | H46: 282.1690311 | I46: -0.6321832162 | J46: 6.682972541 | K46: 0.9345594165 | L46: 0.7546293414 | M46: 0.61 | N46: 2.906324715 | O46: -1.076257185 | P46: 0.8279564025 | Q46: 6.697998315 | R46: -0.7799730576 | S46: -0.7799730576 | T46: -1.045301751 | U46: -3.39 | V46: 0.960924725 | W46: 0.5325000405 | X46: 1.804553337 | Y46: 1.804553337 | Z46: 1.484333178 | AC46: 1.804553337 | AD46: 1.484333178 | AQ46: 63742500
A47: 15 | B47: =OFFSET(InputPriceData!B$15,CalculationsAndCharts!$A47+$A$11,0,1,1) -> 2018-07-27 | C47: =OFFSET(InputPriceData!G$15,CalculationsAndCharts!$A47+$A$11,IF($C$7,8,0),1,1) -> 76768700 | D47: =OFFSET(InputPriceData!C$15,CalculationsAndCharts!$A47+$A$11,IF($C$7,8,0),1,1) -> 283.71 | E47: =OFFSET(InputPriceData!D$15,CalculationsAndCharts!$A47+$A$11,IF($C$7,8,0),1,1) -> 283.82 | F47: =OFFSET(InputPriceData!E$15,CalculationsAndCharts!$A47+$A$11,IF($C$7,8,0),1,1) -> 280.38 | G47: =OFFSET(InputPriceData!F$15,CalculationsAndCharts!$A47+$A$11,IF($C$7,8,0),1,1) -> 281.42 | H47: 282.8012143 | I47: 0.3551173566 | J47: 8.677472072 | K47: 0.3023762004 | L47: 0.9326544968 | M47: 1.83 | N47: 3.9825819 | O47: -0.2984087906 | P47: 1.408861947 | Q47: 5.621741129 | R47: -0.5992201717 | S47: -0.5992201717 | T47: -0.6919295885 | U47: -2.59 | V47: 1.028871725 | W47: 0.525864423 | X47: 1.956534194 | Y47: 1.956534194 | Z47: 2.255574582 | AC47: 1.956534194 | AD47: 2.255574582 | AQ47: 76768700
A48: 16 | B48: =OFFSET(InputPriceData!B$15,CalculationsAndCharts!$A48+$A$11,0,1,1) -> 2018-07-26 | C48: =OFFSET(InputPriceData!G$15,CalculationsAndCharts!$A48+$A$11,IF($C$7,8,0),1,1) -> 57919500 | D48: =OFFSET(InputPriceData!C$15,CalculationsAndCharts!$A48+$A$11,IF($C$7,8,0),1,1) -> 283.2 | E48: =OFFSET(InputPriceData!D$15,CalculationsAndCharts!$A48+$A$11,IF($C$7,8,0),1,1) -> 284.11 | F48: =OFFSET(InputPriceData!E$15,CalculationsAndCharts!$A48+$A$11,IF($C$7,8,0),1,1) -> 283.09 | G48: =OFFSET(InputPriceData!F$15,CalculationsAndCharts!$A48+$A$11,IF($C$7,8,0),1,1) -> 283.34 | H48: 282.446097 | I48: 1.14918752 | J48: 10.10670801 | K48: 0.3023762004 | L48: 0.9419014787 | M48: 3.97 | N48: 4.280990691 | O48: 0.5782703691 | P48: 2.974173749 | Q48: 5.323332339 | R48: -0.2831162237 | S48: -0.2831162237 | T48: -0.2910666088 | U48: 1.73 | V48: 1.002942404 | W48: 0.5170693044 | X48: 1.939667267 | Y48: 1.939667267 | Z48: 2.089488376 | AC48: 1.939667267 | AD48: 2.089488376 | AP48: 57919500
A49: 17 | B49: =OFFSET(InputPriceData!B$15,CalculationsAndCharts!$A49+$A$11,0,1,1) -> 2018-07-25 | C49: =OFFSET(InputPriceData!G$15,CalculationsAndCharts!$A49+$A$11,IF($C$7,8,0),1,1) -> 78882900 | D49: =OFFSET(InputPriceData!C$15,CalculationsAndCharts!$A49+$A$11,IF($C$7,8,0),1,1) -> 281.33 | E49: =OFFSET(InputPriceData!D$15,CalculationsAndCharts!$A49+$A$11,IF($C$7,8,0),1,1) -> 284.37 | F49: =OFFSET(InputPriceData!E$15,CalculationsAndCharts!$A49+$A$11,IF($C$7,8,0),1,1) -> 281.28 | G49: =OFFSET(InputPriceData!F$15,CalculationsAndCharts!$A49+$A$11,IF($C$7,8,0),1,1) -> 284.01 | H49: 281.2969094 | I49: 0.9330681571 | J49: 10.05619301 | K49: 0.3023762004 | L49: 0.9416181532 | M49: 7.15 | N49: 3.702720322 | O49: -0.2405029854 | P49: 4.214277169 | Q49: 5.323332339 | R49: -0.1162822999 | S49: -0.1162822999 | T49: -0.1168107 | U49: 3.81 | V49: 0.9310668872 | W49: 0.5093244667 | X49: 1.828042727 | Y49: 1.828042727 | Z49: 1.551431442 | AC49: 1.828042727 | AD49: 1.551431442 | AP49: 78882900
A50: 18 | B50: =OFFSET(InputPriceData!B$15,CalculationsAndCharts!$A50+$A$11,0,1,1) -> 2018-07-24 | C50: =OFFSET(InputPriceData!G$15,CalculationsAndCharts!$A50+$A$11,IF($C$7,8,0),1,1) -> 68026900 | D50: =OFFSET(InputPriceData!C$15,CalculationsAndCharts!$A50+$A$11,IF($C$7,8,0),1,1) -> 281.79 | E50: =OFFSET(InputPriceData!D$15,CalculationsAndCharts!$A50+$A$11,IF($C$7,8,0),1,1) -> 282.56 | F50: =OFFSET(InputPriceData!E$15,CalculationsAndCharts!$A50+$A$11,IF($C$7,8,0),1,1) -> 280.63 | G50: =OFFSET(InputPriceData!F$15,CalculationsAndCharts!$A50+$A$11,IF($C$7,8,0),1,1) -> 281.61 | H50: 280.3638413 | I50: 0.2037646947 | J50: 9.533303195 | K50: 0.3023762004 | L50: 0.9385144252 | M50: 2.71 | N50: 3.943223307 | O50: -1.790734836 | P50: 6.695226403 | Q50: 5.082829353 | R50: 0.1368984052 | S50: 0.1368984052 | T50: 0.1377633647 | U50: 1.93 | V50: 0.8920032451 | W50: 0.5053145899 | X50: 1.765243401 | Y50: 1.765243401 | Z50: 1.387509278 | AC50: 1.765243401 | AD50: 1.387509278 | AQ50: 68026900
A51: 19 | B51: =OFFSET(InputPriceData!B$15,CalculationsAndCharts!$A51+$A$11,0,1,1) -> 2018-07-23 | C51: =OFFSET(InputPriceData!G$15,CalculationsAndCharts!$A51+$A$11,IF($C$7,8,0),1,1) -> 47047600 | D51: =OFFSET(InputPriceData!C$15,CalculationsAndCharts!$A51+$A$11,IF($C$7,8,0),1,1) -> 279.45 | E51: =OFFSET(InputPriceData!D$15,CalculationsAndCharts!$A51+$A$11,IF($C$7,8,0),1,1) -> 280.43 | F51: =OFFSET(InputPriceData!E$15,CalculationsAndCharts!$A51+$A$11,IF($C$7,8,0),1,1) -> 279.06 | G51: =OFFSET(InputPriceData!F$15,CalculationsAndCharts!$A51+$A$11,IF($C$7,8,0),1,1) -> 280.2 | H51: 280.1600766 | I51: -0.1819859938 | J51: 9.637560928 | K51: 0.3023762004 | L51: 0.9391593334 | M51: 2.3 | N51: 5.733958143 | O51: -1.966339291 | P51: 9.660581307 | Q51: 3.292094518 | R51: 0.4916734484 | S51: 0.4916734484 | T51: 0.5382649147 | U51: 0.2 | V51: 0.8977452167 | W51: 0.5045589407 | X51: 1.779267285 | Y51: 1.779267285 | Z51: 1.420166449 | AC51: 1.779267285 | AD51: 1.420166449 | AP51: 47047600
A52: 20 | B52: =OFFSET(InputPriceData!B$15,CalculationsAndCharts!$A52+$A$11,0,1,1) -> 2018-07-20 | C52: =OFFSET(InputPriceData!G$15,CalculationsAndCharts!$A52+$A$11,IF($C$7,8,0),1,1) -> 82337700 | D52: =OFFSET(InputPriceData!C$15,CalculationsAndCharts!$A52+$A$11,IF($C$7,8,0),1,1) -> 279.77 | E52: =OFFSET(InputPriceData!D$15,CalculationsAndCharts!$A52+$A$11,IF($C$7,8,0),1,1) -> 280.48 | F52: =OFFSET(InputPriceData!E$15,CalculationsAndCharts!$A52+$A$11,IF($C$7,8,0),1,1) -> 279.5 | G52: =OFFSET(InputPriceData!F$15,CalculationsAndCharts!$A52+$A$11,IF($C$7,8,0),1,1) -> 279.68 | H52: 280.3420626 | I52: -0.1203902066 | J52: 9.97611303 | K52: 0.1203902066 | L52: 0.9761520987 | M52: 4.26 | N52: 7.700297434 | O52: -1.219062725 | P52: 12.03803921 | Q52: 1.325755227 | R52: 0.80159 | S52: 0.80159 | T52: 1.103044645 | U52: -1.38 | V52: 0.9095254469 | W52: 0.504881396 | X52: 1.80146358 | Y52: 1.80146358 | Z52: 1.476084431 | AC52: 1.80146358 | AD52: 1.476084431 | AQ52: 82337700
A53: 21 | B53: =OFFSET(InputPriceData!B$15,CalculationsAndCharts!$A53+$A$11,0,1,1) -> 2018-07-19 | C53: =OFFSET(InputPriceData!G$15,CalculationsAndCharts!$A53+$A$11,IF($C$7,8,0),1,1) -> 61412100 | D53: =OFFSET(InputPriceData!C$15,CalculationsAndCharts!$A53+$A$11,IF($C$7,8,0),1,1) -> 280.31 | E53: =OFFSET(InputPriceData!D$15,CalculationsAndCharts!$A53+$A$11,IF($C$7,8,0),1,1) -> 280.74 | F53: =OFFSET(InputPriceData!E$15,CalculationsAndCharts!$A53+$A$11,IF($C$7,8,0),1,1) -> 279.46 | G53: =OFFSET(InputPriceData!F$15,CalculationsAndCharts!$A53+$A$11,IF($C$7,8,0),1,1) -> 280 | H53: 280.4624528 | I53: 0.3034858395 | J53: 9.97611303 | K53: 0.1368315748 | L53: 0.9729393208 | M53: 6.89 | N53: 8.919360158 | O53: -0.1066925019 | P53: 13.68663016 | Q53: 0.1066925019 | R53: 0.9845298331 | S53: 0.9845298331 | T53: 2.427111926 | U53: -0.47 | V53: 0.8829029128 | W53: 0.5055246036 | X53: 1.746508294 | Y53: 1.746508294 | Z53: 1.346624228 | AC53: 1.746508294 | AD53: 1.346624228 | AQ53: 61412100
A54: 22 | B54: =OFFSET(InputPriceData!B$15,CalculationsAndCharts!$A54+$A$11,0,1,1) -> 2018-07-18 | C54: =OFFSET(InputPriceData!G$15,CalculationsAndCharts!$A54+$A$11,IF($C$7,8,0),1,1) -> 44593500 | D54: =OFFSET(InputPriceData!C$15,CalculationsAndCharts!$A54+$A$11,IF($C$7,8,0),1,1) -> 280.56 | E54: =OFFSET(InputPriceData!D$15,CalculationsAndCharts!$A54+$A$11,IF($C$7,8,0),1,1) -> 281.18 | F54: =OFFSET(InputPriceData!E$15,CalculationsAndCharts!$A54+$A$11,IF($C$7,8,0),1,1) -> 280.06 | G54: =OFFSET(InputPriceData!F$15,CalculationsAndCharts!$A54+$A$11,IF($C$7,8,0),1,1) -> 281.06 | H54: 280.158967 | I54: 0.5226175451 | J54: 9.67262719 | K54: 1.04861723 | L54: 0.8043851648 | M54: 10.16 | N54: 9.02605266 | O54: 0.2145951167 | P54: 14.58556011 | Q54: 0 | R54: 1 | S54: 0.999 | T54: 3.800201167 | U54: 1.72 | V54: 0.799826438 | W54: 0.5069898954 | X54: 1.577598381 | Y54: 1.577598381 | Z54: 1.068245223 | AC54: 1.577598381 | AD54: 1.068245223 | AP54: 44593500
A55: 23 | B55: =OFFSET(InputPriceData!B$15,CalculationsAndCharts!$A55+$A$11,0,1,1) -> 2018-07-17 | C55: =OFFSET(InputPriceData!G$15,CalculationsAndCharts!$A55+$A$11,IF($C$7,8,0),1,1) -> 52315500 | D55: =OFFSET(InputPriceData!C$15,CalculationsAndCharts!$A55+$A$11,IF($C$7,8,0),1,1) -> 278.47 | E55: =OFFSET(InputPriceData!D$15,CalculationsAndCharts!$A55+$A$11,IF($C$7,8,0),1,1) -> 280.91 | F55: =OFFSET(InputPriceData!E$15,CalculationsAndCharts!$A55+$A$11,IF($C$7,8,0),1,1) -> 278.41 | G55: =OFFSET(InputPriceData!F$15,CalculationsAndCharts!$A55+$A$11,IF($C$7,8,0),1,1) -> 280.47 | H55: 279.6363494 | I55: 0.3736430179 | J55: 9.150009645 | K55: 2.296073868 | L55: 0.598801832 | M55: 8.61 | N55: 8.811457544 | O55: 0.03509091679 | P55: 15.13384419 | Q55: 0 | R55: 1 | S55: 0.999 | T55: 3.800201167 | U55: 0.88 | V55: 0.6912691953 | W55: 0.5102271593 | X55: 1.354826341 | Y55: 1.354826341 | Z55: 0.8243178838 | AC55: 1.354826341 | AD55: 0.8243178838 | AP55: 52315500
A56: 24 | B56: =OFFSET(InputPriceData!B$15,CalculationsAndCharts!$A56+$A$11,0,1,1) -> 2018-07-16 | C56: =OFFSET(InputPriceData!G$15,CalculationsAndCharts!$A56+$A$11,IF($C$7,8,0),1,1) -> 48201000 | D56: =OFFSET(InputPriceData!C$15,CalculationsAndCharts!$A56+$A$11,IF($C$7,8,0),1,1) -> 279.64 | E56: =OFFSET(InputPriceData!D$15,CalculationsAndCharts!$A56+$A$11,IF($C$7,8,0),1,1) -> 279.8 | F56: =OFFSET(InputPriceData!E$15,CalculationsAndCharts!$A56+$A$11,IF($C$7,8,0),1,1) -> 278.84 | G56: =OFFSET(InputPriceData!F$15,CalculationsAndCharts!$A56+$A$11,IF($C$7,8,0),1,1) -> 279.34 | H56: 279.2627064 | I56: 0.4440739693 | J56: 8.776366627 | K56: 3.603451959 | L56: 0.4178506035 | M56: 8.06 | N56: 8.776366627 | O56: 0.5809055442 | P56: 15.61744675 | Q56: 0 | R56: 1 | S56: 0.999 | T56: 3.800201167 | U56: =G56-G58 -> -0.03 | V56: =$D$24*(U56+U57)/2+$E$24*V57+$F$24*V58 -> 0.5724916957 | W56: 0.5154576574 | X56: 1.110647378 | Y56: 1.110647378 | Z56: 0.6260461684 | AC56: 1.110647378 | AD56: 0.6260461684 | AQ56: 48201000
A57: 25 | B57: =OFFSET(InputPriceData!B$15,CalculationsAndCharts!$A57+$A$11,0,1,1) -> 2018-07-13 | C57: =OFFSET(InputPriceData!G$15,CalculationsAndCharts!$A57+$A$11,IF($C$7,8,0),1,1) -> 48216000 | D57: =OFFSET(InputPriceData!C$15,CalculationsAndCharts!$A57+$A$11,IF($C$7,8,0),1,1) -> 279.17 | E57: =OFFSET(InputPriceData!D$15,CalculationsAndCharts!$A57+$A$11,IF($C$7,8,0),1,1) -> 279.93 | F57: =OFFSET(InputPriceData!E$15,CalculationsAndCharts!$A57+$A$11,IF($C$7,8,0),1,1) -> 278.66 | G57: =OFFSET(InputPriceData!F$15,CalculationsAndCharts!$A57+$A$11,IF($C$7,8,0),1,1) -> 279.59 | H57: 278.8186324 | I57: 0.6535261472 | J57: 8.332292658 | K57: 4.574307333 | L57: 0.2911677225 | M57: 8.7 | N57: 8.195461083 | O57: 1.565311803 | P57: 15.03654121 | Q57: 0.1084074236 | R57: 0.9856840157 | S57: 0.9856840157 | T57: 2.466171014 | U57: 2.73 | V57: 0.4201077027 | W57: 0.5215849218 | X57: 0.8054444926 | Y57: 0.8054444926 | Z57: 0.4268939175 | AC57: 0.8054444926 | AD57: 0.4268939175 | AP57: 48216000
A58: 26 | B58: =OFFSET(InputPriceData!B$15,CalculationsAndCharts!$A58+$A$11,0,1,1) -> 2018-07-12 | C58: =OFFSET(InputPriceData!G$15,CalculationsAndCharts!$A58+$A$11,IF($C$7,8,0),1,1) -> 60124700 | D58: =OFFSET(InputPriceData!C$15,CalculationsAndCharts!$A58+$A$11,IF($C$7,8,0),1,1) -> 278.28 | E58: =OFFSET(InputPriceData!D$15,CalculationsAndCharts!$A58+$A$11,IF($C$7,8,0),1,1) -> 279.43 | F58: =OFFSET(InputPriceData!E$15,CalculationsAndCharts!$A58+$A$11,IF($C$7,8,0),1,1) -> 277.6 | G58: =OFFSET(InputPriceData!F$15,CalculationsAndCharts!$A58+$A$11,IF($C$7,8,0),1,1) -> 279.37 | H58: 278.1651063 | I58: 0.570917151 | J58: 7.67876651 | K58: 5.167411934 | L58: 0.1954942933 | M58: 10.02 | N58: 6.63014928 | O58: 1.818373789 | P58: 13.47122941 | Q58: 0.988542123 | R58: 0.8632700218 | S58: 0.8632700218 | T58: 1.30604014 | U58: 0.47 | V58: 0.2554557654 | W58: 0.5271309517 | X58: 0.4846153779 | Y58: 0.4846153779 | Z58: 0.2472242937 | AC58: 0.4846153779 | AD58: 0.2472242937 | AP58: 60124700
A59: 27 | B59: =OFFSET(InputPriceData!B$15,CalculationsAndCharts!$A59+$A$11,0,1,1) -> 2018-07-11 | C59: =OFFSET(InputPriceData!G$15,CalculationsAndCharts!$A59+$A$11,IF($C$7,8,0),1,1) -> 77054700 | D59: =OFFSET(InputPriceData!C$15,CalculationsAndCharts!$A59+$A$11,IF($C$7,8,0),1,1) -> 277.15 | E59: =OFFSET(InputPriceData!D$15,CalculationsAndCharts!$A59+$A$11,IF($C$7,8,0),1,1) -> 278.04 | F59: =OFFSET(InputPriceData!E$15,CalculationsAndCharts!$A59+$A$11,IF($C$7,8,0),1,1) -> 276.52 | G59: =OFFSET(InputPriceData!F$15,CalculationsAndCharts!$A59+$A$11,IF($C$7,8,0),1,1) -> 276.86 | H59: 277.5941891 | I59: 1.173571142 | J59: 7.107849359 | K59: 5.717330375 | L59: 0.1084210134 | M59: 5.26 | N59: 4.811775491 | O59: 2.480949233 | P59: 11.65285562 | Q59: 2.411279843 | R59: 0.6571023012 | S59: 0.6571023012 | T59: 0.7876968029 | U59: -1.04 | V59: 0.08691411464 | W59: 0.530165452 | X59: 0.1639377185 | Y59: 0.1639377185 | Z59: 0.08215318293 | AC59: 0.1639377185 | AD59: 0.08215318293 | AQ59: 77054700
A60: 28 | B60: =OFFSET(InputPriceData!B$15,CalculationsAndCharts!$A60+$A$11,0,1,1) -> 2018-07-10 | C60: =OFFSET(InputPriceData!G$15,CalculationsAndCharts!$A60+$A$11,IF($C$7,8,0),1,1) -> 51966800 | D60: =OFFSET(InputPriceData!C$15,CalculationsAndCharts!$A60+$A$11,IF($C$7,8,0),1,1) -> 278.41 | E60: =OFFSET(InputPriceData!D$15,CalculationsAndCharts!$A60+$A$11,IF($C$7,8,0),1,1) -> 279.01 | F60: =OFFSET(InputPriceData!E$15,CalculationsAndCharts!$A60+$A$11,IF($C$7,8,0),1,1) -> 278.08 | G60: =OFFSET(InputPriceData!F$15,CalculationsAndCharts!$A60+$A$11,IF($C$7,8,0),1,1) -> 278.9 | H60: 276.420618 | I60: 1.99449953 | J60: 5.934278217 | K60: 6.206081977 | L60: -0.0223884428 | M60: 7.9 | N60: 2.330826258 | O60: 2.965354904 | P60: 9.171906384 | Q60: 4.231701282 | R60: 0.3685727921 | S60: 0.3685727921 | T60: 0.3867705258 | U60: 3.48 | V60: -0.1337967681 | W60: 0.528442494 | X60: -0.2531907816 | Y60: -0.2531907816 | Z60: -0.1272782584 | AC60: -0.2531907816 | AD60: -0.1272782584 | AP60: 51966800
A61: 29 | B61: =OFFSET(InputPriceData!B$15,CalculationsAndCharts!$A61+$A$11,0,1,1) -> 2018-07-09 | C61: =OFFSET(InputPriceData!G$15,CalculationsAndCharts!$A61+$A$11,IF($C$7,8,0),1,1) -> 50550400 | D61: =OFFSET(InputPriceData!C$15,CalculationsAndCharts!$A61+$A$11,IF($C$7,8,0),1,1) -> 276.55 | E61: =OFFSET(InputPriceData!D$15,CalculationsAndCharts!$A61+$A$11,IF($C$7,8,0),1,1) -> 277.96 | F61: =OFFSET(InputPriceData!E$15,CalculationsAndCharts!$A61+$A$11,IF($C$7,8,0),1,1) -> 276.5 | G61: =OFFSET(InputPriceData!F$15,CalculationsAndCharts!$A61+$A$11,IF($C$7,8,0),1,1) -> 277.9 | H61: 274.4261185 | I61: 1.784353297 | J61: 3.939778686 | K61: 6.660938745 | L61: -0.2566958393 | M61: 3.16 | N61: -0.6345286466 | O61: 2.377457898 | P61: 6.206551479 | Q61: 5.910212683 | R61: 0.02445692528 | S61: 0.02445692528 | T61: 0.02446180327 | U61: 4.79 | V61: -0.3720847071 | W61: 0.5198487216 | X61: -0.7157557413 | Y61: -0.7157557413 | Z61: -0.3744499263 | AC61: -0.7157557413 | AD61: -0.3744499263 | AP61: 50550400
A62: 30 | B62: =OFFSET(InputPriceData!B$15,CalculationsAndCharts!$A62+$A$11,0,1,1) -> 2018-07-06 | C62: =OFFSET(InputPriceData!G$15,CalculationsAndCharts!$A62+$A$11,IF($C$7,8,0),1,1) -> 66493700 | D62: =OFFSET(InputPriceData!C$15,CalculationsAndCharts!$A62+$A$11,IF($C$7,8,0),1,1) -> 273.14 | E62: =OFFSET(InputPriceData!D$15,CalculationsAndCharts!$A62+$A$11,IF($C$7,8,0),1,1) -> 275.84 | F62: =OFFSET(InputPriceData!E$15,CalculationsAndCharts!$A62+$A$11,IF($C$7,8,0),1,1) -> 272.71 | G62: =OFFSET(InputPriceData!F$15,CalculationsAndCharts!$A62+$A$11,IF($C$7,8,0),1,1) -> 275.42 | H62: 272.6417652 | I62: 1.098672518 | J62: 2.155425389 | K62: 6.841080126 | L62: -0.5208305301 | M62: 1.18 | N62: -3.011986545 | O62: 1.648590959 | P62: 3.829093581 | Q62: 7.428173191 | R62: -0.3197116745 | S62: -0.3197116745 | T62: -0.3313259235 | U62: 4.52 | V62: -0.5454046874 | W62: 0.5030209678 | X62: -1.084258356 | Y62: -1.084258356 | Z62: -0.6071661134 | AC62: -1.084258356 | AD62: -0.6071661134 | AP62: 66493700
A63: 31 | B63: =OFFSET(InputPriceData!B$15,CalculationsAndCharts!$A63+$A$11,0,1,1) -> 2018-07-05 | C63: =OFFSET(InputPriceData!G$15,CalculationsAndCharts!$A63+$A$11,IF($C$7,8,0),1,1) -> 56925900 | D63: =OFFSET(InputPriceData!C$15,CalculationsAndCharts!$A63+$A$11,IF($C$7,8,0),1,1) -> 272.17 | E63: =OFFSET(InputPriceData!D$15,CalculationsAndCharts!$A63+$A$11,IF($C$7,8,0),1,1) -> 273.18 | F63: =OFFSET(InputPriceData!E$15,CalculationsAndCharts!$A63+$A$11,IF($C$7,8,0),1,1) -> 270.96 | G63: =OFFSET(InputPriceData!F$15,CalculationsAndCharts!$A63+$A$11,IF($C$7,8,0),1,1) -> 273.11 | H63: 271.5430926 | I63: 0.4101783414 | J63: 1.056752871 | K63: 6.869504277 | L63: -0.7333538765 | M63: -2.86 | N63: -4.660577504 | O63: 0.8989299431 | P63: 2.180502622 | Q63: 9.202480133 | R63: -0.6168837872 | S63: -0.6168837872 | T63: -0.7199588083 | U63: 1.25 | V63: -0.6184880453 | W63: 0.4789054377 | X63: -1.29146173 | Y63: -1.29146173 | Z63: -0.7679414837 | AC63: -1.29146173 | AD63: -0.7679414837 | AP63: 56925900
A64: 32 | B64: =OFFSET(InputPriceData!B$15,CalculationsAndCharts!$A64+$A$11,0,1,1) -> 2018-07-03 | C64: =OFFSET(InputPriceData!G$15,CalculationsAndCharts!$A64+$A$11,IF($C$7,8,0),1,1) -> 42187100 | D64: =OFFSET(InputPriceData!C$15,CalculationsAndCharts!$A64+$A$11,IF($C$7,8,0),1,1) -> 272.87 | E64: =OFFSET(InputPriceData!D$15,CalculationsAndCharts!$A64+$A$11,IF($C$7,8,0),1,1) -> 272.98 | F64: =OFFSET(InputPriceData!E$15,CalculationsAndCharts!$A64+$A$11,IF($C$7,8,0),1,1) -> 270.42 | G64: =OFFSET(InputPriceData!F$15,CalculationsAndCharts!$A64+$A$11,IF($C$7,8,0),1,1) -> 270.9 | H64: 271.1329143 | I64: 0.3080224285 | J64: 0.6465745296 | K64: 6.901155233 | L64: -0.8286704612 | M64: -4.6 | N64: -5.559507447 | O64: 0.7628791964 | P64: 1.281572679 | Q64: 10.93360816 | R64: -0.7901672196 | S64: -0.7901672196 | T64: -1.071876692 | U64: -0.38 | V64: -0.6131784735 | W64: 0.4507889718 | X64: -1.360233972 | Y64: -1.360233972 | Z64: -0.8293316782 | AC64: -1.360233972 | AD64: -0.8293316782 | AQ64: 42187100
A65: 33 | B65: =OFFSET(InputPriceData!B$15,CalculationsAndCharts!$A65+$A$11,0,1,1) -> 2018-07-02 | C65: =OFFSET(InputPriceData!G$15,CalculationsAndCharts!$A65+$A$11,IF($C$7,8,0),1,1) -> 63554800 | D65: =OFFSET(InputPriceData!C$15,CalculationsAndCharts!$A65+$A$11,IF($C$7,8,0),1,1) -> 269.51 | E65: =OFFSET(InputPriceData!D$15,CalculationsAndCharts!$A65+$A$11,IF($C$7,8,0),1,1) -> 272.04 | F65: =OFFSET(InputPriceData!E$15,CalculationsAndCharts!$A65+$A$11,IF($C$7,8,0),1,1) -> 269.24 | G65: =OFFSET(InputPriceData!F$15,CalculationsAndCharts!$A65+$A$11,IF($C$7,8,0),1,1) -> 271.86 | H65: 270.8248919 | I65: 0.3385521011 | J65: 0.5138331825 | K65: 6.901155233 | L65: -0.8614068819 | M65: -4.7 | N65: -6.322386643 | O65: 0.5186934825 | P65: 0.5186934825 | Q65: 12.5646743 | R65: -0.9207094853 | S65: -0.9207094853 | T65: -1.593665706 | U65: 0.97 | V65: -0.5776565826 | W65: 0.4228544355 | X65: -1.366088503 | Y65: -1.366088503 | Z65: -0.8347986586 | AC65: -1.366088503 | AD65: -0.8347986586 | AP65: 63554800
A66: 34 | B66: =OFFSET(InputPriceData!B$15,CalculationsAndCharts!$A66+$A$11,0,1,1) -> 2018-06-29 | C66: =OFFSET(InputPriceData!G$15,CalculationsAndCharts!$A66+$A$11,IF($C$7,8,0),1,1) -> 97592500 | D66: =OFFSET(InputPriceData!C$15,CalculationsAndCharts!$A66+$A$11,IF($C$7,8,0),1,1) -> 272.12 | E66: =OFFSET(InputPriceData!D$15,CalculationsAndCharts!$A66+$A$11,IF($C$7,8,0),1,1) -> 273.66 | F66: =OFFSET(InputPriceData!E$15,CalculationsAndCharts!$A66+$A$11,IF($C$7,8,0),1,1) -> 271.15 | G66: =OFFSET(InputPriceData!F$15,CalculationsAndCharts!$A66+$A$11,IF($C$7,8,0),1,1) -> 271.28 | H66: 270.4863398 | I66: -0.1368315748 | J66: 0.6883244302 | K66: 6.901155233 | L66: -0.8186109033 | M66: -5.85 | N66: -6.841080126 | O66: -0.1084074236 | P66: 0 | Q66: 13.79407385 | R66: -1 | S66: -0.999 | T66: -3.800201167 | U66: 1.93 | V66: -0.5092463394 | W66: 0.3956200299 | X66: -1.28721071 | Y66: -1.28721071 | Z66: -0.7643044122 | AC66: -1.28721071 | AD66: -0.7643044122 | AQ66: 97592500
A67: 35 | B67: =OFFSET(InputPriceData!B$15,CalculationsAndCharts!$A67+$A$11,0,1,1) -> 2018-06-28 | C67: =OFFSET(InputPriceData!G$15,CalculationsAndCharts!$A67+$A$11,IF($C$7,8,0),1,1) -> 76650500 | D67: =OFFSET(InputPriceData!C$15,CalculationsAndCharts!$A67+$A$11,IF($C$7,8,0),1,1) -> 269.29 | E67: =OFFSET(InputPriceData!D$15,CalculationsAndCharts!$A67+$A$11,IF($C$7,8,0),1,1) -> 271.75 | F67: =OFFSET(InputPriceData!E$15,CalculationsAndCharts!$A67+$A$11,IF($C$7,8,0),1,1) -> 268.49 | G67: =OFFSET(InputPriceData!F$15,CalculationsAndCharts!$A67+$A$11,IF($C$7,8,0),1,1) -> 270.89 | H67: 270.6231713 | I67: -0.9117856553 | J67: 1.395980457 | K67: 6.764323658 | L67: -0.6578606783 | M67: -6.59 | N67: -6.732672702 | O67: -0.8801346994 | P67: 0 | Q67: 14.05091254 | R67: -1 | S67: -0.999 | T67: -3.800201167 | U67: -0.71 | V67: -0.3698175663 | W67: 0.3678966578 | X67: -1.005221326 | Y67: -1.005221326 | Z67: -0.5527931115 | AC67: -1.005221326 | AD67: -0.5527931115 | AP67: 76650500
A68: 36 | B68: =OFFSET(InputPriceData!B$15,CalculationsAndCharts!$A68+$A$11,0,1,1) -> 2018-06-27 | C68: =OFFSET(InputPriceData!G$15,CalculationsAndCharts!$A68+$A$11,IF($C$7,8,0),1,1) -> 105110700 | D68: =OFFSET(InputPriceData!C$15,CalculationsAndCharts!$A68+$A$11,IF($C$7,8,0),1,1) -> 272.26 | E68: =OFFSET(InputPriceData!D$15,CalculationsAndCharts!$A68+$A$11,IF($C$7,8,0),1,1) -> 273.87 | F68: =OFFSET(InputPriceData!E$15,CalculationsAndCharts!$A68+$A$11,IF($C$7,8,0),1,1) -> 269.18 | G68: =OFFSET(InputPriceData!F$15,CalculationsAndCharts!$A68+$A$11,IF($C$7,8,0),1,1) -> 269.35 | H68: 271.534957 | I68: -1.247456638 | J68: 2.320836364 | K68: 5.852538003 | L68: -0.4320983575 | M68: -7.44 | N68: -5.852538003 | O68: -1.42273772 | P68: 0.03921424459 | Q68: 13.17077784 | R68: -0.994062942 | S68: -0.994062942 | T68: -2.908357896 | U68: -1.65 | V68: -0.168704075 | W68: 0.3438813039 | X68: -0.4905880984 | Y68: -0.4905880984 | Z68: -0.2503993805 | AC68: -0.4905880984 | AD68: -0.2503993805 | AQ68: 105110700
A69: 37 | B69: =OFFSET(InputPriceData!B$15,CalculationsAndCharts!$A69+$A$11,0,1,1) -> 2018-06-26 | C69: =OFFSET(InputPriceData!G$15,CalculationsAndCharts!$A69+$A$11,IF($C$7,8,0),1,1) -> 68547400 | D69: =OFFSET(InputPriceData!C$15,CalculationsAndCharts!$A69+$A$11,IF($C$7,8,0),1,1) -> 271.64 | E69: =OFFSET(InputPriceData!D$15,CalculationsAndCharts!$A69+$A$11,IF($C$7,8,0),1,1) -> 272.56 | F69: =OFFSET(InputPriceData!E$15,CalculationsAndCharts!$A69+$A$11,IF($C$7,8,0),1,1) -> 270.79 | G69: =OFFSET(InputPriceData!F$15,CalculationsAndCharts!$A69+$A$11,IF($C$7,8,0),1,1) -> 271.6 | H69: 272.7824136 | I69: -1.307378091 | J69: 3.545224865 | K69: 4.605081365 | L69: -0.1300388562 | M69: -6.07 | N69: -4.429800283 | O69: -1.82042144 | P69: 0.9149367555 | Q69: 11.74804012 | R69: -0.8554942073 | S69: -0.8554942073 | T69: -1.276293382 | U69: -3.14 | V69: 0.05455304422 | W69: 0.3283574283 | X69: 0.1661392115 | Y69: 0.1661392115 | Z69: 0.08326147636 | AC69: 0.1661392115 | AD69: 0.08326147636 | AQ69: 68547400
A70: 38 | B70: =OFFSET(InputPriceData!B$15,CalculationsAndCharts!$A70+$A$11,0,1,1) -> 2018-06-25 | C70: =OFFSET(InputPriceData!G$15,CalculationsAndCharts!$A70+$A$11,IF($C$7,8,0),1,1) -> 137854200 | D70: =OFFSET(InputPriceData!C$15,CalculationsAndCharts!$A70+$A$11,IF($C$7,8,0),1,1) -> 273.44 | E70: =OFFSET(InputPriceData!D$15,CalculationsAndCharts!$A70+$A$11,IF($C$7,8,0),1,1) -> 273.62 | F70: =OFFSET(InputPriceData!E$15,CalculationsAndCharts!$A70+$A$11,IF($C$7,8,0),1,1) -> 269.1 | G70: =OFFSET(InputPriceData!F$15,CalculationsAndCharts!$A70+$A$11,IF($C$7,8,0),1,1) -> 271 | H70: 274.0897917 | I70: -0.970855374 | J70: 4.787601287 | K70: 3.297703274 | L70: 0.1842723428 | M70: -6.31 | N70: -2.609378844 | O70: -1.678511401 | P70: 2.260614908 | Q70: 9.927618681 | R70: -0.6290496253 | S70: -0.6290496253 | T70: -0.7398418896 | U70: -3.24 | V70: 0.2658172877 | W70: 0.3217435661 | X70: 0.8261774772 | Y70: 0.8261774772 | Z70: 0.4393297735 | AC70: 0.8261774772 | AD70: 0.4393297735 | AQ70: 137854200
A71: 39 | B71: =OFFSET(InputPriceData!B$15,CalculationsAndCharts!$A71+$A$11,0,1,1) -> 2018-06-22 | C71: =OFFSET(InputPriceData!G$15,CalculationsAndCharts!$A71+$A$11,IF($C$7,8,0),1,1) -> 54898500 | D71: =OFFSET(InputPriceData!C$15,CalculationsAndCharts!$A71+$A$11,IF($C$7,8,0),1,1) -> 275.66 | E71: =OFFSET(InputPriceData!D$15,CalculationsAndCharts!$A71+$A$11,IF($C$7,8,0),1,1) -> 275.79 | F71: =OFFSET(InputPriceData!E$15,CalculationsAndCharts!$A71+$A$11,IF($C$7,8,0),1,1) -> 274.49 | G71: =OFFSET(InputPriceData!F$15,CalculationsAndCharts!$A71+$A$11,IF($C$7,8,0),1,1) -> 274.74 | H71: 275.0606471 | I71: -0.5931046012 | J71: 5.96381066 | K71: 2.3268479 | L71: 0.4386820098 | M71: -2.21 | N71: -0.9308674424 | O71: -1.517960507 | P71: 3.060159585 | Q71: 8.24910728 | R71: -0.4588226413 | S71: -0.4588226413 | T71: -0.4958189597 | U71: -1.23 | V71: 0.4343694523 | W71: 0.3217960544 | X71: 1.349828397 | Y71: 1.349828397 | Z71: 0.8197140332 | AC71: 1.349828397 | AD71: 0.8197140332 | AQ71: 54898500
A72: 40 | B72: =OFFSET(InputPriceData!B$15,CalculationsAndCharts!$A72+$A$11,0,1,1) -> 2018-06-21 | C72: =OFFSET(InputPriceData!G$15,CalculationsAndCharts!$A72+$A$11,IF($C$7,8,0),1,1) -> 71061400 | D72: =OFFSET(InputPriceData!C$15,CalculationsAndCharts!$A72+$A$11,IF($C$7,8,0),1,1) -> 275.96 | E72: =OFFSET(InputPriceData!D$15,CalculationsAndCharts!$A72+$A$11,IF($C$7,8,0),1,1) -> 275.98 | F72: =OFFSET(InputPriceData!E$15,CalculationsAndCharts!$A72+$A$11,IF($C$7,8,0),1,1) -> 273.68 | G72: =OFFSET(InputPriceData!F$15,CalculationsAndCharts!$A72+$A$11,IF($C$7,8,0),1,1) -> 274.24 | H72: 275.6537517 | I72: -0.5499184407 | J72: 7.013068832 | K72: 1.733743299 | L72: 0.6035713874 | M72: -1.89 | N72: 0.587093065 | O72: -1.774306942 | P72: 3.749784959 | Q72: 6.731146772 | R72: -0.2844557993 | S72: -0.2844557993 | T72: -0.292523516 | U72: -1.26 | V72: 0.5712641383 | W72: 0.3244153129 | X72: 1.760903741 | Y72: 1.760903741 | Z72: 1.377774169 | AC72: 1.760903741 | AD72: 1.377774169 | AQ72: 71061400
A73: 41 | B73: =OFFSET(InputPriceData!B$15,CalculationsAndCharts!$A73+$A$11,0,1,1) -> 2018-06-20 | C73: =OFFSET(InputPriceData!G$15,CalculationsAndCharts!$A73+$A$11,IF($C$7,8,0),1,1) -> 53785500 | D73: =OFFSET(InputPriceData!C$15,CalculationsAndCharts!$A73+$A$11,IF($C$7,8,0),1,1) -> 276.27 | E73: =OFFSET(InputPriceData!D$15,CalculationsAndCharts!$A73+$A$11,IF($C$7,8,0),1,1) -> 276.72 | F73: =OFFSET(InputPriceData!E$15,CalculationsAndCharts!$A73+$A$11,IF($C$7,8,0),1,1) -> 275.59 | G73: =OFFSET(InputPriceData!F$15,CalculationsAndCharts!$A73+$A$11,IF($C$7,8,0),1,1) -> 275.97 | H73: 276.2036701 | I73: -0.4887516016 | J73: 7.349890793 | K73: 1.183824858 | L73: 0.7225534793 | M73: -0.19 | N73: 2.361400007 | O73: -1.731128024 | P73: 4.648853898 | Q73: 4.95683983 | R73: -0.03206285153 | S73: -0.03206285153 | T73: -0.03207384546 | U73: -0.59 | V73: 0.6921426605 | W73: 0.3258307618 | X73: 2.124239764 | Y73: 1.999 | Z73: 4.146899804 | AC73: 2.124239764 | AD73: 4.146899804 | AQ73: 53785500
A74: 42 | B74: =OFFSET(InputPriceData!B$15,CalculationsAndCharts!$A74+$A$11,0,1,1) -> 2018-06-19 | C74: =OFFSET(InputPriceData!G$15,CalculationsAndCharts!$A74+$A$11,IF($C$7,8,0),1,1) -> 97531500 | D74: =OFFSET(InputPriceData!C$15,CalculationsAndCharts!$A74+$A$11,IF($C$7,8,0),1,1) -> 274 | E74: =OFFSET(InputPriceData!D$15,CalculationsAndCharts!$A74+$A$11,IF($C$7,8,0),1,1) -> 275.75 | F74: =OFFSET(InputPriceData!E$15,CalculationsAndCharts!$A74+$A$11,IF($C$7,8,0),1,1) -> 273.53 | G74: =OFFSET(InputPriceData!F$15,CalculationsAndCharts!$A74+$A$11,IF($C$7,8,0),1,1) -> 275.5 | H74: 276.6924217 | I74: -0.4548567679 | J74: 7.349890793 | K74: 0.7659384568 | L74: 0.8112482574 | M74: 1.63 | N74: 4.092528031 | O74: -1.63106614 | P74: 5.539938329 | Q74: 3.225711806 | R74: 0.2640108249 | S74: 0.2640108249 | T74: 0.2704148639 | U74: -1.63 | V74: 0.7985101952 | W74: 0.3254910346 | X74: 2.453247894 | Y74: 1.999 | Z74: 4.146899804 | AC74: 2.453247894 | AD74: 4.146899804 | AP74: 97531500
A75: 43 | B75: =OFFSET(InputPriceData!B$15,CalculationsAndCharts!$A75+$A$11,0,1,1) -> 2018-06-18 | C75: =OFFSET(InputPriceData!G$15,CalculationsAndCharts!$A75+$A$11,IF($C$7,8,0),1,1) -> 52917600 | D75: =OFFSET(InputPriceData!C$15,CalculationsAndCharts!$A75+$A$11,IF($C$7,8,0),1,1) -> 275.49 | E75: =OFFSET(InputPriceData!D$15,CalculationsAndCharts!$A75+$A$11,IF($C$7,8,0),1,1) -> 276.7 | F75: =OFFSET(InputPriceData!E$15,CalculationsAndCharts!$A75+$A$11,IF($C$7,8,0),1,1) -> 274.95 | G75: =OFFSET(InputPriceData!F$15,CalculationsAndCharts!$A75+$A$11,IF($C$7,8,0),1,1) -> 276.56 | H75: 277.1472785 | I75: -0.1801413813 | J75: 7.349890793 | K75: 1.011523118 | L75: 0.7580497439 | M75: 2.89 | N75: 5.723594171 | O75: -1.229399554 | P75: 6.668935054 | Q75: 1.594645666 | R75: 0.6140545558 | S75: 0.6140545558 | T75: 0.7154043133 | U75: -0.92 | V75: 0.8787265297 | W75: 0.3235679339 | X75: 2.71574046 | Y75: 1.999 | Z75: 4.146899804 | AC75: 2.71574046 | AD75: 4.146899804 | AP75: 52917600
A76: 44 | B76: =OFFSET(InputPriceData!B$15,CalculationsAndCharts!$A76+$A$11,0,1,1) -> 2018-06-15 | C76: =OFFSET(InputPriceData!G$15,CalculationsAndCharts!$A76+$A$11,IF($C$7,8,0),1,1) -> 120041600 | D76: =OFFSET(InputPriceData!C$15,CalculationsAndCharts!$A76+$A$11,IF($C$7,8,0),1,1) -> 276.6 | E76: =OFFSET(InputPriceData!D$15,CalculationsAndCharts!$A76+$A$11,IF($C$7,8,0),1,1) -> 277.51 | F76: =OFFSET(InputPriceData!E$15,CalculationsAndCharts!$A76+$A$11,IF($C$7,8,0),1,1) -> 275.35 | G76: =OFFSET(InputPriceData!F$15,CalculationsAndCharts!$A76+$A$11,IF($C$7,8,0),1,1) -> 277.13 | H76: 277.3274199 | I76: -0.02842415128 | J76: 7.349890793 | K76: 1.664016541 | L76: 0.6307890731 | M76: 4.75 | N76: 6.952993725 | O76: -0.3652461119 | P76: 7.962438643 | Q76: 0.3652461119 | R76: 0.912281475 | S76: 0.912281475 | T76: 1.540959594 | U76: 0.34 | V76: 0.9195285255 | W76: 0.3198419203 | X76: 2.874946863 | Y76: 1.999 | Z76: 4.146899804 | AC76: 2.874946863 | AD76: 4.146899804 | AP76: 120041600
A77: 45 | B77: =OFFSET(InputPriceData!B$15,CalculationsAndCharts!$A77+$A$11,0,1,1) -> 2018-06-14 | C77: =OFFSET(InputPriceData!G$15,CalculationsAndCharts!$A77+$A$11,IF($C$7,8,0),1,1) -> 77097600 | D77: =OFFSET(InputPriceData!C$15,CalculationsAndCharts!$A77+$A$11,IF($C$7,8,0),1,1) -> 277.76 | E77: =OFFSET(InputPriceData!D$15,CalculationsAndCharts!$A77+$A$11,IF($C$7,8,0),1,1) -> 278.08 | F77: =OFFSET(InputPriceData!E$15,CalculationsAndCharts!$A77+$A$11,IF($C$7,8,0),1,1) -> 276.82 | G77: =OFFSET(InputPriceData!F$15,CalculationsAndCharts!$A77+$A$11,IF($C$7,8,0),1,1) -> 277.48 | H77: 277.355844 | I77: -0.03165095583 | J77: 7.349890793 | K77: 1.727481039 | L77: 0.6193874017 | M77: 7.75 | N77: 7.318239837 | O77: 0.03921424459 | P77: 8.43502987 | Q77: 0 | R77: 1 | S77: 0.999 | T77: 3.800201167 | U77: -0.19 | V77: 0.9371391549 | W77: 0.3155782366 | X77: 2.969593737 | Y77: 1.999 | Z77: 4.146899804 | AC77: 2.969593737 | AD77: 4.146899804 | AQ77: 77097600
A78: 46 | B78: =OFFSET(InputPriceData!B$15,CalculationsAndCharts!$A78+$A$11,0,1,1) -> 2018-06-13 | C78: =OFFSET(InputPriceData!G$15,CalculationsAndCharts!$A78+$A$11,IF($C$7,8,0),1,1) -> 79070600 | D78: =OFFSET(InputPriceData!C$15,CalculationsAndCharts!$A78+$A$11,IF($C$7,8,0),1,1) -> 277.94 | E78: =OFFSET(InputPriceData!D$15,CalculationsAndCharts!$A78+$A$11,IF($C$7,8,0),1,1) -> 278.23 | F78: =OFFSET(InputPriceData!E$15,CalculationsAndCharts!$A78+$A$11,IF($C$7,8,0),1,1) -> 276.56 | G78: =OFFSET(InputPriceData!F$15,CalculationsAndCharts!$A78+$A$11,IF($C$7,8,0),1,1) -> 276.79 | H78: 277.387495 | I78: 0.1752810813 | J78: 7.585121325 | K78: 1.695830083 | L78: 0.6345568447 | M78: 5.4 | N78: 7.279025592 | O78: 0.8757225109 | P78: 8.469108685 | Q78: 0 | R78: 1 | S78: 0.999 | T78: 3.800201167 | U78: -0.52 | V78: 0.9353658812 | W78: 0.3152597391 | X78: 2.966969026 | Y78: 1.999 | Z78: 4.146899804 | AC78: 2.966969026 | AD78: 4.146899804 | AQ78: 79070600
A79: 47 | B79: =OFFSET(InputPriceData!B$15,CalculationsAndCharts!$A79+$A$11,0,1,1) -> 2018-06-12 | C79: =OFFSET(InputPriceData!G$15,CalculationsAndCharts!$A79+$A$11,IF($C$7,8,0),1,1) -> 72329000 | D79: =OFFSET(InputPriceData!C$15,CalculationsAndCharts!$A79+$A$11,IF($C$7,8,0),1,1) -> 277.78 | E79: =OFFSET(InputPriceData!D$15,CalculationsAndCharts!$A79+$A$11,IF($C$7,8,0),1,1) -> 278.08 | F79: =OFFSET(InputPriceData!E$15,CalculationsAndCharts!$A79+$A$11,IF($C$7,8,0),1,1) -> 276.95 | G79: =OFFSET(InputPriceData!F$15,CalculationsAndCharts!$A79+$A$11,IF($C$7,8,0),1,1) -> 277.67 | H79: 277.2122139 | I79: 0.5130433489 | J79: 7.735159806 | K79: 1.695830083 | L79: 0.6403707133 | M79: 9.85 | N79: 6.403303082 | O79: 1.345678153 | P79: 7.593386174 | Q79: 1.169398338 | R79: 0.7330989171 | S79: 0.7330989171 | T79: 0.9353941264 | U79: 0.72 | V79: 0.8975841937 | W79: 0.3252512598 | X79: 2.759664004 | Y79: 1.999 | Z79: 4.146899804 | AC79: 2.759664004 | AD79: 4.146899804 | AQ79: 72329000
A80: 48 | B80: =OFFSET(InputPriceData!B$15,CalculationsAndCharts!$A80+$A$11,0,1,1) -> 2018-06-11 | C80: =OFFSET(InputPriceData!G$15,CalculationsAndCharts!$A80+$A$11,IF($C$7,8,0),1,1) -> 58892500 | D80: =OFFSET(InputPriceData!C$15,CalculationsAndCharts!$A80+$A$11,IF($C$7,8,0),1,1) -> 277.2 | E80: =OFFSET(InputPriceData!D$15,CalculationsAndCharts!$A80+$A$11,IF($C$7,8,0),1,1) -> 278.12 | F80: =OFFSET(InputPriceData!E$15,CalculationsAndCharts!$A80+$A$11,IF($C$7,8,0),1,1) -> 277.07 | G80: =OFFSET(InputPriceData!F$15,CalculationsAndCharts!$A80+$A$11,IF($C$7,8,0),1,1) -> 277.31 | H80: 276.6991706 | I80: 0.7076560273 | J80: 7.573408448 | K80: 1.695830083 | L80: 0.6340950602 | M80: 6.38 | N80: 5.057624929 | O80: 0.7995446769 | P80: 6.247708022 | Q80: 3.430741479 | R80: 0.2910555604 | S80: 0.2910555604 | T80: 0.2997191338 | U80: 1.18 | V80: 0.8284214017 | W80: 0.3476573932 | X80: 2.382867207 | Y80: 1.999 | Z80: 4.146899804 | AC80: 2.382867207 | AD80: 4.146899804 | AP80: 58892500
A81: 49 | B81: =OFFSET(InputPriceData!B$15,CalculationsAndCharts!$A81+$A$11,0,1,1) -> 2018-06-08 | C81: =OFFSET(InputPriceData!G$15,CalculationsAndCharts!$A81+$A$11,IF($C$7,8,0),1,1) -> 72139700 | D81: =OFFSET(InputPriceData!C$15,CalculationsAndCharts!$A81+$A$11,IF($C$7,8,0),1,1) -> 275.61 | E81: =OFFSET(InputPriceData!D$15,CalculationsAndCharts!$A81+$A$11,IF($C$7,8,0),1,1) -> 277.01 | F81: =OFFSET(InputPriceData!E$15,CalculationsAndCharts!$A81+$A$11,IF($C$7,8,0),1,1) -> 275.42 | G81: =OFFSET(InputPriceData!F$15,CalculationsAndCharts!$A81+$A$11,IF($C$7,8,0),1,1) -> 276.95 | H81: 275.9915145 | I81: 0.9248559062 | J81: 6.912965069 | K81: 1.695830083 | L81: 0.6060238272 | M81: 5.37 | N81: 4.258080252 | O81: 0.689625374 | P81: 5.448163345 | Q81: 5.39458996 | R81: 0.004940939223 | S81: 0.004940939223 | T81: 0.004940979431 | U81: 0.79 | V81: 0.7454083519 | W81: 0.3812938816 | X81: 1.954944435 | Y81: 1.954944435 | Z81: 2.237412663 | AC81: 1.954944435 | AD81: 2.237412663 | AP81: 72139700
A82: 50 | B82: =OFFSET(InputPriceData!B$15,CalculationsAndCharts!$A82+$A$11,0,1,1) -> 2018-06-07 | C82: =OFFSET(InputPriceData!G$15,CalculationsAndCharts!$A82+$A$11,IF($C$7,8,0),1,1) -> 72969400 | D82: =OFFSET(InputPriceData!C$15,CalculationsAndCharts!$A82+$A$11,IF($C$7,8,0),1,1) -> 276.71 | E82: =OFFSET(InputPriceData!D$15,CalculationsAndCharts!$A82+$A$11,IF($C$7,8,0),1,1) -> 277.04 | F82: =OFFSET(InputPriceData!E$15,CalculationsAndCharts!$A82+$A$11,IF($C$7,8,0),1,1) -> 275.1 | G82: =OFFSET(InputPriceData!F$15,CalculationsAndCharts!$A82+$A$11,IF($C$7,8,0),1,1) -> 276.13 | H82: 275.0666586 | I82: 1.224388501 | J82: 5.988109162 | K82: 1.9400755 | L82: 0.5105877114 | M82: 3.99 | N82: 3.568454878 | O82: 0.8990689392 | P82: 4.758537971 | Q82: 6.881006943 | R82: -0.1823498245 | S82: -0.1823498245 | T82: -0.1844122636 | U82: 2.26 | V82: 0.648353245 | W82: 0.4251980484 | X82: 1.524826484 | Y82: 1.524826484 | Z82: 1.001953227 | AC82: 1.524826484 | AD82: 1.001953227 | AP82: =IF(G82>=D82,C82,NA()) ->  | AQ82: =IF(G82<D82,C82,NA()) -> 72969400
A83: 51 | B83: =OFFSET(InputPriceData!B$15,CalculationsAndCharts!$A83+$A$11,0,1,1) -> 2018-06-06 | C83: =OFFSET(InputPriceData!G$15,CalculationsAndCharts!$A83+$A$11,IF($C$7,8,0),1,1) -> 62732200 | D83: =OFFSET(InputPriceData!C$15,CalculationsAndCharts!$A83+$A$11,IF($C$7,8,0),1,1) -> 274.56 | E83: =OFFSET(InputPriceData!D$15,CalculationsAndCharts!$A83+$A$11,IF($C$7,8,0),1,1) -> 276.28 | F83: =OFFSET(InputPriceData!E$15,CalculationsAndCharts!$A83+$A$11,IF($C$7,8,0),1,1) -> 273.86 | G83: =OFFSET(InputPriceData!F$15,CalculationsAndCharts!$A83+$A$11,IF($C$7,8,0),1,1) -> 276.16 | H83: 273.8422701 | I83: 1.242376422 | J83: 4.763720661 | K83: 2.075844766 | L83: 0.3929892803 | M83: 4.77 | N83: 2.669385939 | O83: 0.8910844309 | P83: 3.859469031 | Q83: 7.760098452 | R83: -0.3356948893 | S83: -0.3356948893 | T83: -0.3492327019 | U83: 2.49 | V83: 0.5513233498 | W83: 0.478042168 | X83: 1.153294388 | Y83: 1.153294388 | Z83: 0.6574249774 | AC83: 1.153294388 | AD83: 0.6574249774 | AP83: 62732200
A84: 52 | B84: =OFFSET(InputPriceData!B$15,CalculationsAndCharts!$A84+$A$11,0,1,1) -> 2018-06-05 | C84: =OFFSET(InputPriceData!G$15,CalculationsAndCharts!$A84+$A$11,IF($C$7,8,0),1,1) -> 51135000 | D84: =OFFSET(InputPriceData!C$15,CalculationsAndCharts!$A84+$A$11,IF($C$7,8,0),1,1) -> 273.82 | E84: =OFFSET(InputPriceData!D$15,CalculationsAndCharts!$A84+$A$11,IF($C$7,8,0),1,1) -> 274.3 | F84: =OFFSET(InputPriceData!E$15,CalculationsAndCharts!$A84+$A$11,IF($C$7,8,0),1,1) -> 272.95 | G84: =OFFSET(InputPriceData!F$15,CalculationsAndCharts!$A84+$A$11,IF($C$7,8,0),1,1) -> 273.87 | H84: 272.5998937 | I84: 1.176209372 | J84: 3.521344239 | K84: 2.220003026 | L84: 0.2266612961 | M84: 1.72 | N84: 1.778301508 | O84: 1.128996725 | P84: 2.9683846 | Q84: 8.472949312 | R84: -0.481112146 | S84: -0.481112146 | T84: -0.5244303778 | U84: 1.49 | V84: 0.4804286773 | W84: 0.53649204 | X84: 0.8955001035 | Y84: 0.8955001035 | Z84: 0.4818825966 | AC84: 0.8955001035 | AD84: 0.4818825966 | AP84: 51135000
A85: 53 | B85: =OFFSET(InputPriceData!B$15,CalculationsAndCharts!$A85+$A$11,0,1,1) -> 2018-06-04 | C85: =OFFSET(InputPriceData!G$15,CalculationsAndCharts!$A85+$A$11,IF($C$7,8,0),1,1) -> 44165500 | D85: =OFFSET(InputPriceData!C$15,CalculationsAndCharts!$A85+$A$11,IF($C$7,8,0),1,1) -> 273.3 | E85: =OFFSET(InputPriceData!D$15,CalculationsAndCharts!$A85+$A$11,IF($C$7,8,0),1,1) -> 273.96 | F85: =OFFSET(InputPriceData!E$15,CalculationsAndCharts!$A85+$A$11,IF($C$7,8,0),1,1) -> 273.03 | G85: =OFFSET(InputPriceData!F$15,CalculationsAndCharts!$A85+$A$11,IF($C$7,8,0),1,1) -> 273.67 | H85: 271.4236843 | I85: 1.049258173 | J85: 2.814091775 | K85: 2.220003026 | L85: 0.1180130236 | M85: 3.55 | N85: 0.6493047831 | O85: 1.293503589 | P85: 1.839387876 | Q85: 9.301391429 | R85: -0.6697918834 | S85: -0.6697918834 | T85: -0.8103655825 | U85: 3.94 | V85: 0.4335113633 | W85: 0.5925500937 | X85: 0.7316028938 | Y85: 0.7316028938 | Z85: 0.3835672976 | AC85: 0.7316028938 | AD85: 0.3835672976 | AP85: 44165500
A86: 54 | B86: =OFFSET(InputPriceData!B$15,CalculationsAndCharts!$A86+$A$11,0,1,1) -> 2018-06-01 | C86: =OFFSET(InputPriceData!G$15,CalculationsAndCharts!$A86+$A$11,IF($C$7,8,0),1,1) -> 68905300 | D86: =OFFSET(InputPriceData!C$15,CalculationsAndCharts!$A86+$A$11,IF($C$7,8,0),1,1) -> 271.19 | E86: =OFFSET(InputPriceData!D$15,CalculationsAndCharts!$A86+$A$11,IF($C$7,8,0),1,1) -> 272.72 | F86: =OFFSET(InputPriceData!E$15,CalculationsAndCharts!$A86+$A$11,IF($C$7,8,0),1,1) -> 271.11 | G86: =OFFSET(InputPriceData!F$15,CalculationsAndCharts!$A86+$A$11,IF($C$7,8,0),1,1) -> 272.38 | H86: 270.3744262 | I86: 0.3368219606 | J86: 3.193541939 | K86: 2.220003026 | L86: 0.1798339017 | M86: 1.59 | N86: -0.6441988061 | O86: 0.4725912269 | P86: 0.5458842865 | Q86: 9.391553701 | R86: -0.8901358102 | S86: -0.8901358102 | T86: -1.422579499 | U86: 0.99 | V86: 0.4378117711 | W86: 0.6451666848 | X86: 0.6786025712 | Y86: 0.6786025712 | Z86: 0.3533026975 | AC86: 0.6786025712 | AD86: 0.3533026975 | AP86: 68905300
A87: 55 | B87: =OFFSET(InputPriceData!B$15,CalculationsAndCharts!$A87+$A$11,0,1,1) -> 2018-05-31 | C87: =OFFSET(InputPriceData!G$15,CalculationsAndCharts!$A87+$A$11,IF($C$7,8,0),1,1) -> 93519900 | D87: =OFFSET(InputPriceData!C$15,CalculationsAndCharts!$A87+$A$11,IF($C$7,8,0),1,1) -> 270.93 | E87: =OFFSET(InputPriceData!D$15,CalculationsAndCharts!$A87+$A$11,IF($C$7,8,0),1,1) -> 271.27 | F87: =OFFSET(InputPriceData!E$15,CalculationsAndCharts!$A87+$A$11,IF($C$7,8,0),1,1) -> 269.05 | G87: =OFFSET(InputPriceData!F$15,CalculationsAndCharts!$A87+$A$11,IF($C$7,8,0),1,1) -> 269.73 | H87: 270.0376042 | I87: -0.07086520042 | J87: 4.72867981 | K87: 2.220003026 | L87: 0.3610291105 | M87: -1.29 | N87: -1.116790033 | O87: 0.07329305968 | P87: 0.7523107901 | Q87: 9.391553701 | R87: -0.8516717587 | S87: -0.8516717587 | T87: -1.262208249 | U87: 1.91 | V87: 0.4990587368 | W87: 0.7003567632 | X87: 0.7125778789 | Y87: 0.7125778789 | Z87: 0.3726287832 | AC87: 0.7125778789 | AD87: 0.3726287832 | AQ87: 93519900
A88: 56 | B88: =OFFSET(InputPriceData!B$15,CalculationsAndCharts!$A88+$A$11,0,1,1) -> 2018-05-30 | C88: =OFFSET(InputPriceData!G$15,CalculationsAndCharts!$A88+$A$11,IF($C$7,8,0),1,1) -> 69678400 | D88: =OFFSET(InputPriceData!C$15,CalculationsAndCharts!$A88+$A$11,IF($C$7,8,0),1,1) -> 269.29 | E88: =OFFSET(InputPriceData!D$15,CalculationsAndCharts!$A88+$A$11,IF($C$7,8,0),1,1) -> 271.89 | F88: =OFFSET(InputPriceData!E$15,CalculationsAndCharts!$A88+$A$11,IF($C$7,8,0),1,1) -> 269.21 | G88: =OFFSET(InputPriceData!F$15,CalculationsAndCharts!$A88+$A$11,IF($C$7,8,0),1,1) -> 271.39 | H88: 270.1084694 | I88: -0.7004414296 | J88: 6.450327326 | K88: 2.149137826 | L88: 0.5001694203 | M88: 1.5 | N88: -1.190083093 | O88: -1.169398338 | P88: 0.9698017622 | Q88: 9.391553701 | R88: -0.8128040746 | S88: -0.8128040746 | T88: -1.13523717 | U88: 0.46 | V88: 0.6017499418 | W88: 0.7559693838 | X88: 0.7959977675 | Y88: 0.7959977675 | Z88: 0.4212689124 | AC88: 0.7959977675 | AD88: 0.4212689124 | AP88: 69678400
A89: 57 | B89: =OFFSET(InputPriceData!B$15,CalculationsAndCharts!$A89+$A$11,0,1,1) -> 2018-05-29 | C89: =OFFSET(InputPriceData!G$15,CalculationsAndCharts!$A89+$A$11,IF($C$7,8,0),1,1) -> 114128800 | D89: =OFFSET(InputPriceData!C$15,CalculationsAndCharts!$A89+$A$11,IF($C$7,8,0),1,1) -> 269.1 | E89: =OFFSET(InputPriceData!D$15,CalculationsAndCharts!$A89+$A$11,IF($C$7,8,0),1,1) -> 269.96 | F89: =OFFSET(InputPriceData!E$15,CalculationsAndCharts!$A89+$A$11,IF($C$7,8,0),1,1) -> 266.56 | G89: =OFFSET(InputPriceData!F$15,CalculationsAndCharts!$A89+$A$11,IF($C$7,8,0),1,1) -> 267.82 | H89: 270.8089108 | I89: -0.8326348037 | J89: 7.654738396 | K89: 1.448696396 | L89: 0.6817253203 | M89: -3.94 | N89: -0.02068475485 | O89: -2.261343141 | P89: 1.515872542 | Q89: 8.222155363 | R89: -0.6886695013 | S89: -0.6886695013 | T89: -0.845420588 | U89: -3.76 | V89: 0.7460579854 | W89: 0.8017091012 | X89: 0.9305844031 | Y89: 0.9305844031 | Z89: 0.504044765 | AC89: 0.9305844031 | AD89: 0.504044765 | AQ89: 114128800
A90: 58 | B90: =OFFSET(InputPriceData!B$15,CalculationsAndCharts!$A90+$A$11,0,1,1) -> 2018-05-25 | C90: =OFFSET(InputPriceData!G$15,CalculationsAndCharts!$A90+$A$11,IF($C$7,8,0),1,1) -> 56374800 | D90: =OFFSET(InputPriceData!C$15,CalculationsAndCharts!$A90+$A$11,IF($C$7,8,0),1,1) -> 270.93 | E90: =OFFSET(InputPriceData!D$15,CalculationsAndCharts!$A90+$A$11,IF($C$7,8,0),1,1) -> 271.64 | F90: =OFFSET(InputPriceData!E$15,CalculationsAndCharts!$A90+$A$11,IF($C$7,8,0),1,1) -> 270.37 | G90: =OFFSET(InputPriceData!F$15,CalculationsAndCharts!$A90+$A$11,IF($C$7,8,0),1,1) -> 270.93 | H90: 271.6415456 | I90: -0.09188864959 | J90: 8.718881248 | K90: 0.6160615925 | L90: 0.868009563 | M90: -0.7 | N90: 2.240658386 | O90: -1.963848481 | P90: 2.556411107 | Q90: 5.960812222 | R90: -0.3997078606 | S90: -0.3997078606 | T90: -0.4233011936 | U90: -1.21 | V90: 0.8602123154 | W90: 0.8326766055 | X90: 1.033068913 | Y90: 1.033068913 | Z90: 0.5716014999 | AC90: 1.033068913 | AD90: 0.5716014999 | AP90: 56374800
A91: 59 | B91: =OFFSET(InputPriceData!B$15,CalculationsAndCharts!$A91+$A$11,0,1,1) -> 2018-05-24 | C91: =OFFSET(InputPriceData!G$15,CalculationsAndCharts!$A91+$A$11,IF($C$7,8,0),1,1) -> 74295200 | D91: =OFFSET(InputPriceData!C$15,CalculationsAndCharts!$A91+$A$11,IF($C$7,8,0),1,1) -> 271.69 | E91: =OFFSET(InputPriceData!D$15,CalculationsAndCharts!$A91+$A$11,IF($C$7,8,0),1,1) -> 272 | F91: =OFFSET(InputPriceData!E$15,CalculationsAndCharts!$A91+$A$11,IF($C$7,8,0),1,1) -> 269.57 | G91: =OFFSET(InputPriceData!F$15,CalculationsAndCharts!$A91+$A$11,IF($C$7,8,0),1,1) -> 271.58 | H91: 271.7334343 | I91: 0.2352305322 | J91: 9.594536012 | K91: 0.5241729429 | L91: 0.8963952921 | M91: 0.78 | N91: 4.204506867 | O91: -1.486416984 | P91: 3.888473777 | Q91: 3.996963742 | R91: -0.01375826822 | S91: -0.01375826822 | T91: -0.01375913642 | U91: 0.19 | V91: 0.9105511265 | W91: 0.8506706378 | X91: 1.070392095 | Y91: 1.070392095 | Z91: 0.5973988307 | AC91: 1.070392095 | AD91: 0.5973988307 | AQ91: 74295200
A92: 60 | B92: =OFFSET(InputPriceData!B$15,CalculationsAndCharts!$A92+$A$11,0,1,1) -> 2018-05-23 | C92: =OFFSET(InputPriceData!G$15,CalculationsAndCharts!$A92+$A$11,IF($C$7,8,0),1,1) -> 61021700 | D92: =OFFSET(InputPriceData!C$15,CalculationsAndCharts!$A92+$A$11,IF($C$7,8,0),1,1) -> 269.96 | E92: =OFFSET(InputPriceData!D$15,CalculationsAndCharts!$A92+$A$11,IF($C$7,8,0),1,1) -> 272.17 | F92: =OFFSET(InputPriceData!E$15,CalculationsAndCharts!$A92+$A$11,IF($C$7,8,0),1,1) -> 269.78 | G92: =OFFSET(InputPriceData!F$15,CalculationsAndCharts!$A92+$A$11,IF($C$7,8,0),1,1) -> 272.14 | H92: 271.4982038 | I92: 0.325319562 | J92: 9.35930548 | K92: 0.678256087 | L92: 0.8648564031 | M92: 3.84 | N92: 5.690923851 | O92: -0.8790915083 | P92: 6.151761372 | Q92: 2.510546758 | R92: 0.420351546 | S92: 0.420351546 | T92: 0.4481189408 | U92: -0.01 | V92: 0.9342538811 | W92: 0.8560823133 | X92: 1.091313144 | Y92: 1.091313144 | Z92: 0.6121753519 | AC92: 1.091313144 | AD92: 0.6121753519 | AP92: 61021700
A93: 61 | B93: =OFFSET(InputPriceData!B$15,CalculationsAndCharts!$A93+$A$11,0,1,1) -> 2018-05-22 | C93: =OFFSET(InputPriceData!G$15,CalculationsAndCharts!$A93+$A$11,IF($C$7,8,0),1,1) -> 52966400 | D93: =OFFSET(InputPriceData!C$15,CalculationsAndCharts!$A93+$A$11,IF($C$7,8,0),1,1) -> 272.74 | E93: =OFFSET(InputPriceData!D$15,CalculationsAndCharts!$A93+$A$11,IF($C$7,8,0),1,1) -> 273.02 | F93: =OFFSET(InputPriceData!E$15,CalculationsAndCharts!$A93+$A$11,IF($C$7,8,0),1,1) -> 271.02 | G93: =OFFSET(InputPriceData!F$15,CalculationsAndCharts!$A93+$A$11,IF($C$7,8,0),1,1) -> 271.39 | H93: 271.1728842 | I93: 0.3512919913 | J93: 9.033985918 | K93: 1.493043084 | L93: 0.7163410335 | M93: 5.66 | N93: 6.570015359 | O93: -0.7128508604 | P93: 9.030090415 | Q93: 1.63145525 | R93: 0.6939552105 | S93: 0.6939552105 | T93: 0.8555449862 | U93: 1.27 | V93: 0.9405808865 | W93: 0.8505749738 | X93: 1.10581773 | Y93: 1.10581773 | Z93: 0.6225613413 | AC93: 1.10581773 | AD93: 0.6225613413 | AQ93: 52966400
A94: 62 | B94: =OFFSET(InputPriceData!B$15,CalculationsAndCharts!$A94+$A$11,0,1,1) -> 2018-05-21 | C94: =OFFSET(InputPriceData!G$15,CalculationsAndCharts!$A94+$A$11,IF($C$7,8,0),1,1) -> 58025900 | D94: =OFFSET(InputPriceData!C$15,CalculationsAndCharts!$A94+$A$11,IF($C$7,8,0),1,1) -> 271.79 | E94: =OFFSET(InputPriceData!D$15,CalculationsAndCharts!$A94+$A$11,IF($C$7,8,0),1,1) -> 272.76 | F94: =OFFSET(InputPriceData!E$15,CalculationsAndCharts!$A94+$A$11,IF($C$7,8,0),1,1) -> 271.35 | G94: =OFFSET(InputPriceData!F$15,CalculationsAndCharts!$A94+$A$11,IF($C$7,8,0),1,1) -> 272.15 | H94: 270.8215922 | I94: 0.04721264764 | J94: 8.682693927 | K94: 1.927985376 | L94: 0.6365952979 | M94: 6.42 | N94: 7.282866219 | O94: -0.8284421168 | P94: 11.62258501 | Q94: 0.9186043892 | R94: 0.8535060176 | S94: 0.8535060176 | T94: 1.268924959 | U94: 1.36 | V94: 0.9399206878 | W94: 0.836345122 | X94: 1.123843092 | Y94: 1.123843092 | Z94: 0.6356370447 | AC94: 1.123843092 | AD94: 0.6356370447 | AP94: 58025900
A95: 63 | B95: =OFFSET(InputPriceData!B$15,CalculationsAndCharts!$A95+$A$11,0,1,1) -> 2018-05-18 | C95: =OFFSET(InputPriceData!G$15,CalculationsAndCharts!$A95+$A$11,IF($C$7,8,0),1,1) -> 64368000 | D95: =OFFSET(InputPriceData!C$15,CalculationsAndCharts!$A95+$A$11,IF($C$7,8,0),1,1) -> 270.41 | E95: =OFFSET(InputPriceData!D$15,CalculationsAndCharts!$A95+$A$11,IF($C$7,8,0),1,1) -> 270.81 | F95: =OFFSET(InputPriceData!E$15,CalculationsAndCharts!$A95+$A$11,IF($C$7,8,0),1,1) -> 269.72 | G95: =OFFSET(InputPriceData!F$15,CalculationsAndCharts!$A95+$A$11,IF($C$7,8,0),1,1) -> 270.12 | H95: 270.7743796 | I95: -0.2442454165 | J95: 8.635481279 | K95: 2.005099247 | L95: 0.623122208 | M95: 5.29 | N95: 8.111308336 | O95: -0.09016227242 | P95: 13.51655882 | Q95: 0.09016227242 | R95: 0.9867473917 | S95: 0.9867473917 | T95: 2.505029859 | U95: -0.9 | V95: 0.949434902 | W95: 0.8162524967 | X95: 1.163163244 | Y95: 1.163163244 | Z95: 0.6648494078 | AC95: 1.163163244 | AD95: 0.6648494078 | AQ95: 64368000
A96: 64 | B96: =OFFSET(InputPriceData!B$15,CalculationsAndCharts!$A96+$A$11,0,1,1) -> 2018-05-17 | C96: =OFFSET(InputPriceData!G$15,CalculationsAndCharts!$A96+$A$11,IF($C$7,8,0),1,1) -> 56536400 | D96: =OFFSET(InputPriceData!C$15,CalculationsAndCharts!$A96+$A$11,IF($C$7,8,0),1,1) -> 270.72 | E96: =OFFSET(InputPriceData!D$15,CalculationsAndCharts!$A96+$A$11,IF($C$7,8,0),1,1) -> 272.01 | F96: =OFFSET(InputPriceData!E$15,CalculationsAndCharts!$A96+$A$11,IF($C$7,8,0),1,1) -> 269.92 | G96: =OFFSET(InputPriceData!F$15,CalculationsAndCharts!$A96+$A$11,IF($C$7,8,0),1,1) -> 270.79 | H96: 271.018625 | I96: -0.1357692663 | J96: 9.023651051 | K96: 1.760853831 | L96: 0.6734474415 | M96: 9.34 | N96: 8.201470609 | O96: 0.6790177304 | P96: 13.68319436 | Q96: 0 | R96: 1 | S96: 0.999 | T96: 3.800201167 | U96: 0.9 | V96: 0.941485031 | W96: 0.7962734945 | X96: 1.182363896 | Y96: 1.182363896 | Z96: 0.6794810928 | AC96: 1.182363896 | AD96: 0.6794810928 | AP96: 56536400
A97: 65 | B97: =OFFSET(InputPriceData!B$15,CalculationsAndCharts!$A97+$A$11,0,1,1) -> 2018-05-16 | C97: =OFFSET(InputPriceData!G$15,CalculationsAndCharts!$A97+$A$11,IF($C$7,8,0),1,1) -> 53942600 | D97: =OFFSET(InputPriceData!C$15,CalculationsAndCharts!$A97+$A$11,IF($C$7,8,0),1,1) -> 269.93 | E97: =OFFSET(InputPriceData!D$15,CalculationsAndCharts!$A97+$A$11,IF($C$7,8,0),1,1) -> 271.54 | F97: =OFFSET(InputPriceData!E$15,CalculationsAndCharts!$A97+$A$11,IF($C$7,8,0),1,1) -> 269.9 | G97: =OFFSET(InputPriceData!F$15,CalculationsAndCharts!$A97+$A$11,IF($C$7,8,0),1,1) -> 271.02 | H97: 271.1543942 | I97: -0.1441582601 | J97: 9.563548212 | K97: 1.625084564 | L97: 0.7095115021 | M97: 9 | N97: 7.522452878 | O97: 0.2907840318 | P97: 13.00417662 | Q97: 1.715344891 | R97: 0.7669292594 | S97: 0.7669292594 | T97: 1.012828211 | U97: -0.74 | V97: 0.9056070505 | W97: 0.7791765292 | X97: 1.162261717 | Y97: 1.162261717 | Z97: 0.6641685217 | AC97: 1.162261717 | AD97: 0.6641685217 | AP97: 53942600
A98: 66 | B98: =OFFSET(InputPriceData!B$15,CalculationsAndCharts!$A98+$A$11,0,1,1) -> 2018-05-15 | C98: =OFFSET(InputPriceData!G$15,CalculationsAndCharts!$A98+$A$11,IF($C$7,8,0),1,1) -> 87036100 | D98: =OFFSET(InputPriceData!C$15,CalculationsAndCharts!$A98+$A$11,IF($C$7,8,0),1,1) -> 270.38 | E98: =OFFSET(InputPriceData!D$15,CalculationsAndCharts!$A98+$A$11,IF($C$7,8,0),1,1) -> 270.4 | F98: =OFFSET(InputPriceData!E$15,CalculationsAndCharts!$A98+$A$11,IF($C$7,8,0),1,1) -> 268.82 | G98: =OFFSET(InputPriceData!F$15,CalculationsAndCharts!$A98+$A$11,IF($C$7,8,0),1,1) -> 269.89 | H98: =$D$18*(G98+G99)/2+$E$18*H99+$F$18*H100 -> 271.2985525 | I98: =H98-H99 -> 0.4689569081 | J98: =SUMIF(OFFSET($I98,0,0,$C$16,1),">0") -> 9.563548212 | K98: =-SUMIF(OFFSET($I98,0,0,$C$16,1),"<0") -> 2.022566383 | L98: =(J98-K98)/(J98+K98) -> 0.6508637358 | M98: =G98-OFFSET(G98,$C$19,0,1,1) -> 6.09 | N98: =$D$21*(M98+M99)/2+$E$21*N99+$F$21*N100 -> 7.231668846 | O98: =N98-N99 -> 0.5460707797 | P98: =SUMIF(OFFSET($O98,0,0,$C$19,1),">0") -> 12.71339259 | Q98: =-SUMIF(OFFSET($O98,0,0,$C$19,1),"<0") -> 3.77021757 | R98: =(P98-Q98)/(P98+Q98) -> 0.5425495346 | S98: =IF(R98<-0.999,-0.999,IF(R98> 0.999,0.999,R98)) -> 0.5425495346 | T98: =0.5*LN((1+S98)/(1-S98)) -> 0.607761631 | U98: -1.74 | V98: 0.8380490187 | W98: =_xlfn.STDEV.P(OFFSET(V98,0,0,$A$24,1)) -> 0.7668392379 | X98: =V98/W98 -> 1.09286142 | Y98: =IF(X98<-1.999,-1.999,IF(X98>1.999, 1.999,X98)) -> 1.09286142 | Z98: =0.5*LN((1+Y98/2)/(1-Y98/2)) -> 0.61327837 | AC98: =IF(OR($R$9=1,$R$9=3),IF($R$3=1,L98,X98),NA()) -> 1.09286142 | AD98: =IF(OR($R$9=2,$R$9=3),IF($R$3=1,T98,Z98),NA()) -> 0.61327837 | AQ98: 87036100
A99: 67 | B99: =OFFSET(InputPriceData!B$15,CalculationsAndCharts!$A99+$A$11,0,1,1) -> 2018-05-14 | C99: =OFFSET(InputPriceData!G$15,CalculationsAndCharts!$A99+$A$11,IF($C$7,8,0),1,1) -> 54790600 | D99: =OFFSET(InputPriceData!C$15,CalculationsAndCharts!$A99+$A$11,IF($C$7,8,0),1,1) -> 272.12 | E99: =OFFSET(InputPriceData!D$15,CalculationsAndCharts!$A99+$A$11,IF($C$7,8,0),1,1) -> 272.85 | F99: =OFFSET(InputPriceData!E$15,CalculationsAndCharts!$A99+$A$11,IF($C$7,8,0),1,1) -> 271.14 | G99: =OFFSET(InputPriceData!F$15,CalculationsAndCharts!$A99+$A$11,IF($C$7,8,0),1,1) -> 271.76 | H99: 270.8295956 | I99: 1.428708337 | J99: 9.094591304 | K99: 3.696484356 | L99: 0.4220213445 | M99: 8.43 | N99: 6.685598067 | O99: 1.040538565 | P99: 12.16732181 | Q99: 5.217018279 | R99: 0.399802552 | S99: 0.399802552 | T99: 0.4234138952 | U99: 0.96 | V99: 0.6964097568 | W99: 0.7613065111 | X99: 0.9147560761 | Y99: 0.9147560761 | Z99: 0.4939906806 | AC99: 0.9147560761 | AD99: 0.4939906806 | AQ99: 54790600
A100: 68 | B100: =OFFSET(InputPriceData!B$15,CalculationsAndCharts!$A100+$A$11,0,1,1) -> 2018-05-11 | C100: =OFFSET(InputPriceData!G$15,CalculationsAndCharts!$A100+$A$11,IF($C$7,8,0),1,1) -> 59871500 | D100: =OFFSET(InputPriceData!C$15,CalculationsAndCharts!$A100+$A$11,IF($C$7,8,0),1,1) -> 270.94 | E100: =OFFSET(InputPriceData!D$15,CalculationsAndCharts!$A100+$A$11,IF($C$7,8,0),1,1) -> 271.93 | F100: =OFFSET(InputPriceData!E$15,CalculationsAndCharts!$A100+$A$11,IF($C$7,8,0),1,1) -> 270.37 | G100: =OFFSET(InputPriceData!F$15,CalculationsAndCharts!$A100+$A$11,IF($C$7,8,0),1,1) -> 271.63 | H100: 269.4008873 | I100: 1.871959831 | J100: 7.665882967 | K100: 5.224836095 | L100: 0.1893646786 | M100: 6.26 | N100: 5.645059502 | O100: 1.33206267 | P100: 11.12678325 | Q100: 5.605713591 | R100: 0.3299608965 | S100: 0.3299608965 | T100: 0.3427843727 | U100: 3.33 | V100: 0.4895979222 | W100: 0.7634398554 | X100: 0.6413051647 | Y100: 0.6413051647 | Z100: 0.3323743083 | AC100: 0.6413051647 | AD100: 0.3323743083 | AP100: 59871500
A101: 69 | B101: =OFFSET(InputPriceData!B$15,CalculationsAndCharts!$A101+$A$11,0,1,1) -> 2018-05-10 | C101: =OFFSET(InputPriceData!G$15,CalculationsAndCharts!$A101+$A$11,IF($C$7,8,0),1,1) -> 72063900 | D101: =OFFSET(InputPriceData!C$15,CalculationsAndCharts!$A101+$A$11,IF($C$7,8,0),1,1) -> 269.13 | E101: =OFFSET(InputPriceData!D$15,CalculationsAndCharts!$A101+$A$11,IF($C$7,8,0),1,1) -> 271.17 | F101: =OFFSET(InputPriceData!E$15,CalculationsAndCharts!$A101+$A$11,IF($C$7,8,0),1,1) -> 269.01 | G101: =OFFSET(InputPriceData!F$15,CalculationsAndCharts!$A101+$A$11,IF($C$7,8,0),1,1) -> 270.8 | H101: 267.5289274 | I101: 1.721647516 | J101: 5.793923136 | K101: 6.243155146 | L101: -0.03732068531 | M101: 5.68 | N101: 4.312996831 | O101: 2.263287595 | P101: 9.794720578 | Q101: 5.905578737 | R101: 0.2477113183 | S101: 0.2477113183 | T101: 0.2529730356 | U101: 5.07 | V101: 0.2769792408 | W101: 0.7727591152 | X101: 0.3584289533 | Y101: 0.3584289533 | Z101: 0.1811709805 | AC101: 0.3584289533 | AD101: 0.1811709805 | AP101: 72063900
A102: 70 | B102: =OFFSET(InputPriceData!B$15,CalculationsAndCharts!$A102+$A$11,0,1,1) -> 2018-05-09 | C102: =OFFSET(InputPriceData!G$15,CalculationsAndCharts!$A102+$A$11,IF($C$7,8,0),1,1) -> 59666100 | D102: =OFFSET(InputPriceData!C$15,CalculationsAndCharts!$A102+$A$11,IF($C$7,8,0),1,1) -> 266.48 | E102: =OFFSET(InputPriceData!D$15,CalculationsAndCharts!$A102+$A$11,IF($C$7,8,0),1,1) -> 268.66 | F102: =OFFSET(InputPriceData!E$15,CalculationsAndCharts!$A102+$A$11,IF($C$7,8,0),1,1) -> 265.9 | G102: =OFFSET(InputPriceData!F$15,CalculationsAndCharts!$A102+$A$11,IF($C$7,8,0),1,1) -> 268.3 | H102: 265.8072799 | I102: 1.20441107 | J102: 4.07227562 | K102: 6.563873824 | L102: -0.2342575401 | M102: 5.85 | N102: 2.049709236 | O102: 2.878329043 | P102: 7.531432983 | Q102: 7.322352808 | R102: 0.01407588465 | S102: 0.01407588465 | T102: 0.01407681439 | U102: 2.57 | V102: 0.1196136792 | W102: 0.786395992 | X102: 0.1521036227 | Y102: 0.1521036227 | Z102: 0.07619894709 | AC102: 0.1521036227 | AD102: 0.07619894709 | AP102: 59666100
A103: 71 | B103: =OFFSET(InputPriceData!B$15,CalculationsAndCharts!$A103+$A$11,0,1,1) -> 2018-05-08 | C103: =OFFSET(InputPriceData!G$15,CalculationsAndCharts!$A103+$A$11,IF($C$7,8,0),1,1) -> 67499200 | D103: =OFFSET(InputPriceData!C$15,CalculationsAndCharts!$A103+$A$11,IF($C$7,8,0),1,1) -> 265.31 | E103: =OFFSET(InputPriceData!D$15,CalculationsAndCharts!$A103+$A$11,IF($C$7,8,0),1,1) -> 266.13 | F103: =OFFSET(InputPriceData!E$15,CalculationsAndCharts!$A103+$A$11,IF($C$7,8,0),1,1) -> 263.96 | G103: =OFFSET(InputPriceData!F$15,CalculationsAndCharts!$A103+$A$11,IF($C$7,8,0),1,1) -> 265.73 | H103: 264.6028688 | I103: 1.064142852 | J103: 3.768422444 | K103: 6.563873824 | L103: -0.2705547062 | M103: 3.93 | N103: -0.8286198066 | O103: 2.592494591 | P103: 4.65310394 | Q103: 9.779817652 | R103: -0.3552096974 | S103: -0.3552096974 | T103: -0.371393164 | U103: 0.9 | V103: 0.0251065484 | W103: 0.7991053028 | X103: 0.03141832285 | Y103: 0.03141832285 | Z103: 0.01571045384 | AC103: 0.03141832285 | AD103: 0.01571045384 | AP103: 67499200
A104: 72 | B104: =OFFSET(InputPriceData!B$15,CalculationsAndCharts!$A104+$A$11,0,1,1) -> 2018-05-07 | C104: =OFFSET(InputPriceData!G$15,CalculationsAndCharts!$A104+$A$11,IF($C$7,8,0),1,1) -> 55304900 | D104: =OFFSET(InputPriceData!C$15,CalculationsAndCharts!$A104+$A$11,IF($C$7,8,0),1,1) -> 265.7 | E104: =OFFSET(InputPriceData!D$15,CalculationsAndCharts!$A104+$A$11,IF($C$7,8,0),1,1) -> 266.82 | F104: =OFFSET(InputPriceData!E$15,CalculationsAndCharts!$A104+$A$11,IF($C$7,8,0),1,1) -> 264.92 | G104: =OFFSET(InputPriceData!F$15,CalculationsAndCharts!$A104+$A$11,IF($C$7,8,0),1,1) -> 265.73 | H104: 263.538726 | I104: 0.8756547644 | J104: 4.324209979 | K104: 6.563873824 | L104: -0.2056986229 | M104: 0.35 | N104: -3.421114398 | O104: 1.893973815 | P104: 2.060609349 | Q104: 11.39068164 | R104: -0.6936190956 | S104: -0.6936190956 | T104: -0.8548969407 | U104: 4.28 | V104: -0.04577422203 | W104: 0.807002406 | X104: -0.0567212956 | Y104: -0.0567212956 | Z104: -0.02836825521 | AC104: -0.0567212956 | AD104: -0.02836825521 | AP104: 55304900
A105: 73 | B105: =OFFSET(InputPriceData!B$15,CalculationsAndCharts!$A105+$A$11,0,1,1) -> 2018-05-04 | C105: =OFFSET(InputPriceData!G$15,CalculationsAndCharts!$A105+$A$11,IF($C$7,8,0),1,1) -> 91222100 | D105: =OFFSET(InputPriceData!C$15,CalculationsAndCharts!$A105+$A$11,IF($C$7,8,0),1,1) -> 260.35 | E105: =OFFSET(InputPriceData!D$15,CalculationsAndCharts!$A105+$A$11,IF($C$7,8,0),1,1) -> 265.6 | F105: =OFFSET(InputPriceData!E$15,CalculationsAndCharts!$A105+$A$11,IF($C$7,8,0),1,1) -> 259.98 | G105: =OFFSET(InputPriceData!F$15,CalculationsAndCharts!$A105+$A$11,IF($C$7,8,0),1,1) -> 264.83 | H105: 262.6630712 | I105: -0.1540831441 | J105: 4.818242052 | K105: 6.563873824 | L105: -0.1533661923 | M105: -0.59 | N105: -5.315088213 | O105: 0.1666355338 | P105: 0.1666355338 | Q105: 11.75227713 | R105: -0.9720384672 | S105: -0.9720384672 | T105: -2.127996652 | U105: 2.81 | V105: -0.06163174737 | W105: 0.8106319974 | X105: -0.07602925565 | Y105: -0.07602925565 | Z105: -0.03803295551 | AC105: -0.07602925565 | AD105: -0.03803295551 | AP105: 91222100
A106: 74 | B106: =OFFSET(InputPriceData!B$15,CalculationsAndCharts!$A106+$A$11,0,1,1) -> 2018-05-03 | C106: =OFFSET(InputPriceData!G$15,CalculationsAndCharts!$A106+$A$11,IF($C$7,8,0),1,1) -> 136311500 | D106: =OFFSET(InputPriceData!C$15,CalculationsAndCharts!$A106+$A$11,IF($C$7,8,0),1,1) -> 261.09 | E106: =OFFSET(InputPriceData!D$15,CalculationsAndCharts!$A106+$A$11,IF($C$7,8,0),1,1) -> 262.18 | F106: =OFFSET(InputPriceData!E$15,CalculationsAndCharts!$A106+$A$11,IF($C$7,8,0),1,1) -> 257.89 | G106: =OFFSET(InputPriceData!F$15,CalculationsAndCharts!$A106+$A$11,IF($C$7,8,0),1,1) -> 261.45 | H106: 262.8171544 | I106: -0.8147869967 | J106: 5.595107137 | K106: 6.40979068 | L106: -0.06786259707 | M106: -6.24 | N106: -5.481723747 | O106: -1.715344891 | P106: 0 | Q106: 12.77963843 | R106: -1 | S106: -0.999 | T106: -3.800201167 | U106: -2.35 | V106: 0.01797928265 | W106: 0.8122140287 | X106: 0.02213613901 | Y106: 0.02213613901 | Z106: 0.01106852149 | AC106: 0.02213613901 | AD106: 0.01106852149 | AP106: 136311500
A107: 75 | B107: =OFFSET(InputPriceData!B$15,CalculationsAndCharts!$A107+$A$11,0,1,1) -> 2018-05-02 | C107: =OFFSET(InputPriceData!G$15,CalculationsAndCharts!$A107+$A$11,IF($C$7,8,0),1,1) -> 86368900 | D107: =OFFSET(InputPriceData!C$15,CalculationsAndCharts!$A107+$A$11,IF($C$7,8,0),1,1) -> 263.58 | E107: =OFFSET(InputPriceData!D$15,CalculationsAndCharts!$A107+$A$11,IF($C$7,8,0),1,1) -> 264.49 | F107: =OFFSET(InputPriceData!E$15,CalculationsAndCharts!$A107+$A$11,IF($C$7,8,0),1,1) -> 261.59 | G107: =OFFSET(InputPriceData!F$15,CalculationsAndCharts!$A107+$A$11,IF($C$7,8,0),1,1) -> 262.02 | H107: 263.6319414 | I107: -0.4349422919 | J107: 6.434869443 | K107: 5.595003683 | L107: 0.0698150139 | M107: -7.16 | N107: -3.766378856 | O107: -2.05487268 | P107: 0 | Q107: 11.76740248 | R107: -1 | S107: -0.999 | T107: -3.800201167 | U107: -1.31 | V107: 0.123234408 | W107: 0.8124036754 | X107: 0.151691101 | Y107: 0.151691101 | Z107: 0.07599148957 | AC107: 0.151691101 | AD107: 0.07599148957 | AQ107: 86368900
A108: 76 | B108: =OFFSET(InputPriceData!B$15,CalculationsAndCharts!$A108+$A$11,0,1,1) -> 2018-05-01 | C108: =OFFSET(InputPriceData!G$15,CalculationsAndCharts!$A108+$A$11,IF($C$7,8,0),1,1) -> 74203400 | D108: =OFFSET(InputPriceData!C$15,CalculationsAndCharts!$A108+$A$11,IF($C$7,8,0),1,1) -> 262.69 | E108: =OFFSET(InputPriceData!D$15,CalculationsAndCharts!$A108+$A$11,IF($C$7,8,0),1,1) -> 263.91 | F108: =OFFSET(InputPriceData!E$15,CalculationsAndCharts!$A108+$A$11,IF($C$7,8,0),1,1) -> 260.94 | G108: =OFFSET(InputPriceData!F$15,CalculationsAndCharts!$A108+$A$11,IF($C$7,8,0),1,1) -> 263.8 | H108: 264.0668837 | I108: -0.07711387156 | J108: 7.310003435 | K108: 5.160061391 | L108: 0.1724082491 | M108: -5.18 | N108: -1.711506176 | O108: -1.446800709 | P108: 1.069256948 | Q108: 9.7125298 | R108: -0.8016549626 | S108: -0.8016549626 | T108: -1.103226409 | U108: -1.57 | V108: 0.2008288975 | W108: 0.8110352889 | X108: 0.2476204183 | Y108: 0.2476204183 | Z108: 0.1244487197 | AC108: 0.2476204183 | AD108: 0.1244487197 | AP108: 74203400
A109: 77 | B109: =OFFSET(InputPriceData!B$15,CalculationsAndCharts!$A109+$A$11,0,1,1) -> 2018-04-30 | C109: =OFFSET(InputPriceData!G$15,CalculationsAndCharts!$A109+$A$11,IF($C$7,8,0),1,1) -> 82182300 | D109: =OFFSET(InputPriceData!C$15,CalculationsAndCharts!$A109+$A$11,IF($C$7,8,0),1,1) -> 266.07 | E109: =OFFSET(InputPriceData!D$15,CalculationsAndCharts!$A109+$A$11,IF($C$7,8,0),1,1) -> 266.69 | F109: =OFFSET(InputPriceData!E$15,CalculationsAndCharts!$A109+$A$11,IF($C$7,8,0),1,1) -> 263.25 | G109: =OFFSET(InputPriceData!F$15,CalculationsAndCharts!$A109+$A$11,IF($C$7,8,0),1,1) -> 263.33 | H109: 264.1439975 | I109: 0.3881697723 | J109: 8.093550306 | K109: 5.08294752 | L109: 0.2284827749 | M109: -2.8 | N109: -0.2647054679 | O109: -0.3886953123 | P109: 3.070721105 | Q109: 8.265729091 | R109: -0.458257029 | S109: -0.458257029 | T109: -0.49510276 | U109: -1.79 | V109: 0.2524943777 | W109: 0.8084533291 | X109: 0.3123178156 | Y109: 0.3123178156 | Z109: 0.1574471529 | AC109: 0.3123178156 | AD109: 0.1574471529 | AQ109: 82182300
A110: 78 | B110: =OFFSET(InputPriceData!B$15,CalculationsAndCharts!$A110+$A$11,0,1,1) -> 2018-04-27 | C110: =OFFSET(InputPriceData!G$15,CalculationsAndCharts!$A110+$A$11,IF($C$7,8,0),1,1) -> 57053600 | D110: =OFFSET(InputPriceData!C$15,CalculationsAndCharts!$A110+$A$11,IF($C$7,8,0),1,1) -> 265.81 | E110: =OFFSET(InputPriceData!D$15,CalculationsAndCharts!$A110+$A$11,IF($C$7,8,0),1,1) -> 266.14 | F110: =OFFSET(InputPriceData!E$15,CalculationsAndCharts!$A110+$A$11,IF($C$7,8,0),1,1) -> 264.31 | G110: =OFFSET(InputPriceData!F$15,CalculationsAndCharts!$A110+$A$11,IF($C$7,8,0),1,1) -> 265.37 | H110: 263.7558278 | I110: 0.5398971609 | J110: 7.787892782 | K110: 5.08294752 | L110: 0.2101607353 | M110: 1.41 | N110: 0.1239898445 | O110: -0.2998651454 | P110: 4.133749882 | Q110: 7.877033779 | R110: -0.3116602548 | S110: -0.3116602548 | T110: -0.3223832261 | U110: 2.92 | V110: 0.2637426561 | W110: 0.8052514165 | X110: 0.3275283355 | Y110: 0.3275283355 | Z110: 0.1652521667 | AC110: 0.3275283355 | AD110: 0.1652521667 | AQ110: 57053600
A111: 79 | B111: =OFFSET(InputPriceData!B$15,CalculationsAndCharts!$A111+$A$11,0,1,1) -> 2018-04-26 | C111: =OFFSET(InputPriceData!G$15,CalculationsAndCharts!$A111+$A$11,IF($C$7,8,0),1,1) -> 67731900 | D111: =OFFSET(InputPriceData!C$15,CalculationsAndCharts!$A111+$A$11,IF($C$7,8,0),1,1) -> 263.61 | E111: =OFFSET(InputPriceData!D$15,CalculationsAndCharts!$A111+$A$11,IF($C$7,8,0),1,1) -> 266.06 | F111: =OFFSET(InputPriceData!E$15,CalculationsAndCharts!$A111+$A$11,IF($C$7,8,0),1,1) -> 263.11 | G111: =OFFSET(InputPriceData!F$15,CalculationsAndCharts!$A111+$A$11,IF($C$7,8,0),1,1) -> 265.12 | H111: 263.2159306 | I111: -0.5416400791 | J111: 7.247995621 | K111: 5.739671078 | L111: 0.116135144 | M111: 0.38 | N111: 0.4238549898 | O111: -1.416774071 | P111: 5.176424909 | Q111: 7.577168634 | R111: -0.1882405705 | S111: -0.1882405705 | T111: -0.1905124763 | U111: 3.32 | V111: 0.2860922818 | W111: 0.8023526646 | X111: 0.3565667498 | Y111: 0.3565667498 | Z111: 0.180209147 | AC111: 0.3565667498 | AD111: 0.180209147 | AP111: 67731900
A112: 80 | B112: =OFFSET(InputPriceData!B$15,CalculationsAndCharts!$A112+$A$11,0,1,1) -> 2018-04-25 | C112: =OFFSET(InputPriceData!G$15,CalculationsAndCharts!$A112+$A$11,IF($C$7,8,0),1,1) -> 103840900 | D112: =OFFSET(InputPriceData!C$15,CalculationsAndCharts!$A112+$A$11,IF($C$7,8,0),1,1) -> 261.73 | E112: =OFFSET(InputPriceData!D$15,CalculationsAndCharts!$A112+$A$11,IF($C$7,8,0),1,1) -> 262.95 | F112: =OFFSET(InputPriceData!E$15,CalculationsAndCharts!$A112+$A$11,IF($C$7,8,0),1,1) -> 259.68 | G112: =OFFSET(InputPriceData!F$15,CalculationsAndCharts!$A112+$A$11,IF($C$7,8,0),1,1) -> 262.45 | H112: 263.7575707 | I112: -1.673917973 | J112: 7.954638243 | K112: 5.198030999 | L112: 0.2095853848 | M112: -0.13 | N112: 1.840629061 | O112: -2.457464844 | P112: 7.046490663 | Q112: 6.160394563 | R112: 0.06709349596 | S112: 0.06709349596 | T112: 0.06719444338 | U112: -2.93 | V112: 0.3921137256 | W112: 0.798844989 | X112: 0.4908508296 | Y112: 0.4908508296 | Z112: 0.250539161 | AC112: 0.4908508296 | AD112: 0.250539161 | AP112: 103840900
A113: 81 | B113: =OFFSET(InputPriceData!B$15,CalculationsAndCharts!$A113+$A$11,0,1,1) -> 2018-04-24 | C113: =OFFSET(InputPriceData!G$15,CalculationsAndCharts!$A113+$A$11,IF($C$7,8,0),1,1) -> 112885500 | D113: =OFFSET(InputPriceData!C$15,CalculationsAndCharts!$A113+$A$11,IF($C$7,8,0),1,1) -> 266.53 | E113: =OFFSET(InputPriceData!D$15,CalculationsAndCharts!$A113+$A$11,IF($C$7,8,0),1,1) -> 266.78 | F113: =OFFSET(InputPriceData!E$15,CalculationsAndCharts!$A113+$A$11,IF($C$7,8,0),1,1) -> 260.11 | G113: =OFFSET(InputPriceData!F$15,CalculationsAndCharts!$A113+$A$11,IF($C$7,8,0),1,1) -> 261.8 | H113: 265.4314886 | I113: -1.528351739 | J113: 9.558305076 | K113: 3.524113026 | L113: 0.4612443971 | M113: -2.16 | N113: 4.298093905 | O113: -1.610863987 | P113: 8.800655519 | Q113: 3.702929718 | R113: 0.4077011276 | S113: 0.4077011276 | T113: 0.4328509437 | U113: -3.62 | V113: 0.5190704796 | W113: 0.792267473 | X113: 0.6551707565 | Y113: 0.6551707565 | Z113: 0.3401209596 | AC113: 0.6551707565 | AD113: 0.3401209596 | AQ113: 112885500
A114: 82 | B114: =OFFSET(InputPriceData!B$15,CalculationsAndCharts!$A114+$A$11,0,1,1) -> 2018-04-23 | C114: =OFFSET(InputPriceData!G$15,CalculationsAndCharts!$A114+$A$11,IF($C$7,8,0),1,1) -> 65558000 | D114: =OFFSET(InputPriceData!C$15,CalculationsAndCharts!$A114+$A$11,IF($C$7,8,0),1,1) -> 266.07 | E114: =OFFSET(InputPriceData!D$15,CalculationsAndCharts!$A114+$A$11,IF($C$7,8,0),1,1) -> 266.69 | F114: =OFFSET(InputPriceData!E$15,CalculationsAndCharts!$A114+$A$11,IF($C$7,8,0),1,1) -> 264.16 | G114: =OFFSET(InputPriceData!F$15,CalculationsAndCharts!$A114+$A$11,IF($C$7,8,0),1,1) -> 265.38 | H114: 266.9598404 | I114: -1.018319051 | J114: 10.10897852 | K114: 1.995761287 | L114: 0.6702512703 | M114: 5.55 | N114: 5.908957892 | O114: -0.361595493 | P114: 11.55805114 | Q114: 2.092065732 | R114: 0.693472847 | S114: 0.693472847 | T114: 0.8546151482 | U114: -2.31 | V114: 0.5730235601 | W114: 0.7833977201 | X114: 0.7314593155 | Y114: 0.7314593155 | Z114: 0.3834844209 | AC114: 0.7314593155 | AD114: 0.3834844209 | AQ114: 65558000
A115: 83 | B115: =OFFSET(InputPriceData!B$15,CalculationsAndCharts!$A115+$A$11,0,1,1) -> 2018-04-20 | C115: =OFFSET(InputPriceData!G$15,CalculationsAndCharts!$A115+$A$11,IF($C$7,8,0),1,1) -> 99953100 | D115: =OFFSET(InputPriceData!C$15,CalculationsAndCharts!$A115+$A$11,IF($C$7,8,0),1,1) -> 267.61 | E115: =OFFSET(InputPriceData!D$15,CalculationsAndCharts!$A115+$A$11,IF($C$7,8,0),1,1) -> 267.86 | F115: =OFFSET(InputPriceData!E$15,CalculationsAndCharts!$A115+$A$11,IF($C$7,8,0),1,1) -> 264.42 | G115: =OFFSET(InputPriceData!F$15,CalculationsAndCharts!$A115+$A$11,IF($C$7,8,0),1,1) -> 265.42 | H115: 267.9781594 | I115: -0.3207186779 | J115: 10.10897852 | K115: 1.609219556 | L115: 0.7253469268 | M115: 6.86 | N115: 6.270553385 | O115: -1.0273613 | P115: 14.51056995 | Q115: 1.730470239 | R115: 0.7869015508 | S115: 0.7869015508 | T115: 1.06324208 | U115: -3.76 | V115: 0.5428739042 | W115: 0.7758678567 | X115: 0.6996989236 | Y115: 0.6996989236 | Z115: 0.3652722111 | AC115: 0.6996989236 | AD115: 0.3652722111 | AQ115: 99953100
A116: 84 | B116: =OFFSET(InputPriceData!B$15,CalculationsAndCharts!$A116+$A$11,0,1,1) -> 2018-04-19 | C116: =OFFSET(InputPriceData!G$15,CalculationsAndCharts!$A116+$A$11,IF($C$7,8,0),1,1) -> 77655900 | D116: =OFFSET(InputPriceData!C$15,CalculationsAndCharts!$A116+$A$11,IF($C$7,8,0),1,1) -> 268.44 | E116: =OFFSET(InputPriceData!D$15,CalculationsAndCharts!$A116+$A$11,IF($C$7,8,0),1,1) -> 268.67 | F116: =OFFSET(InputPriceData!E$15,CalculationsAndCharts!$A116+$A$11,IF($C$7,8,0),1,1) -> 266.52 | G116: =OFFSET(InputPriceData!F$15,CalculationsAndCharts!$A116+$A$11,IF($C$7,8,0),1,1) -> 267.69 | H116: 268.2988781 | I116: 0.9005578942 | J116: 10.10897852 | K116: 1.574664571 | L116: 0.7304497306 | M116: 3.24 | N116: 7.297914685 | O116: -0.7031089385 | P116: 17.01562761 | Q116: 0.7031089385 | R116: 0.9206366733 | S116: 0.9206366733 | T116: 1.593187815 | U116: -1.29 | V116: 0.406605957 | W116: 0.7713676057 | X116: 0.5271234546 | Y116: 0.5271234546 | Z116: 0.2699321795 | AC116: 0.5271234546 | AD116: 0.2699321795 | AQ116: 77655900
A117: 85 | B117: =OFFSET(InputPriceData!B$15,CalculationsAndCharts!$A117+$A$11,0,1,1) -> 2018-04-18 | C117: =OFFSET(InputPriceData!G$15,CalculationsAndCharts!$A117+$A$11,IF($C$7,8,0),1,1) -> 57303900 | D117: =OFFSET(InputPriceData!C$15,CalculationsAndCharts!$A117+$A$11,IF($C$7,8,0),1,1) -> 269.48 | E117: =OFFSET(InputPriceData!D$15,CalculationsAndCharts!$A117+$A$11,IF($C$7,8,0),1,1) -> 270.09 | F117: =OFFSET(InputPriceData!E$15,CalculationsAndCharts!$A117+$A$11,IF($C$7,8,0),1,1) -> 268.66 | G117: =OFFSET(InputPriceData!F$15,CalculationsAndCharts!$A117+$A$11,IF($C$7,8,0),1,1) -> 269.18 | H117: 267.3983202 | I117: 1.619930388 | J117: 9.208420621 | K117: 1.777577291 | L117: 0.676392203 | M117: 6.8 | N117: 8.001023623 | O117: 1.069256948 | P117: 19.60768391 | Q117: 0 | R117: 1 | S117: 0.999 | T117: 3.800201167 | U117: 3.05 | V117: 0.1556407177 | W117: 0.7727301808 | X117: 0.2014166413 | Y117: 0.2014166413 | Z117: 0.1010508745 | AC117: 0.2014166413 | AD117: 0.1010508745 | AQ117: 57303900
A118: 86 | B118: =OFFSET(InputPriceData!B$15,CalculationsAndCharts!$A118+$A$11,0,1,1) -> 2018-04-17 | C118: =OFFSET(InputPriceData!G$15,CalculationsAndCharts!$A118+$A$11,IF($C$7,8,0),1,1) -> 64682000 | D118: =OFFSET(InputPriceData!C$15,CalculationsAndCharts!$A118+$A$11,IF($C$7,8,0),1,1) -> 268.13 | E118: =OFFSET(InputPriceData!D$15,CalculationsAndCharts!$A118+$A$11,IF($C$7,8,0),1,1) -> 269.66 | F118: =OFFSET(InputPriceData!E$15,CalculationsAndCharts!$A118+$A$11,IF($C$7,8,0),1,1) -> 267.55 | G118: =OFFSET(InputPriceData!F$15,CalculationsAndCharts!$A118+$A$11,IF($C$7,8,0),1,1) -> 268.98 | H118: 265.7783898 | I118: 1.369686837 | J118: 7.588490234 | K118: 2.772509053 | L118: 0.4648182136 | M118: 9.38 | N118: 6.931766676 | O118: 2.001464157 | P118: 20.45197881 | Q118: 0 | R118: 1 | S118: 0.999 | T118: 3.800201167 | U118: 5.02 | V118: -0.1377758038 | W118: 0.7845494903 | X118: -0.1756113611 | Y118: -0.1756113611 | Z118: -0.08803238601 | AC118: -0.1756113611 | AD118: -0.08803238601 | AP118: 64682000
A119: 87 | B119: =OFFSET(InputPriceData!B$15,CalculationsAndCharts!$A119+$A$11,0,1,1) -> 2018-04-16 | C119: =OFFSET(InputPriceData!G$15,CalculationsAndCharts!$A119+$A$11,IF($C$7,8,0),1,1) -> 63405300 | D119: =OFFSET(InputPriceData!C$15,CalculationsAndCharts!$A119+$A$11,IF($C$7,8,0),1,1) -> 265.81 | E119: =OFFSET(InputPriceData!D$15,CalculationsAndCharts!$A119+$A$11,IF($C$7,8,0),1,1) -> 267 | F119: =OFFSET(InputPriceData!E$15,CalculationsAndCharts!$A119+$A$11,IF($C$7,8,0),1,1) -> 264.88 | G119: =OFFSET(InputPriceData!F$15,CalculationsAndCharts!$A119+$A$11,IF($C$7,8,0),1,1) -> 266.13 | H119: 264.408703 | I119: 0.7768650846 | J119: 6.218803396 | K119: 3.743127037 | L119: 0.2485137169 | M119: 9.81 | N119: 4.930302518 | O119: 1.063028777 | P119: 18.88603706 | Q119: 0 | R119: 1 | S119: 0.999 | T119: 3.800201167 | U119: 1.39 | V119: -0.3891501776 | W119: 0.8098180013 | X119: -0.4805402905 | Y119: -0.4805402905 | Z119: -0.2450607891 | AC119: -0.4805402905 | AD119: -0.2450607891 | AP119: 63405300
A120: 88 | B120: =OFFSET(InputPriceData!B$15,CalculationsAndCharts!$A120+$A$11,0,1,1) -> 2018-04-13 | C120: =OFFSET(InputPriceData!G$15,CalculationsAndCharts!$A120+$A$11,IF($C$7,8,0),1,1) -> 85079200 | D120: =OFFSET(InputPriceData!C$15,CalculationsAndCharts!$A120+$A$11,IF($C$7,8,0),1,1) -> 266.21 | E120: =OFFSET(InputPriceData!D$15,CalculationsAndCharts!$A120+$A$11,IF($C$7,8,0),1,1) -> 266.34 | F120: =OFFSET(InputPriceData!E$15,CalculationsAndCharts!$A120+$A$11,IF($C$7,8,0),1,1) -> 262.83 | G120: =OFFSET(InputPriceData!F$15,CalculationsAndCharts!$A120+$A$11,IF($C$7,8,0),1,1) -> 263.96 | H120: 263.6318379 | I120: 0.8397623063 | J120: 5.441938312 | K120: 6.418010412 | L120: -0.08229985833 | M120: 1.99 | N120: 3.867273741 | O120: 1.042675027 | P120: 18.29541007 | Q120: 0 | R120: 1 | S120: 0.999 | T120: 3.800201167 | U120: =G120-G122 -> 1.38 | V120: =$D$24*(U120+U121)/2+$E$24*V121+$F$24*V122 -> -0.6039752529 | W120: 0.8476510947 | X120: -0.7125281341 | Y120: -0.7125281341 | Z120: -0.3726002946 | AC120: -0.7125281341 | AD120: -0.3726002946 | AQ120: 85079200
A121: 89 | B121: =OFFSET(InputPriceData!B$15,CalculationsAndCharts!$A121+$A$11,0,1,1) -> 2018-04-12 | C121: =OFFSET(InputPriceData!G$15,CalculationsAndCharts!$A121+$A$11,IF($C$7,8,0),1,1) -> 68890500 | D121: =OFFSET(InputPriceData!C$15,CalculationsAndCharts!$A121+$A$11,IF($C$7,8,0),1,1) -> 264.07 | E121: =OFFSET(InputPriceData!D$15,CalculationsAndCharts!$A121+$A$11,IF($C$7,8,0),1,1) -> 265.81 | F121: =OFFSET(InputPriceData!E$15,CalculationsAndCharts!$A121+$A$11,IF($C$7,8,0),1,1) -> 263.88 | G121: =OFFSET(InputPriceData!F$15,CalculationsAndCharts!$A121+$A$11,IF($C$7,8,0),1,1) -> 264.74 | H121: 262.7920756 | I121: 0.8751339919 | J121: 4.602176006 | K121: 10.02725277 | L121: -0.3708331235 | M121: 6.07 | N121: 2.824598714 | O121: 1.870065754 | P121: 17.88288724 | Q121: 0 | R121: 1 | S121: 0.999 | T121: 3.800201167 | U121: 0.78 | V121: -0.8174055984 | W121: 0.891210876 | X121: -0.917185394 | Y121: -0.917185394 | Z121: -0.4955277387 | AC121: -0.917185394 | AD121: -0.4955277387 | AP121: 68890500
A122: 90 | B122: =OFFSET(InputPriceData!B$15,CalculationsAndCharts!$A122+$A$11,0,1,1) -> 2018-04-11 | C122: =OFFSET(InputPriceData!G$15,CalculationsAndCharts!$A122+$A$11,IF($C$7,8,0),1,1) -> 91140200 | D122: =OFFSET(InputPriceData!C$15,CalculationsAndCharts!$A122+$A$11,IF($C$7,8,0),1,1) -> 262.29 | E122: =OFFSET(InputPriceData!D$15,CalculationsAndCharts!$A122+$A$11,IF($C$7,8,0),1,1) -> 264.45 | F122: =OFFSET(InputPriceData!E$15,CalculationsAndCharts!$A122+$A$11,IF($C$7,8,0),1,1) -> 262.21 | G122: =OFFSET(InputPriceData!F$15,CalculationsAndCharts!$A122+$A$11,IF($C$7,8,0),1,1) -> 262.58 | H122: 261.9169416 | I122: 0.7835468716 | J122: 3.727042014 | K122: 11.82566782 | L122: -0.5207212051 | M122: 3.14 | N122: 0.9545329603 | O122: 1.754164855 | P122: 16.01282148 | Q122: 0.8256646943 | R122: 0.9019312442 | S122: 0.9019312442 | T122: 1.482478136 | U122: 2.75 | V122: -1.031618339 | W122: 0.9314783714 | X122: -1.107506488 | Y122: -1.107506488 | Z122: -0.6237783333 | AC122: -1.107506488 | AD122: -0.6237783333 | AP122: 91140200
A123: 91 | B123: =OFFSET(InputPriceData!B$15,CalculationsAndCharts!$A123+$A$11,0,1,1) -> 2018-04-10 | C123: =OFFSET(InputPriceData!G$15,CalculationsAndCharts!$A123+$A$11,IF($C$7,8,0),1,1) -> 103529000 | D123: =OFFSET(InputPriceData!C$15,CalculationsAndCharts!$A123+$A$11,IF($C$7,8,0),1,1) -> 263.09 | E123: =OFFSET(InputPriceData!D$15,CalculationsAndCharts!$A123+$A$11,IF($C$7,8,0),1,1) -> 264.85 | F123: =OFFSET(InputPriceData!E$15,CalculationsAndCharts!$A123+$A$11,IF($C$7,8,0),1,1) -> 261.8 | G123: =OFFSET(InputPriceData!F$15,CalculationsAndCharts!$A123+$A$11,IF($C$7,8,0),1,1) -> 263.96 | H123: 261.1333947 | I123: 0.08251224748 | J123: 2.943495142 | K123: 12.81405728 | L123: -0.6264019864 | M123: 0.04 | N123: -0.7996318951 | O123: 2.757395622 | P123: 14.25865663 | Q123: 2.91069602 | R123: 0.6609428346 | S123: 0.6609428346 | T123: 0.7944859851 | U123: 5.4 | V123: -1.222022347 | W123: 0.9608318195 | X123: -1.271837924 | Y123: -1.271837924 | Z123: -0.7512917535 | AC123: -1.271837924 | AD123: -0.7512917535 | AP123: 103529000
A124: 92 | B124: =OFFSET(InputPriceData!B$15,CalculationsAndCharts!$A124+$A$11,0,1,1) -> 2018-04-09 | C124: =OFFSET(InputPriceData!G$15,CalculationsAndCharts!$A124+$A$11,IF($C$7,8,0),1,1) -> 105442900 | D124: =OFFSET(InputPriceData!C$15,CalculationsAndCharts!$A124+$A$11,IF($C$7,8,0),1,1) -> 260.2 | E124: =OFFSET(InputPriceData!D$15,CalculationsAndCharts!$A124+$A$11,IF($C$7,8,0),1,1) -> 263.66 | F124: =OFFSET(InputPriceData!E$15,CalculationsAndCharts!$A124+$A$11,IF($C$7,8,0),1,1) -> 258.78 | G124: =OFFSET(InputPriceData!F$15,CalculationsAndCharts!$A124+$A$11,IF($C$7,8,0),1,1) -> 259.83 | H124: 261.0508825 | I124: -0.6567235579 | J124: 2.860982895 | K124: 14.1769357 | L124: -0.6641628636 | M124: 2.93 | N124: -3.557027517 | O124: 2.952518805 | P124: 11.50126101 | Q124: 7.68528955 | R124: 0.1988878326 | S124: 0.1988878326 | T124: 0.2015743142 | U124: -4.62 | V124: -1.313775537 | W124: 0.9724785968 | X124: -1.350955735 | Y124: -1.350955735 | Z124: -0.8207499791 | AC124: -1.350955735 | AD124: -0.8207499791 | AQ124: 105442900
A125: 93 | B125: =OFFSET(InputPriceData!B$15,CalculationsAndCharts!$A125+$A$11,0,1,1) -> 2018-04-06 | C125: =OFFSET(InputPriceData!G$15,CalculationsAndCharts!$A125+$A$11,IF($C$7,8,0),1,1) -> 179521200 | D125: =OFFSET(InputPriceData!C$15,CalculationsAndCharts!$A125+$A$11,IF($C$7,8,0),1,1) -> 262.24 | E125: =OFFSET(InputPriceData!D$15,CalculationsAndCharts!$A125+$A$11,IF($C$7,8,0),1,1) -> 263.92 | F125: =OFFSET(InputPriceData!E$15,CalculationsAndCharts!$A125+$A$11,IF($C$7,8,0),1,1) -> 256.85 | G125: =OFFSET(InputPriceData!F$15,CalculationsAndCharts!$A125+$A$11,IF($C$7,8,0),1,1) -> 258.56 | H125: 261.707606 | I125: 0.7066426222 | J125: 2.860982895 | K125: 14.58751186 | L125: -0.6720653633 | M125: -3.93 | N125: -6.509546322 | O125: 2.505057669 | P125: 8.548742201 | Q125: 12.97892218 | R125: -0.2057900894 | S125: -0.2057900894 | T125: -0.2087712548 | U125: -3.82 | V125: -1.38138607 | W125: 0.9702979245 | X125: -1.423672086 | Y125: -1.423672086 | Z125: -0.8908960843 | AC125: -1.423672086 | AD125: -0.8908960843 | AQ125: 179521200
A126: 94 | B126: =OFFSET(InputPriceData!B$15,CalculationsAndCharts!$A126+$A$11,0,1,1) -> 2018-04-05 | C126: =OFFSET(InputPriceData!G$15,CalculationsAndCharts!$A126+$A$11,IF($C$7,8,0),1,1) -> 82652600 | D126: =OFFSET(InputPriceData!C$15,CalculationsAndCharts!$A126+$A$11,IF($C$7,8,0),1,1) -> 264.36 | E126: =OFFSET(InputPriceData!D$15,CalculationsAndCharts!$A126+$A$11,IF($C$7,8,0),1,1) -> 265.45 | F126: =OFFSET(InputPriceData!E$15,CalculationsAndCharts!$A126+$A$11,IF($C$7,8,0),1,1) -> 263.14 | G126: =OFFSET(InputPriceData!F$15,CalculationsAndCharts!$A126+$A$11,IF($C$7,8,0),1,1) -> 264.45 | H126: 261.0009634 | I126: 1.603666833 | J126: 2.154340272 | K126: 15.34607734 | L126: -0.7537955585 | M126: -4.77 | N126: -9.014603991 | O126: 2.592056292 | P126: 6.043684532 | Q126: 15.74421717 | R126: -0.4452256474 | S126: -0.4452256474 | T126: -0.4787296432 | U126: 4.85 | V126: -1.544054948 | W126: 0.9632135194 | X126: -1.60302458 | Y126: -1.60302458 | Z126: -1.102827284 | AC126: -1.60302458 | AD126: -1.102827284 | AP126: 82652600
A127: 95 | B127: =OFFSET(InputPriceData!B$15,CalculationsAndCharts!$A127+$A$11,0,1,1) -> 2018-04-04 | C127: =OFFSET(InputPriceData!G$15,CalculationsAndCharts!$A127+$A$11,IF($C$7,8,0),1,1) -> 123715300 | D127: =OFFSET(InputPriceData!C$15,CalculationsAndCharts!$A127+$A$11,IF($C$7,8,0),1,1) -> 255.6 | E127: =OFFSET(InputPriceData!D$15,CalculationsAndCharts!$A127+$A$11,IF($C$7,8,0),1,1) -> 263.18 | F127: =OFFSET(InputPriceData!E$15,CalculationsAndCharts!$A127+$A$11,IF($C$7,8,0),1,1) -> 255.45 | G127: =OFFSET(InputPriceData!F$15,CalculationsAndCharts!$A127+$A$11,IF($C$7,8,0),1,1) -> 262.38 | H127: 259.3972966 | I127: 0.5506734398 | J127: 0.5506734398 | K127: 16.17914226 | L127: -0.9341686185 | M127: -7.36 | N127: -11.60666028 | O127: 1.913551855 | P127: 3.45162824 | Q127: 17.72773602 | R127: -0.674057427 | S127: -0.674057427 | T127: -0.8181421732 | U127: 6.06 | V127: -1.690425705 | W127: 0.9556273912 | X127: -1.768917174 | Y127: -1.768917174 | Z127: -1.395883409 | AC127: -1.768917174 | AD127: -1.395883409 | AP127: 123715300
A128: 96 | B128: =OFFSET(InputPriceData!B$15,CalculationsAndCharts!$A128+$A$11,0,1,1) -> 2018-04-03 | C128: =OFFSET(InputPriceData!G$15,CalculationsAndCharts!$A128+$A$11,IF($C$7,8,0),1,1) -> 119956900 | D128: =OFFSET(InputPriceData!C$15,CalculationsAndCharts!$A128+$A$11,IF($C$7,8,0),1,1) -> 257.71 | E128: =OFFSET(InputPriceData!D$15,CalculationsAndCharts!$A128+$A$11,IF($C$7,8,0),1,1) -> 260.14 | F128: =OFFSET(InputPriceData!E$15,CalculationsAndCharts!$A128+$A$11,IF($C$7,8,0),1,1) -> 255.69 | G128: =OFFSET(InputPriceData!F$15,CalculationsAndCharts!$A128+$A$11,IF($C$7,8,0),1,1) -> 259.6 | H128: 258.8466232 | I128: -0.6317773202 | J128: 0 | K128: 16.34840932 | L128: -1 | M128: -9.68 | N128: -13.52021214 | O128: 0.4355224038 | P128: 1.538076385 | Q128: 19.75221008 | R128: -0.8555137915 | S128: -0.8555137915 | T128: -1.276366426 | U128: -2.37 | V128: -1.676245152 | W128: 0.9566712018 | X128: -1.752164326 | Y128: -1.752164326 | Z128: -1.358661093 | AC128: -1.752164326 | AD128: -1.358661093 | AP128: 119956900
A129: 97 | B129: =OFFSET(InputPriceData!B$15,CalculationsAndCharts!$A129+$A$11,0,1,1) -> 2018-04-02 | C129: =OFFSET(InputPriceData!G$15,CalculationsAndCharts!$A129+$A$11,IF($C$7,8,0),1,1) -> 186286300 | D129: =OFFSET(InputPriceData!C$15,CalculationsAndCharts!$A129+$A$11,IF($C$7,8,0),1,1) -> 261.38 | E129: =OFFSET(InputPriceData!D$15,CalculationsAndCharts!$A129+$A$11,IF($C$7,8,0),1,1) -> 261.95 | F129: =OFFSET(InputPriceData!E$15,CalculationsAndCharts!$A129+$A$11,IF($C$7,8,0),1,1) -> 253.53 | G129: =OFFSET(InputPriceData!F$15,CalculationsAndCharts!$A129+$A$11,IF($C$7,8,0),1,1) -> 256.32 | H129: 259.4784005 | I129: -0.2861636927 | J129: 1.114413342 | K129: 15.716632 | L129: -0.8675764554 | M129: -16.65 | N129: -13.95573454 | O129: 0.4724017857 | P129: 1.102553981 | Q129: 20.07447908 | R129: -0.8958726675 | S129: -0.8958726675 | T129: -1.450910011 | U129: -2.35 | V129: -1.561478875 | W129: 0.9717135095 | X129: -1.606933381 | Y129: -1.606933381 | Z129: -1.10831705 | AC129: -1.606933381 | AD129: -1.10831705 | AQ129: 186286300
A130: 98 | B130: =OFFSET(InputPriceData!B$15,CalculationsAndCharts!$A130+$A$11,0,1,1) -> 2018-03-29 | C130: =OFFSET(InputPriceData!G$15,CalculationsAndCharts!$A130+$A$11,IF($C$7,8,0),1,1) -> 111601600 | D130: =OFFSET(InputPriceData!C$15,CalculationsAndCharts!$A130+$A$11,IF($C$7,8,0),1,1) -> 259.95 | E130: =OFFSET(InputPriceData!D$15,CalculationsAndCharts!$A130+$A$11,IF($C$7,8,0),1,1) -> 264.07 | F130: =OFFSET(InputPriceData!E$15,CalculationsAndCharts!$A130+$A$11,IF($C$7,8,0),1,1) -> 258.68 | G130: =OFFSET(InputPriceData!F$15,CalculationsAndCharts!$A130+$A$11,IF($C$7,8,0),1,1) -> 261.97 | H130: 259.7645642 | I130: -0.2029127205 | J130: 3.214123498 | K130: 15.43046831 | L130: -0.655221897 | M130: -10.71 | N130: -14.42813633 | O130: 0.6301521956 | P130: 2.060500571 | Q130: 20.07447908 | R130: -0.8138240375 | S130: -0.8138240375 | T130: -1.138250181 | U130: 2.53 | V130: -1.44017944 | W130: 0.9958789434 | X130: -1.44613906 | Y130: -1.44613906 | Z130: -0.9140480634 | AC130: -1.44613906 | AD130: -0.9140480634 | AP130: 111601600
A131: 99 | B131: =OFFSET(InputPriceData!B$15,CalculationsAndCharts!$A131+$A$11,0,1,1) -> 2018-03-28 | C131: =OFFSET(InputPriceData!G$15,CalculationsAndCharts!$A131+$A$11,IF($C$7,8,0),1,1) -> 146452300 | D131: =OFFSET(InputPriceData!C$15,CalculationsAndCharts!$A131+$A$11,IF($C$7,8,0),1,1) -> 259.58 | E131: =OFFSET(InputPriceData!D$15,CalculationsAndCharts!$A131+$A$11,IF($C$7,8,0),1,1) -> 261.47 | F131: =OFFSET(InputPriceData!E$15,CalculationsAndCharts!$A131+$A$11,IF($C$7,8,0),1,1) -> 257.42 | G131: =OFFSET(InputPriceData!F$15,CalculationsAndCharts!$A131+$A$11,IF($C$7,8,0),1,1) -> 258.67 | H131: 259.9674769 | I131: -0.9949317621 | J131: 4.898513764 | K131: 15.22755559 | L131: -0.5132170443 | M131: -14.31 | N131: -15.05828852 | O131: -0.8256646943 | P131: 2.425926243 | Q131: 20.07447908 | R131: -0.7843659962 | S131: -0.7843659962 | T131: -1.056617952 | U131: -5.25 | V131: -1.246534156 | W131: 1.026350503 | X131: -1.214530662 | Y131: -1.214530662 | Z131: -0.7045776099 | AC131: -1.214530662 | AD131: -0.7045776099 | AQ131: 146452300
A132: 100 | B132: =OFFSET(InputPriceData!B$15,CalculationsAndCharts!$A132+$A$11,0,1,1) -> 2018-03-27 | C132: =OFFSET(InputPriceData!G$15,CalculationsAndCharts!$A132+$A$11,IF($C$7,8,0),1,1) -> 129941400 | D132: =OFFSET(InputPriceData!C$15,CalculationsAndCharts!$A132+$A$11,IF($C$7,8,0),1,1) -> 264.98 | E132: =OFFSET(InputPriceData!D$15,CalculationsAndCharts!$A132+$A$11,IF($C$7,8,0),1,1) -> 265.58 | F132: =OFFSET(InputPriceData!E$15,CalculationsAndCharts!$A132+$A$11,IF($C$7,8,0),1,1) -> 257.68 | G132: =OFFSET(InputPriceData!F$15,CalculationsAndCharts!$A132+$A$11,IF($C$7,8,0),1,1) -> 259.44 | H132: 260.9624086 | I132: -0.9706179839 | J132: 5.865393711 | K132: 14.23262383 | L132: -0.4163211671 | M132: -14.94 | N132: -14.23262383 | O132: -2.085031326 | P132: 2.425926243 | Q132: 19.27827345 | R132: -0.7764555913 | S132: -0.7764555913 | T132: -1.036382663 | U132: 2.54 | V132: -1.00785505 | W132: 1.062943377 | X132: -0.9481737894 | Y132: -0.9481737894 | Z132: -0.5153290113 | AC132: -0.9481737894 | AD132: -0.5153290113 | AQ132: 129941400
A133: 101 | B133: =OFFSET(InputPriceData!B$15,CalculationsAndCharts!$A133+$A$11,0,1,1) -> 2018-03-26 | C133: =OFFSET(InputPriceData!G$15,CalculationsAndCharts!$A133+$A$11,IF($C$7,8,0),1,1) -> 141956100 | D133: =OFFSET(InputPriceData!C$15,CalculationsAndCharts!$A133+$A$11,IF($C$7,8,0),1,1) -> 260.96 | E133: =OFFSET(InputPriceData!D$15,CalculationsAndCharts!$A133+$A$11,IF($C$7,8,0),1,1) -> 264.24 | F133: =OFFSET(InputPriceData!E$15,CalculationsAndCharts!$A133+$A$11,IF($C$7,8,0),1,1) -> 258.25 | G133: =OFFSET(InputPriceData!F$15,CalculationsAndCharts!$A133+$A$11,IF($C$7,8,0),1,1) -> 263.92 | H133: 261.9330266 | I133: -2.674883374 | J133: 6.860523097 | K133: 13.26200585 | L133: -0.3181251605 | M133: -12.25 | N133: -12.1475925 | O133: -4.77459353 | P133: 2.425926243 | Q133: 17.63227892 | R133: -0.7581113341 | S133: -0.7581113341 | T133: -0.9917589222 | U133: 1.43 | V133: -0.7193828773 | W133: 1.10083801 | X133: -0.6534865902 | Y133: -0.6534865902 | Z133: -0.3391779387 | AC133: -0.6534865902 | AD133: -0.3391779387 | AP133: 141956100
A134: 102 | B134: =OFFSET(InputPriceData!B$15,CalculationsAndCharts!$A134+$A$11,0,1,1) -> 2018-03-23 | C134: =OFFSET(InputPriceData!G$15,CalculationsAndCharts!$A134+$A$11,IF($C$7,8,0),1,1) -> 183534800 | D134: =OFFSET(InputPriceData!C$15,CalculationsAndCharts!$A134+$A$11,IF($C$7,8,0),1,1) -> 262.99 | E134: =OFFSET(InputPriceData!D$15,CalculationsAndCharts!$A134+$A$11,IF($C$7,8,0),1,1) -> 263.36 | F134: =OFFSET(InputPriceData!E$15,CalculationsAndCharts!$A134+$A$11,IF($C$7,8,0),1,1) -> 256.68 | G134: =OFFSET(InputPriceData!F$15,CalculationsAndCharts!$A134+$A$11,IF($C$7,8,0),1,1) -> 256.9 | H134: 264.60791 | I134: -3.609242363 | J134: 7.522118745 | K134: 10.58712247 | L134: -0.169250809 | M134: -19.62 | N134: -7.372998973 | O134: -5.293632629 | P134: 2.82741923 | Q134: 12.85768539 | R134: -0.6394771603 | S134: -0.6394771603 | T134: -0.7572886774 | U134: -12.32 | V134: -0.2846219456 | W134: 1.136828588 | X134: -0.2503648735 | Y134: -0.2503648735 | Z134: -0.125842551 | AC134: -0.2503648735 | AD134: -0.125842551 | AQ134: 183534800
A135: 103 | B135: =OFFSET(InputPriceData!B$15,CalculationsAndCharts!$A135+$A$11,0,1,1) -> 2018-03-22 | C135: =OFFSET(InputPriceData!G$15,CalculationsAndCharts!$A135+$A$11,IF($C$7,8,0),1,1) -> 148785900 | D135: =OFFSET(InputPriceData!C$15,CalculationsAndCharts!$A135+$A$11,IF($C$7,8,0),1,1) -> 266.71 | E135: =OFFSET(InputPriceData!D$15,CalculationsAndCharts!$A135+$A$11,IF($C$7,8,0),1,1) -> 267.67 | F135: =OFFSET(InputPriceData!E$15,CalculationsAndCharts!$A135+$A$11,IF($C$7,8,0),1,1) -> 262.18 | G135: =OFFSET(InputPriceData!F$15,CalculationsAndCharts!$A135+$A$11,IF($C$7,8,0),1,1) -> 262.49 | H135: 268.2171524 | I135: -1.798415047 | J135: 7.522118745 | K135: 7.722910833 | L135: -0.01317098712 | M135: -9.3 | N135: -2.079366344 | O135: -2.765294994 | P135: 4.34973836 | Q135: 7.564052762 | R135: -0.2697977805 | S135: -0.2697977805 | T135: -0.276645715 | U135: -7.25 | V135: 0.1160284312 | W135: 1.171883648 | X135: 0.09901019728 | Y135: 0.09901019728 | Z135: 0.04954559983 | AC135: 0.09901019728 | AD135: 0.04954559983 | AQ135: 148785900
A136: 104 | B136: =OFFSET(InputPriceData!B$15,CalculationsAndCharts!$A136+$A$11,0,1,1) -> 2018-03-21 | C136: =OFFSET(InputPriceData!G$15,CalculationsAndCharts!$A136+$A$11,IF($C$7,8,0),1,1) -> 78709600 | D136: =OFFSET(InputPriceData!C$15,CalculationsAndCharts!$A136+$A$11,IF($C$7,8,0),1,1) -> 269.69 | E136: =OFFSET(InputPriceData!D$15,CalculationsAndCharts!$A136+$A$11,IF($C$7,8,0),1,1) -> 272.05 | F136: =OFFSET(InputPriceData!E$15,CalculationsAndCharts!$A136+$A$11,IF($C$7,8,0),1,1) -> 268.98 | G136: =OFFSET(InputPriceData!F$15,CalculationsAndCharts!$A136+$A$11,IF($C$7,8,0),1,1) -> 269.22 | H136: 270.0155674 | I136: -0.9883894594 | J136: 7.522118745 | K136: 8.11340964 | L136: -0.03781713546 | M136: -1.26 | N136: 0.6859286501 | O136: -1.983518845 | P136: 5.99975166 | Q136: 4.798757769 | R136: 0.111218488 | S136: 0.111218488 | T136: 0.1116804961 | U136: -0.06 | V136: 0.3434143138 | W136: 1.203504819 | X136: 0.2853451921 | Y136: 0.2853451921 | Z136: 0.1436526498 | AC136: 0.2853451921 | AD136: 0.1436526498 | AQ136: 78709600
A137: 105 | B137: =OFFSET(InputPriceData!B$15,CalculationsAndCharts!$A137+$A$11,0,1,1) -> 2018-03-20 | C137: =OFFSET(InputPriceData!G$15,CalculationsAndCharts!$A137+$A$11,IF($C$7,8,0),1,1) -> 59757300 | D137: =OFFSET(InputPriceData!C$15,CalculationsAndCharts!$A137+$A$11,IF($C$7,8,0),1,1) -> 269.73 | E137: =OFFSET(InputPriceData!D$15,CalculationsAndCharts!$A137+$A$11,IF($C$7,8,0),1,1) -> 270.46 | F137: =OFFSET(InputPriceData!E$15,CalculationsAndCharts!$A137+$A$11,IF($C$7,8,0),1,1) -> 268.97 | G137: =OFFSET(InputPriceData!F$15,CalculationsAndCharts!$A137+$A$11,IF($C$7,8,0),1,1) -> 269.74 | H137: 271.0039569 | I137: -1.362878415 | J137: 7.522118745 | K137: 8.953662965 | L137: -0.08688778748 | M137: -0.84 | N137: 2.669447495 | O137: -2.024474064 | P137: 7.02714918 | Q137: 2.815238923 | R137: 0.427935803 | S137: 0.427935803 | T137: 0.4573669842 | U137: -3.23 | V137: 0.5171416834 | W137: 1.229705139 | X137: 0.4205412069 | Y137: 0.4205412069 | Z137: 0.213454451 | AC137: 0.4205412069 | AD137: 0.213454451 | AP137: 59757300
A138: 106 | B138: =OFFSET(InputPriceData!B$15,CalculationsAndCharts!$A138+$A$11,0,1,1) -> 2018-03-19 | C138: =OFFSET(InputPriceData!G$15,CalculationsAndCharts!$A138+$A$11,IF($C$7,8,0),1,1) -> 109208400 | D138: =OFFSET(InputPriceData!C$15,CalculationsAndCharts!$A138+$A$11,IF($C$7,8,0),1,1) -> 272.13 | E138: =OFFSET(InputPriceData!D$15,CalculationsAndCharts!$A138+$A$11,IF($C$7,8,0),1,1) -> 273.17 | F138: =OFFSET(InputPriceData!E$15,CalculationsAndCharts!$A138+$A$11,IF($C$7,8,0),1,1) -> 267.42 | G138: =OFFSET(InputPriceData!F$15,CalculationsAndCharts!$A138+$A$11,IF($C$7,8,0),1,1) -> 269.28 | H138: 272.3668353 | I138: -1.067299724 | J138: 7.522118745 | K138: 7.730592556 | L138: -0.0136679838 | M138: -0.61 | N138: 4.693921559 | O138: -0.3222689984 | P138: 7.02714918 | Q138: 1.575618942 | R138: 0.6336948945 | S138: 0.6336948945 | T138: 0.7475664636 | U138: -3.4 | V138: 0.6744798193 | W138: 1.250528673 | X138: 0.539355741 | Y138: 0.539355741 | Z138: 0.276516396 | AC138: 0.539355741 | AD138: 0.276516396 | AQ138: 109208400
A139: 107 | B139: =OFFSET(InputPriceData!B$15,CalculationsAndCharts!$A139+$A$11,0,1,1) -> 2018-03-16 | C139: =OFFSET(InputPriceData!G$15,CalculationsAndCharts!$A139+$A$11,IF($C$7,8,0),1,1) -> 100343700 | D139: =OFFSET(InputPriceData!C$15,CalculationsAndCharts!$A139+$A$11,IF($C$7,8,0),1,1) -> 273.27 | E139: =OFFSET(InputPriceData!D$15,CalculationsAndCharts!$A139+$A$11,IF($C$7,8,0),1,1) -> 274.16 | F139: =OFFSET(InputPriceData!E$15,CalculationsAndCharts!$A139+$A$11,IF($C$7,8,0),1,1) -> 272.91 | G139: =OFFSET(InputPriceData!F$15,CalculationsAndCharts!$A139+$A$11,IF($C$7,8,0),1,1) -> 272.97 | H139: 273.434135 | I139: -0.7585654783 | J139: 9.075568887 | K139: 6.663292832 | L139: 0.153268775 | M139: 6.16 | N139: 5.016190557 | O139: 1.430348375 | P139: 7.02714918 | Q139: 4.751386006 | R139: 0.19321275 | S139: 0.19321275 | T139: 0.1956723677 | U139: -0.01 | V139: 0.7609841888 | W139: 1.267064415 | X139: 0.6005883994 | Y139: 0.6005883994 | Z139: 0.309842932 | AC139: 0.6005883994 | AD139: 0.309842932 | AQ139: 100343700
A140: 108 | B140: =OFFSET(InputPriceData!B$15,CalculationsAndCharts!$A140+$A$11,0,1,1) -> 2018-03-15 | C140: =OFFSET(InputPriceData!G$15,CalculationsAndCharts!$A140+$A$11,IF($C$7,8,0),1,1) -> 83433000 | D140: =OFFSET(InputPriceData!C$15,CalculationsAndCharts!$A140+$A$11,IF($C$7,8,0),1,1) -> 273.55 | E140: =OFFSET(InputPriceData!D$15,CalculationsAndCharts!$A140+$A$11,IF($C$7,8,0),1,1) -> 274.27 | F140: =OFFSET(InputPriceData!E$15,CalculationsAndCharts!$A140+$A$11,IF($C$7,8,0),1,1) -> 272.11 | G140: =OFFSET(InputPriceData!F$15,CalculationsAndCharts!$A140+$A$11,IF($C$7,8,0),1,1) -> 272.68 | H140: 274.1927005 | I140: -0.8330649161 | J140: 10.77378606 | K140: 5.904727354 | L140: 0.2919360127 | M140: 7.24 | N140: 3.585842182 | O140: 0.9955778682 | P140: 5.596800805 | Q140: 9.830635424 | R140: -0.2744353992 | S140: -0.2744353992 | T140: -0.2816542119 | U140: -1.7 | V140: 0.8010311049 | W140: 1.28042823 | X140: 0.6255962543 | Y140: 0.6255962543 | Z140: 0.3236440086 | AC140: 0.6255962543 | AD140: 0.3236440086 | AQ140: 83433000
A141: 109 | B141: =OFFSET(InputPriceData!B$15,CalculationsAndCharts!$A141+$A$11,0,1,1) -> 2018-03-14 | C141: =OFFSET(InputPriceData!G$15,CalculationsAndCharts!$A141+$A$11,IF($C$7,8,0),1,1) -> 105895100 | D141: =OFFSET(InputPriceData!C$15,CalculationsAndCharts!$A141+$A$11,IF($C$7,8,0),1,1) -> 275.46 | E141: =OFFSET(InputPriceData!D$15,CalculationsAndCharts!$A141+$A$11,IF($C$7,8,0),1,1) -> 275.67 | F141: =OFFSET(InputPriceData!E$15,CalculationsAndCharts!$A141+$A$11,IF($C$7,8,0),1,1) -> 272.35 | G141: =OFFSET(InputPriceData!F$15,CalculationsAndCharts!$A141+$A$11,IF($C$7,8,0),1,1) -> 272.98 | H141: 275.0257654 | I141: -0.1692670678 | J141: 10.93585719 | K141: 5.071662438 | L141: 0.3663400008 | M141: 3.62 | N141: 2.590264314 | O141: -0.02945906159 | P141: 4.601222936 | Q141: 13.73557885 | R141: -0.4981433525 | S141: -0.4981433525 | T141: -0.5468336696 | U141: -3.19 | V141: 0.8053915525 | W141: 1.29112571 | X141: 0.6237901906 | Y141: 0.6237901906 | Z141: 0.3226433522 | AC141: 0.6237901906 | AD141: 0.3226433522 | AQ141: 105895100
A142: 110 | B142: =OFFSET(InputPriceData!B$15,CalculationsAndCharts!$A142+$A$11,0,1,1) -> 2018-03-13 | C142: =OFFSET(InputPriceData!G$15,CalculationsAndCharts!$A142+$A$11,IF($C$7,8,0),1,1) -> 91968900 | D142: =OFFSET(InputPriceData!C$15,CalculationsAndCharts!$A142+$A$11,IF($C$7,8,0),1,1) -> 277.48 | E142: =OFFSET(InputPriceData!D$15,CalculationsAndCharts!$A142+$A$11,IF($C$7,8,0),1,1) -> 278.04 | F142: =OFFSET(InputPriceData!E$15,CalculationsAndCharts!$A142+$A$11,IF($C$7,8,0),1,1) -> 273.7 | G142: =OFFSET(InputPriceData!F$15,CalculationsAndCharts!$A142+$A$11,IF($C$7,8,0),1,1) -> 274.38 | H142: 275.1950325 | I142: 1.114413342 | J142: 10.93585719 | K142: 5.585528722 | L142: 0.3238425939 | M142: 2.27 | N142: 2.619723375 | O142: -0.4390367997 | P142: 4.601222936 | Q142: 14.97019469 | R142: -0.5298017727 | S142: -0.5298017727 | T142: -0.5898695399 | U142: -2.14 | V142: 0.721243348 | W142: 1.299832726 | X142: 0.5548739724 | Y142: 0.5548739724 | Z142: 0.2849031812 | AC142: 0.5548739724 | AD142: 0.2849031812 | AQ142: 91968900
A143: 111 | B143: =OFFSET(InputPriceData!B$15,CalculationsAndCharts!$A143+$A$11,0,1,1) -> 2018-03-12 | C143: =OFFSET(InputPriceData!G$15,CalculationsAndCharts!$A143+$A$11,IF($C$7,8,0),1,1) -> 71924800 | D143: =OFFSET(InputPriceData!C$15,CalculationsAndCharts!$A143+$A$11,IF($C$7,8,0),1,1) -> 276.84 | E143: =OFFSET(InputPriceData!D$15,CalculationsAndCharts!$A143+$A$11,IF($C$7,8,0),1,1) -> 277.55 | F143: =OFFSET(InputPriceData!E$15,CalculationsAndCharts!$A143+$A$11,IF($C$7,8,0),1,1) -> 275.73 | G143: =OFFSET(InputPriceData!F$15,CalculationsAndCharts!$A143+$A$11,IF($C$7,8,0),1,1) -> 276.17 | H143: 274.0806191 | I143: 2.099710156 | J143: 9.82144385 | K143: 5.617796857 | L143: 0.2722703191 | M143: 0.62 | N143: 3.058760175 | O143: 0.4014929862 | P143: 6.866748938 | Q143: 14.53115789 | R143: -0.3581849857 | S143: -0.3581849857 | T143: -0.3748021978 | U143: 4.38 | V143: 0.5228289799 | W143: 1.307476294 | X143: 0.3998764507 | Y143: 0.3998764507 | Z143: 0.2026682063 | AC143: 0.3998764507 | AD143: 0.2026682063 | AQ143: 71924800
A144: 112 | B144: =OFFSET(InputPriceData!B$15,CalculationsAndCharts!$A144+$A$11,0,1,1) -> 2018-03-09 | C144: =OFFSET(InputPriceData!G$15,CalculationsAndCharts!$A144+$A$11,IF($C$7,8,0),1,1) -> 113625300 | D144: =OFFSET(InputPriceData!C$15,CalculationsAndCharts!$A144+$A$11,IF($C$7,8,0),1,1) -> 273.37 | E144: =OFFSET(InputPriceData!D$15,CalculationsAndCharts!$A144+$A$11,IF($C$7,8,0),1,1) -> 276.52 | F144: =OFFSET(InputPriceData!E$15,CalculationsAndCharts!$A144+$A$11,IF($C$7,8,0),1,1) -> 273.02 | G144: =OFFSET(InputPriceData!F$15,CalculationsAndCharts!$A144+$A$11,IF($C$7,8,0),1,1) -> 276.52 | H144: 271.980909 | I144: 1.684390266 | J144: 9.168183425 | K144: 5.617796857 | L144: 0.2401184433 | M144: 4.13 | N144: 2.657267189 | O144: 1.52231913 | P144: 11.28868839 | Q144: 14.53115789 | R144: -0.1255805113 | S144: -0.1255805113 | T144: -0.1262469834 | U144: 6.04 | V144: 0.2915274257 | W144: 1.315259768 | X144: 0.2216500745 | Y144: 0.2216500745 | Z144: 0.1112821352 | AC144: 0.2216500745 | AD144: 0.1112821352 | AP144: 113625300
A145: 113 | B145: =OFFSET(InputPriceData!B$15,CalculationsAndCharts!$A145+$A$11,0,1,1) -> 2018-03-08 | C145: =OFFSET(InputPriceData!G$15,CalculationsAndCharts!$A145+$A$11,IF($C$7,8,0),1,1) -> 66901200 | D145: =OFFSET(InputPriceData!C$15,CalculationsAndCharts!$A145+$A$11,IF($C$7,8,0),1,1) -> 271.24 | E145: =OFFSET(InputPriceData!D$15,CalculationsAndCharts!$A145+$A$11,IF($C$7,8,0),1,1) -> 271.92 | F145: =OFFSET(InputPriceData!E$15,CalculationsAndCharts!$A145+$A$11,IF($C$7,8,0),1,1) -> 270.12 | G145: =OFFSET(InputPriceData!F$15,CalculationsAndCharts!$A145+$A$11,IF($C$7,8,0),1,1) -> 271.79 | H145: 270.2965187 | I145: 0.9668799472 | J145: 10.2367985 | K145: 5.617796857 | L145: 0.2913351956 | M145: 3.67 | N145: 1.134948059 | O145: 1.6500133 | P145: 12.91550871 | Q145: 14.53115789 | R145: -0.05886504189 | S145: -0.05886504189 | T145: -0.05893317455 | U145: 1.21 | V145: 0.1382708207 | W145: 1.322957716 | X145: 0.1045164324 | Y145: 0.1045164324 | Z145: 0.05230586533 | AC145: 0.1045164324 | AD145: 0.05230586533 | AP145: 66901200
A146: 114 | B146: =OFFSET(InputPriceData!B$15,CalculationsAndCharts!$A146+$A$11,0,1,1) -> 2018-03-07 | C146: =OFFSET(InputPriceData!G$15,CalculationsAndCharts!$A146+$A$11,IF($C$7,8,0),1,1) -> 87063500 | D146: =OFFSET(InputPriceData!C$15,CalculationsAndCharts!$A146+$A$11,IF($C$7,8,0),1,1) -> 268.14 | E146: =OFFSET(InputPriceData!D$15,CalculationsAndCharts!$A146+$A$11,IF($C$7,8,0),1,1) -> 270.87 | F146: =OFFSET(InputPriceData!E$15,CalculationsAndCharts!$A146+$A$11,IF($C$7,8,0),1,1) -> 267.92 | G146: =OFFSET(InputPriceData!F$15,CalculationsAndCharts!$A146+$A$11,IF($C$7,8,0),1,1) -> 270.48 | H146: 269.3296388 | I146: 0.9951293858 | J146: 12.16025411 | K146: 5.617796857 | L146: 0.3680075655 | M146: 2.71 | N146: -0.5150652412 | O146: 1.02739752 | P146: 13.22839641 | Q146: 14.53115789 | R146: -0.04693020147 | S146: -0.04693020147 | T146: -0.04696470079 | U146: 0.59 | V146: 0.04300537962 | W146: 1.329243607 | X146: 0.03235327173 | Y146: 0.03235327173 | Z146: 0.01617804714 | AC146: 0.03235327173 | AD146: 0.01617804714 | AP146: =IF(G146>=D146,C146,NA()) -> 87063500 | AQ146: =IF(G146<D146,C146,NA()) -> 
A147: 115 | B147: =OFFSET(InputPriceData!B$15,CalculationsAndCharts!$A147+$A$11,0,1,1) -> 2018-03-06 | C147: =OFFSET(InputPriceData!G$15,CalculationsAndCharts!$A147+$A$11,IF($C$7,8,0),1,1) -> 79213200 | D147: =OFFSET(InputPriceData!C$15,CalculationsAndCharts!$A147+$A$11,IF($C$7,8,0),1,1) -> 270.99 | E147: =OFFSET(InputPriceData!D$15,CalculationsAndCharts!$A147+$A$11,IF($C$7,8,0),1,1) -> 271.08 | F147: =OFFSET(InputPriceData!E$15,CalculationsAndCharts!$A147+$A$11,IF($C$7,8,0),1,1) -> 268.89 | G147: =OFFSET(InputPriceData!F$15,CalculationsAndCharts!$A147+$A$11,IF($C$7,8,0),1,1) -> 270.58 | H147: 268.3345094 | I147: 0.6615956485 | J147: 13.24142537 | K147: 5.617796857 | L147: 0.4042387551 | M147: 1.47 | N147: -1.542462761 | O147: -0.7848540826 | P147: 17.06169004 | Q147: 14.53115789 | R147: 0.08009825997 | S147: 0.08009825997 | T147: 0.08027021871 | U147: 3.77 | V147: -0.05233143074 | W147: 1.333543166 | X147: -0.0392423973 | Y147: -0.0392423973 | Z147: -0.01962371723 | AC147: -0.0392423973 | AD147: -0.01962371723 | AQ147: 79213200
A148: 116 | B148: =OFFSET(InputPriceData!B$15,CalculationsAndCharts!$A148+$A$11,0,1,1) -> 2018-03-05 | C148: =OFFSET(InputPriceData!G$15,CalculationsAndCharts!$A148+$A$11,IF($C$7,8,0),1,1) -> 97307400 | D148: =OFFSET(InputPriceData!C$15,CalculationsAndCharts!$A148+$A$11,IF($C$7,8,0),1,1) -> 265.47 | E148: =OFFSET(InputPriceData!D$15,CalculationsAndCharts!$A148+$A$11,IF($C$7,8,0),1,1) -> 270.59 | F148: =OFFSET(InputPriceData!E$15,CalculationsAndCharts!$A148+$A$11,IF($C$7,8,0),1,1) -> 265.35 | G148: =OFFSET(InputPriceData!F$15,CalculationsAndCharts!$A148+$A$11,IF($C$7,8,0),1,1) -> 269.89 | H148: 267.6729137 | I148: -0.7450307257 | J148: 13.70409662 | K148: 5.617796857 | L148: 0.4185045203 | M148: -0.91 | N148: -0.7576086788 | O148: -3.498036062 | P148: 22.97032439 | Q148: 13.74630381 | R148: 0.251221886 | S148: 0.251221886 | T148: 0.2567165825 | U148: 4.45 | V148: -0.1098478548 | W148: 1.335901491 | X148: -0.08222751121 | Y148: -0.08222751121 | Z148: -0.04113694455 | AC148: -0.08222751121 | AD148: -0.04113694455 | AP148: 97307400
A149: 117 | B149: =OFFSET(InputPriceData!B$15,CalculationsAndCharts!$A149+$A$11,0,1,1) -> 2018-03-02 | C149: =OFFSET(InputPriceData!G$15,CalculationsAndCharts!$A149+$A$11,IF($C$7,8,0),1,1) -> 139083200 | D149: =OFFSET(InputPriceData!C$15,CalculationsAndCharts!$A149+$A$11,IF($C$7,8,0),1,1) -> 263.56 | E149: =OFFSET(InputPriceData!D$15,CalculationsAndCharts!$A149+$A$11,IF($C$7,8,0),1,1) -> 267.44 | F149: =OFFSET(InputPriceData!E$15,CalculationsAndCharts!$A149+$A$11,IF($C$7,8,0),1,1) -> 262.58 | G149: =OFFSET(InputPriceData!F$15,CalculationsAndCharts!$A149+$A$11,IF($C$7,8,0),1,1) -> 266.81 | H149: 268.4179445 | I149: -2.188913854 | J149: 13.70409662 | K149: 5.584841991 | L149: 0.4209280142 | M149: -3.92 | N149: 2.740427383 | O149: -5.079249419 | P149: 27.44587361 | Q149: 10.24826775 | R149: 0.4562408173 | S149: 0.4562408173 | T149: 0.4925535708 | U149: -2.55 | V149: -0.06535411184 | W149: 1.336842927 | X149: -0.04888690399 | Y149: -0.04888690399 | Z149: -0.02444832192 | AC149: -0.04888690399 | AD149: -0.02444832192 | AP149: 139083200
A150: 118 | B150: =OFFSET(InputPriceData!B$15,CalculationsAndCharts!$A150+$A$11,0,1,1) -> 2018-03-01 | C150: =OFFSET(InputPriceData!G$15,CalculationsAndCharts!$A150+$A$11,IF($C$7,8,0),1,1) -> 176855100 | D150: =OFFSET(InputPriceData!C$15,CalculationsAndCharts!$A150+$A$11,IF($C$7,8,0),1,1) -> 269.12 | E150: =OFFSET(InputPriceData!D$15,CalculationsAndCharts!$A150+$A$11,IF($C$7,8,0),1,1) -> 270.86 | F150: =OFFSET(InputPriceData!E$15,CalculationsAndCharts!$A150+$A$11,IF($C$7,8,0),1,1) -> 263.75 | G150: =OFFSET(InputPriceData!F$15,CalculationsAndCharts!$A150+$A$11,IF($C$7,8,0),1,1) -> 265.44 | H150: 270.6068583 | I150: -1.828642784 | J150: 13.70409662 | K150: 6.521143409 | L150: 0.3551479833 | M150: -1.87 | N150: 7.819676802 | O150: -3.90494343 | P150: 31.29402099 | Q150: 5.169018328 | R150: 0.7164790196 | S150: 0.7164790196 | T150: 0.9003721324 | U150: -6.67 | V150: 0.0181926518 | W150: 1.337414303 | X150: 0.01360285422 | Y150: 0.01360285422 | Z150: 0.00680153199 | AC150: 0.01360285422 | AD150: 0.00680153199 | AQ150: 176855100
A151: 119 | B151: =OFFSET(InputPriceData!B$15,CalculationsAndCharts!$A151+$A$11,0,1,1) -> 2018-02-28 | C151: =OFFSET(InputPriceData!G$15,CalculationsAndCharts!$A151+$A$11,IF($C$7,8,0),1,1) -> 121907800 | D151: =OFFSET(InputPriceData!C$15,CalculationsAndCharts!$A151+$A$11,IF($C$7,8,0),1,1) -> 273.35 | E151: =OFFSET(InputPriceData!D$15,CalculationsAndCharts!$A151+$A$11,IF($C$7,8,0),1,1) -> 273.86 | F151: =OFFSET(InputPriceData!E$15,CalculationsAndCharts!$A151+$A$11,IF($C$7,8,0),1,1) -> 269 | G151: =OFFSET(InputPriceData!F$15,CalculationsAndCharts!$A151+$A$11,IF($C$7,8,0),1,1) -> 269.36 | H151: 272.4355011 | I151: -0.1398080062 | J151: 13.70409662 | K151: 7.679568938 | L151: 0.281735031 | M151: 5.61 | N151: 11.72462023 | O151: -1.264074897 | P151: 34.41622115 | Q151: 1.264074897 | R151: 0.9291443717 | S151: 0.9291443717 | T151: 1.652093725 | U151: -6.19 | V151: -0.005052298931 | W151: 1.338270095 | X151: -0.003775246081 | Y151: -0.003775246081 | Z151: -0.001887625283 | AC151: -0.003775246081 | AD151: -0.001887625283 | AQ151: 121907800
A152: 120 | B152: =OFFSET(InputPriceData!B$15,CalculationsAndCharts!$A152+$A$11,0,1,1) -> 2018-02-27 | C152: =OFFSET(InputPriceData!G$15,CalculationsAndCharts!$A152+$A$11,IF($C$7,8,0),1,1) -> 99099200 | D152: =OFFSET(InputPriceData!C$15,CalculationsAndCharts!$A152+$A$11,IF($C$7,8,0),1,1) -> 275.76 | E152: =OFFSET(InputPriceData!D$15,CalculationsAndCharts!$A152+$A$11,IF($C$7,8,0),1,1) -> 276.57 | F152: =OFFSET(InputPriceData!E$15,CalculationsAndCharts!$A152+$A$11,IF($C$7,8,0),1,1) -> 272.04 | G152: =OFFSET(InputPriceData!F$15,CalculationsAndCharts!$A152+$A$11,IF($C$7,8,0),1,1) -> 272.11 | H152: 272.5753091 | I152: 1.553450142 | J152: 13.70409662 | K152: 10.18579529 | L152: 0.1472715466 | M152: 9.01 | N152: 12.98869513 | O152: 2.265526002 | P152: 35.8264511 | Q152: 0 | R152: 1 | S152: 0.999 | T152: 3.800201167 | U152: -0.28 | V152: -0.2111744436 | W152: 1.339254032 | X152: -0.157680648 | Y152: -0.157680648 | Z152: -0.07900428773 | AC152: -0.157680648 | AD152: -0.07900428773 | AQ152: 99099200
A153: 121 | B153: =OFFSET(InputPriceData!B$15,CalculationsAndCharts!$A153+$A$11,0,1,1) -> 2018-02-26 | C153: =OFFSET(InputPriceData!G$15,CalculationsAndCharts!$A153+$A$11,IF($C$7,8,0),1,1) -> 86491400 | D153: =OFFSET(InputPriceData!C$15,CalculationsAndCharts!$A153+$A$11,IF($C$7,8,0),1,1) -> 273.6 | E153: =OFFSET(InputPriceData!D$15,CalculationsAndCharts!$A153+$A$11,IF($C$7,8,0),1,1) -> 275.66 | F153: =OFFSET(InputPriceData!E$15,CalculationsAndCharts!$A153+$A$11,IF($C$7,8,0),1,1) -> 272.94 | G153: =OFFSET(InputPriceData!F$15,CalculationsAndCharts!$A153+$A$11,IF($C$7,8,0),1,1) -> 275.55 | H153: 271.021859 | I153: 1.698217169 | J153: 12.15064647 | K153: 15.07875456 | L153: -0.1075347961 | M153: 16.26 | N153: 10.72316913 | O153: 4.823432441 | P153: 33.5609251 | Q153: 1.557465859 | R153: 0.9113019807 | S153: 0.9113019807 | T153: 1.535151198 | U153: 7.43 | V153: -0.5519091875 | W153: 1.338966559 | X153: -0.4121904194 | Y153: -0.4121904194 | Z153: -0.2090898891 | AC153: -0.4121904194 | AD153: -0.2090898891 | AP153: 86491400
A154: 122 | B154: =OFFSET(InputPriceData!B$15,CalculationsAndCharts!$A154+$A$11,0,1,1) -> 2018-02-23 | C154: =OFFSET(InputPriceData!G$15,CalculationsAndCharts!$A154+$A$11,IF($C$7,8,0),1,1) -> 92766400 | D154: =OFFSET(InputPriceData!C$15,CalculationsAndCharts!$A154+$A$11,IF($C$7,8,0),1,1) -> 269.5 | E154: =OFFSET(InputPriceData!D$15,CalculationsAndCharts!$A154+$A$11,IF($C$7,8,0),1,1) -> 272.39 | F154: =OFFSET(InputPriceData!E$15,CalculationsAndCharts!$A154+$A$11,IF($C$7,8,0),1,1) -> 268.96 | G154: =OFFSET(InputPriceData!F$15,CalculationsAndCharts!$A154+$A$11,IF($C$7,8,0),1,1) -> 272.39 | H154: 269.3236418 | I154: 0.1620711356 | J154: 10.4524293 | K154: 19.54093919 | L154: -0.3030173114 | M154: 16.93 | N154: 5.899736686 | O154: 3.149139449 | P154: 28.73749266 | Q154: 5.48559214 | R154: 0.6794215266 | S154: 0.6794215266 | T154: 0.8280387953 | U154: 4.62 | V154: -0.8636345212 | W154: 1.334274346 | X154: -0.6472690748 | Y154: -0.6472690748 | Z154: -0.3357015571 | AC154: -0.6472690748 | AD154: -0.3357015571 | AP154: 92766400
A155: 123 | B155: =OFFSET(InputPriceData!B$15,CalculationsAndCharts!$A155+$A$11,0,1,1) -> 2018-02-22 | C155: =OFFSET(InputPriceData!G$15,CalculationsAndCharts!$A155+$A$11,IF($C$7,8,0),1,1) -> 110511300 | D155: =OFFSET(InputPriceData!C$15,CalculationsAndCharts!$A155+$A$11,IF($C$7,8,0),1,1) -> 268.81 | E155: =OFFSET(InputPriceData!D$15,CalculationsAndCharts!$A155+$A$11,IF($C$7,8,0),1,1) -> 270.75 | F155: =OFFSET(InputPriceData!E$15,CalculationsAndCharts!$A155+$A$11,IF($C$7,8,0),1,1) -> 267.36 | G155: =OFFSET(InputPriceData!F$15,CalculationsAndCharts!$A155+$A$11,IF($C$7,8,0),1,1) -> 268.12 | H155: 269.1615707 | I155: -0.6831333526 | J155: 10.29035817 | K155: 21.26348307 | L155: -0.3477587662 | M155: 2.71 | N155: 2.750597238 | O155: 1.962901003 | P155: 25.58835321 | Q155: 9.019876396 | R155: 0.4787438422 | S155: 0.4787438422 | T155: 0.5213533323 | U155: -0.99 | V155: -1.063011897 | W155: 1.322916751 | X155: -0.8035365011 | Y155: -0.8035365011 | Z155: -0.4257557675 | AC155: -0.8035365011 | AD155: -0.4257557675 | AQ155: 110511300
A156: 124 | B156: =OFFSET(InputPriceData!B$15,CalculationsAndCharts!$A156+$A$11,0,1,1) -> 2018-02-21 | C156: =OFFSET(InputPriceData!G$15,CalculationsAndCharts!$A156+$A$11,IF($C$7,8,0),1,1) -> 98883700 | D156: =OFFSET(InputPriceData!C$15,CalculationsAndCharts!$A156+$A$11,IF($C$7,8,0),1,1) -> 269.6 | E156: =OFFSET(InputPriceData!D$15,CalculationsAndCharts!$A156+$A$11,IF($C$7,8,0),1,1) -> 272.4 | F156: =OFFSET(InputPriceData!E$15,CalculationsAndCharts!$A156+$A$11,IF($C$7,8,0),1,1) -> 267.66 | G156: =OFFSET(InputPriceData!F$15,CalculationsAndCharts!$A156+$A$11,IF($C$7,8,0),1,1) -> 267.77 | H156: 269.844704 | I156: -0.03226813438 | J156: 10.29035817 | K156: 21.53816154 | L156: -0.3533875741 | M156: 0.91 | N156: 0.7876962352 | O156: 4.860691143 | P156: 23.62545221 | Q156: 12.6596858 | R156: 0.3022109606 | S156: 0.3022109606 | T156: 0.3119510082 | U156: -3.03 | V156: -1.232647332 | W156: 1.305159567 | X156: -0.944441862 | Y156: -0.944441862 | Z156: -0.5129248054 | AC156: -0.944441862 | AD156: -0.5129248054 | AQ156: 98883700
A157: 125 | B157: =OFFSET(InputPriceData!B$15,CalculationsAndCharts!$A157+$A$11,0,1,1) -> 2018-02-20 | C157: =OFFSET(InputPriceData!G$15,CalculationsAndCharts!$A157+$A$11,IF($C$7,8,0),1,1) -> 86369700 | D157: =OFFSET(InputPriceData!C$15,CalculationsAndCharts!$A157+$A$11,IF($C$7,8,0),1,1) -> 269.73 | E157: =OFFSET(InputPriceData!D$15,CalculationsAndCharts!$A157+$A$11,IF($C$7,8,0),1,1) -> 271.36 | F157: =OFFSET(InputPriceData!E$15,CalculationsAndCharts!$A157+$A$11,IF($C$7,8,0),1,1) -> 268.22 | G157: =OFFSET(InputPriceData!F$15,CalculationsAndCharts!$A157+$A$11,IF($C$7,8,0),1,1) -> 269.11 | H157: 269.8769721 | I157: 1.446449731 | J157: 10.29035817 | K157: 22.55179291 | L157: -0.3733444473 | M157: 7.41 | N157: -4.072994908 | O157: 5.908634353 | P157: 18.76476107 | Q157: 18.83948138 | R157: -0.001987018278 | S157: -0.001987018278 | T157: -0.001987020893 | U157: -1.62 | V157: -1.465899459 | W157: 1.280187562 | X157: -1.145066163 | Y157: -1.145066163 | Z157: -0.651283062 | AC157: -1.145066163 | AD157: -0.651283062 | AQ157: 86369700
A158: 126 | B158: =OFFSET(InputPriceData!B$15,CalculationsAndCharts!$A158+$A$11,0,1,1) -> 2018-02-16 | C158: =OFFSET(InputPriceData!G$15,CalculationsAndCharts!$A158+$A$11,IF($C$7,8,0),1,1) -> 160420100 | D158: =OFFSET(InputPriceData!C$15,CalculationsAndCharts!$A158+$A$11,IF($C$7,8,0),1,1) -> 270.02 | E158: =OFFSET(InputPriceData!D$15,CalculationsAndCharts!$A158+$A$11,IF($C$7,8,0),1,1) -> 273 | F158: =OFFSET(InputPriceData!E$15,CalculationsAndCharts!$A158+$A$11,IF($C$7,8,0),1,1) -> 269.97 | G158: =OFFSET(InputPriceData!F$15,CalculationsAndCharts!$A158+$A$11,IF($C$7,8,0),1,1) -> 270.8 | H158: 268.4305224 | I158: 2.753005336 | J158: 8.843908438 | K158: 22.83775597 | L158: -0.4417017791 | M158: -2.32 | N158: -9.98162926 | O158: 4.475549216 | P158: 12.85612671 | Q158: 24.35851018 | R158: -0.3090822435 | S158: -0.3090822435 | T158: -0.3195303988 | U158: 3.49 | V158: -1.78084362 | W158: 1.243816858 | X158: -1.431757102 | Y158: -1.431757102 | Z158: -0.8991393594 | AC158: -1.431757102 | AD158: -0.8991393594 | AP158: 160420100
A159: 127 | B159: =OFFSET(InputPriceData!B$15,CalculationsAndCharts!$A159+$A$11,0,1,1) -> 2018-02-15 | C159: =OFFSET(InputPriceData!G$15,CalculationsAndCharts!$A159+$A$11,IF($C$7,8,0),1,1) -> 111200300 | D159: =OFFSET(InputPriceData!C$15,CalculationsAndCharts!$A159+$A$11,IF($C$7,8,0),1,1) -> 269.28 | E159: =OFFSET(InputPriceData!D$15,CalculationsAndCharts!$A159+$A$11,IF($C$7,8,0),1,1) -> 270.74 | F159: =OFFSET(InputPriceData!E$15,CalculationsAndCharts!$A159+$A$11,IF($C$7,8,0),1,1) -> 266.5 | G159: =OFFSET(InputPriceData!F$15,CalculationsAndCharts!$A159+$A$11,IF($C$7,8,0),1,1) -> 270.73 | H159: 265.6775171 | I159: 2.890335565 | J159: 6.936293101 | K159: 22.83775597 | L159: -0.5340712253 | M159: -8.47 | N159: -14.45717848 | O159: 3.848147388 | P159: 8.380577498 | Q159: 26.84069157 | R159: -0.5241183682 | S159: -0.5241183682 | T159: -0.5820011261 | U159: 6.98 | V159: -2.09925834 | W159: 1.188706099 | X159: -1.766002834 | Y159: -1.766002834 | Z159: -1.389230228 | AC159: -1.766002834 | AD159: -1.389230228 | AP159: 111200300
A160: 128 | B160: =OFFSET(InputPriceData!B$15,CalculationsAndCharts!$A160+$A$11,0,1,1) -> 2018-02-14 | C160: =OFFSET(InputPriceData!G$15,CalculationsAndCharts!$A160+$A$11,IF($C$7,8,0),1,1) -> 120735700 | D160: =OFFSET(InputPriceData!C$15,CalculationsAndCharts!$A160+$A$11,IF($C$7,8,0),1,1) -> 262.08 | E160: =OFFSET(InputPriceData!D$15,CalculationsAndCharts!$A160+$A$11,IF($C$7,8,0),1,1) -> 267.72 | F160: =OFFSET(InputPriceData!E$15,CalculationsAndCharts!$A160+$A$11,IF($C$7,8,0),1,1) -> 262.07 | G160: =OFFSET(InputPriceData!F$15,CalculationsAndCharts!$A160+$A$11,IF($C$7,8,0),1,1) -> 267.31 | H160: 262.7871815 | I160: 2.076300646 | J160: 4.848868545 | K160: 22.83775597 | L160: -0.6497320544 | M160: -12.21 | N160: -18.30532586 | O160: 3.122200158 | P160: 4.53243011 | Q160: 28.73097259 | R160: -0.7274824737 | S160: -0.7274824737 | T160: -0.9233587407 | U160: 4.21 | V160: -2.29470573 | W160: 1.108084923 | X160: -2.070875329 | Y160: -1.999 | Z160: -4.146899804 | AC160: -2.070875329 | AD160: -4.146899804 | AP160: 120735700
A161: 129 | B161: =OFFSET(InputPriceData!B$15,CalculationsAndCharts!$A161+$A$11,0,1,1) -> 2018-02-13 | C161: =OFFSET(InputPriceData!G$15,CalculationsAndCharts!$A161+$A$11,IF($C$7,8,0),1,1) -> 81223600 | D161: =OFFSET(InputPriceData!C$15,CalculationsAndCharts!$A161+$A$11,IF($C$7,8,0),1,1) -> 261.74 | E161: =OFFSET(InputPriceData!D$15,CalculationsAndCharts!$A161+$A$11,IF($C$7,8,0),1,1) -> 264.37 | F161: =OFFSET(InputPriceData!E$15,CalculationsAndCharts!$A161+$A$11,IF($C$7,8,0),1,1) -> 261.09 | G161: =OFFSET(InputPriceData!F$15,CalculationsAndCharts!$A161+$A$11,IF($C$7,8,0),1,1) -> 263.75 | H161: 260.7108809 | I161: 1.124266891 | J161: 3.319783843 | K161: 22.83775597 | L161: -0.7461700247 | M161: -15.63 | N161: -21.42752602 | O161: 1.410229952 | P161: 1.410229952 | Q161: 30.65640755 | R161: -0.9120437899 | S161: -0.9120437899 | T161: -1.539544459 | U161: 4.46 | V161: -2.321292439 | W161: 1.001411261 | X161: -2.318021106 | Y161: -1.999 | Z161: -4.146899804 | AC161: -2.318021106 | AD161: -4.146899804 | AP161: 81223600
A162: 130 | B162: =OFFSET(InputPriceData!B$15,CalculationsAndCharts!$A162+$A$11,0,1,1) -> 2018-02-12 | C162: =OFFSET(InputPriceData!G$15,CalculationsAndCharts!$A162+$A$11,IF($C$7,8,0),1,1) -> 143736000 | D162: =OFFSET(InputPriceData!C$15,CalculationsAndCharts!$A162+$A$11,IF($C$7,8,0),1,1) -> 261.6 | E162: =OFFSET(InputPriceData!D$15,CalculationsAndCharts!$A162+$A$11,IF($C$7,8,0),1,1) -> 264.76 | F162: =OFFSET(InputPriceData!E$15,CalculationsAndCharts!$A162+$A$11,IF($C$7,8,0),1,1) -> 259.45 | G162: =OFFSET(InputPriceData!F$15,CalculationsAndCharts!$A162+$A$11,IF($C$7,8,0),1,1) -> 263.1 | H162: =$D$18*(G162+G163)/2+$E$18*H163+$F$18*H164 -> 259.586614 | I162: =H162-H163 -> -0.7120758603 | J162: =SUMIF(OFFSET($I162,0,0,$C$16,1),">0") -> 3.189291998 | K162: =-SUMIF(OFFSET($I162,0,0,$C$16,1),"<0") -> 22.83775597 | L162: =(J162-K162)/(J162+K162) -> -0.7549247997 | M162: =G162-OFFSET(G162,$C$19,0,1,1) -> -19.18 | N162: =$D$21*(M162+M163)/2+$E$21*N163+$F$21*N164 -> -22.83775597 | O162: =N162-N163 -> -1.557465859 | P162: =SUMIF(OFFSET($O162,0,0,$C$19,1),">0") -> 0 | Q162: =-SUMIF(OFFSET($O162,0,0,$C$19,1),"<0") -> 31.87127712 | R162: =(P162-Q162)/(P162+Q162) -> -1 | S162: =IF(R162<-0.999,-0.999,IF(R162> 0.999,0.999,R162)) -> -0.999 | T162: =0.5*LN((1+S162)/(1-S162)) -> -3.800201167 | U162: 7.64 | V162: -2.171018809 | W162: =_xlfn.STDEV.P(OFFSET(V162,0,0,$A$24,1)) -> 0.8725570951 | X162: =V162/W162 -> -2.488110888 | Y162: =IF(X162<-1.999,-1.999,IF(X162>1.999, 1.999,X162)) -> -1.999 | Z162: =0.5*LN((1+Y162/2)/(1-Y162/2)) -> -4.146899804 | AC162: =IF(OR($R$9=1,$R$9=3),IF($R$3=1,L162,X162),NA()) -> -2.488110888 | AD162: =IF(OR($R$9=2,$R$9=3),IF($R$3=1,T162,Z162),NA()) -> -4.146899804 | AP162: 143736000
A163: 131 | B163: =OFFSET(InputPriceData!B$15,CalculationsAndCharts!$A163+$A$11,0,1,1) -> 2018-02-09 | C163: =OFFSET(InputPriceData!G$15,CalculationsAndCharts!$A163+$A$11,IF($C$7,8,0),1,1) -> 283565300 | D163: =OFFSET(InputPriceData!C$15,CalculationsAndCharts!$A163+$A$11,IF($C$7,8,0),1,1) -> 258.6 | E163: =OFFSET(InputPriceData!D$15,CalculationsAndCharts!$A163+$A$11,IF($C$7,8,0),1,1) -> 261.38 | F163: =OFFSET(InputPriceData!E$15,CalculationsAndCharts!$A163+$A$11,IF($C$7,8,0),1,1) -> 250.78 | G163: =OFFSET(InputPriceData!F$15,CalculationsAndCharts!$A163+$A$11,IF($C$7,8,0),1,1) -> 259.29 | H163: 260.2986898 | I163: -3.125215271 | J163: 4.476128306 | K163: 22.12568011 | L163: -0.6634718786 | M163: -24.87 | N163: -21.28029012 | O163: -3.92812628 | P163: 0 | Q163: 30.45166583 | R163: -1 | S163: -0.999 | T163: -3.800201167 | U163: -6.12 | V163: -1.756768237 | W163: 0.7286535247 | X163: -2.41097885 | Y163: -1.999 | Z163: -4.146899804 | AC163: -2.41097885 | AD163: -4.146899804 | AP163: 283565300
A164: 132 | B164: =OFFSET(InputPriceData!B$15,CalculationsAndCharts!$A164+$A$11,0,1,1) -> 2018-02-08 | C164: =OFFSET(InputPriceData!G$15,CalculationsAndCharts!$A164+$A$11,IF($C$7,8,0),1,1) -> 246449500 | D164: =OFFSET(InputPriceData!C$15,CalculationsAndCharts!$A164+$A$11,IF($C$7,8,0),1,1) -> 265.75 | E164: =OFFSET(InputPriceData!D$15,CalculationsAndCharts!$A164+$A$11,IF($C$7,8,0),1,1) -> 265.91 | F164: =OFFSET(InputPriceData!E$15,CalculationsAndCharts!$A164+$A$11,IF($C$7,8,0),1,1) -> 255.42 | G164: =OFFSET(InputPriceData!F$15,CalculationsAndCharts!$A164+$A$11,IF($C$7,8,0),1,1) -> 255.46 | H164: 263.4239051 | I164: -2.987068313 | J164: 5.532972477 | K164: 19.00046484 | L164: -0.548944373 | M164: -25.45 | N164: -17.35216383 | O164: -3.534284257 | P164: 0.2600535435 | Q164: 26.52353955 | R164: -0.980581131 | S164: -0.980581131 | T164: -2.312450178 | U164: -11.4 | V164: -1.170118027 | W164: 0.5917311768 | X164: -1.977448668 | Y164: -1.977448668 | Z164: -2.586300857 | AC164: -1.977448668 | AD164: -2.586300857 | AQ164: 246449500
A165: 133 | B165: =OFFSET(InputPriceData!B$15,CalculationsAndCharts!$A165+$A$11,0,1,1) -> 2018-02-07 | C165: =OFFSET(InputPriceData!G$15,CalculationsAndCharts!$A165+$A$11,IF($C$7,8,0),1,1) -> 167376100 | D165: =OFFSET(InputPriceData!C$15,CalculationsAndCharts!$A165+$A$11,IF($C$7,8,0),1,1) -> 266.23 | E165: =OFFSET(InputPriceData!D$15,CalculationsAndCharts!$A165+$A$11,IF($C$7,8,0),1,1) -> 270.06 | F165: =OFFSET(InputPriceData!E$15,CalculationsAndCharts!$A165+$A$11,IF($C$7,8,0),1,1) -> 265.32 | G165: =OFFSET(InputPriceData!F$15,CalculationsAndCharts!$A165+$A$11,IF($C$7,8,0),1,1) -> 265.41 | H165: 266.4109734 | I165: -2.646034355 | J165: 6.292609988 | K165: 16.01339653 | L165: -0.4357923295 | M165: -15.38 | N165: -13.81787958 | O165: -3.639809401 | P165: 0.2600535435 | Q165: 23.08498945 | R165: -0.9777208769 | S165: -0.9777208769 | T165: -2.243025166 | U165: 3.71 | V165: -0.6467684602 | W165: 0.484283494 | X165: -1.335516218 | Y165: -1.335516218 | Z165: -0.8066861311 | AC165: -1.335516218 | AD165: -0.8066861311 | AQ165: 167376100
A166: 134 | B166: =OFFSET(InputPriceData!B$15,CalculationsAndCharts!$A166+$A$11,0,1,1) -> 2018-02-06 | C166: =OFFSET(InputPriceData!G$15,CalculationsAndCharts!$A166+$A$11,IF($C$7,8,0),1,1) -> 355026800 | D166: =OFFSET(InputPriceData!C$15,CalculationsAndCharts!$A166+$A$11,IF($C$7,8,0),1,1) -> 257.75 | E166: =OFFSET(InputPriceData!D$15,CalculationsAndCharts!$A166+$A$11,IF($C$7,8,0),1,1) -> 267.42 | F166: =OFFSET(InputPriceData!E$15,CalculationsAndCharts!$A166+$A$11,IF($C$7,8,0),1,1) -> 256.52 | G166: =OFFSET(InputPriceData!F$15,CalculationsAndCharts!$A166+$A$11,IF($C$7,8,0),1,1) -> 266.86 | H166: 269.0570078 | I166: -4.892959277 | J166: 7.225079189 | K166: 13.36736217 | L166: -0.2982785226 | M166: -14.04 | N166: -10.17807018 | O166: -6.179795586 | P166: 0.2600535435 | Q166: 19.55091093 | R166: -0.9737465035 | S166: -0.9737465035 | T166: -2.159944807 | U166: -6.26 | V166: -0.08141242568 | W166: 0.4075289822 | X166: -0.1997708856 | Y166: -0.1997708856 | Z166: -0.1002196347 | AC166: -0.1997708856 | AD166: -0.1002196347 | AP166: 355026800
A167: 135 | B167: =OFFSET(InputPriceData!B$15,CalculationsAndCharts!$A167+$A$11,0,1,1) -> 2018-02-05 | C167: =OFFSET(InputPriceData!G$15,CalculationsAndCharts!$A167+$A$11,IF($C$7,8,0),1,1) -> 294681800 | D167: =OFFSET(InputPriceData!C$15,CalculationsAndCharts!$A167+$A$11,IF($C$7,8,0),1,1) -> 271.14 | E167: =OFFSET(InputPriceData!D$15,CalculationsAndCharts!$A167+$A$11,IF($C$7,8,0),1,1) -> 273.52 | F167: =OFFSET(InputPriceData!E$15,CalculationsAndCharts!$A167+$A$11,IF($C$7,8,0),1,1) -> 261.09 | G167: =OFFSET(InputPriceData!F$15,CalculationsAndCharts!$A167+$A$11,IF($C$7,8,0),1,1) -> 261.7 | H167: 273.9499671 | I167: -4.462184622 | J167: 8.104614632 | K167: 8.474402897 | L167: -0.02230459463 | M167: -18.6 | N167: -3.998274591 | O167: -5.519028792 | P167: 0.2600535435 | Q167: 13.49566341 | R167: -0.9621897507 | S167: -0.9621897507 | T167: -1.974618069 | U167: -17.5 | V167: 0.5916530741 | W167: 0.3686770224 | X167: 1.604800512 | Y167: 1.604800512 | Z167: 1.10531552 | AC167: 1.604800512 | AD167: 1.10531552 | AQ167: 294681800
A168: 136 | B168: =OFFSET(InputPriceData!B$15,CalculationsAndCharts!$A168+$A$11,0,1,1) -> 2018-02-02 | C168: =OFFSET(InputPriceData!G$15,CalculationsAndCharts!$A168+$A$11,IF($C$7,8,0),1,1) -> 173174800 | D168: =OFFSET(InputPriceData!C$15,CalculationsAndCharts!$A168+$A$11,IF($C$7,8,0),1,1) -> 277.72 | E168: =OFFSET(InputPriceData!D$15,CalculationsAndCharts!$A168+$A$11,IF($C$7,8,0),1,1) -> 277.86 | F168: =OFFSET(InputPriceData!E$15,CalculationsAndCharts!$A168+$A$11,IF($C$7,8,0),1,1) -> 273.09 | G168: =OFFSET(InputPriceData!F$15,CalculationsAndCharts!$A168+$A$11,IF($C$7,8,0),1,1) -> 273.12 | H168: 278.4121517 | I168: -1.72254388 | J168: 9.033521147 | K168: 4.012218276 | L168: 0.3848998288 | M168: -4.92 | N168: 1.520754201 | O168: -2.482181391 | P168: 0.2600535435 | Q168: 8.357630752 | R168: -0.9396465374 | S168: -0.9396465374 | T168: -1.735021358 | U168: -6.4 | V168: 1.088350061 | W168: 0.3638160169 | X168: 2.991484736 | Y168: 1.999 | Z168: 4.146899804 | AC168: 2.991484736 | AD168: 4.146899804 | AQ168: 173174800
A169: 137 | B169: =OFFSET(InputPriceData!B$15,CalculationsAndCharts!$A169+$A$11,0,1,1) -> 2018-02-01 | C169: =OFFSET(InputPriceData!G$15,CalculationsAndCharts!$A169+$A$11,IF($C$7,8,0),1,1) -> 90102500 | D169: =OFFSET(InputPriceData!C$15,CalculationsAndCharts!$A169+$A$11,IF($C$7,8,0),1,1) -> 278.7 | E169: =OFFSET(InputPriceData!D$15,CalculationsAndCharts!$A169+$A$11,IF($C$7,8,0),1,1) -> 280.67 | F169: =OFFSET(InputPriceData!E$15,CalculationsAndCharts!$A169+$A$11,IF($C$7,8,0),1,1) -> 278.31 | G169: =OFFSET(InputPriceData!F$15,CalculationsAndCharts!$A169+$A$11,IF($C$7,8,0),1,1) -> 279.2 | H169: 280.1346956 | I169: -0.9578118229 | J169: 10.01676571 | K169: 2.289674396 | L169: 0.6278900519 | M169: 2.42 | N169: 4.002935592 | O169: -1.890281023 | P169: 0.2600535435 | Q169: 6.319236795 | R169: -0.9209478439 | S169: -0.9209478439 | T169: -1.595233087 | U169: -0.18 | V169: 1.349193734 | W169: 0.3666088693 | X169: 3.680199383 | Y169: 1.999 | Z169: 4.146899804 | AC169: 3.680199383 | AD169: 4.146899804 | AP169: 90102500
A170: 138 | B170: =OFFSET(InputPriceData!B$15,CalculationsAndCharts!$A170+$A$11,0,1,1) -> 2018-01-31 | C170: =OFFSET(InputPriceData!G$15,CalculationsAndCharts!$A170+$A$11,IF($C$7,8,0),1,1) -> 108364800 | D170: =OFFSET(InputPriceData!C$15,CalculationsAndCharts!$A170+$A$11,IF($C$7,8,0),1,1) -> 280.34 | E170: =OFFSET(InputPriceData!D$15,CalculationsAndCharts!$A170+$A$11,IF($C$7,8,0),1,1) -> 280.91 | F170: =OFFSET(InputPriceData!E$15,CalculationsAndCharts!$A170+$A$11,IF($C$7,8,0),1,1) -> 278.31 | G170: =OFFSET(InputPriceData!F$15,CalculationsAndCharts!$A170+$A$11,IF($C$7,8,0),1,1) -> 279.52 | H170: 281.0925074 | I170: -1.045899512 | J170: 10.55962318 | K170: 1.331862573 | L170: 0.7759972807 | M170: 2.27 | N170: 5.893216616 | O170: -1.925434955 | P170: 0.4250312021 | Q170: 4.428955772 | R170: -0.8248733652 | S170: -0.8248733652 | T170: -1.171878267 | U170: -2.76 | V170: 1.547037842 | W170: 0.3670717284 | X170: 4.214538256 | Y170: 1.999 | Z170: 4.146899804 | AC170: 4.214538256 | AD170: 4.146899804 | AQ170: 108364800
A171: 139 | B171: =OFFSET(InputPriceData!B$15,CalculationsAndCharts!$A171+$A$11,0,1,1) -> 2018-01-30 | C171: =OFFSET(InputPriceData!G$15,CalculationsAndCharts!$A171+$A$11,IF($C$7,8,0),1,1) -> 131796400 | D171: =OFFSET(InputPriceData!C$15,CalculationsAndCharts!$A171+$A$11,IF($C$7,8,0),1,1) -> 280.21 | E171: =OFFSET(InputPriceData!D$15,CalculationsAndCharts!$A171+$A$11,IF($C$7,8,0),1,1) -> 282.34 | F171: =OFFSET(InputPriceData!E$15,CalculationsAndCharts!$A171+$A$11,IF($C$7,8,0),1,1) -> 278.85 | G171: =OFFSET(InputPriceData!F$15,CalculationsAndCharts!$A171+$A$11,IF($C$7,8,0),1,1) -> 279.38 | H171: 282.1384069 | I171: -0.2859630607 | J171: 11.20257328 | K171: 0.2859630607 | L171: 0.9502176688 | M171: 4.75 | N171: 7.818651571 | O171: -1.214869575 | P171: 1.170033887 | Q171: 2.503520816 | R171: -0.3629963445 | S171: -0.3629963445 | T171: -0.3803326778 | U171: -4.78 | V171: 1.710926587 | W171: 0.3634855521 | X171: 4.707000256 | Y171: 1.999 | Z171: 4.146899804 | AC171: 4.707000256 | AD171: 4.146899804 | AQ171: 131796400
A172: 140 | B172: =OFFSET(InputPriceData!B$15,CalculationsAndCharts!$A172+$A$11,0,1,1) -> 2018-01-29 | C172: =OFFSET(InputPriceData!G$15,CalculationsAndCharts!$A172+$A$11,IF($C$7,8,0),1,1) -> 90118300 | D172: =OFFSET(InputPriceData!C$15,CalculationsAndCharts!$A172+$A$11,IF($C$7,8,0),1,1) -> 283.52 | E172: =OFFSET(InputPriceData!D$15,CalculationsAndCharts!$A172+$A$11,IF($C$7,8,0),1,1) -> 284.01 | F172: =OFFSET(InputPriceData!E$15,CalculationsAndCharts!$A172+$A$11,IF($C$7,8,0),1,1) -> 282.1 | G172: =OFFSET(InputPriceData!F$15,CalculationsAndCharts!$A172+$A$11,IF($C$7,8,0),1,1) -> 282.28 | H172: 282.4243699 | I172: 0.845389999 | J172: 12.30207921 | K172: 0 | L172: 1 | M172: 6.71 | N172: 9.033521147 | O172: -0.1378545687 | P172: 2.106842827 | Q172: 1.288651241 | R172: 0.2409639275 | S172: 0.2409639275 | T172: 0.2457972074 | U172: 1.37 | V172: 1.764500825 | W172: 0.3549255591 | X172: 4.97146734 | Y172: 1.999 | Z172: 4.146899804 | AC172: 4.97146734 | AD172: 4.146899804 | AQ172: 90118300
A173: 141 | B173: =OFFSET(InputPriceData!B$15,CalculationsAndCharts!$A173+$A$11,0,1,1) -> 2018-01-26 | C173: =OFFSET(InputPriceData!G$15,CalculationsAndCharts!$A173+$A$11,IF($C$7,8,0),1,1) -> 107743100 | D173: =OFFSET(InputPriceData!C$15,CalculationsAndCharts!$A173+$A$11,IF($C$7,8,0),1,1) -> 281.85 | E173: =OFFSET(InputPriceData!D$15,CalculationsAndCharts!$A173+$A$11,IF($C$7,8,0),1,1) -> 284.21 | F173: =OFFSET(InputPriceData!E$15,CalculationsAndCharts!$A173+$A$11,IF($C$7,8,0),1,1) -> 281.56 | G173: =OFFSET(InputPriceData!F$15,CalculationsAndCharts!$A173+$A$11,IF($C$7,8,0),1,1) -> 284.16 | H173: 281.5789799 | I173: 0.8029110091 | J173: 12.86807359 | K173: 0 | L173: 1 | M173: 10.37 | N173: 9.171375715 | O173: 0.2600535435 | P173: 3.043661206 | Q173: 1.150796672 | R173: 0.4512775163 | S173: 0.4512775163 | T173: 0.4863033369 | U173: 3.37 | V173: 1.735766852 | W173: 0.3449066169 | X173: 5.03257046 | Y173: 1.999 | Z173: 4.146899804 | AC173: 5.03257046 | AD173: 4.146899804 | AP173: 107743100
A174: 142 | B174: =OFFSET(InputPriceData!B$15,CalculationsAndCharts!$A174+$A$11,0,1,1) -> 2018-01-25 | C174: =OFFSET(InputPriceData!G$15,CalculationsAndCharts!$A174+$A$11,IF($C$7,8,0),1,1) -> 84587300 | D174: =OFFSET(InputPriceData!C$15,CalculationsAndCharts!$A174+$A$11,IF($C$7,8,0),1,1) -> 281.76 | E174: =OFFSET(InputPriceData!D$15,CalculationsAndCharts!$A174+$A$11,IF($C$7,8,0),1,1) -> 281.87 | F174: =OFFSET(InputPriceData!E$15,CalculationsAndCharts!$A174+$A$11,IF($C$7,8,0),1,1) -> 280.02 | G174: =OFFSET(InputPriceData!F$15,CalculationsAndCharts!$A174+$A$11,IF($C$7,8,0),1,1) -> 280.91 | H174: 280.7760689 | I174: 0.5472159437 | J174: 13.50300288 | K174: 0 | L174: 1 | M174: 9.1 | N174: 8.911322172 | O174: -0.09573415298 | P174: 3.406816584 | Q174: 1.150796672 | R174: 0.4950002962 | S174: 0.4950002962 | T174: 0.5426619206 | U174: 0.01 | V174: 1.717368348 | W174: 0.3369809232 | X174: 5.096337003 | Y174: 1.999 | Z174: 4.146899804 | AC174: 5.096337003 | AD174: 4.146899804 | AQ174: 84587300
A175: 143 | B175: =OFFSET(InputPriceData!B$15,CalculationsAndCharts!$A175+$A$11,0,1,1) -> 2018-01-24 | C175: =OFFSET(InputPriceData!G$15,CalculationsAndCharts!$A175+$A$11,IF($C$7,8,0),1,1) -> 134816100 | D175: =OFFSET(InputPriceData!C$15,CalculationsAndCharts!$A175+$A$11,IF($C$7,8,0),1,1) -> 281.62 | E175: =OFFSET(InputPriceData!D$15,CalculationsAndCharts!$A175+$A$11,IF($C$7,8,0),1,1) -> 282.3 | F175: =OFFSET(InputPriceData!E$15,CalculationsAndCharts!$A175+$A$11,IF($C$7,8,0),1,1) -> 279.46 | G175: =OFFSET(InputPriceData!F$15,CalculationsAndCharts!$A175+$A$11,IF($C$7,8,0),1,1) -> 280.79 | H175: 280.228853 | I175: 0.9937750458 | J175: 14.15921188 | K175: 0 | L175: 1 | M175: 8.57 | N175: 9.007056325 | O175: -0.1057308893 | P175: 4.063237564 | Q175: 1.055062519 | R175: 0.5877293234 | S175: 0.5877293234 | T175: 0.6741900301 | U175: 0.49 | V175: 1.693639591 | W175: 0.3289859512 | X175: 5.148060533 | Y175: 1.999 | Z175: 4.146899804 | AC175: 5.148060533 | AD175: 4.146899804 | AQ175: 134816100
A176: 144 | B176: =OFFSET(InputPriceData!B$15,CalculationsAndCharts!$A176+$A$11,0,1,1) -> 2018-01-23 | C176: =OFFSET(InputPriceData!G$15,CalculationsAndCharts!$A176+$A$11,IF($C$7,8,0),1,1) -> 97084700 | D176: =OFFSET(InputPriceData!C$15,CalculationsAndCharts!$A176+$A$11,IF($C$7,8,0),1,1) -> 280.35 | E176: =OFFSET(InputPriceData!D$15,CalculationsAndCharts!$A176+$A$11,IF($C$7,8,0),1,1) -> 281.23 | F176: =OFFSET(InputPriceData!E$15,CalculationsAndCharts!$A176+$A$11,IF($C$7,8,0),1,1) -> 279.99 | G176: =OFFSET(InputPriceData!F$15,CalculationsAndCharts!$A176+$A$11,IF($C$7,8,0),1,1) -> 280.9 | H176: 279.2350779 | I176: 1.286836309 | J176: 13.93292838 | K176: 0 | L176: 1 | M176: 9.29 | N176: 9.112787214 | O176: -0.1245480656 | P176: 5.060787868 | Q176: 0.9493316299 | R176: 0.6840889336 | S176: 0.6840889336 | T176: 0.8367596329 | U176: 2.86 | V176: 1.624217083 | W176: 0.3202212122 | X176: 5.072172051 | Y176: 1.999 | Z176: 4.146899804 | AC176: 5.072172051 | AD176: 4.146899804 | AP176: 97084700
A177: 145 | B177: =OFFSET(InputPriceData!B$15,CalculationsAndCharts!$A177+$A$11,0,1,1) -> 2018-01-22 | C177: =OFFSET(InputPriceData!G$15,CalculationsAndCharts!$A177+$A$11,IF($C$7,8,0),1,1) -> 91322400 | D177: =OFFSET(InputPriceData!C$15,CalculationsAndCharts!$A177+$A$11,IF($C$7,8,0),1,1) -> 277.8 | E177: =OFFSET(InputPriceData!D$15,CalculationsAndCharts!$A177+$A$11,IF($C$7,8,0),1,1) -> 280.3 | F177: =OFFSET(InputPriceData!E$15,CalculationsAndCharts!$A177+$A$11,IF($C$7,8,0),1,1) -> 277.75 | G177: =OFFSET(InputPriceData!F$15,CalculationsAndCharts!$A177+$A$11,IF($C$7,8,0),1,1) -> 280.3 | H177: 277.9482416 | I177: 1.05684417 | J177: 12.78062483 | K177: 0 | L177: 1 | M177: 9.19 | N177: 9.23733528 | O177: -0.3809961299 | P177: 6.338937275 | Q177: 0.8247835643 | R177: 0.7697331924 | S177: 0.7697331924 | T177: 1.019672703 | U177: 3.52 | V177: 1.538928325 | W177: 0.3138283158 | X177: 4.903726808 | Y177: 1.999 | Z177: 4.146899804 | AC177: 4.903726808 | AD177: 4.146899804 | AP177: 91322400
A178: 146 | B178: =OFFSET(InputPriceData!B$15,CalculationsAndCharts!$A178+$A$11,0,1,1) -> 2018-01-19 | C178: =OFFSET(InputPriceData!G$15,CalculationsAndCharts!$A178+$A$11,IF($C$7,8,0),1,1) -> 140920100 | D178: =OFFSET(InputPriceData!C$15,CalculationsAndCharts!$A178+$A$11,IF($C$7,8,0),1,1) -> 277.44 | E178: =OFFSET(InputPriceData!D$15,CalculationsAndCharts!$A178+$A$11,IF($C$7,8,0),1,1) -> 278.04 | F178: =OFFSET(InputPriceData!E$15,CalculationsAndCharts!$A178+$A$11,IF($C$7,8,0),1,1) -> 276.78 | G178: =OFFSET(InputPriceData!F$15,CalculationsAndCharts!$A178+$A$11,IF($C$7,8,0),1,1) -> 278.04 | H178: 276.8913975 | I178: 0.7596375111 | J178: 11.72378066 | K178: 0.007902424995 | L178: 0.9986528063 | M178: 8.72 | N178: 9.61833141 | O178: -0.4437874344 | P178: 7.439203307 | Q178: 0.4437874344 | R178: 0.8874063287 | S178: 0.8874063287 | T178: 1.409586672 | U178: 0.79 | V178: 1.477937271 | W178: 0.3104473742 | X178: 4.760669259 | Y178: 1.999 | Z178: 4.146899804 | AC178: 4.760669259 | AD178: 4.146899804 | AP178: 140920100
A179: 147 | B179: =OFFSET(InputPriceData!B$15,CalculationsAndCharts!$A179+$A$11,0,1,1) -> 2018-01-18 | C179: =OFFSET(InputPriceData!G$15,CalculationsAndCharts!$A179+$A$11,IF($C$7,8,0),1,1) -> 100728000 | D179: =OFFSET(InputPriceData!C$15,CalculationsAndCharts!$A179+$A$11,IF($C$7,8,0),1,1) -> 277.12 | E179: =OFFSET(InputPriceData!D$15,CalculationsAndCharts!$A179+$A$11,IF($C$7,8,0),1,1) -> 277.6 | F179: =OFFSET(InputPriceData!E$15,CalculationsAndCharts!$A179+$A$11,IF($C$7,8,0),1,1) -> 276.23 | G179: =OFFSET(InputPriceData!F$15,CalculationsAndCharts!$A179+$A$11,IF($C$7,8,0),1,1) -> 276.78 | H179: 276.13176 | I179: 0.9324692006 | J179: 11.01056933 | K179: 0.007902424995 | L179: 0.9985656042 | M179: 8.59 | N179: 10.06211884 | O179: 0.1649776587 | P179: 7.827159978 | Q179: 0 | R179: 1 | S179: 0.999 | T179: 3.800201167 | U179: 2.15 | V179: 1.420439598 | W179: 0.3068403515 | X179: 4.629246417 | Y179: 1.999 | Z179: 4.146899804 | AC179: 4.629246417 | AD179: 4.146899804 | AQ179: 100728000
A180: 148 | B180: =OFFSET(InputPriceData!B$15,CalculationsAndCharts!$A180+$A$11,0,1,1) -> 2018-01-17 | C180: =OFFSET(InputPriceData!G$15,CalculationsAndCharts!$A180+$A$11,IF($C$7,8,0),1,1) -> 109354500 | D180: =OFFSET(InputPriceData!C$15,CalculationsAndCharts!$A180+$A$11,IF($C$7,8,0),1,1) -> 275.68 | E180: =OFFSET(InputPriceData!D$15,CalculationsAndCharts!$A180+$A$11,IF($C$7,8,0),1,1) -> 277.69 | F180: =OFFSET(InputPriceData!E$15,CalculationsAndCharts!$A180+$A$11,IF($C$7,8,0),1,1) -> 274.63 | G180: =OFFSET(InputPriceData!F$15,CalculationsAndCharts!$A180+$A$11,IF($C$7,8,0),1,1) -> 277.25 | H180: 275.1992908 | I180: 0.8795354434 | J180: 10.07810013 | K180: 0.08825388129 | L180: 0.9826380468 | M180: 10.75 | N180: 9.897141185 | O180: 0.7450026854 | P180: 7.663112832 | Q180: 0 | R180: 1 | S180: 0.999 | T180: 3.800201167 | U180: 1.68 | V180: 1.350007795 | W180: 0.3019863853 | X180: 4.470426022 | Y180: 1.999 | Z180: 4.146899804 | AC180: 4.470426022 | AD180: 4.146899804 | AP180: 109354500
A181: 149 | B181: =OFFSET(InputPriceData!B$15,CalculationsAndCharts!$A181+$A$11,0,1,1) -> 2018-01-16 | C181: =OFFSET(InputPriceData!G$15,CalculationsAndCharts!$A181+$A$11,IF($C$7,8,0),1,1) -> 106555100 | D181: =OFFSET(InputPriceData!C$15,CalculationsAndCharts!$A181+$A$11,IF($C$7,8,0),1,1) -> 276.99 | E181: =OFFSET(InputPriceData!D$15,CalculationsAndCharts!$A181+$A$11,IF($C$7,8,0),1,1) -> 277.73 | F181: =OFFSET(InputPriceData!E$15,CalculationsAndCharts!$A181+$A$11,IF($C$7,8,0),1,1) -> 273.85 | G181: =OFFSET(InputPriceData!F$15,CalculationsAndCharts!$A181+$A$11,IF($C$7,8,0),1,1) -> 274.63 | H181: 274.3197553 | I181: 0.9289065147 | J181: 9.198564689 | K181: 0.1017247645 | L181: 0.9781243874 | M181: 10.02 | N181: 9.1521385 | O181: 0.9368089397 | P181: 6.918110146 | Q181: 0.008966947603 | R181: 0.9974110444 | S181: 0.9974110444 | T181: 3.324176291 | U181: 0.84 | V181: 1.277632283 | W181: 0.2962310865 | X181: 4.312958163 | Y181: 1.999 | Z181: 4.146899804 | AC181: 4.312958163 | AD181: 4.146899804 | AQ181: 106555100
A182: 150 | B182: =OFFSET(InputPriceData!B$15,CalculationsAndCharts!$A182+$A$11,0,1,1) -> 2018-01-12 | C182: =OFFSET(InputPriceData!G$15,CalculationsAndCharts!$A182+$A$11,IF($C$7,8,0),1,1) -> 90816100 | D182: =OFFSET(InputPriceData!C$15,CalculationsAndCharts!$A182+$A$11,IF($C$7,8,0),1,1) -> 274.09 | E182: =OFFSET(InputPriceData!D$15,CalculationsAndCharts!$A182+$A$11,IF($C$7,8,0),1,1) -> 275.76 | F182: =OFFSET(InputPriceData!E$15,CalculationsAndCharts!$A182+$A$11,IF($C$7,8,0),1,1) -> 273.75 | G182: =OFFSET(InputPriceData!F$15,CalculationsAndCharts!$A182+$A$11,IF($C$7,8,0),1,1) -> 275.57 | H182: 273.3908488 | I182: 0.9832445677 | J182: 8.371613805 | K182: 0.1017247645 | L182: 0.9759894489 | M182: 9.96 | N182: 8.21532956 | O182: 0.9368183785 | P182: 5.981301207 | Q182: 0.1888135262 | R182: 0.9387974019 | S182: 0.9387974019 | T182: 1.727816761 | U182: 3.76 | V182: 1.186770298 | W182: 0.2887819321 | X182: 4.109572541 | Y182: 1.999 | Z182: 4.146899804 | AC182: 4.109572541 | AD182: 4.146899804 | AP182: 90816100
A183: 151 | B183: =OFFSET(InputPriceData!B$15,CalculationsAndCharts!$A183+$A$11,0,1,1) -> 2018-01-11 | C183: =OFFSET(InputPriceData!G$15,CalculationsAndCharts!$A183+$A$11,IF($C$7,8,0),1,1) -> 62361500 | D183: =OFFSET(InputPriceData!C$15,CalculationsAndCharts!$A183+$A$11,IF($C$7,8,0),1,1) -> 272.43 | E183: =OFFSET(InputPriceData!D$15,CalculationsAndCharts!$A183+$A$11,IF($C$7,8,0),1,1) -> 273.79 | F183: =OFFSET(InputPriceData!E$15,CalculationsAndCharts!$A183+$A$11,IF($C$7,8,0),1,1) -> 272.24 | G183: =OFFSET(InputPriceData!F$15,CalculationsAndCharts!$A183+$A$11,IF($C$7,8,0),1,1) -> 273.79 | H183: 272.4076042 | I183: 0.5428574656 | J183: 7.521604205 | K183: 0.1017247645 | L183: 0.9733122459 | M183: 8.73 | N183: 7.278511182 | O183: 0.6232089219 | P183: 5.044482828 | Q183: 0.812387357 | R183: 0.7225865244 | S183: 0.7225865244 | T183: 0.9130365743 | U183: 1.57 | V183: 1.103994937 | W183: 0.281443483 | X183: 3.92261681 | Y183: 1.999 | Z183: 4.146899804 | AC183: 3.92261681 | AD183: 4.146899804 | AP183: 62361500
A184: 152 | B184: =OFFSET(InputPriceData!B$15,CalculationsAndCharts!$A184+$A$11,0,1,1) -> 2018-01-10 | C184: =OFFSET(InputPriceData!G$15,CalculationsAndCharts!$A184+$A$11,IF($C$7,8,0),1,1) -> 69574300 | D184: =OFFSET(InputPriceData!C$15,CalculationsAndCharts!$A184+$A$11,IF($C$7,8,0),1,1) -> 271.37 | E184: =OFFSET(InputPriceData!D$15,CalculationsAndCharts!$A184+$A$11,IF($C$7,8,0),1,1) -> 272.1 | F184: =OFFSET(InputPriceData!E$15,CalculationsAndCharts!$A184+$A$11,IF($C$7,8,0),1,1) -> 270.62 | G184: =OFFSET(InputPriceData!F$15,CalculationsAndCharts!$A184+$A$11,IF($C$7,8,0),1,1) -> 271.81 | H184: 271.8647468 | I184: 0.6429500967 | J184: 7.316321008 | K184: 0.1017247645 | L184: 0.9725737027 | M184: 6.88 | N184: 6.65530226 | O184: 0.6564209798 | P184: 4.421273906 | Q184: 1.763631983 | R184: 0.4296980375 | S184: 0.4296980375 | T184: 0.4595262795 | U184: =G184-G186 -> 0.2 | V184: =$D$24*(U184+U185)/2+$E$24*V185+$F$24*V186 -> 1.043659807 | W184: 0.2749893734 | X184: 3.795273228 | Y184: 1.999 | Z184: 4.146899804 | AC184: 3.795273228 | AD184: 4.146899804 | AP184: 69574300
A185: 153 | B185: =OFFSET(InputPriceData!B$15,CalculationsAndCharts!$A185+$A$11,0,1,1) -> 2018-01-09 | C185: =OFFSET(InputPriceData!G$15,CalculationsAndCharts!$A185+$A$11,IF($C$7,8,0),1,1) -> 57254000 | D185: =OFFSET(InputPriceData!C$15,CalculationsAndCharts!$A185+$A$11,IF($C$7,8,0),1,1) -> 272.08 | E185: =OFFSET(InputPriceData!D$15,CalculationsAndCharts!$A185+$A$11,IF($C$7,8,0),1,1) -> 272.93 | F185: =OFFSET(InputPriceData!E$15,CalculationsAndCharts!$A185+$A$11,IF($C$7,8,0),1,1) -> 271.77 | G185: =OFFSET(InputPriceData!F$15,CalculationsAndCharts!$A185+$A$11,IF($C$7,8,0),1,1) -> 272.22 | H185: 271.2217967 | I185: 1.099505935 | J185: 7.488839186 | K185: 0.1017247645 | L185: 0.973197047 | M185: 6.97 | N185: 5.99888128 | O185: 0.9975503045 | P185: 3.764852926 | Q185: 2.552979106 | R185: 0.1918179867 | S185: 0.1918179867 | T185: 0.1942239215 | U185: 1.11 | V185: 0.9639455051 | W185: 0.2688291388 | X185: 3.585718086 | Y185: 1.999 | Z185: 4.146899804 | AC185: 3.585718086 | AD185: 4.146899804 | AP185: 57254000
A186: 154 | B186: =OFFSET(InputPriceData!B$15,CalculationsAndCharts!$A186+$A$11,0,1,1) -> 2018-01-08 | C186: =OFFSET(InputPriceData!G$15,CalculationsAndCharts!$A186+$A$11,IF($C$7,8,0),1,1) -> 57319200 | D186: =OFFSET(InputPriceData!C$15,CalculationsAndCharts!$A186+$A$11,IF($C$7,8,0),1,1) -> 271 | E186: =OFFSET(InputPriceData!D$15,CalculationsAndCharts!$A186+$A$11,IF($C$7,8,0),1,1) -> 271.79 | F186: =OFFSET(InputPriceData!E$15,CalculationsAndCharts!$A186+$A$11,IF($C$7,8,0),1,1) -> 270.68 | G186: =OFFSET(InputPriceData!F$15,CalculationsAndCharts!$A186+$A$11,IF($C$7,8,0),1,1) -> 271.61 | H186: 270.1222907 | I186: 1.411384375 | J186: 7.155894281 | K186: 0.1017247645 | L186: 0.9719674555 | M186: 6.29 | N186: 5.001330976 | O186: 1.278149407 | P186: 2.767302622 | Q186: 2.776267579 | R186: -0.001617181174 | S186: -0.001617181174 | T186: -0.001617182583 | U186: 2.29 | V186: 0.8558898079 | W186: 0.2641469809 | X186: 3.240202878 | Y186: 1.999 | Z186: 4.146899804 | AC186: 3.240202878 | AD186: 4.146899804 | AP186: 57319200
A187: 155 | B187: =OFFSET(InputPriceData!B$15,CalculationsAndCharts!$A187+$A$11,0,1,1) -> 2018-01-05 | C187: =OFFSET(InputPriceData!G$15,CalculationsAndCharts!$A187+$A$11,IF($C$7,8,0),1,1) -> 83524000 | D187: =OFFSET(InputPriceData!C$15,CalculationsAndCharts!$A187+$A$11,IF($C$7,8,0),1,1) -> 270.21 | E187: =OFFSET(InputPriceData!D$15,CalculationsAndCharts!$A187+$A$11,IF($C$7,8,0),1,1) -> 271.25 | F187: =OFFSET(InputPriceData!E$15,CalculationsAndCharts!$A187+$A$11,IF($C$7,8,0),1,1) -> 269.65 | G187: =OFFSET(InputPriceData!F$15,CalculationsAndCharts!$A187+$A$11,IF($C$7,8,0),1,1) -> 271.11 | H187: 268.7109064 | I187: 1.4378403 | J187: 5.888009612 | K187: 0.1017247645 | L187: 0.9660336309 | M187: 6.33 | N187: 3.723181569 | O187: 1.100266032 | P187: 1.82721906 | Q187: 2.776267579 | R187: -0.2061586345 | S187: -0.2061586345 | T187: -0.2091561283 | U187: 2.92 | V187: 0.7442265428 | W187: 0.262020132 | X187: 2.840341072 | Y187: 1.999 | Z187: 4.146899804 | AC187: 2.840341072 | AD187: 4.146899804 | AP187: 83524000
A188: 156 | B188: =OFFSET(InputPriceData!B$15,CalculationsAndCharts!$A188+$A$11,0,1,1) -> 2018-01-04 | C188: =OFFSET(InputPriceData!G$15,CalculationsAndCharts!$A188+$A$11,IF($C$7,8,0),1,1) -> 80636400 | D188: =OFFSET(InputPriceData!C$15,CalculationsAndCharts!$A188+$A$11,IF($C$7,8,0),1,1) -> 268.91 | E188: =OFFSET(InputPriceData!D$15,CalculationsAndCharts!$A188+$A$11,IF($C$7,8,0),1,1) -> 269.86 | F188: =OFFSET(InputPriceData!E$15,CalculationsAndCharts!$A188+$A$11,IF($C$7,8,0),1,1) -> 268.26 | G188: =OFFSET(InputPriceData!F$15,CalculationsAndCharts!$A188+$A$11,IF($C$7,8,0),1,1) -> 269.32 | H188: 267.2730661 | I188: 1.203424946 | J188: 4.622113465 | K188: 0.1017247645 | L188: 0.956931309 | M188: 4.41 | N188: 2.622915537 | O188: 0.387956671 | P188: 1.454793214 | Q188: 2.776267579 | R188: -0.3123269624 | S188: -0.3123269624 | T188: -0.3231218293 | U188: 2.82 | V188: 0.6560815748 | W188: 0.2619974712 | X188: 2.504152318 | Y188: 1.999 | Z188: 4.146899804 | AC188: 2.504152318 | AD188: 4.146899804 | AP188: 80636400
A189: 157 | B189: =OFFSET(InputPriceData!B$15,CalculationsAndCharts!$A189+$A$11,0,1,1) -> 2018-01-03 | C189: =OFFSET(InputPriceData!G$15,CalculationsAndCharts!$A189+$A$11,IF($C$7,8,0),1,1) -> 90070400 | D189: =OFFSET(InputPriceData!C$15,CalculationsAndCharts!$A189+$A$11,IF($C$7,8,0),1,1) -> 266.69 | E189: =OFFSET(InputPriceData!D$15,CalculationsAndCharts!$A189+$A$11,IF($C$7,8,0),1,1) -> 268.36 | F189: =OFFSET(InputPriceData!E$15,CalculationsAndCharts!$A189+$A$11,IF($C$7,8,0),1,1) -> 266.69 | G189: =OFFSET(InputPriceData!F$15,CalculationsAndCharts!$A189+$A$11,IF($C$7,8,0),1,1) -> 268.19 | H189: 266.0696411 | I189: 0.767491542 | J189: 4.08868854 | K189: 0.1017247645 | L189: 0.9514488156 | M189: 2.25 | N189: 2.234958866 | O189: 0.0009305120785 | P189: 1.948585436 | Q189: 2.776267579 | R189: -0.1751762732 | S189: -0.1751762732 | T189: -0.177001868 | U189: 3.58 | V189: 0.6070381384 | W189: 0.2631028186 | X189: 2.307227804 | Y189: 1.999 | Z189: 4.146899804 | AC189: 2.307227804 | AD189: 4.146899804 | AP189: 90070400
A190: 158 | B190: =OFFSET(InputPriceData!B$15,CalculationsAndCharts!$A190+$A$11,0,1,1) -> 2018-01-02 | C190: =OFFSET(InputPriceData!G$15,CalculationsAndCharts!$A190+$A$11,IF($C$7,8,0),1,1) -> 86655700 | D190: =OFFSET(InputPriceData!C$15,CalculationsAndCharts!$A190+$A$11,IF($C$7,8,0),1,1) -> 265.58 | E190: =OFFSET(InputPriceData!D$15,CalculationsAndCharts!$A190+$A$11,IF($C$7,8,0),1,1) -> 266.54 | F190: =OFFSET(InputPriceData!E$15,CalculationsAndCharts!$A190+$A$11,IF($C$7,8,0),1,1) -> 265.14 | G190: =OFFSET(InputPriceData!F$15,CalculationsAndCharts!$A190+$A$11,IF($C$7,8,0),1,1) -> 266.5 | H190: 265.3021496 | I190: 0.134532758 | J190: 4.192090168 | K190: 0.1017247645 | L190: 0.9526180024 | M190: 2.24 | N190: 2.234028354 | O190: -0.008966947603 | P190: 2.203903028 | Q190: 2.776267579 | R190: -0.1149287035 | S190: -0.1149287035 | T190: -0.1154387681 | U190: 0.89 | V190: 0.6172690228 | W190: 0.2645987407 | X190: 2.332849435 | Y190: 1.999 | Z190: 4.146899804 | AC190: 2.332849435 | AD190: 4.146899804 | AP190: 86655700
A191: 159 | B191: =OFFSET(InputPriceData!B$15,CalculationsAndCharts!$A191+$A$11,0,1,1) -> 2017-12-29 | C191: =OFFSET(InputPriceData!G$15,CalculationsAndCharts!$A191+$A$11,IF($C$7,8,0),1,1) -> 96007400 | D191: =OFFSET(InputPriceData!C$15,CalculationsAndCharts!$A191+$A$11,IF($C$7,8,0),1,1) -> 266.26 | E191: =OFFSET(InputPriceData!D$15,CalculationsAndCharts!$A191+$A$11,IF($C$7,8,0),1,1) -> 266.28 | F191: =OFFSET(InputPriceData!E$15,CalculationsAndCharts!$A191+$A$11,IF($C$7,8,0),1,1) -> 264.39 | G191: =OFFSET(InputPriceData!F$15,CalculationsAndCharts!$A191+$A$11,IF($C$7,8,0),1,1) -> 264.61 | H191: 265.1676168 | I191: -0.007902424995 | J191: 4.833433649 | K191: 0.1017247645 | L191: 0.9587754816 | M191: 2.53 | N191: 2.242995301 | O191: -0.1798465786 | P191: 2.203903028 | Q191: 3.664469352 | R191: -0.2488878056 | S191: -0.2488878056 | T191: -0.2542268224 | U191: -0.45 | V191: 0.6746352323 | W191: 0.2659088372 | X191: 2.537092183 | Y191: 1.999 | Z191: 4.146899804 | AC191: 2.537092183 | AD191: 4.146899804 | AQ191: 96007400
A192: 160 | B192: =OFFSET(InputPriceData!B$15,CalculationsAndCharts!$A192+$A$11,0,1,1) -> 2017-12-28 | C192: =OFFSET(InputPriceData!G$15,CalculationsAndCharts!$A192+$A$11,IF($C$7,8,0),1,1) -> 45116100 | D192: =OFFSET(InputPriceData!C$15,CalculationsAndCharts!$A192+$A$11,IF($C$7,8,0),1,1) -> 265.63 | E192: =OFFSET(InputPriceData!D$15,CalculationsAndCharts!$A192+$A$11,IF($C$7,8,0),1,1) -> 265.66 | F192: =OFFSET(InputPriceData!E$15,CalculationsAndCharts!$A192+$A$11,IF($C$7,8,0),1,1) -> 265.19 | G192: =OFFSET(InputPriceData!F$15,CalculationsAndCharts!$A192+$A$11,IF($C$7,8,0),1,1) -> 265.61 | H192: 265.1755192 | I192: 0.04642618923 | J192: 5.158677753 | K192: 0.09382233946 | L192: 0.9642751689 | M192: 2.46 | N192: 2.42284188 | O192: -0.6235738308 | P192: 2.203903028 | Q192: 4.382891692 | R192: -0.3308116856 | S192: -0.3308116856 | T192: -0.343739409 | U192: 0.68 | V192: 0.7337374748 | W192: 0.2664504906 | X192: 2.753747884 | Y192: 1.999 | Z192: 4.146899804 | AC192: 2.753747884 | AD192: 4.146899804 | AQ192: 45116100
A193: 161 | B193: =OFFSET(InputPriceData!B$15,CalculationsAndCharts!$A193+$A$11,0,1,1) -> 2017-12-27 | C193: =OFFSET(InputPriceData!G$15,CalculationsAndCharts!$A193+$A$11,IF($C$7,8,0),1,1) -> 57751000 | D193: =OFFSET(InputPriceData!C$15,CalculationsAndCharts!$A193+$A$11,IF($C$7,8,0),1,1) -> 265.12 | E193: =OFFSET(InputPriceData!D$15,CalculationsAndCharts!$A193+$A$11,IF($C$7,8,0),1,1) -> 265.47 | F193: =OFFSET(InputPriceData!E$15,CalculationsAndCharts!$A193+$A$11,IF($C$7,8,0),1,1) -> 264.76 | G193: =OFFSET(InputPriceData!F$15,CalculationsAndCharts!$A193+$A$11,IF($C$7,8,0),1,1) -> 265.06 | H193: 265.1290931 | I193: -0.08035145629 | J193: 5.112251564 | K193: 0.2986532164 | L193: 0.8896106183 | M193: 1.88 | N193: 3.046415711 | O193: -0.9512446263 | P193: 2.203903028 | Q193: 4.023298417 | R193: -0.2921690273 | S193: -0.2921690273 | T193: -0.3009360879 | U193: -0.19 | V193: 0.7904842366 | W193: 0.2657080268 | X193: 2.975010752 | Y193: 1.999 | Z193: 4.146899804 | AC193: 2.975010752 | AD193: 4.146899804 | AQ193: 57751000
A194: 162 | B194: =OFFSET(InputPriceData!B$15,CalculationsAndCharts!$A194+$A$11,0,1,1) -> 2017-12-26 | C194: =OFFSET(InputPriceData!G$15,CalculationsAndCharts!$A194+$A$11,IF($C$7,8,0),1,1) -> 45244400 | D194: =OFFSET(InputPriceData!C$15,CalculationsAndCharts!$A194+$A$11,IF($C$7,8,0),1,1) -> 264.8 | E194: =OFFSET(InputPriceData!D$15,CalculationsAndCharts!$A194+$A$11,IF($C$7,8,0),1,1) -> 265.18 | F194: =OFFSET(InputPriceData!E$15,CalculationsAndCharts!$A194+$A$11,IF($C$7,8,0),1,1) -> 264.64 | G194: =OFFSET(InputPriceData!F$15,CalculationsAndCharts!$A194+$A$11,IF($C$7,8,0),1,1) -> 264.93 | H194: 265.2094445 | I194: -0.01347088317 | J194: 5.112251564 | K194: 0.6085676781 | L194: 0.7872445703 | M194: 2.21 | N194: 3.997660337 | O194: -0.7893471224 | P194: 2.424353871 | Q194: 3.07205379 | R194: -0.1178405896 | S194: -0.1178405896 | T194: -0.1183906405 | U194: -0.39 | V194: 0.8463088255 | W194: 0.2633776035 | X194: 3.213290782 | Y194: 1.999 | Z194: 4.146899804 | AC194: 3.213290782 | AD194: 4.146899804 | AP194: 45244400
A195: 163 | B195: =OFFSET(InputPriceData!B$15,CalculationsAndCharts!$A195+$A$11,0,1,1) -> 2017-12-22 | C195: =OFFSET(InputPriceData!G$15,CalculationsAndCharts!$A195+$A$11,IF($C$7,8,0),1,1) -> 78720900 | D195: =OFFSET(InputPriceData!C$15,CalculationsAndCharts!$A195+$A$11,IF($C$7,8,0),1,1) -> 265.34 | E195: =OFFSET(InputPriceData!D$15,CalculationsAndCharts!$A195+$A$11,IF($C$7,8,0),1,1) -> 265.38 | F195: =OFFSET(InputPriceData!E$15,CalculationsAndCharts!$A195+$A$11,IF($C$7,8,0),1,1) -> 264.65 | G195: =OFFSET(InputPriceData!F$15,CalculationsAndCharts!$A195+$A$11,IF($C$7,8,0),1,1) -> 265.25 | H195: 265.2229154 | I195: 0.1019556307 | J195: 5.112251564 | K195: 0.6613774138 | L195: 0.7708971545 | M195: 3.32 | N195: 4.78700746 | O195: -0.2232884735 | P195: 2.793101268 | Q195: 2.282706668 | R195: 0.1005543564 | S195: 0.1005543564 | T195: 0.1008953351 | U195: 0.47 | V195: 0.8846965188 | W195: 0.2590401502 | X195: 3.415287237 | Y195: 1.999 | Z195: 4.146899804 | AC195: 3.415287237 | AD195: 4.146899804 | AQ195: 78720900
A196: 164 | B196: =OFFSET(InputPriceData!B$15,CalculationsAndCharts!$A196+$A$11,0,1,1) -> 2017-12-21 | C196: =OFFSET(InputPriceData!G$15,CalculationsAndCharts!$A196+$A$11,IF($C$7,8,0),1,1) -> 67032300 | D196: =OFFSET(InputPriceData!C$15,CalculationsAndCharts!$A196+$A$11,IF($C$7,8,0),1,1) -> 265.48 | E196: =OFFSET(InputPriceData!D$15,CalculationsAndCharts!$A196+$A$11,IF($C$7,8,0),1,1) -> 266.12 | F196: =OFFSET(InputPriceData!E$15,CalculationsAndCharts!$A196+$A$11,IF($C$7,8,0),1,1) -> 265.04 | G196: =OFFSET(InputPriceData!F$15,CalculationsAndCharts!$A196+$A$11,IF($C$7,8,0),1,1) -> 265.32 | H196: 265.1209598 | I196: 0.1332349678 | J196: 5.520608859 | K196: 0.6613774138 | L196: 0.7860307724 | M196: 4.81 | N196: 5.010295933 | O196: 0.3380658447 | P196: 2.793101268 | Q196: 2.297741202 | R196: 0.0973041435 | S196: 0.0973041435 | T196: 0.09761299495 | U196: 0.41 | V196: 0.9093485421 | W196: 0.252632681 | X196: 3.599488944 | Y196: 1.999 | Z196: 4.146899804 | AC196: 3.599488944 | AD196: 4.146899804 | AQ196: 67032300
A197: 165 | B197: =OFFSET(InputPriceData!B$15,CalculationsAndCharts!$A197+$A$11,0,1,1) -> 2017-12-20 | C197: =OFFSET(InputPriceData!G$15,CalculationsAndCharts!$A197+$A$11,IF($C$7,8,0),1,1) -> 76751500 | D197: =OFFSET(InputPriceData!C$15,CalculationsAndCharts!$A197+$A$11,IF($C$7,8,0),1,1) -> 266.01 | E197: =OFFSET(InputPriceData!D$15,CalculationsAndCharts!$A197+$A$11,IF($C$7,8,0),1,1) -> 266.06 | F197: =OFFSET(InputPriceData!E$15,CalculationsAndCharts!$A197+$A$11,IF($C$7,8,0),1,1) -> 264.44 | G197: =OFFSET(InputPriceData!F$15,CalculationsAndCharts!$A197+$A$11,IF($C$7,8,0),1,1) -> 264.78 | H197: 264.9877248 | I197: 0.3375742683 | J197: 6.428042318 | K197: 0.6613774138 | L197: 0.8134184633 | M197: 5.09 | N197: 4.672230088 | O197: 0.7278401862 | P197: 2.455035423 | Q197: 3.182582633 | R197: -0.1290522349 | S197: -0.1290522349 | T197: -0.1297759128 | U197: -1.16 | V197: 0.9271947233 | W197: 0.2447930118 | X197: 3.787668269 | Y197: 1.999 | Z197: 4.146899804 | AC197: 3.787668269 | AD197: 4.146899804 | AQ197: 76751500
A198: 166 | B198: =OFFSET(InputPriceData!B$15,CalculationsAndCharts!$A198+$A$11,0,1,1) -> 2017-12-19 | C198: =OFFSET(InputPriceData!G$15,CalculationsAndCharts!$A198+$A$11,IF($C$7,8,0),1,1) -> 82382900 | D198: =OFFSET(InputPriceData!C$15,CalculationsAndCharts!$A198+$A$11,IF($C$7,8,0),1,1) -> 266.21 | E198: =OFFSET(InputPriceData!D$15,CalculationsAndCharts!$A198+$A$11,IF($C$7,8,0),1,1) -> 266.26 | F198: =OFFSET(InputPriceData!E$15,CalculationsAndCharts!$A198+$A$11,IF($C$7,8,0),1,1) -> 264.84 | G198: =OFFSET(InputPriceData!F$15,CalculationsAndCharts!$A198+$A$11,IF($C$7,8,0),1,1) -> 264.91 | H198: 264.6501505 | I198: 0.8154682745 | J198: 7.160681121 | K198: 0.6613774138 | L198: 0.8308942816 | M198: 5.27 | N198: 3.944389902 | O198: 0.8817488934 | P198: 1.727195237 | Q198: 4.07436206 | R198: -0.4045753067 | S198: -0.4045753067 | T198: -0.429107671 | U198: 0.65 | V198: 0.9135859825 | W198: 0.2359897712 | X198: 3.871294836 | Y198: 1.999 | Z198: 4.146899804 | AC198: 3.871294836 | AD198: 4.146899804 | AQ198: 82382900
A199: 167 | B199: =OFFSET(InputPriceData!B$15,CalculationsAndCharts!$A199+$A$11,0,1,1) -> 2017-12-18 | C199: =OFFSET(InputPriceData!G$15,CalculationsAndCharts!$A199+$A$11,IF($C$7,8,0),1,1) -> 83653600 | D199: =OFFSET(InputPriceData!C$15,CalculationsAndCharts!$A199+$A$11,IF($C$7,8,0),1,1) -> 265.84 | E199: =OFFSET(InputPriceData!D$15,CalculationsAndCharts!$A199+$A$11,IF($C$7,8,0),1,1) -> 266.33 | F199: =OFFSET(InputPriceData!E$15,CalculationsAndCharts!$A199+$A$11,IF($C$7,8,0),1,1) -> 265.72 | G199: =OFFSET(InputPriceData!F$15,CalculationsAndCharts!$A199+$A$11,IF($C$7,8,0),1,1) -> 265.94 | H199: 263.8346822 | I199: 0.7665610299 | J199: 7.279193422 | K199: 0.6613774138 | L199: 0.8334181692 | M199: 5.36 | N199: 3.062641009 | O199: 0.2562481036 | P199: 0.8454463438 | Q199: 4.335056166 | R199: -0.6736045037 | S199: -0.6736045037 | T199: -0.8173125701 | U199: 3.86 | V199: 0.8643819542 | W199: 0.2275329955 | X199: 3.798930139 | Y199: 1.999 | Z199: 4.146899804 | AC199: 3.798930139 | AD199: 4.146899804 | AP199: 83653600
A200: 168 | B200: =OFFSET(InputPriceData!B$15,CalculationsAndCharts!$A200+$A$11,0,1,1) -> 2017-12-15 | C200: =OFFSET(InputPriceData!G$15,CalculationsAndCharts!$A200+$A$11,IF($C$7,8,0),1,1) -> 144610300 | D200: =OFFSET(InputPriceData!C$15,CalculationsAndCharts!$A200+$A$11,IF($C$7,8,0),1,1) -> 263.21 | E200: =OFFSET(InputPriceData!D$15,CalculationsAndCharts!$A200+$A$11,IF($C$7,8,0),1,1) -> 264.79 | F200: =OFFSET(InputPriceData!E$15,CalculationsAndCharts!$A200+$A$11,IF($C$7,8,0),1,1) -> 263.15 | G200: =OFFSET(InputPriceData!F$15,CalculationsAndCharts!$A200+$A$11,IF($C$7,8,0),1,1) -> 264.26 | H200: 263.0681212 | I200: 0.1434997056 | J200: 7.16307472 | K200: 0.6613774138 | L200: 0.8309460132 | M200: 3.37 | N200: 2.806392905 | O200: -0.8971687205 | P200: 0.9179036838 | Q200: 4.335056166 | R200: -0.6505194367 | S200: -0.6505194367 | T200: -0.77619869 | U200: 1.11 | V200: 0.841271144 | W200: 0.2209366881 | X200: 3.807747601 | Y200: 1.999 | Z200: 4.146899804 | AC200: 3.807747601 | AD200: 4.146899804 | AP200: 144610300
... 832 more rows

Sheet DistributionDensityProfiles
C24: Basic Indicator | E24: =IF(CalculationsAndCharts!$R$3=1,CalculationsAndCharts!$L$32,CalculationsAndCharts!$X$30) -> Deviation Scaled Oscillator | G24: % Containment | K24: Fischer Transform | M24: =IF(CalculationsAndCharts!$R$3=1,CalculationsAndCharts!$T$32,CalculationsAndCharts!$Z$31) -> Fisher Transform | O24: % Containment
H25: Nearest Bucket Value | P25: Nearest Bucket Value
G26: 0.9 | O26: 0.9
D27: Calculated Mean | E27: =AVERAGE(OFFSET(IF(CalculationsAndCharts!$R$3=1,CalculationsAndCharts!$L$33,CalculationsAndCharts!$X$33),0,0,CalculationsAndCharts!$A$8,1)) -> 0.6318373484 | G27: NDX | L27: Calculated Mean | M27: =AVERAGE(OFFSET(IF(CalculationsAndCharts!$R$3=1,CalculationsAndCharts!$T$33,CalculationsAndCharts!$Z$33),0,0,CalculationsAndCharts!$A$8,1)) -> 0.6866196153 | O27: NDX
D28: StdDev | E28: =_xlfn.STDEV.P(OFFSET(IF(CalculationsAndCharts!$R$3=1,CalculationsAndCharts!$L$33,CalculationsAndCharts!$X$33),0,0,CalculationsAndCharts!$A$8,1)) -> 1.453626738 | F28: Osold | G28: =IFERROR(MATCH((1-G26)/2,G40:G100,1),1) -> 20 | H28: =INDEX(C$40:C$100,G28) -> -1.887622196 | L28: StdDev | M28: =_xlfn.STDEV.P(OFFSET(IF(CalculationsAndCharts!$R$3=1,CalculationsAndCharts!$T$33,CalculationsAndCharts!$Z$33),0,0,CalculationsAndCharts!$A$8,1)) -> 1.759894938 | N28: OsoldF | O28: =IFERROR(MATCH((1-O26)/2,O40:O100,1),1) -> 22 | P28: =INDEX(K$40:K$100,O28) -> -1.244069941
B29: # Of Buckets Either Side Of Zero | D29: Max Value | E29: =MAX(OFFSET(IF(CalculationsAndCharts!$R$3=1,CalculationsAndCharts!$L$33,CalculationsAndCharts!$X$33),0,0,CalculationsAndCharts!$A$8,1)) -> 5.148060533 | F29: Mean | G29: =MATCH((E27),$C$40:$C$100,1) -> 34 | H29: =INDEX(C$40:C$100,G29) -> 0.5148060533 | L29: Max Value | M29: =MAX(OFFSET(IF(CalculationsAndCharts!$R$3=1,CalculationsAndCharts!$T$33,CalculationsAndCharts!$Z$33),0,0,CalculationsAndCharts!$A$8,1)) -> 4.146899804 | N29: MeanF | O29: =MATCH((M27),$C$40:$C$100,1) -> 35 | P29: =INDEX(K$40:K$100,O29) -> 0.5529199739
D30: Min Value | E30: =MIN(OFFSET(IF(CalculationsAndCharts!$R$3=1,CalculationsAndCharts!$L$33,CalculationsAndCharts!$X$33),0,0,CalculationsAndCharts!$A$8,1)) -> -4.170923676 | F30: Obot | G30: =MATCH(1-(1-G26)/2,G40:G100,1) -> 48 | H30: 2.917234302 | L30: Min Value | M30: =MIN(OFFSET(IF(CalculationsAndCharts!$R$3=1,CalculationsAndCharts!$T$33,CalculationsAndCharts!$Z$33),0,0,CalculationsAndCharts!$A$8,1)) -> -4.146899804 | N30: ObotF | O30: =MATCH(1-(1-O26)/2,O40:O100,1) -> 60 | P30: 4.008669811
D31: Max delta from zero | E31: =MAX(ABS(E29),ABS(E30)) -> 5.148060533 | L31: Max delta from zero | M31: =MAX(ABS(M29),ABS(M30)) -> 4.146899804
E32: Calculated Bucket Step Size | F32: Max Bucket Count | M32: Calculated Bucket Step Size | N32: Max Bucket Count
B33: 30
F34: =MAX(E40:E100) -> 58 | N34: =MAX(M40:M100) -> 149
E35: =E31/$B$33 -> 0.1716020178 | M35: =M31/$B$33 -> 0.1382299935
C36: Bucket Step Min Values | D36: Count X's Greater Than Bucket Min | E36: Bucket Counts (Deltas) | F36: Running Total | G36: Running % | K36: Bucket Step Min Values | L36: Count X's Greater Than Bucket Min | M36: Bucket Counts (Deltas) | N36: Running Total | O36: Running %
H38: Osold | I38: Mean | J38: Obot | P38: OsoldF | Q38: MeanF | R38: ObotF
A39: relrow
A40: 1 | B40: -30 | C40: =-E31 -> -5.148060533 | D40: =COUNTIF(OFFSET(IF(CalculationsAndCharts!$R$3=1,CalculationsAndCharts!$L$33,CalculationsAndCharts!$X$33),0,0,CalculationsAndCharts!$A$8,1),">="&C40) -> 999 | E40: =IF(OR(CalculationsAndCharts!$R$9=1,CalculationsAndCharts!$R$9=3),D40-D41,NA()) -> 0 | F40: =E40+F39 -> 0 | G40: =F40/$D$40 -> 0 | H40: =IF(G$28=$A40,F$34,NA()) ->  | I40: =IF(G$29=$A40,F$34,NA()) ->  | J40: =IF(G$30=$A40,F$34,NA()) ->  | K40: =-M31 -> -4.146899804 | L40: =COUNTIF(OFFSET(IF(CalculationsAndCharts!$R$3=1,CalculationsAndCharts!$T$33,CalculationsAndCharts!$Z$33),0,0,CalculationsAndCharts!$A$8,1),">="&K40) -> 999 | M40: =IF(OR(CalculationsAndCharts!$R$9=2,CalculationsAndCharts!$R$9=3),L40-L41,NA()) -> 33 | N40: =M40+N39 -> 33 | O40: =N40/$L$40 -> 0.03303303303 | P40: =IF(O$28=$A40,N$34,NA()) ->  | Q40: =IF(O$29=$A40,N$34,NA()) ->  | R40: =IF(O$30=$A40,N$34,NA()) -> 
A41: 2 | B41: -29 | C41: =C40+$E$35 -> -4.976458515 | D41: =COUNTIF(OFFSET(IF(CalculationsAndCharts!$R$3=1,CalculationsAndCharts!$L$33,CalculationsAndCharts!$X$33),0,0,CalculationsAndCharts!$A$8,1),">="&C41) -> 999 | E41: =IF(OR(CalculationsAndCharts!$R$9=1,CalculationsAndCharts!$R$9=3),D41-D42,NA()) -> 0 | F41: 0 | G41: 0 | H41: =IF(G$28=A41,F$34,NA()) ->  | I41: =IF(G$29=A41,F$34,NA()) ->  | J41: =IF(G$30=A41,F$34,NA()) ->  | K41: =K40+$M$35 -> -4.008669811 | L41: =COUNTIF(OFFSET(IF(CalculationsAndCharts!$R$3=1,CalculationsAndCharts!$T$33,CalculationsAndCharts!$Z$33),0,0,CalculationsAndCharts!$A$8,1),">="&K41) -> 966 | M41: =IF(OR(CalculationsAndCharts!$R$9=2,CalculationsAndCharts!$R$9=3),L41-L42,NA()) -> 0 | N41: 33 | O41: =N41/$L$40 -> 0.03303303303 | P41: =IF(O$28=$A41,N$34,NA()) ->  | Q41: =IF(O$29=$A41,N$34,NA()) ->  | R41: =IF(O$30=$A41,N$34,NA()) -> 
A42: 3 | B42: -28 | C42: -4.804856498 | D42: =COUNTIF(OFFSET(IF(CalculationsAndCharts!$R$3=1,CalculationsAndCharts!$L$33,CalculationsAndCharts!$X$33),0,0,CalculationsAndCharts!$A$8,1),">="&C42) -> 999 | E42: =IF(OR(CalculationsAndCharts!$R$9=1,CalculationsAndCharts!$R$9=3),D42-D43,NA()) -> 0 | F42: 0 | G42: 0 | K42: -3.870439817 | L42: =COUNTIF(OFFSET(IF(CalculationsAndCharts!$R$3=1,CalculationsAndCharts!$T$33,CalculationsAndCharts!$Z$33),0,0,CalculationsAndCharts!$A$8,1),">="&K42) -> 966 | M42: =IF(OR(CalculationsAndCharts!$R$9=2,CalculationsAndCharts!$R$9=3),L42-L43,NA()) -> 0 | N42: 33 | O42: 0.03303303303
A43: 4 | B43: -27 | C43: -4.63325448 | D43: =COUNTIF(OFFSET(IF(CalculationsAndCharts!$R$3=1,CalculationsAndCharts!$L$33,CalculationsAndCharts!$X$33),0,0,CalculationsAndCharts!$A$8,1),">="&C43) -> 999 | E43: =IF(OR(CalculationsAndCharts!$R$9=1,CalculationsAndCharts!$R$9=3),D43-D44,NA()) -> 0 | F43: 0 | G43: 0 | K43: -3.732209824 | L43: =COUNTIF(OFFSET(IF(CalculationsAndCharts!$R$3=1,CalculationsAndCharts!$T$33,CalculationsAndCharts!$Z$33),0,0,CalculationsAndCharts!$A$8,1),">="&K43) -> 966 | M43: =IF(OR(CalculationsAndCharts!$R$9=2,CalculationsAndCharts!$R$9=3),L43-L44,NA()) -> 0 | N43: 33 | O43: 0.03303303303
A44: 5 | B44: -26 | C44: -4.461652462 | D44: =COUNTIF(OFFSET(IF(CalculationsAndCharts!$R$3=1,CalculationsAndCharts!$L$33,CalculationsAndCharts!$X$33),0,0,CalculationsAndCharts!$A$8,1),">="&C44) -> 999 | E44: =IF(OR(CalculationsAndCharts!$R$9=1,CalculationsAndCharts!$R$9=3),D44-D45,NA()) -> 0 | F44: 0 | G44: 0 | K44: -3.593979831 | L44: =COUNTIF(OFFSET(IF(CalculationsAndCharts!$R$3=1,CalculationsAndCharts!$T$33,CalculationsAndCharts!$Z$33),0,0,CalculationsAndCharts!$A$8,1),">="&K44) -> 966 | M44: =IF(OR(CalculationsAndCharts!$R$9=2,CalculationsAndCharts!$R$9=3),L44-L45,NA()) -> 0 | N44: 33 | O44: 0.03303303303
A45: 6 | B45: -25 | C45: -4.290050444 | D45: =COUNTIF(OFFSET(IF(CalculationsAndCharts!$R$3=1,CalculationsAndCharts!$L$33,CalculationsAndCharts!$X$33),0,0,CalculationsAndCharts!$A$8,1),">="&C45) -> 999 | E45: =IF(OR(CalculationsAndCharts!$R$9=1,CalculationsAndCharts!$R$9=3),D45-D46,NA()) -> 1 | F45: 1 | G45: 0.001001001001 | K45: -3.455749837 | L45: =COUNTIF(OFFSET(IF(CalculationsAndCharts!$R$3=1,CalculationsAndCharts!$T$33,CalculationsAndCharts!$Z$33),0,0,CalculationsAndCharts!$A$8,1),">="&K45) -> 966 | M45: =IF(OR(CalculationsAndCharts!$R$9=2,CalculationsAndCharts!$R$9=3),L45-L46,NA()) -> 0 | N45: 33 | O45: 0.03303303303
A46: 7 | B46: -24 | C46: -4.118448427 | D46: =COUNTIF(OFFSET(IF(CalculationsAndCharts!$R$3=1,CalculationsAndCharts!$L$33,CalculationsAndCharts!$X$33),0,0,CalculationsAndCharts!$A$8,1),">="&C46) -> 998 | E46: =IF(OR(CalculationsAndCharts!$R$9=1,CalculationsAndCharts!$R$9=3),D46-D47,NA()) -> 0 | F46: 1 | G46: 0.001001001001 | K46: -3.317519844 | L46: =COUNTIF(OFFSET(IF(CalculationsAndCharts!$R$3=1,CalculationsAndCharts!$T$33,CalculationsAndCharts!$Z$33),0,0,CalculationsAndCharts!$A$8,1),">="&K46) -> 966 | M46: =IF(OR(CalculationsAndCharts!$R$9=2,CalculationsAndCharts!$R$9=3),L46-L47,NA()) -> 0 | N46: 33 | O46: 0.03303303303
A47: 8 | B47: -23 | C47: -3.946846409 | D47: =COUNTIF(OFFSET(IF(CalculationsAndCharts!$R$3=1,CalculationsAndCharts!$L$33,CalculationsAndCharts!$X$33),0,0,CalculationsAndCharts!$A$8,1),">="&C47) -> 998 | E47: =IF(OR(CalculationsAndCharts!$R$9=1,CalculationsAndCharts!$R$9=3),D47-D48,NA()) -> 3 | F47: 4 | G47: 0.004004004004 | K47: -3.17928985 | L47: =COUNTIF(OFFSET(IF(CalculationsAndCharts!$R$3=1,CalculationsAndCharts!$T$33,CalculationsAndCharts!$Z$33),0,0,CalculationsAndCharts!$A$8,1),">="&K47) -> 966 | M47: =IF(OR(CalculationsAndCharts!$R$9=2,CalculationsAndCharts!$R$9=3),L47-L48,NA()) -> 0 | N47: 33 | O47: 0.03303303303
A48: 9 | B48: -22 | C48: -3.775244391 | D48: =COUNTIF(OFFSET(IF(CalculationsAndCharts!$R$3=1,CalculationsAndCharts!$L$33,CalculationsAndCharts!$X$33),0,0,CalculationsAndCharts!$A$8,1),">="&C48) -> 995 | E48: =IF(OR(CalculationsAndCharts!$R$9=1,CalculationsAndCharts!$R$9=3),D48-D49,NA()) -> 2 | F48: 6 | G48: 0.006006006006 | K48: -3.041059857 | L48: =COUNTIF(OFFSET(IF(CalculationsAndCharts!$R$3=1,CalculationsAndCharts!$T$33,CalculationsAndCharts!$Z$33),0,0,CalculationsAndCharts!$A$8,1),">="&K48) -> 966 | M48: =IF(OR(CalculationsAndCharts!$R$9=2,CalculationsAndCharts!$R$9=3),L48-L49,NA()) -> 1 | N48: 34 | O48: 0.03403403403
A49: 10 | B49: -21 | C49: -3.603642373 | D49: =COUNTIF(OFFSET(IF(CalculationsAndCharts!$R$3=1,CalculationsAndCharts!$L$33,CalculationsAndCharts!$X$33),0,0,CalculationsAndCharts!$A$8,1),">="&C49) -> 993 | E49: =IF(OR(CalculationsAndCharts!$R$9=1,CalculationsAndCharts!$R$9=3),D49-D50,NA()) -> 2 | F49: 8 | G49: 0.008008008008 | K49: -2.902829863 | L49: =COUNTIF(OFFSET(IF(CalculationsAndCharts!$R$3=1,CalculationsAndCharts!$T$33,CalculationsAndCharts!$Z$33),0,0,CalculationsAndCharts!$A$8,1),">="&K49) -> 965 | M49: =IF(OR(CalculationsAndCharts!$R$9=2,CalculationsAndCharts!$R$9=3),L49-L50,NA()) -> 0 | N49: 34 | O49: 0.03403403403
A50: 11 | B50: -20 | C50: -3.432040356 | D50: =COUNTIF(OFFSET(IF(CalculationsAndCharts!$R$3=1,CalculationsAndCharts!$L$33,CalculationsAndCharts!$X$33),0,0,CalculationsAndCharts!$A$8,1),">="&C50) -> 991 | E50: =IF(OR(CalculationsAndCharts!$R$9=1,CalculationsAndCharts!$R$9=3),D50-D51,NA()) -> 1 | F50: 9 | G50: 0.009009009009 | K50: -2.76459987 | L50: =COUNTIF(OFFSET(IF(CalculationsAndCharts!$R$3=1,CalculationsAndCharts!$T$33,CalculationsAndCharts!$Z$33),0,0,CalculationsAndCharts!$A$8,1),">="&K50) -> 965 | M50: =IF(OR(CalculationsAndCharts!$R$9=2,CalculationsAndCharts!$R$9=3),L50-L51,NA()) -> 0 | N50: 34 | O50: 0.03403403403
A51: 12 | B51: -19 | C51: -3.260438338 | D51: =COUNTIF(OFFSET(IF(CalculationsAndCharts!$R$3=1,CalculationsAndCharts!$L$33,CalculationsAndCharts!$X$33),0,0,CalculationsAndCharts!$A$8,1),">="&C51) -> 990 | E51: =IF(OR(CalculationsAndCharts!$R$9=1,CalculationsAndCharts!$R$9=3),D51-D52,NA()) -> 3 | F51: 12 | G51: 0.01201201201 | K51: -2.626369876 | L51: =COUNTIF(OFFSET(IF(CalculationsAndCharts!$R$3=1,CalculationsAndCharts!$T$33,CalculationsAndCharts!$Z$33),0,0,CalculationsAndCharts!$A$8,1),">="&K51) -> 965 | M51: =IF(OR(CalculationsAndCharts!$R$9=2,CalculationsAndCharts!$R$9=3),L51-L52,NA()) -> 1 | N51: 35 | O51: 0.03503503504
A52: 13 | B52: -18 | C52: -3.08883632 | D52: =COUNTIF(OFFSET(IF(CalculationsAndCharts!$R$3=1,CalculationsAndCharts!$L$33,CalculationsAndCharts!$X$33),0,0,CalculationsAndCharts!$A$8,1),">="&C52) -> 987 | E52: =IF(OR(CalculationsAndCharts!$R$9=1,CalculationsAndCharts!$R$9=3),D52-D53,NA()) -> 1 | F52: 13 | G52: 0.01301301301 | K52: -2.488139883 | L52: =COUNTIF(OFFSET(IF(CalculationsAndCharts!$R$3=1,CalculationsAndCharts!$T$33,CalculationsAndCharts!$Z$33),0,0,CalculationsAndCharts!$A$8,1),">="&K52) -> 964 | M52: =IF(OR(CalculationsAndCharts!$R$9=2,CalculationsAndCharts!$R$9=3),L52-L53,NA()) -> 0 | N52: 35 | O52: 0.03503503504
A53: 14 | B53: -17 | C53: -2.917234302 | D53: =COUNTIF(OFFSET(IF(CalculationsAndCharts!$R$3=1,CalculationsAndCharts!$L$33,CalculationsAndCharts!$X$33),0,0,CalculationsAndCharts!$A$8,1),">="&C53) -> 986 | E53: =IF(OR(CalculationsAndCharts!$R$9=1,CalculationsAndCharts!$R$9=3),D53-D54,NA()) -> 3 | F53: 16 | G53: 0.01601601602 | K53: -2.349909889 | L53: =COUNTIF(OFFSET(IF(CalculationsAndCharts!$R$3=1,CalculationsAndCharts!$T$33,CalculationsAndCharts!$Z$33),0,0,CalculationsAndCharts!$A$8,1),">="&K53) -> 964 | M53: =IF(OR(CalculationsAndCharts!$R$9=2,CalculationsAndCharts!$R$9=3),L53-L54,NA()) -> 0 | N53: 35 | O53: 0.03503503504
A54: 15 | B54: -16 | C54: -2.745632284 | D54: =COUNTIF(OFFSET(IF(CalculationsAndCharts!$R$3=1,CalculationsAndCharts!$L$33,CalculationsAndCharts!$X$33),0,0,CalculationsAndCharts!$A$8,1),">="&C54) -> 983 | E54: =IF(OR(CalculationsAndCharts!$R$9=1,CalculationsAndCharts!$R$9=3),D54-D55,NA()) -> 2 | F54: 18 | G54: 0.01801801802 | K54: -2.211679896 | L54: =COUNTIF(OFFSET(IF(CalculationsAndCharts!$R$3=1,CalculationsAndCharts!$T$33,CalculationsAndCharts!$Z$33),0,0,CalculationsAndCharts!$A$8,1),">="&K54) -> 964 | M54: =IF(OR(CalculationsAndCharts!$R$9=2,CalculationsAndCharts!$R$9=3),L54-L55,NA()) -> 0 | N54: 35 | O54: 0.03503503504
A55: 16 | B55: -15 | C55: -2.574030267 | D55: =COUNTIF(OFFSET(IF(CalculationsAndCharts!$R$3=1,CalculationsAndCharts!$L$33,CalculationsAndCharts!$X$33),0,0,CalculationsAndCharts!$A$8,1),">="&C55) -> 981 | E55: =IF(OR(CalculationsAndCharts!$R$9=1,CalculationsAndCharts!$R$9=3),D55-D56,NA()) -> 6 | F55: 24 | G55: 0.02402402402 | K55: -2.073449902 | L55: =COUNTIF(OFFSET(IF(CalculationsAndCharts!$R$3=1,CalculationsAndCharts!$T$33,CalculationsAndCharts!$Z$33),0,0,CalculationsAndCharts!$A$8,1),">="&K55) -> 964 | M55: =IF(OR(CalculationsAndCharts!$R$9=2,CalculationsAndCharts!$R$9=3),L55-L56,NA()) -> 1 | N55: 36 | O55: 0.03603603604
A56: 17 | B56: -14 | C56: -2.402428249 | D56: =COUNTIF(OFFSET(IF(CalculationsAndCharts!$R$3=1,CalculationsAndCharts!$L$33,CalculationsAndCharts!$X$33),0,0,CalculationsAndCharts!$A$8,1),">="&C56) -> 975 | E56: =IF(OR(CalculationsAndCharts!$R$9=1,CalculationsAndCharts!$R$9=3),D56-D57,NA()) -> 3 | F56: 27 | G56: 0.02702702703 | K56: -1.935219909 | L56: =COUNTIF(OFFSET(IF(CalculationsAndCharts!$R$3=1,CalculationsAndCharts!$T$33,CalculationsAndCharts!$Z$33),0,0,CalculationsAndCharts!$A$8,1),">="&K56) -> 963 | M56: =IF(OR(CalculationsAndCharts!$R$9=2,CalculationsAndCharts!$R$9=3),L56-L57,NA()) -> 0 | N56: 36 | O56: 0.03603603604
A57: 18 | B57: -13 | C57: -2.230826231 | D57: =COUNTIF(OFFSET(IF(CalculationsAndCharts!$R$3=1,CalculationsAndCharts!$L$33,CalculationsAndCharts!$X$33),0,0,CalculationsAndCharts!$A$8,1),">="&C57) -> 972 | E57: =IF(OR(CalculationsAndCharts!$R$9=1,CalculationsAndCharts!$R$9=3),D57-D58,NA()) -> 5 | F57: 32 | G57: 0.03203203203 | K57: -1.796989915 | L57: =COUNTIF(OFFSET(IF(CalculationsAndCharts!$R$3=1,CalculationsAndCharts!$T$33,CalculationsAndCharts!$Z$33),0,0,CalculationsAndCharts!$A$8,1),">="&K57) -> 963 | M57: =IF(OR(CalculationsAndCharts!$R$9=2,CalculationsAndCharts!$R$9=3),L57-L58,NA()) -> 0 | N57: 36 | O57: 0.03603603604
A58: 19 | B58: -12 | C58: -2.059224213 | D58: =COUNTIF(OFFSET(IF(CalculationsAndCharts!$R$3=1,CalculationsAndCharts!$L$33,CalculationsAndCharts!$X$33),0,0,CalculationsAndCharts!$A$8,1),">="&C58) -> 967 | E58: =IF(OR(CalculationsAndCharts!$R$9=1,CalculationsAndCharts!$R$9=3),D58-D59,NA()) -> 4 | F58: 36 | G58: 0.03603603604 | K58: -1.658759922 | L58: =COUNTIF(OFFSET(IF(CalculationsAndCharts!$R$3=1,CalculationsAndCharts!$T$33,CalculationsAndCharts!$Z$33),0,0,CalculationsAndCharts!$A$8,1),">="&K58) -> 963 | M58: =IF(OR(CalculationsAndCharts!$R$9=2,CalculationsAndCharts!$R$9=3),L58-L59,NA()) -> 0 | N58: 36 | O58: 0.03603603604
A59: 20 | B59: -11 | C59: -1.887622196 | D59: =COUNTIF(OFFSET(IF(CalculationsAndCharts!$R$3=1,CalculationsAndCharts!$L$33,CalculationsAndCharts!$X$33),0,0,CalculationsAndCharts!$A$8,1),">="&C59) -> 963 | E59: =IF(OR(CalculationsAndCharts!$R$9=1,CalculationsAndCharts!$R$9=3),D59-D60,NA()) -> 7 | F59: 43 | G59: 0.04304304304 | H59: 58 | K59: -1.520529928 | L59: =COUNTIF(OFFSET(IF(CalculationsAndCharts!$R$3=1,CalculationsAndCharts!$T$33,CalculationsAndCharts!$Z$33),0,0,CalculationsAndCharts!$A$8,1),">="&K59) -> 963 | M59: =IF(OR(CalculationsAndCharts!$R$9=2,CalculationsAndCharts!$R$9=3),L59-L60,NA()) -> 4 | N59: 40 | O59: 0.04004004004
A60: 21 | B60: -10 | C60: -1.716020178 | D60: =COUNTIF(OFFSET(IF(CalculationsAndCharts!$R$3=1,CalculationsAndCharts!$L$33,CalculationsAndCharts!$X$33),0,0,CalculationsAndCharts!$A$8,1),">="&C60) -> 956 | E60: =IF(OR(CalculationsAndCharts!$R$9=1,CalculationsAndCharts!$R$9=3),D60-D61,NA()) -> 8 | F60: 51 | G60: 0.05105105105 | K60: -1.382299935 | L60: =COUNTIF(OFFSET(IF(CalculationsAndCharts!$R$3=1,CalculationsAndCharts!$T$33,CalculationsAndCharts!$Z$33),0,0,CalculationsAndCharts!$A$8,1),">="&K60) -> 959 | M60: =IF(OR(CalculationsAndCharts!$R$9=2,CalculationsAndCharts!$R$9=3),L60-L61,NA()) -> 4 | N60: 44 | O60: 0.04404404404
A61: 22 | B61: -9 | C61: -1.54441816 | D61: =COUNTIF(OFFSET(IF(CalculationsAndCharts!$R$3=1,CalculationsAndCharts!$L$33,CalculationsAndCharts!$X$33),0,0,CalculationsAndCharts!$A$8,1),">="&C61) -> 948 | E61: =IF(OR(CalculationsAndCharts!$R$9=1,CalculationsAndCharts!$R$9=3),D61-D62,NA()) -> 9 | F61: 60 | G61: 0.06006006006 | K61: -1.244069941 | L61: =COUNTIF(OFFSET(IF(CalculationsAndCharts!$R$3=1,CalculationsAndCharts!$T$33,CalculationsAndCharts!$Z$33),0,0,CalculationsAndCharts!$A$8,1),">="&K61) -> 955 | M61: =IF(OR(CalculationsAndCharts!$R$9=2,CalculationsAndCharts!$R$9=3),L61-L62,NA()) -> 5 | N61: 49 | O61: 0.04904904905 | P61: 149
A62: 23 | B62: -8 | C62: -1.372816142 | D62: =COUNTIF(OFFSET(IF(CalculationsAndCharts!$R$3=1,CalculationsAndCharts!$L$33,CalculationsAndCharts!$X$33),0,0,CalculationsAndCharts!$A$8,1),">="&C62) -> 939 | E62: =IF(OR(CalculationsAndCharts!$R$9=1,CalculationsAndCharts!$R$9=3),D62-D63,NA()) -> 25 | F62: 85 | G62: 0.08508508509 | K62: -1.105839948 | L62: =COUNTIF(OFFSET(IF(CalculationsAndCharts!$R$3=1,CalculationsAndCharts!$T$33,CalculationsAndCharts!$Z$33),0,0,CalculationsAndCharts!$A$8,1),">="&K62) -> 950 | M62: =IF(OR(CalculationsAndCharts!$R$9=2,CalculationsAndCharts!$R$9=3),L62-L63,NA()) -> 4 | N62: 53 | O62: 0.05305305305
A63: 24 | B63: -7 | C63: -1.201214124 | D63: =COUNTIF(OFFSET(IF(CalculationsAndCharts!$R$3=1,CalculationsAndCharts!$L$33,CalculationsAndCharts!$X$33),0,0,CalculationsAndCharts!$A$8,1),">="&C63) -> 914 | E63: =IF(OR(CalculationsAndCharts!$R$9=1,CalculationsAndCharts!$R$9=3),D63-D64,NA()) -> 15 | F63: 100 | G63: 0.1001001001 | K63: -0.9676099544 | L63: =COUNTIF(OFFSET(IF(CalculationsAndCharts!$R$3=1,CalculationsAndCharts!$T$33,CalculationsAndCharts!$Z$33),0,0,CalculationsAndCharts!$A$8,1),">="&K63) -> 946 | M63: =IF(OR(CalculationsAndCharts!$R$9=2,CalculationsAndCharts!$R$9=3),L63-L64,NA()) -> 9 | N63: 62 | O63: 0.06206206206
A64: 25 | B64: -6 | C64: -1.029612107 | D64: =COUNTIF(OFFSET(IF(CalculationsAndCharts!$R$3=1,CalculationsAndCharts!$L$33,CalculationsAndCharts!$X$33),0,0,CalculationsAndCharts!$A$8,1),">="&C64) -> 899 | E64: =IF(OR(CalculationsAndCharts!$R$9=1,CalculationsAndCharts!$R$9=3),D64-D65,NA()) -> 23 | F64: 123 | G64: 0.1231231231 | K64: -0.8293799609 | L64: =COUNTIF(OFFSET(IF(CalculationsAndCharts!$R$3=1,CalculationsAndCharts!$T$33,CalculationsAndCharts!$Z$33),0,0,CalculationsAndCharts!$A$8,1),">="&K64) -> 937 | M64: =IF(OR(CalculationsAndCharts!$R$9=2,CalculationsAndCharts!$R$9=3),L64-L65,NA()) -> 23 | N64: 85 | O64: 0.08508508509
A65: 26 | B65: -5 | C65: -0.8580100889 | D65: =COUNTIF(OFFSET(IF(CalculationsAndCharts!$R$3=1,CalculationsAndCharts!$L$33,CalculationsAndCharts!$X$33),0,0,CalculationsAndCharts!$A$8,1),">="&C65) -> 876 | E65: =IF(OR(CalculationsAndCharts!$R$9=1,CalculationsAndCharts!$R$9=3),D65-D66,NA()) -> 34 | F65: 157 | G65: 0.1571571572 | K65: -0.6911499674 | L65: =COUNTIF(OFFSET(IF(CalculationsAndCharts!$R$3=1,CalculationsAndCharts!$T$33,CalculationsAndCharts!$Z$33),0,0,CalculationsAndCharts!$A$8,1),">="&K65) -> 914 | M65: =IF(OR(CalculationsAndCharts!$R$9=2,CalculationsAndCharts!$R$9=3),L65-L66,NA()) -> 15 | N65: 100 | O65: 0.1001001001
A66: 27 | B66: -4 | C66: -0.6864080711 | D66: =COUNTIF(OFFSET(IF(CalculationsAndCharts!$R$3=1,CalculationsAndCharts!$L$33,CalculationsAndCharts!$X$33),0,0,CalculationsAndCharts!$A$8,1),">="&C66) -> 842 | E66: =IF(OR(CalculationsAndCharts!$R$9=1,CalculationsAndCharts!$R$9=3),D66-D67,NA()) -> 36 | F66: 193 | G66: 0.1931931932 | K66: -0.5529199739 | L66: =COUNTIF(OFFSET(IF(CalculationsAndCharts!$R$3=1,CalculationsAndCharts!$T$33,CalculationsAndCharts!$Z$33),0,0,CalculationsAndCharts!$A$8,1),">="&K66) -> 899 | M66: =IF(OR(CalculationsAndCharts!$R$9=2,CalculationsAndCharts!$R$9=3),L66-L67,NA()) -> 35 | N66: 135 | O66: 0.1351351351
A67: 28 | B67: -3 | C67: -0.5148060533 | D67: =COUNTIF(OFFSET(IF(CalculationsAndCharts!$R$3=1,CalculationsAndCharts!$L$33,CalculationsAndCharts!$X$33),0,0,CalculationsAndCharts!$A$8,1),">="&C67) -> 806 | E67: =IF(OR(CalculationsAndCharts!$R$9=1,CalculationsAndCharts!$R$9=3),D67-D68,NA()) -> 43 | F67: 236 | G67: 0.2362362362 | K67: -0.4146899804 | L67: =COUNTIF(OFFSET(IF(CalculationsAndCharts!$R$3=1,CalculationsAndCharts!$T$33,CalculationsAndCharts!$Z$33),0,0,CalculationsAndCharts!$A$8,1),">="&K67) -> 864 | M67: =IF(OR(CalculationsAndCharts!$R$9=2,CalculationsAndCharts!$R$9=3),L67-L68,NA()) -> 52 | N67: 187 | O67: 0.1871871872
A68: 29 | B68: -2 | C68: -0.3432040356 | D68: =COUNTIF(OFFSET(IF(CalculationsAndCharts!$R$3=1,CalculationsAndCharts!$L$33,CalculationsAndCharts!$X$33),0,0,CalculationsAndCharts!$A$8,1),">="&C68) -> 763 | E68: =IF(OR(CalculationsAndCharts!$R$9=1,CalculationsAndCharts!$R$9=3),D68-D69,NA()) -> 51 | F68: 287 | G68: 0.2872872873 | K68: -0.276459987 | L68: =COUNTIF(OFFSET(IF(CalculationsAndCharts!$R$3=1,CalculationsAndCharts!$T$33,CalculationsAndCharts!$Z$33),0,0,CalculationsAndCharts!$A$8,1),">="&K68) -> 812 | M68: =IF(OR(CalculationsAndCharts!$R$9=2,CalculationsAndCharts!$R$9=3),L68-L69,NA()) -> 61 | N68: 248 | O68: 0.2482482482
A69: 30 | B69: -1 | C69: -0.1716020178 | D69: =COUNTIF(OFFSET(IF(CalculationsAndCharts!$R$3=1,CalculationsAndCharts!$L$33,CalculationsAndCharts!$X$33),0,0,CalculationsAndCharts!$A$8,1),">="&C69) -> 712 | E69: =IF(OR(CalculationsAndCharts!$R$9=1,CalculationsAndCharts!$R$9=3),D69-D70,NA()) -> 57 | F69: 344 | G69: 0.3443443443 | K69: -0.1382299935 | L69: =COUNTIF(OFFSET(IF(CalculationsAndCharts!$R$3=1,CalculationsAndCharts!$T$33,CalculationsAndCharts!$Z$33),0,0,CalculationsAndCharts!$A$8,1),">="&K69) -> 751 | M69: =IF(OR(CalculationsAndCharts!$R$9=2,CalculationsAndCharts!$R$9=3),L69-L70,NA()) -> 96 | N69: 344 | O69: 0.3443443443
A70: 31 | B70: 0 | C70: 2.053912596e-15 | D70: =COUNTIF(OFFSET(IF(CalculationsAndCharts!$R$3=1,CalculationsAndCharts!$L$33,CalculationsAndCharts!$X$33),0,0,CalculationsAndCharts!$A$8,1),">="&C70) -> 655 | E70: =IF(OR(CalculationsAndCharts!$R$9=1,CalculationsAndCharts!$R$9=3),D70-D71,NA()) -> 44 | F70: 388 | G70: 0.3883883884 | K70: -2.664535259e-15 | L70: =COUNTIF(OFFSET(IF(CalculationsAndCharts!$R$3=1,CalculationsAndCharts!$T$33,CalculationsAndCharts!$Z$33),0,0,CalculationsAndCharts!$A$8,1),">="&K70) -> 655 | M70: =IF(OR(CalculationsAndCharts!$R$9=2,CalculationsAndCharts!$R$9=3),L70-L71,NA()) -> 73 | N70: 417 | O70: 0.4174174174
A71: 32 | B71: 1 | C71: 0.1716020178 | D71: =COUNTIF(OFFSET(IF(CalculationsAndCharts!$R$3=1,CalculationsAndCharts!$L$33,CalculationsAndCharts!$X$33),0,0,CalculationsAndCharts!$A$8,1),">="&C71) -> 611 | E71: =IF(OR(CalculationsAndCharts!$R$9=1,CalculationsAndCharts!$R$9=3),D71-D72,NA()) -> 53 | F71: 441 | G71: 0.4414414414 | K71: 0.1382299935 | L71: =COUNTIF(OFFSET(IF(CalculationsAndCharts!$R$3=1,CalculationsAndCharts!$T$33,CalculationsAndCharts!$Z$33),0,0,CalculationsAndCharts!$A$8,1),">="&K71) -> 582 | M71: =IF(OR(CalculationsAndCharts!$R$9=2,CalculationsAndCharts!$R$9=3),L71-L72,NA()) -> 66 | N71: 483 | O71: 0.4834834835
A72: 33 | B72: 2 | C72: 0.3432040356 | D72: =COUNTIF(OFFSET(IF(CalculationsAndCharts!$R$3=1,CalculationsAndCharts!$L$33,CalculationsAndCharts!$X$33),0,0,CalculationsAndCharts!$A$8,1),">="&C72) -> 558 | E72: =IF(OR(CalculationsAndCharts!$R$9=1,CalculationsAndCharts!$R$9=3),D72-D73,NA()) -> 37 | F72: =E72+F71 -> 478 | G72: 0.4784784785 | K72: 0.276459987 | L72: =COUNTIF(OFFSET(IF(CalculationsAndCharts!$R$3=1,CalculationsAndCharts!$T$33,CalculationsAndCharts!$Z$33),0,0,CalculationsAndCharts!$A$8,1),">="&K72) -> 516 | M72: =IF(OR(CalculationsAndCharts!$R$9=2,CalculationsAndCharts!$R$9=3),L72-L73,NA()) -> 83 | N72: =M72+N71 -> 566 | O72: 0.5665665666
A73: 34 | B73: 3 | C73: =C72+$E$35 -> 0.5148060533 | D73: =COUNTIF(OFFSET(IF(CalculationsAndCharts!$R$3=1,CalculationsAndCharts!$L$33,CalculationsAndCharts!$X$33),0,0,CalculationsAndCharts!$A$8,1),">="&C73) -> 521 | E73: =IF(OR(CalculationsAndCharts!$R$9=1,CalculationsAndCharts!$R$9=3),D73-D74,NA()) -> 58 | F73: 536 | G73: 0.5365365365 | I73: 58 | K73: =K72+$M$35 -> 0.4146899804 | L73: =COUNTIF(OFFSET(IF(CalculationsAndCharts!$R$3=1,CalculationsAndCharts!$T$33,CalculationsAndCharts!$Z$33),0,0,CalculationsAndCharts!$A$8,1),">="&K73) -> 433 | M73: =IF(OR(CalculationsAndCharts!$R$9=2,CalculationsAndCharts!$R$9=3),L73-L74,NA()) -> 43 | N73: 609 | O73: 0.6096096096
A74: 35 | B74: 4 | C74: 0.6864080711 | D74: =COUNTIF(OFFSET(IF(CalculationsAndCharts!$R$3=1,CalculationsAndCharts!$L$33,CalculationsAndCharts!$X$33),0,0,CalculationsAndCharts!$A$8,1),">="&C74) -> 463 | E74: =IF(OR(CalculationsAndCharts!$R$9=1,CalculationsAndCharts!$R$9=3),D74-D75,NA()) -> 45 | F74: 581 | G74: 0.5815815816 | K74: 0.5529199739 | L74: =COUNTIF(OFFSET(IF(CalculationsAndCharts!$R$3=1,CalculationsAndCharts!$T$33,CalculationsAndCharts!$Z$33),0,0,CalculationsAndCharts!$A$8,1),">="&K74) -> 390 | M74: =IF(OR(CalculationsAndCharts!$R$9=2,CalculationsAndCharts!$R$9=3),L74-L75,NA()) -> 54 | N74: 663 | O74: 0.6636636637 | Q74: 149
A75: 36 | B75: 5 | C75: 0.8580100889 | D75: =COUNTIF(OFFSET(IF(CalculationsAndCharts!$R$3=1,CalculationsAndCharts!$L$33,CalculationsAndCharts!$X$33),0,0,CalculationsAndCharts!$A$8,1),">="&C75) -> 418 | E75: =IF(OR(CalculationsAndCharts!$R$9=1,CalculationsAndCharts!$R$9=3),D75-D76,NA()) -> 31 | F75: 612 | G75: 0.6126126126 | K75: 0.6911499674 | L75: =COUNTIF(OFFSET(IF(CalculationsAndCharts!$R$3=1,CalculationsAndCharts!$T$33,CalculationsAndCharts!$Z$33),0,0,CalculationsAndCharts!$A$8,1),">="&K75) -> 336 | M75: =IF(OR(CalculationsAndCharts!$R$9=2,CalculationsAndCharts!$R$9=3),L75-L76,NA()) -> 48 | N75: 711 | O75: 0.7117117117
A76: 37 | B76: 6 | C76: 1.029612107 | D76: =COUNTIF(OFFSET(IF(CalculationsAndCharts!$R$3=1,CalculationsAndCharts!$L$33,CalculationsAndCharts!$X$33),0,0,CalculationsAndCharts!$A$8,1),">="&C76) -> 387 | E76: =IF(OR(CalculationsAndCharts!$R$9=1,CalculationsAndCharts!$R$9=3),D76-D77,NA()) -> 52 | F76: 664 | G76: 0.6646646647 | K76: 0.8293799609 | L76: =COUNTIF(OFFSET(IF(CalculationsAndCharts!$R$3=1,CalculationsAndCharts!$T$33,CalculationsAndCharts!$Z$33),0,0,CalculationsAndCharts!$A$8,1),">="&K76) -> 288 | M76: =IF(OR(CalculationsAndCharts!$R$9=2,CalculationsAndCharts!$R$9=3),L76-L77,NA()) -> 33 | N76: 744 | O76: 0.7447447447
A77: 38 | B77: 7 | C77: 1.201214124 | D77: =COUNTIF(OFFSET(IF(CalculationsAndCharts!$R$3=1,CalculationsAndCharts!$L$33,CalculationsAndCharts!$X$33),0,0,CalculationsAndCharts!$A$8,1),">="&C77) -> 335 | E77: =IF(OR(CalculationsAndCharts!$R$9=1,CalculationsAndCharts!$R$9=3),D77-D78,NA()) -> 49 | F77: 713 | G77: 0.7137137137 | K77: 0.9676099544 | L77: =COUNTIF(OFFSET(IF(CalculationsAndCharts!$R$3=1,CalculationsAndCharts!$T$33,CalculationsAndCharts!$Z$33),0,0,CalculationsAndCharts!$A$8,1),">="&K77) -> 255 | M77: =IF(OR(CalculationsAndCharts!$R$9=2,CalculationsAndCharts!$R$9=3),L77-L78,NA()) -> 20 | N77: 764 | O77: 0.7647647648
A78: 39 | B78: 8 | C78: 1.372816142 | D78: =COUNTIF(OFFSET(IF(CalculationsAndCharts!$R$3=1,CalculationsAndCharts!$L$33,CalculationsAndCharts!$X$33),0,0,CalculationsAndCharts!$A$8,1),">="&C78) -> 286 | E78: =IF(OR(CalculationsAndCharts!$R$9=1,CalculationsAndCharts!$R$9=3),D78-D79,NA()) -> 36 | F78: 749 | G78: 0.7497497497 | K78: 1.105839948 | L78: =COUNTIF(OFFSET(IF(CalculationsAndCharts!$R$3=1,CalculationsAndCharts!$T$33,CalculationsAndCharts!$Z$33),0,0,CalculationsAndCharts!$A$8,1),">="&K78) -> 235 | M78: =IF(OR(CalculationsAndCharts!$R$9=2,CalculationsAndCharts!$R$9=3),L78-L79,NA()) -> 18 | N78: 782 | O78: 0.7827827828
A79: 40 | B79: 9 | C79: 1.54441816 | D79: =COUNTIF(OFFSET(IF(CalculationsAndCharts!$R$3=1,CalculationsAndCharts!$L$33,CalculationsAndCharts!$X$33),0,0,CalculationsAndCharts!$A$8,1),">="&C79) -> 250 | E79: =IF(OR(CalculationsAndCharts!$R$9=1,CalculationsAndCharts!$R$9=3),D79-D80,NA()) -> 37 | F79: 786 | G79: 0.7867867868 | K79: 1.244069941 | L79: =COUNTIF(OFFSET(IF(CalculationsAndCharts!$R$3=1,CalculationsAndCharts!$T$33,CalculationsAndCharts!$Z$33),0,0,CalculationsAndCharts!$A$8,1),">="&K79) -> 217 | M79: =IF(OR(CalculationsAndCharts!$R$9=2,CalculationsAndCharts!$R$9=3),L79-L80,NA()) -> 12 | N79: 794 | O79: 0.7947947948
A80: 41 | B80: 10 | C80: 1.716020178 | D80: =COUNTIF(OFFSET(IF(CalculationsAndCharts!$R$3=1,CalculationsAndCharts!$L$33,CalculationsAndCharts!$X$33),0,0,CalculationsAndCharts!$A$8,1),">="&C80) -> 213 | E80: =IF(OR(CalculationsAndCharts!$R$9=1,CalculationsAndCharts!$R$9=3),D80-D81,NA()) -> 44 | F80: 830 | G80: 0.8308308308 | K80: 1.382299935 | L80: =COUNTIF(OFFSET(IF(CalculationsAndCharts!$R$3=1,CalculationsAndCharts!$T$33,CalculationsAndCharts!$Z$33),0,0,CalculationsAndCharts!$A$8,1),">="&K80) -> 205 | M80: =IF(OR(CalculationsAndCharts!$R$9=2,CalculationsAndCharts!$R$9=3),L80-L81,NA()) -> 20 | N80: 814 | O80: 0.8148148148
A81: 42 | B81: 11 | C81: 1.887622196 | D81: =COUNTIF(OFFSET(IF(CalculationsAndCharts!$R$3=1,CalculationsAndCharts!$L$33,CalculationsAndCharts!$X$33),0,0,CalculationsAndCharts!$A$8,1),">="&C81) -> 169 | E81: =IF(OR(CalculationsAndCharts!$R$9=1,CalculationsAndCharts!$R$9=3),D81-D82,NA()) -> 27 | F81: 857 | G81: 0.8578578579 | K81: 1.520529928 | L81: =COUNTIF(OFFSET(IF(CalculationsAndCharts!$R$3=1,CalculationsAndCharts!$T$33,CalculationsAndCharts!$Z$33),0,0,CalculationsAndCharts!$A$8,1),">="&K81) -> 185 | M81: =IF(OR(CalculationsAndCharts!$R$9=2,CalculationsAndCharts!$R$9=3),L81-L82,NA()) -> 11 | N81: 825 | O81: 0.8258258258
A82: 43 | B82: 12 | C82: 2.059224213 | D82: =COUNTIF(OFFSET(IF(CalculationsAndCharts!$R$3=1,CalculationsAndCharts!$L$33,CalculationsAndCharts!$X$33),0,0,CalculationsAndCharts!$A$8,1),">="&C82) -> 142 | E82: =IF(OR(CalculationsAndCharts!$R$9=1,CalculationsAndCharts!$R$9=3),D82-D83,NA()) -> 20 | F82: 877 | G82: 0.8778778779 | K82: 1.658759922 | L82: =COUNTIF(OFFSET(IF(CalculationsAndCharts!$R$3=1,CalculationsAndCharts!$T$33,CalculationsAndCharts!$Z$33),0,0,CalculationsAndCharts!$A$8,1),">="&K82) -> 174 | M82: =IF(OR(CalculationsAndCharts!$R$9=2,CalculationsAndCharts!$R$9=3),L82-L83,NA()) -> 5 | N82: 830 | O82: 0.8308308308
A83: 44 | B83: 13 | C83: 2.230826231 | D83: =COUNTIF(OFFSET(IF(CalculationsAndCharts!$R$3=1,CalculationsAndCharts!$L$33,CalculationsAndCharts!$X$33),0,0,CalculationsAndCharts!$A$8,1),">="&C83) -> 122 | E83: =IF(OR(CalculationsAndCharts!$R$9=1,CalculationsAndCharts!$R$9=3),D83-D84,NA()) -> 16 | F83: 893 | G83: 0.8938938939 | K83: 1.796989915 | L83: =COUNTIF(OFFSET(IF(CalculationsAndCharts!$R$3=1,CalculationsAndCharts!$T$33,CalculationsAndCharts!$Z$33),0,0,CalculationsAndCharts!$A$8,1),">="&K83) -> 169 | M83: =IF(OR(CalculationsAndCharts!$R$9=2,CalculationsAndCharts!$R$9=3),L83-L84,NA()) -> 6 | N83: 836 | O83: 0.8368368368
A84: 45 | B84: 14 | C84: 2.402428249 | D84: =COUNTIF(OFFSET(IF(CalculationsAndCharts!$R$3=1,CalculationsAndCharts!$L$33,CalculationsAndCharts!$X$33),0,0,CalculationsAndCharts!$A$8,1),">="&C84) -> 106 | E84: =IF(OR(CalculationsAndCharts!$R$9=1,CalculationsAndCharts!$R$9=3),D84-D85,NA()) -> 20 | F84: 913 | G84: 0.9139139139 | K84: 1.935219909 | L84: =COUNTIF(OFFSET(IF(CalculationsAndCharts!$R$3=1,CalculationsAndCharts!$T$33,CalculationsAndCharts!$Z$33),0,0,CalculationsAndCharts!$A$8,1),">="&K84) -> 163 | M84: =IF(OR(CalculationsAndCharts!$R$9=2,CalculationsAndCharts!$R$9=3),L84-L85,NA()) -> 2 | N84: 838 | O84: 0.8388388388
A85: 46 | B85: 15 | C85: 2.574030267 | D85: =COUNTIF(OFFSET(IF(CalculationsAndCharts!$R$3=1,CalculationsAndCharts!$L$33,CalculationsAndCharts!$X$33),0,0,CalculationsAndCharts!$A$8,1),">="&C85) -> 86 | E85: =IF(OR(CalculationsAndCharts!$R$9=1,CalculationsAndCharts!$R$9=3),D85-D86,NA()) -> 14 | F85: 927 | G85: 0.9279279279 | K85: 2.073449902 | L85: =COUNTIF(OFFSET(IF(CalculationsAndCharts!$R$3=1,CalculationsAndCharts!$T$33,CalculationsAndCharts!$Z$33),0,0,CalculationsAndCharts!$A$8,1),">="&K85) -> 161 | M85: =IF(OR(CalculationsAndCharts!$R$9=2,CalculationsAndCharts!$R$9=3),L85-L86,NA()) -> 3 | N85: 841 | O85: 0.8418418418
A86: 47 | B86: 16 | C86: 2.745632284 | D86: =COUNTIF(OFFSET(IF(CalculationsAndCharts!$R$3=1,CalculationsAndCharts!$L$33,CalculationsAndCharts!$X$33),0,0,CalculationsAndCharts!$A$8,1),">="&C86) -> 72 | E86: =IF(OR(CalculationsAndCharts!$R$9=1,CalculationsAndCharts!$R$9=3),D86-D87,NA()) -> 8 | F86: 935 | G86: 0.9359359359 | K86: 2.211679896 | L86: =COUNTIF(OFFSET(IF(CalculationsAndCharts!$R$3=1,CalculationsAndCharts!$T$33,CalculationsAndCharts!$Z$33),0,0,CalculationsAndCharts!$A$8,1),">="&K86) -> 158 | M86: =IF(OR(CalculationsAndCharts!$R$9=2,CalculationsAndCharts!$R$9=3),L86-L87,NA()) -> 3 | N86: 844 | O86: 0.8448448448
A87: 48 | B87: 17 | C87: 2.917234302 | D87: =COUNTIF(OFFSET(IF(CalculationsAndCharts!$R$3=1,CalculationsAndCharts!$L$33,CalculationsAndCharts!$X$33),0,0,CalculationsAndCharts!$A$8,1),">="&C87) -> 64 | E87: =IF(OR(CalculationsAndCharts!$R$9=1,CalculationsAndCharts!$R$9=3),D87-D88,NA()) -> 13 | F87: 948 | G87: 0.9489489489 | J87: 58 | K87: 2.349909889 | L87: =COUNTIF(OFFSET(IF(CalculationsAndCharts!$R$3=1,CalculationsAndCharts!$T$33,CalculationsAndCharts!$Z$33),0,0,CalculationsAndCharts!$A$8,1),">="&K87) -> 155 | M87: =IF(OR(CalculationsAndCharts!$R$9=2,CalculationsAndCharts!$R$9=3),L87-L88,NA()) -> 5 | N87: 849 | O87: 0.8498498498
A88: 49 | B88: 18 | C88: 3.08883632 | D88: =COUNTIF(OFFSET(IF(CalculationsAndCharts!$R$3=1,CalculationsAndCharts!$L$33,CalculationsAndCharts!$X$33),0,0,CalculationsAndCharts!$A$8,1),">="&C88) -> 51 | E88: =IF(OR(CalculationsAndCharts!$R$9=1,CalculationsAndCharts!$R$9=3),D88-D89,NA()) -> 9 | F88: 957 | G88: 0.957957958 | K88: 2.488139883 | L88: =COUNTIF(OFFSET(IF(CalculationsAndCharts!$R$3=1,CalculationsAndCharts!$T$33,CalculationsAndCharts!$Z$33),0,0,CalculationsAndCharts!$A$8,1),">="&K88) -> 150 | M88: =IF(OR(CalculationsAndCharts!$R$9=2,CalculationsAndCharts!$R$9=3),L88-L89,NA()) -> 0 | N88: 849 | O88: 0.8498498498
A89: 50 | B89: 19 | C89: 3.260438338 | D89: =COUNTIF(OFFSET(IF(CalculationsAndCharts!$R$3=1,CalculationsAndCharts!$L$33,CalculationsAndCharts!$X$33),0,0,CalculationsAndCharts!$A$8,1),">="&C89) -> 42 | E89: =IF(OR(CalculationsAndCharts!$R$9=1,CalculationsAndCharts!$R$9=3),D89-D90,NA()) -> 4 | F89: 961 | G89: 0.961961962 | K89: 2.626369876 | L89: =COUNTIF(OFFSET(IF(CalculationsAndCharts!$R$3=1,CalculationsAndCharts!$T$33,CalculationsAndCharts!$Z$33),0,0,CalculationsAndCharts!$A$8,1),">="&K89) -> 150 | M89: =IF(OR(CalculationsAndCharts!$R$9=2,CalculationsAndCharts!$R$9=3),L89-L90,NA()) -> 1 | N89: 850 | O89: 0.8508508509
A90: 51 | B90: 20 | C90: 3.432040356 | D90: =COUNTIF(OFFSET(IF(CalculationsAndCharts!$R$3=1,CalculationsAndCharts!$L$33,CalculationsAndCharts!$X$33),0,0,CalculationsAndCharts!$A$8,1),">="&C90) -> 38 | E90: =IF(OR(CalculationsAndCharts!$R$9=1,CalculationsAndCharts!$R$9=3),D90-D91,NA()) -> 3 | F90: 964 | G90: 0.964964965 | K90: 2.76459987 | L90: =COUNTIF(OFFSET(IF(CalculationsAndCharts!$R$3=1,CalculationsAndCharts!$T$33,CalculationsAndCharts!$Z$33),0,0,CalculationsAndCharts!$A$8,1),">="&K90) -> 149 | M90: =IF(OR(CalculationsAndCharts!$R$9=2,CalculationsAndCharts!$R$9=3),L90-L91,NA()) -> 0 | N90: 850 | O90: 0.8508508509
A91: 52 | B91: 21 | C91: 3.603642373 | D91: =COUNTIF(OFFSET(IF(CalculationsAndCharts!$R$3=1,CalculationsAndCharts!$L$33,CalculationsAndCharts!$X$33),0,0,CalculationsAndCharts!$A$8,1),">="&C91) -> 35 | E91: =IF(OR(CalculationsAndCharts!$R$9=1,CalculationsAndCharts!$R$9=3),D91-D92,NA()) -> 6 | F91: 970 | G91: 0.970970971 | K91: 2.902829863 | L91: =COUNTIF(OFFSET(IF(CalculationsAndCharts!$R$3=1,CalculationsAndCharts!$T$33,CalculationsAndCharts!$Z$33),0,0,CalculationsAndCharts!$A$8,1),">="&K91) -> 149 | M91: =IF(OR(CalculationsAndCharts!$R$9=2,CalculationsAndCharts!$R$9=3),L91-L92,NA()) -> 0 | N91: 850 | O91: 0.8508508509
A92: 53 | B92: 22 | C92: 3.775244391 | D92: =COUNTIF(OFFSET(IF(CalculationsAndCharts!$R$3=1,CalculationsAndCharts!$L$33,CalculationsAndCharts!$X$33),0,0,CalculationsAndCharts!$A$8,1),">="&C92) -> 29 | E92: =IF(OR(CalculationsAndCharts!$R$9=1,CalculationsAndCharts!$R$9=3),D92-D93,NA()) -> 9 | F92: 979 | G92: 0.97997998 | K92: 3.041059857 | L92: =COUNTIF(OFFSET(IF(CalculationsAndCharts!$R$3=1,CalculationsAndCharts!$T$33,CalculationsAndCharts!$Z$33),0,0,CalculationsAndCharts!$A$8,1),">="&K92) -> 149 | M92: =IF(OR(CalculationsAndCharts!$R$9=2,CalculationsAndCharts!$R$9=3),L92-L93,NA()) -> 0 | N92: 850 | O92: 0.8508508509
A93: 54 | B93: 23 | C93: 3.946846409 | D93: =COUNTIF(OFFSET(IF(CalculationsAndCharts!$R$3=1,CalculationsAndCharts!$L$33,CalculationsAndCharts!$X$33),0,0,CalculationsAndCharts!$A$8,1),">="&C93) -> 20 | E93: =IF(OR(CalculationsAndCharts!$R$9=1,CalculationsAndCharts!$R$9=3),D93-D94,NA()) -> 6 | F93: 985 | G93: 0.985985986 | K93: 3.17928985 | L93: =COUNTIF(OFFSET(IF(CalculationsAndCharts!$R$3=1,CalculationsAndCharts!$T$33,CalculationsAndCharts!$Z$33),0,0,CalculationsAndCharts!$A$8,1),">="&K93) -> 149 | M93: =IF(OR(CalculationsAndCharts!$R$9=2,CalculationsAndCharts!$R$9=3),L93-L94,NA()) -> 0 | N93: 850 | O93: 0.8508508509
A94: 55 | B94: 24 | C94: 4.118448427 | D94: =COUNTIF(OFFSET(IF(CalculationsAndCharts!$R$3=1,CalculationsAndCharts!$L$33,CalculationsAndCharts!$X$33),0,0,CalculationsAndCharts!$A$8,1),">="&C94) -> 14 | E94: =IF(OR(CalculationsAndCharts!$R$9=1,CalculationsAndCharts!$R$9=3),D94-D95,NA()) -> 3 | F94: 988 | G94: 0.988988989 | K94: 3.317519844 | L94: =COUNTIF(OFFSET(IF(CalculationsAndCharts!$R$3=1,CalculationsAndCharts!$T$33,CalculationsAndCharts!$Z$33),0,0,CalculationsAndCharts!$A$8,1),">="&K94) -> 149 | M94: =IF(OR(CalculationsAndCharts!$R$9=2,CalculationsAndCharts!$R$9=3),L94-L95,NA()) -> 0 | N94: 850 | O94: 0.8508508509
A95: 56 | B95: 25 | C95: 4.290050444 | D95: =COUNTIF(OFFSET(IF(CalculationsAndCharts!$R$3=1,CalculationsAndCharts!$L$33,CalculationsAndCharts!$X$33),0,0,CalculationsAndCharts!$A$8,1),">="&C95) -> 11 | E95: =IF(OR(CalculationsAndCharts!$R$9=1,CalculationsAndCharts!$R$9=3),D95-D96,NA()) -> 1 | F95: 989 | G95: 0.98998999 | K95: 3.455749837 | L95: =COUNTIF(OFFSET(IF(CalculationsAndCharts!$R$3=1,CalculationsAndCharts!$T$33,CalculationsAndCharts!$Z$33),0,0,CalculationsAndCharts!$A$8,1),">="&K95) -> 149 | M95: =IF(OR(CalculationsAndCharts!$R$9=2,CalculationsAndCharts!$R$9=3),L95-L96,NA()) -> 0 | N95: 850 | O95: 0.8508508509
A96: 57 | B96: 26 | C96: 4.461652462 | D96: =COUNTIF(OFFSET(IF(CalculationsAndCharts!$R$3=1,CalculationsAndCharts!$L$33,CalculationsAndCharts!$X$33),0,0,CalculationsAndCharts!$A$8,1),">="&C96) -> 10 | E96: =IF(OR(CalculationsAndCharts!$R$9=1,CalculationsAndCharts!$R$9=3),D96-D97,NA()) -> 2 | F96: 991 | G96: 0.991991992 | K96: 3.593979831 | L96: =COUNTIF(OFFSET(IF(CalculationsAndCharts!$R$3=1,CalculationsAndCharts!$T$33,CalculationsAndCharts!$Z$33),0,0,CalculationsAndCharts!$A$8,1),">="&K96) -> 149 | M96: =IF(OR(CalculationsAndCharts!$R$9=2,CalculationsAndCharts!$R$9=3),L96-L97,NA()) -> 0 | N96: 850 | O96: 0.8508508509
A97: 58 | B97: 27 | C97: 4.63325448 | D97: =COUNTIF(OFFSET(IF(CalculationsAndCharts!$R$3=1,CalculationsAndCharts!$L$33,CalculationsAndCharts!$X$33),0,0,CalculationsAndCharts!$A$8,1),">="&C97) -> 8 | E97: =IF(OR(CalculationsAndCharts!$R$9=1,CalculationsAndCharts!$R$9=3),D97-D98,NA()) -> 2 | F97: 993 | G97: 0.993993994 | K97: 3.732209824 | L97: =COUNTIF(OFFSET(IF(CalculationsAndCharts!$R$3=1,CalculationsAndCharts!$T$33,CalculationsAndCharts!$Z$33),0,0,CalculationsAndCharts!$A$8,1),">="&K97) -> 149 | M97: =IF(OR(CalculationsAndCharts!$R$9=2,CalculationsAndCharts!$R$9=3),L97-L98,NA()) -> 0 | N97: 850 | O97: 0.8508508509
A98: 59 | B98: 28 | C98: 4.804856498 | D98: =COUNTIF(OFFSET(IF(CalculationsAndCharts!$R$3=1,CalculationsAndCharts!$L$33,CalculationsAndCharts!$X$33),0,0,CalculationsAndCharts!$A$8,1),">="&C98) -> 6 | E98: =IF(OR(CalculationsAndCharts!$R$9=1,CalculationsAndCharts!$R$9=3),D98-D99,NA()) -> 2 | F98: 995 | G98: 0.995995996 | K98: 3.870439817 | L98: =COUNTIF(OFFSET(IF(CalculationsAndCharts!$R$3=1,CalculationsAndCharts!$T$33,CalculationsAndCharts!$Z$33),0,0,CalculationsAndCharts!$A$8,1),">="&K98) -> 149 | M98: =IF(OR(CalculationsAndCharts!$R$9=2,CalculationsAndCharts!$R$9=3),L98-L99,NA()) -> 0 | N98: 850 | O98: 0.8508508509
A99: 60 | B99: 29 | C99: 4.976458515 | D99: =COUNTIF(OFFSET(IF(CalculationsAndCharts!$R$3=1,CalculationsAndCharts!$L$33,CalculationsAndCharts!$X$33),0,0,CalculationsAndCharts!$A$8,1),">="&C99) -> 4 | E99: =IF(OR(CalculationsAndCharts!$R$9=1,CalculationsAndCharts!$R$9=3),D99-D100,NA()) -> 4 | F99: 999 | G99: 1 | K99: 4.008669811 | L99: =COUNTIF(OFFSET(IF(CalculationsAndCharts!$R$3=1,CalculationsAndCharts!$T$33,CalculationsAndCharts!$Z$33),0,0,CalculationsAndCharts!$A$8,1),">="&K99) -> 149 | M99: =IF(OR(CalculationsAndCharts!$R$9=2,CalculationsAndCharts!$R$9=3),L99-L100,NA()) -> 0 | N99: 850 | O99: 0.8508508509 | R99: 149
